Workbook

Sheet MENU
J1: PM
E2: =CHOOSE(MATCH(Objeto,{"PM","PO"}),"PLANILHA MÚLTIPLA ","PLANILHA ORÇAMENTÁRIA ")& Versao -> PLANILHA MÚLTIPLA v3.0.4 | J2: v3.0.4
O3: 1
O4: 1
J5: Proposto
E6: DADOS DO CONTRATO | G6: NOVIDADES DA VERSÃO | J6: Licitado
J7: PLE
B8: =IF($O$3<>2,"DOCUMENTAÇÃO DA PROPOSTA","PROPOSTA: Para visualizar/preencher esta seção, altere o TIPO DE ORÇAMENTO para 'Proposto'") -> DOCUMENTAÇÃO DA PROPOSTA | J8: BM | L8: LEGENDA:
L9: Cores das células:
C10: =IF(TIPOORCAMENTO<>"Proposto",""," BDI ") -> BDI | E10: =IF(TIPOORCAMENTO<>"Proposto",""," ORÇAMENTO ") -> ORÇAMENTO | G10: =IF(TIPOORCAMENTO<>"Proposto","","MEMÓRIA DE CÁLCULO / PLQ") -> MEMÓRIA DE CÁLCULO / PLQ | N10: Fundo amarelo: células para preencher
C12: =IF(TIPOORCAMENTO<>"Proposto",""," QCI ") -> QCI | E12: =IF(TIPOORCAMENTO<>"Proposto","","CRONOGRAMA FÍSICO-FINANCEIRO") -> CRONOGRAMA FÍSICO-FINANCEIRO | N12: Fundo azul: células para seleção de opções
C14: =IF(TIPOORCAMENTO<>"Proposto","","Obs: Composições e Cotações devem ser preenchidas diretamente no arquivo Referência "&IF(ISBLANK(Import.DataBase),"mm-aaaa",TEXT(Import.DataBase,"mm-aaaa"))&".xls.") -> Obs: Composições e Cotações devem ser preenchidas diretamente no arquivo Referência 08-2021.xls.
L15: Cores dos botões:
B16: =IF($O$3<>2,"PÓS-LICITADO: Para visualizar/preencher esta seção, altere o TIPO DE ORÇAMENTO para 'Licitado'","RESULTADO DO PROCESSO LICITATÓRIO") -> PÓS-LICITADO: Para visualizar/preencher esta seção, altere o TIPO DE ORÇAMENTO para 'Licitado' | N16: Fundo azul: navegação entre abas
C18: =IF(TIPOORCAMENTO<>"Licitado",""," ORÇAMENTO ") ->  | E18: =IF(TIPOORCAMENTO<>"Licitado",""," QCI ") ->  | G18: =IF(TIPOORCAMENTO<>"Licitado","","CRONOGRAMA FÍSICO-FINANCEIRO") ->  | N18: Fundo laranja: execução de macro
B20: =IF($O$3<>2,"ACOMPANHAMENTO: Para visualizar/preencher esta seção, altere o TIPO DE ORÇAMENTO para 'Licitado'","ACOMPANHAMENTO DO EMPREENDIMENTO") -> ACOMPANHAMENTO: Para visualizar/preencher esta seção, altere o TIPO DE ORÇAMENTO para 'Licitado'
C22: =IF(OR(TIPOORCAMENTO<>"Licitado",ACOMPANHAMENTO<>"PLE"),"","PLAN. DE LEVANT. DE EVENTOS - PLE") ->  | E22: =IF(TIPOORCAMENTO<>"Licitado",""," RRE ") ->  | G22: =IF(OR(TIPOORCAMENTO<>"Licitado",ACOMPANHAMENTO<>"BM"),""," BOLETIM DE MEDIÇÃO - BM ") -> 
E24: =IF(TIPOORCAMENTO<>"Licitado","","OF. DE SOLICITAÇÃO DE DESBLOQUEIO") -> 

Sheet DADOS
E1: A. DOCUMENTAÇÃO DA PROPOSTA | L1: Sub-Itens de Investimento
J2: Itens de Investimento | K2: Unidades habitacionais | L2: =COUNTA(K:K)-1 -> 3 | M2: Equipamentos comunitários | N2: =COUNTA(M:M)-1 -> 6 | O2: Pavimentação | P2: =COUNTA(O:O)-1 -> 6 | Q2: Drenagem | R2: =COUNTA(Q:Q)-1 -> 6 | S2: Abastecimento de água | T2: =COUNTA(S:S)-1 -> 11 | U2: Esgotamento sanitário | V2: =COUNTA(U:U)-1 -> 8 | W2: Energia elétrica e iluminação pública | X2: =COUNTA(W:W)-1 -> 4 | Y2: Coleta e tratamento de resíduos sólidos | Z2: =COUNTA(Y:Y)-1 -> 6 | AA2: Contenção e estabilização de encostas | AB2: =COUNTA(AA:AA)-1 -> 2 | AC2: Regularização fundiária | AD2: =COUNTA(AC:AC)-1 -> 2 | AE2: Aquisição de terreno | AF2: =COUNTA(AE:AE)-1 -> 2 | AG2: Aquisição de equipamentos e insumos | AH2: =COUNTA(AG:AG)-1 -> 1 | AI2: Elaboração de estudos e projetos | AJ2: =COUNTA(AI:AI)-1 -> 1 | AK2: Instrumentos e ações em planejamento e gestão pública | AL2: =COUNTA(AK:AK)-1 -> 1 | AM2: Ações complementares às obras | AN2: =COUNTA(AM:AM)-1 -> 3 | AO2: Gerenciamento | AP2: =COUNTA(AO:AO)-1 -> 1 | AQ2: Trabalho social | AR2: =COUNTA(AQ:AQ)-1 -> 4
E3: Dados do Contrato (Inicial) | J3: Unidades habitacionais | K3: Aquisição | L3: un | M3: Convivência comunitária, assistência social e/ou comunitária | N3: m² | O3: Capeamento de vias | P3: m² | Q3: Obras de microdrenagem | R3: m | S3: Captação subterrânea | T3: m³/s | U3: Ligações domiciliares e/ou intradomiciliares | V3: un | W3: Iluminação pública - luminárias | X3: un | Y3: Acondicionamento | Z3: un | AA3: Estabilização de taludes | AB3: m² | AC3: Desapropriacões/Indenizações | AD3: m² | AE3: Aquisição de terreno | AF3: m² | AG3: Aquisição de equipamentos e insumos | AH3: un | AI3: Elaboração de estudos e projetos | AJ3: un | AK3: Instrumentos e ações em planejamento e gestão pública | AL3: un | AM3: Avaliação pós intervenção | AN3: un | AO3: Gerenciamento | AP3: %CT | AQ3: Projeto de Trabalho Social Preliminar | AR3: nº fam
E4: Fonte de recursos: | F4: OGU | J4: Equipamentos comunitários | K4: Construção | L4: un | M4: Educação e cultura | N4: m² | O4: Recapeamento de vias | P4: m² | Q4: Desassoreamento de cursos de água | R4: m | S4: Captação superficial | T4: m³/s | U4: Rede coletora e/ou condominial | V4: m | W4: Ligações domiciliares | X4: un | Y4: Aterro sanitário e/ou disposição final | Z4: m³ | AA4: Obras complementares a ações de redução de risco e/ou contenções | AB4: m² | AC4: Projeto de Regularização Fundiária | AD4: m² | AE4: Benfeitorias | AF4: m² | AM4: Demolições | AN4: un | AQ4: Projeto de Trabalho Social | AR4: nº fam
E5: Proponente/Tomador: | F5: PREFEITURA MUNICIPAL DE CORONEL MARTINS | J5: Pavimentação | K5: Reforma e/ou melhoria | L5: un | M5: Esportes | N5: m² | O5: Obras de artes especiais | P5: m | Q5: Canalização de cursos de água | R5: m | S5: Estação de bombeamento de água bruta | T5: m³/s | U5: Coletor tronco e/ou interceptores | V5: m | W5: Linhas de distribuição - baixa tensão | X5: m | Y5: Erradicação de lixões | Z5: m³ | AM5: Plano de Reassentamento e medidas compensatórias | AN5: un | AQ5: Plano de Desenvolvimento Socioterritorial | AR5: nº fam
E6: Município/UF: | F6: CORONEL MARTINS | J6: Drenagem | M6: Lazer e turismo | N6: m² | O6: Pavimentação de calçadas | P6: m² | Q6: Recomposição de vegetação ciliar, renaturalização de cursos de água ou restauração de margens | R6: m² | S6: Adução | T6: m | U6: Emissário | V6: m | W6: Linhas de transmissão - alta tensão | X6: m | Y6: Sistema de coleta seletiva tradicional, transporte e/ou equipamentos | Z6: un | AQ6: Plano de Gestão Condominial | AR6: nº fam
E7: Nº da Operação (0000000-00): | F7: 027030/2020 | J7: Abastecimento de água | M7: Saúde | N7: m² | O7: Pavimentação de vias | P7: m² | Q7: Reservatório de amortecimento de cheias | R7: m³ | S7: Estação de Tratamento de Água (ETA) | T7: m³/s | U7: Estação Elevatória | V7: m³/s | Y7: Tratamento local | Z7: un
E8: Nº do SICONV (000000): | F8: 908367/2020 | J8: Esgotamento sanitário | M8: Segurança pública | N8: m² | O8: Sinalização | P8: m² | Q8: Estação de Bombeamento | R8: m³/s | S8: Estação de bombeamento de água tratada | T8: m³/s | U8: Estação de Tratamento de Esgoto (ETE) | V8: m³/s | Y8: Usinas de reciclagem | Z8: m²
E9: =IF(F4="FGTS","Valor de Financiamento Contratado (R$):","Valor do Repasse Contratado (R$):") -> Valor do Repasse Contratado (R$): | F9: 578003 | J9: Energia elétrica e iluminação pública | S9: Linha de recalque | T9: m | U9: Sistema simplificado de tratamento | V9: m³/s
E10: Valor de Contrapartida Contratada (R$): | F10: 51479.7 | J10: Coleta e tratamento de resíduos sólidos | S10: Reservação | T10: m³ | U10: Unidades sanitárias | V10: un
E11: % mínimo de Contrapartida: | J11: Contenção e estabilização de encostas | S11: Rede de distribuição | T11: m
E12: R$ mínimo de Contrapartida (se houver): | J12: Regularização fundiária | S12: Ligações domiciliares e/ou intradomiciliares | T12: un
E13: % máximo de Contrapartida: | J13: Aquisição de terreno | S13: Sistema simplificado de abastecimento | T13: m
J14: Aquisição de equipamentos e insumos
E15: Dados do Empreendimento e Orçamento | J15: Elaboração de estudos e projetos
E16: Nome/apelido: | F16: PAVIMENTAÇÃO ASFALTICA NAS RUAS GLÓRIA, DÓLIO BELATTO E RUA SÃO DOMINGOS | J16: Instrumentos e ações em planejamento e gestão pública
E17: Descrição do Objeto do Lote / CTEF: | J17: Ações complementares às obras
E18: Regime previdenciário previsto para a obra: | F18: DESONERADO | J18: Gerenciamento
E19: Data base do Orçamento: | F19: 2021-08-01 | J19: Trabalho social
E21: Responsável pelo Orçamento
E22: Nome: | F22: AMARILDO MARTINS RIBEIRO
E23: CREA/CAU: | F23: 156004-7
E24: ART/RRT: | F24: 8030861-0
E25: Data do preenchimento: | F25: 2021-11-08
E27: Responsável pelo Tomador (Prefeito, no caso de Municípios)
E28: Nome: | F28: MOACIR BRESOLIN
E29: Cargo: | F29: PREFEITO MUNICIPAL
E32: B. RESULTADO DO PROCESSO LICITATÓRIO
E34: Licitação
E35: Data de emissão dos documentos de licitação:
E36: Nº do CTEF (contrato com empresa):
E37: Nome da empresa:
E38: CNPJ da empresa:
E39: Regime de execução do CTEF: | F39: EMPREITADA POR PREÇO GLOBAL
E40: Data base do CTEF:
E43: C. ACOMPANHAMENTO DO EMPREENDIMENTO
E45: Dados da obra
E46: Data do Início da Obra:
E47: Data de fechamento do RRE: | F47: =TODAY() -> 2021-11-09
E49: Responsável pela Fiscalização
E50: Nome:
E51: Profissão:
E52: CREA/CAU (para obras/projetos):
E53: ART/RRT (para obras/projetos):
E56: D. ACOMPANHAMENTO CAIXA
E58: Responsável Gerencial
E59: Nome:
E60: Função:

Sheet NOVO
B3: Novidades da Versão
A6: V3.0.0
B7: GERAL
C8: =IF(D8<>"","▪","") -> ▪ | D8: Lançamento: Adequação à Portaria 424/2016. Acompanhamento por Eventos.
C9: =IF(D9<>"","▪","") -> 
A10: V3.0.1
B11: GERAL
C12: =IF(D12<>"","▪","") -> ▪ | D12: Ajustes de formatações.
B13: PO
C14: =IF(D14<>"","▪","") -> ▪ | D14: Correção da aplicação do BDI não desonerado.
C15: =IF(D15<>"","▪","") -> ▪ | D15: Inclusão de coluna exclusiva "Preço Unitário Edital", para o Modo 'Orçamento Licitado'.
A17: V3.0.2
B18: GERAL
C19: =IF(D19<>"","▪","") -> ▪ | D19: Ajustes de formatações.
C20: =IF(D20<>"","▪","") -> ▪ | D20: Correção do Problema de Guias ocultas no BROFFICE.
B21: ORÇAMENTO
C22: =IF(D22<>"","▪","") -> ▪ | D22: Ampliada obtenção de dados da Planilha Referência de 20.000 para 65.536 linhas.
B23: CRONOGRAMA
C24: =IF(D24<>"","▪","") -> ▪ | D24: Correção na formulação do total acumulado por Repasse, CP e Outros
B25: QCI
C26: =IF(D26<>"","▪","") -> ▪ | D26: Correção na formulação do arredondamento no rateio dos valores do QCI.
B27: RRE
C28: =IF(D28<>"","▪","") -> ▪ | D28: Correção na formulação do total por Repasse, CP e Outros.
A30: V3.0.3
B31: GERAL
C32: =IF(D32<>"","▪","") -> ▪ | D32: Correção do Problema de Guias ocultas no BROFFICE.
B33: CÁLCULO
C34: =IF(D34<>"","▪","") -> ▪ | D34: Corrigida lentidão e travamento ao incluir e excluir frentes.
A37: V3.0.4
B38: BDI
C39: =IF(D39<>"","▪","") -> ▪ | D39: Correção da CPRB que exibia 4,5% mesmo quando não desonerado.
B40: CRONOGRAMA
C41: =IF(D41<>"","▪","") -> ▪ | D41: Correção da distribuição de Repasse, CP e Outros para as metas manuais.
B42: QCI
C43: =IF(D43<>"","▪","") -> ▪ | D43: Adicionado botão para adotar a CP do QCI como CP do contrato (zera saldo a reprogramar de CP).

Sheet BDI
E1: MIN | F1: MED | G1: MAX | O1: ="Quadro de Composição do BDI" -> Quadro de Composição do BDI | R1: Grau de Sigilo
A2: Construção e Reforma de Edifícios | B2: AC | C2: =CONCATENATE(A2,"-",B2) -> Construção e Reforma de Edifícios-AC | E2: 0.03 | F2: 0.04 | G2: 0.055 | R2: #PUBLICO
A3: =A2 -> Construção e Reforma de Edifícios | B3: SG | C3: Construção e Reforma de Edifícios-SG | E3: 0.008 | F3: 0.008 | G3: 0.01
A4: =A3 -> Construção e Reforma de Edifícios | B4: R | C4: Construção e Reforma de Edifícios-R | E4: 0.0097 | F4: 0.0127 | G4: 0.0127 | J4: Nº OPERAÇÃO | L4: Nº SICONV | N4: PROPONENTE / TOMADOR
A5: =A4 -> Construção e Reforma de Edifícios | B5: DF | C5: Construção e Reforma de Edifícios-DF | E5: 0.0059 | F5: 0.0123 | G5: 0.0139 | J5: =Import.CR -> 027030/2020 | L5: =Import.SICONV -> 908367/2020 | N5: =Import.Proponente -> PREFEITURA MUNICIPAL DE CORONEL MARTINS
A6: =A5 -> Construção e Reforma de Edifícios | B6: L | C6: Construção e Reforma de Edifícios-L | E6: 0.0616 | F6: 0.074 | G6: 0.0896 | I6: FILTRO
A7: =A6 -> Construção e Reforma de Edifícios | B7: BDI PAD | C7: Construção e Reforma de Edifícios-BDI PAD | E7: 0.2034 | F7: 0.2212 | G7: 0.25 | J7: APELIDO DO EMPREENDIMENTO / DESCRIÇÃO DO LOTE
A8: Construção de Praças Urbanas, Rodovias, Ferrovias e recapeamento e pavimentação de vias urbanas | B8: AC | C8: Construção de Praças Urbanas, Rodovias, Ferrovias e recapeamento e pavimentação de vias urbanas-AC | E8: 0.038 | F8: 0.0401 | G8: 0.0467 | J8: =Import.Apelido&" / "&Import.DescLote -> PAVIMENTAÇÃO ASFALTICA NAS RUAS GLÓRIA, DÓLIO BELATTO E RUA SÃO DOMINGOS /
A9: Construção de Praças Urbanas, Rodovias, Ferrovias e recapeamento e pavimentação de vias urbanas | B9: SG | C9: Construção de Praças Urbanas, Rodovias, Ferrovias e recapeamento e pavimentação de vias urbanas-SG | E9: 0.0032 | F9: 0.004 | G9: 0.0074
A10: Construção de Praças Urbanas, Rodovias, Ferrovias e recapeamento e pavimentação de vias urbanas | B10: R | C10: Construção de Praças Urbanas, Rodovias, Ferrovias e recapeamento e pavimentação de vias urbanas-R | E10: 0.005 | F10: 0.0056 | G10: 0.0097 | J10: Conforme legislação tributária municipal, definir estimativa de percentual da base de cálculo para o ISS: | R10: 0.5
A11: Construção de Praças Urbanas, Rodovias, Ferrovias e recapeamento e pavimentação de vias urbanas | B11: DF | C11: Construção de Praças Urbanas, Rodovias, Ferrovias e recapeamento e pavimentação de vias urbanas-DF | E11: 0.0102 | F11: 0.0111 | G11: 0.0121 | I11: ↓ | J11: Sobre a base de cálculo, definir a respectiva alíquota do ISS (entre 2% e 5%): | R11: 0.02
A12: Construção de Praças Urbanas, Rodovias, Ferrovias e recapeamento e pavimentação de vias urbanas | B12: L | C12: Construção de Praças Urbanas, Rodovias, Ferrovias e recapeamento e pavimentação de vias urbanas-L | E12: 0.0664 | F12: 0.073 | G12: 0.0869 | I12: F
A13: Construção de Praças Urbanas, Rodovias, Ferrovias e recapeamento e pavimentação de vias urbanas | B13: BDI PAD | C13: Construção de Praças Urbanas, Rodovias, Ferrovias e recapeamento e pavimentação de vias urbanas-BDI PAD | E13: 0.196 | F13: 0.2097 | G13: 0.2423 | I13: F
A14: Construção de Redes de Abastecimento de Água, Coleta de Esgoto | B14: AC | C14: Construção de Redes de Abastecimento de Água, Coleta de Esgoto-AC | E14: 0.0343 | F14: 0.0493 | G14: 0.0671 | I14: F | J14: BDI 1
A15: =A14 -> Construção de Redes de Abastecimento de Água, Coleta de Esgoto | B15: SG | C15: Construção de Redes de Abastecimento de Água, Coleta de Esgoto-SG | E15: 0.0028 | F15: 0.0049 | G15: 0.0075 | I15: F
A16: =A15 -> Construção de Redes de Abastecimento de Água, Coleta de Esgoto | B16: R | C16: Construção de Redes de Abastecimento de Água, Coleta de Esgoto-R | E16: 0.01 | F16: 0.0139 | G16: 0.0174 | I16: F | J16: TIPO DE OBRA
A17: =A16 -> Construção de Redes de Abastecimento de Água, Coleta de Esgoto | B17: DF | C17: Construção de Redes de Abastecimento de Água, Coleta de Esgoto-DF | E17: 0.0094 | F17: 0.0099 | G17: 0.0117 | I17: F | J17: Construção de Praças Urbanas, Rodovias, Ferrovias e recapeamento e pavimentação de vias urbanas
A18: =A17 -> Construção de Redes de Abastecimento de Água, Coleta de Esgoto | B18: L | C18: Construção de Redes de Abastecimento de Água, Coleta de Esgoto-L | E18: 0.0674 | F18: 0.0804 | G18: 0.094 | I18: F
A19: =A18 -> Construção de Redes de Abastecimento de Água, Coleta de Esgoto | B19: BDI PAD | C19: Construção de Redes de Abastecimento de Água, Coleta de Esgoto-BDI PAD | E19: 0.2076 | F19: 0.2418 | G19: 0.2644 | I19: F | J19: Itens | R19: Siglas | S19: % Adotado | U19: Situação | X19: 1º Quartil | Y19: Médio | Z19: 3º Quartil
A20: Construção e Manutenção de Estações e Redes de Distribuição de Energia Elétrica | B20: AC | C20: Construção e Manutenção de Estações e Redes de Distribuição de Energia Elétrica-AC | E20: 0.0529 | F20: 0.0592 | G20: 0.0793 | I20: F
A21: =A20 -> Construção e Manutenção de Estações e Redes de Distribuição de Energia Elétrica | B21: SG | C21: Construção e Manutenção de Estações e Redes de Distribuição de Energia Elétrica-SG | E21: 0.0025 | F21: 0.0051 | G21: 0.0056 | I21: F | J21: =IF($J$17=$A$146,"Encargos Sociais incidentes sobre a mão de obra","Administração Central") -> Administração Central | R21: =IF($J17=$A$146,"K1","AC") -> AC | S21: 0.0408 | U21: - | X21: =VLOOKUP(CONCATENATE(J17,"-",R21),$C$2:$G$136,3,FALSE) -> 0.038 | Y21: =VLOOKUP(CONCATENATE(J17,"-",R21),$C$2:$G$136,4,FALSE) -> 0.0401 | Z21: =VLOOKUP(CONCATENATE(J17,"-",R21),$C$2:$G$136,5,FALSE) -> 0.0467
A22: =A21 -> Construção e Manutenção de Estações e Redes de Distribuição de Energia Elétrica | B22: R | C22: Construção e Manutenção de Estações e Redes de Distribuição de Energia Elétrica-R | E22: 0.01 | F22: 0.0148 | G22: 0.0197 | I22: F | J22: =IF($J$17=$A$146,"Administração Central da empresa ou consultoria - overhead","Seguro e Garantia") -> Seguro e Garantia | R22: =IF($J17=$A$146,"K2","SG") -> SG | S22: 0.008 | U22: - | X22: =VLOOKUP(CONCATENATE(J17,"-",R22),$C$2:$G$136,3,FALSE) -> 0.0032 | Y22: =VLOOKUP(CONCATENATE(J17,"-",R22),$C$2:$G$136,4,FALSE) -> 0.004 | Z22: =VLOOKUP(CONCATENATE(J17,"-",R22),$C$2:$G$136,5,FALSE) -> 0.0074
A23: =A22 -> Construção e Manutenção de Estações e Redes de Distribuição de Energia Elétrica | B23: DF | C23: Construção e Manutenção de Estações e Redes de Distribuição de Energia Elétrica-DF | E23: 0.0101 | F23: 0.0107 | G23: 0.0111 | I23: F | J23: =IF($J$17=$A$146,"","Risco") -> Risco | R23: =IF($J17=$A$146,"","R") -> R | S23: 0.0127 | U23: - | X23: =VLOOKUP(CONCATENATE(J17,"-",R23),$C$2:$G$136,3,FALSE) -> 0.005 | Y23: =VLOOKUP(CONCATENATE(J17,"-",R23),$C$2:$G$136,4,FALSE) -> 0.0056 | Z23: =VLOOKUP(CONCATENATE(J17,"-",R23),$C$2:$G$136,5,FALSE) -> 0.0097
A24: =A23 -> Construção e Manutenção de Estações e Redes de Distribuição de Energia Elétrica | B24: L | C24: Construção e Manutenção de Estações e Redes de Distribuição de Energia Elétrica-L | E24: 0.08 | F24: 0.0831 | G24: 0.0951 | I24: F | J24: =IF($J$17=$A$146,"","Despesas Financeiras") -> Despesas Financeiras | R24: =IF($J17=$A$146,"","DF") -> DF | S24: 0.011 | U24: - | X24: =VLOOKUP(CONCATENATE(J17,"-",R24),$C$2:$G$136,3,FALSE) -> 0.0102 | Y24: =VLOOKUP(CONCATENATE(J17,"-",R24),$C$2:$G$136,4,FALSE) -> 0.0111 | Z24: =VLOOKUP(CONCATENATE(J17,"-",R24),$C$2:$G$136,5,FALSE) -> 0.0121
A25: =A24 -> Construção e Manutenção de Estações e Redes de Distribuição de Energia Elétrica | B25: BDI PAD | C25: Construção e Manutenção de Estações e Redes de Distribuição de Energia Elétrica-BDI PAD | E25: 0.24 | F25: 0.2584 | G25: 0.2786 | I25: F | J25: =IF($J$17=$A$146,"Margem bruta da empresa de consultoria","Lucro") -> Lucro | R25: =IF($J17=$A$146,"K3","L") -> L | S25: 0.07 | U25: - | X25: =VLOOKUP(CONCATENATE(J17,"-",R25),$C$2:$G$136,3,FALSE) -> 0.0664 | Y25: =VLOOKUP(CONCATENATE(J17,"-",R25),$C$2:$G$136,4,FALSE) -> 0.073 | Z25: =VLOOKUP(CONCATENATE(J17,"-",R25),$C$2:$G$136,5,FALSE) -> 0.0869
A26: Obras Portuárias, Marítimas e Fluviais | B26: AC | C26: Obras Portuárias, Marítimas e Fluviais-AC | E26: 0.04 | F26: 0.0552 | G26: 0.0785 | I26: F | J26: Tributos (impostos COFINS 3%, e PIS 0,65%) | R26: CP | S26: 0.0365 | U26: - | X26: 0.0365 | Y26: 0.0365 | Z26: 0.0365
A27: =A26 -> Obras Portuárias, Marítimas e Fluviais | B27: SG | C27: Obras Portuárias, Marítimas e Fluviais-SG | E27: 0.0081 | F27: 0.0122 | G27: 0.0199 | I27: F | J27: Tributos (ISS, variável de acordo com o município) | R27: ISS | S27: =IF(AND($J17<>$A$145,COUNTA(OFFSET(S20,1,0,6))>0),$R$11*$R$10,0) -> 0.01 | U27: - | X27: 0 | Y27: 0.025 | Z27: 0.05
A28: =A27 -> Obras Portuárias, Marítimas e Fluviais | B28: R | C28: Obras Portuárias, Marítimas e Fluviais-R | E28: 0.0146 | F28: 0.0232 | G28: 0.0316 | I28: F | J28: Tributos (Contribuição Previdenciária sobre a Receita Bruta - 0% ou 4,5% - Desoneração) | R28: CPRB | S28: =IF(BDI.Opcao<>"Desonerado",0,IF(AND($J17<>$A$145,COUNTA(OFFSET(S20,1,0,6))>0),4.5%,0%)) -> 0.045 | U28: - | X28: 0 | Y28: 0.045 | Z28: 0.045
A29: =A28 -> Obras Portuárias, Marítimas e Fluviais | B29: DF | C29: Obras Portuárias, Marítimas e Fluviais-DF | E29: 0.0094 | F29: 0.0102 | G29: 0.0133 | I29: F | J29: BDI SEM desoneração (Fórmula Acórdão TCU) | R29: BDI PAD | S29: =IF($J17=$A$145,0,ROUND((((1+S21+S22+S23)*(1+S24)*(1+S25)/(1-(S26+S27)))-1),4)) -> 0.2043 | U29: =IF(OR($J$17=$A$146,$J$17=$A$145,AND(S29>=X29,S29<=Z29)),"OK","FORA DO INTERVALO") -> OK | X29: =IF($J17=$A$145,0,VLOOKUP(CONCATENATE($J17,"-",$R29),$C$2:$G$136,3,FALSE)) -> 0.196 | Y29: =IF($J17=$A$145,0,VLOOKUP(CONCATENATE($J17,"-",$R29),$C$2:$G$136,4,FALSE)) -> 0.2097 | Z29: =IF($J17=$A$145,0,VLOOKUP(CONCATENATE($J17,"-",$R29),$C$2:$G$136,5,FALSE)) -> 0.2423
A30: =A29 -> Obras Portuárias, Marítimas e Fluviais | B30: L | C30: Obras Portuárias, Marítimas e Fluviais-L | E30: 0.0714 | F30: 0.084 | G30: 0.1043 | I30: F | J30: BDI COM desoneração | R30: BDI DES | S30: =IF($J17=$A$145,0,ROUND((((1+S21+S22+S23)*(1+S24)*(1+S25)/(1-(S26+S27+S28)))-1),4)) -> 0.264
A31: =A30 -> Obras Portuárias, Marítimas e Fluviais | B31: BDI PAD | C31: Obras Portuárias, Marítimas e Fluviais-BDI PAD | E31: 0.228 | F31: 0.2748 | G31: 0.3095 | I31: F
A32: Fornecimento de Materiais e Equipamentos (aquisição indireta - em conjunto com licitação de obras) | B32: AC | C32: Fornecimento de Materiais e Equipamentos (aquisição indireta - em conjunto com licitação de obras)-AC | E32: 0.015 | F32: 0.0345 | G32: 0.0449 | I32: F | J32: =IF(U29<>"ok","X","") ->  | K32: =IF(U29<>"ok","Anexo: Relatório Técnico Circunstanciado justificando a adoção do percentual de cada parcela do BDI.","") -> 
A33: =A32 -> Fornecimento de Materiais e Equipamentos (aquisição indireta - em conjunto com licitação de obras) | B33: SG | C33: Fornecimento de Materiais e Equipamentos (aquisição indireta - em conjunto com licitação de obras)-SG | E33: 0.003 | F33: 0.0048 | G33: 0.0082 | I33: F
A34: =A33 -> Fornecimento de Materiais e Equipamentos (aquisição indireta - em conjunto com licitação de obras) | B34: R | C34: Fornecimento de Materiais e Equipamentos (aquisição indireta - em conjunto com licitação de obras)-R | E34: 0.0056 | F34: 0.0085 | G34: 0.0089 | I34: F | J34: Os valores de BDI foram calculados com o emprego da fórmula:
A35: =A34 -> Fornecimento de Materiais e Equipamentos (aquisição indireta - em conjunto com licitação de obras) | B35: DF | C35: Fornecimento de Materiais e Equipamentos (aquisição indireta - em conjunto com licitação de obras)-DF | E35: 0.0085 | F35: 0.0085 | G35: 0.0111 | I35: F | M35: BDI = | N35: =IF($J17=$A$146,"(1+K1+K2)*(1+K3)","(1+AC + S + R + G)*(1 + DF)*(1+L)") -> (1+AC + S + R + G)*(1 + DF)*(1+L) | Q35: - 1
A36: =A35 -> Fornecimento de Materiais e Equipamentos (aquisição indireta - em conjunto com licitação de obras) | B36: L | C36: Fornecimento de Materiais e Equipamentos (aquisição indireta - em conjunto com licitação de obras)-L | E36: 0.035 | F36: 0.0511 | G36: 0.0622 | I36: F | N36: (1-CP-ISS-CRPB)
A37: =A36 -> Fornecimento de Materiais e Equipamentos (aquisição indireta - em conjunto com licitação de obras) | B37: BDI PAD | C37: Fornecimento de Materiais e Equipamentos (aquisição indireta - em conjunto com licitação de obras)-BDI PAD | E37: 0.111 | F37: 0.1402 | G37: 0.168 | I37: F
A38: Fornecimento de Materiais e Equipamentos (aquisição direta) | B38: AC | C38: Fornecimento de Materiais e Equipamentos (aquisição direta)-AC | E38: - | F38: - | G38: - | I38: F | J38: =CONCATENATE("Declaro para os devidos fins que, conforme legislação tributária municipal, a base de cálculo deste tipo de obra corresponde à ",$R$10*100,"%, com a respectiva alíquota de ",$R$11*100,"%.") -> Declaro para os devidos fins que, conforme legislação tributária municipal, a base de cálculo deste tipo de obra corresponde à 50%, com a respectiva alíquota de 2%.
A39: Fornecimento de Materiais e Equipamentos (aquisição direta) | B39: SG | C39: Fornecimento de Materiais e Equipamentos (aquisição direta)-SG | E39: - | F39: - | G39: - | I39: F
A40: Fornecimento de Materiais e Equipamentos (aquisição direta) | B40: R | C40: Fornecimento de Materiais e Equipamentos (aquisição direta)-R | E40: - | F40: - | G40: - | I40: F | J40: =CONCATENATE("Declaro para os devidos fins que o regime de Contribuição Previdenciária sobre a Receita Bruta adotado para elaboração do orçamento foi ",IF(DESONERACAO="Sim","COM","SEM")," Desoneração, e que esta é a alternativa mais adequada para a Administração Pública.") -> Declaro para os devidos fins que o regime de Contribuição Previdenciária sobre a Receita Bruta adotado para elaboração do orçamento foi COM Desoneração, e que esta é a alternativa mais adequada para a Administração Pública.
A41: Fornecimento de Materiais e Equipamentos (aquisição direta) | B41: DF | C41: Fornecimento de Materiais e Equipamentos (aquisição direta)-DF | E41: - | F41: - | G41: - | I41: F
A42: Fornecimento de Materiais e Equipamentos (aquisição direta) | B42: L | C42: Fornecimento de Materiais e Equipamentos (aquisição direta)-L | E42: - | F42: - | G42: - | I42: F | J42: Observações:
A43: Fornecimento de Materiais e Equipamentos (aquisição direta) | B43: BDI PAD | C43: Fornecimento de Materiais e Equipamentos (aquisição direta)-BDI PAD | E43: - | F43: - | G43: - | I43: F
A44: Estudos e Projetos, Planos e Gerenciamento e outros correlatos | B44: K1 | C44: Estudos e Projetos, Planos e Gerenciamento e outros correlatos-K1 | E44: - | F44: - | G44: - | I44: F
A45: =A44 -> Estudos e Projetos, Planos e Gerenciamento e outros correlatos | B45: K2 | C45: Estudos e Projetos, Planos e Gerenciamento e outros correlatos-K2 | E45: - | F45: 0.2 | G45: - | I45: F | J45: =Import.Município -> CORONEL MARTINS | P45: =DADOS!$F$25 -> 2021-11-08
A46: =A45 -> Estudos e Projetos, Planos e Gerenciamento e outros correlatos | C46: Estudos e Projetos, Planos e Gerenciamento e outros correlatos- | E46: - | F46: - | G46: - | I46: F | J46: Local | P46: Data
A47: =A46 -> Estudos e Projetos, Planos e Gerenciamento e outros correlatos | C47: Estudos e Projetos, Planos e Gerenciamento e outros correlatos- | E47: - | F47: - | G47: - | I47: F
A48: =A47 -> Estudos e Projetos, Planos e Gerenciamento e outros correlatos | B48: K3 | C48: Estudos e Projetos, Planos e Gerenciamento e outros correlatos-K3 | E48: - | F48: 0.12 | G48: - | I48: F
A49: =A48 -> Estudos e Projetos, Planos e Gerenciamento e outros correlatos | B49: BDI PAD | C49: Estudos e Projetos, Planos e Gerenciamento e outros correlatos-BDI PAD | E49: - | F49: - | G49: - | I49: F | J49: Responsável Técnico
I50: F | J50: Nome: | K50: =Import.RespOrçamento -> AMARILDO MARTINS RIBEIRO
I51: F | J51: CREA/CAU: | K51: 156004-7
I52: F | J52: ART/RRT: | K52: 8030861-0
I53: F
I54: =IF($S$69=0,"","F") ->  | J54: BDI 2
I55: =IF($S$69=0,"","F") -> 
J56: TIPO DE OBRA
J57: (SELECIONAR)
J59: Itens | R59: Siglas | S59: % Adotado | U59: Situação | X59: 1º Quartil | Y59: Médio | Z59: 3º Quartil
J61: =IF($J$17=$A$146,"Encargos Sociais incidentes sobre a mão de obra","Administração Central") -> Administração Central | R61: =IF($J57=$A$146,"K1","AC") -> AC | U61: - | X61: =VLOOKUP(CONCATENATE(J57,"-",R61),$C$2:$G$136,3,FALSE) ->  | Y61: =VLOOKUP(CONCATENATE(J57,"-",R61),$C$2:$G$136,4,FALSE) ->  | Z61: =VLOOKUP(CONCATENATE(J57,"-",R61),$C$2:$G$136,5,FALSE) -> 
J62: =IF($J$17=$A$146,"Administração Central da empresa ou consultoria - overhead","Seguro e Garantia") -> Seguro e Garantia | R62: =IF($J57=$A$146,"K2","SG") -> SG | U62: - | X62: =VLOOKUP(CONCATENATE(J57,"-",R62),$C$2:$G$136,3,FALSE) ->  | Y62: =VLOOKUP(CONCATENATE(J57,"-",R62),$C$2:$G$136,4,FALSE) ->  | Z62: =VLOOKUP(CONCATENATE(J57,"-",R62),$C$2:$G$136,5,FALSE) -> 
J63: =IF($J$17=$A$146,"","Risco") -> Risco | R63: =IF($J57=$A$146,"","R") -> R | U63: - | X63: =VLOOKUP(CONCATENATE(J57,"-",R63),$C$2:$G$136,3,FALSE) ->  | Y63: =VLOOKUP(CONCATENATE(J57,"-",R63),$C$2:$G$136,4,FALSE) ->  | Z63: =VLOOKUP(CONCATENATE(J57,"-",R63),$C$2:$G$136,5,FALSE) -> 
J64: =IF($J$17=$A$146,"","Despesas Financeiras") -> Despesas Financeiras | R64: =IF($J57=$A$146,"","DF") -> DF | U64: - | X64: =VLOOKUP(CONCATENATE(J57,"-",R64),$C$2:$G$136,3,FALSE) ->  | Y64: =VLOOKUP(CONCATENATE(J57,"-",R64),$C$2:$G$136,4,FALSE) ->  | Z64: =VLOOKUP(CONCATENATE(J57,"-",R64),$C$2:$G$136,5,FALSE) -> 
J65: =IF($J$17=$A$146,"Margem bruta da empresa de consultoria","Lucro") -> Lucro | R65: =IF($J57=$A$146,"K3","L") -> L | U65: - | X65: =VLOOKUP(CONCATENATE(J57,"-",R65),$C$2:$G$136,3,FALSE) ->  | Y65: =VLOOKUP(CONCATENATE(J57,"-",R65),$C$2:$G$136,4,FALSE) ->  | Z65: =VLOOKUP(CONCATENATE(J57,"-",R65),$C$2:$G$136,5,FALSE) -> 
J66: Tributos (impostos COFINS 3%, e PIS 0,65%) | R66: CP | U66: - | X66: 0.0365 | Y66: 0.0365 | Z66: 0.0365
J67: Tributos (ISS, variável de acordo com o município) | R67: ISS | S67: =IF(AND($J57<>$A$145,COUNTA(OFFSET(S60,1,0,6))>0),$R$11*$R$10,0) -> 0 | U67: - | X67: 0 | Y67: 0.025 | Z67: 0.05
J68: Tributos (Contribuição Previdenciária sobre a Receita Bruta - 0% ou 4,5% - Desoneração) | R68: CPRB | S68: =IF(BDI.Opcao<>"Desonerado",0,IF(AND($J57<>$A$145,COUNTA(OFFSET(S60,1,0,6))>0),4.5%,0%)) -> 0 | U68: - | X68: 0 | Y68: 0.045 | Z68: 0.045
J69: BDI SEM desoneração (Fórmula Acórdão TCU) | R69: BDI PAD | S69: =IF($J57=$A$145,0,ROUND((((1+S61+S62+S63)*(1+S64)*(1+S65)/(1-(S66+S67)))-1),4)) -> 0 | U69: =IF(OR($J$17=$A$146,$J$17=$A$145,AND(S69>=X69,S69<=Z69)),"OK","FORA DO INTERVALO") ->  | X69: =IF($J57=$A$145,0,VLOOKUP(CONCATENATE($J57,"-",$R69),$C$2:$G$136,3,FALSE)) ->  | Y69: =IF($J57=$A$145,0,VLOOKUP(CONCATENATE($J57,"-",$R69),$C$2:$G$136,4,FALSE)) ->  | Z69: =IF($J57=$A$145,0,VLOOKUP(CONCATENATE($J57,"-",$R69),$C$2:$G$136,5,FALSE)) -> 
J70: BDI COM desoneração | R70: BDI DES | S70: =IF($J57=$A$145,0,ROUND((((1+S61+S62+S63)*(1+S64)*(1+S65)/(1-(S66+S67+S68)))-1),4)) -> 0
J72: =IF(U69<>"ok","X","") ->  | K72: =IF(U69<>"ok","Anexo: Relatório Técnico Circunstanciado justificando a adoção do percentual de cada parcela do BDI.","") -> 
J74: Os valores de BDI foram calculados com o emprego da fórmula:
M75: BDI = | N75: =IF($J57=$A$146,"(1+K1+K2)*(1+K3)","(1+AC + S + R + G)*(1 + DF)*(1+L)") -> (1+AC + S + R + G)*(1 + DF)*(1+L) | Q75: - 1
N76: (1-CP-ISS-CRPB)
J78: =CONCATENATE("Declaro para os devidos fins que, conforme legislação tributária municipal, a base de cálculo deste tipo de obra corresponde à ",$R$10*100,"%, com a respectiva alíquota de ",$R$11*100,"%.") -> Declaro para os devidos fins que, conforme legislação tributária municipal, a base de cálculo deste tipo de obra corresponde à 50%, com a respectiva alíquota de 2%.
J80: =CONCATENATE("Declaro para os devidos fins que o regime de Contribuição Previdenciária sobre a Receita Bruta adotado para elaboração do orçamento foi ",IF(DESONERACAO="Sim","COM","SEM")," Desoneração, e que esta é a alternativa mais adequada para a Administração Pública.") -> Declaro para os devidos fins que o regime de Contribuição Previdenciária sobre a Receita Bruta adotado para elaboração do orçamento foi COM Desoneração, e que esta é a alternativa mais adequada para a Administração Pública.
J82: Observações:
J85: =Import.Município -> CORONEL MARTINS | P85: =DADOS!$F$25 -> 2021-11-08
J86: Local | P86: Data
J89: Responsável Técnico
J90: Nome: | K90: =Import.RespOrçamento -> AMARILDO MARTINS RIBEIRO
J91: CREA/CAU: | K91: 156004-7
J92: ART/RRT: | K92: 8030861-0
I94: =IF($S$109=0,"","F") ->  | J94: BDI 3
I95: =IF($S$109=0,"","F") -> 
J96: TIPO DE OBRA
J97: (SELECIONAR)
J99: Itens | R99: Siglas | S99: % Adotado | U99: Situação | X99: 1º Quartil | Y99: Médio | Z99: 3º Quartil
J101: =IF($J$17=$A$146,"Encargos Sociais incidentes sobre a mão de obra","Administração Central") -> Administração Central | R101: =IF($J97=$A$146,"K1","AC") -> AC | U101: - | X101: =VLOOKUP(CONCATENATE(J97,"-",R101),$C$2:$G$136,3,FALSE) ->  | Y101: =VLOOKUP(CONCATENATE(J97,"-",R101),$C$2:$G$136,4,FALSE) ->  | Z101: =VLOOKUP(CONCATENATE(J97,"-",R101),$C$2:$G$136,5,FALSE) -> 
J102: =IF($J$17=$A$146,"Administração Central da empresa ou consultoria - overhead","Seguro e Garantia") -> Seguro e Garantia | R102: =IF($J97=$A$146,"K2","SG") -> SG | U102: - | X102: =VLOOKUP(CONCATENATE(J97,"-",R102),$C$2:$G$136,3,FALSE) ->  | Y102: =VLOOKUP(CONCATENATE(J97,"-",R102),$C$2:$G$136,4,FALSE) ->  | Z102: =VLOOKUP(CONCATENATE(J97,"-",R102),$C$2:$G$136,5,FALSE) -> 
J103: =IF($J$17=$A$146,"","Risco") -> Risco | R103: =IF($J97=$A$146,"","R") -> R | U103: - | X103: =VLOOKUP(CONCATENATE(J97,"-",R103),$C$2:$G$136,3,FALSE) ->  | Y103: =VLOOKUP(CONCATENATE(J97,"-",R103),$C$2:$G$136,4,FALSE) ->  | Z103: =VLOOKUP(CONCATENATE(J97,"-",R103),$C$2:$G$136,5,FALSE) -> 
J104: =IF($J$17=$A$146,"","Despesas Financeiras") -> Despesas Financeiras | R104: =IF($J97=$A$146,"","DF") -> DF | U104: - | X104: =VLOOKUP(CONCATENATE(J97,"-",R104),$C$2:$G$136,3,FALSE) ->  | Y104: =VLOOKUP(CONCATENATE(J97,"-",R104),$C$2:$G$136,4,FALSE) ->  | Z104: =VLOOKUP(CONCATENATE(J97,"-",R104),$C$2:$G$136,5,FALSE) -> 
J105: =IF($J$17=$A$146,"Margem bruta da empresa de consultoria","Lucro") -> Lucro | R105: =IF($J97=$A$146,"K3","L") -> L | U105: - | X105: =VLOOKUP(CONCATENATE(J97,"-",R105),$C$2:$G$136,3,FALSE) ->  | Y105: =VLOOKUP(CONCATENATE(J97,"-",R105),$C$2:$G$136,4,FALSE) ->  | Z105: =VLOOKUP(CONCATENATE(J97,"-",R105),$C$2:$G$136,5,FALSE) -> 
J106: Tributos (impostos COFINS 3%, e PIS 0,65%) | R106: CP | U106: - | X106: 0.0365 | Y106: 0.0365 | Z106: 0.0365
J107: Tributos (ISS, variável de acordo com o município) | R107: ISS | S107: =IF(AND($J97<>$A$145,COUNTA(OFFSET(S100,1,0,6))>0),$R$11*$R$10,0) -> 0 | U107: - | X107: 0 | Y107: 0.025 | Z107: 0.05
J108: Tributos (Contribuição Previdenciária sobre a Receita Bruta - 0% ou 4,5% - Desoneração) | R108: CPRB | S108: =IF(BDI.Opcao<>"Desonerado",0,IF(AND($J97<>$A$145,COUNTA(OFFSET(S100,1,0,6))>0),4.5%,0%)) -> 0 | U108: - | X108: 0 | Y108: 0.045 | Z108: 0.045
J109: BDI SEM desoneração (Fórmula Acórdão TCU) | R109: BDI PAD | S109: =IF($J97=$A$145,0,ROUND((((1+S101+S102+S103)*(1+S104)*(1+S105)/(1-(S106+S107)))-1),4)) -> 0 | U109: =IF(OR($J$17=$A$146,$J$17=$A$145,AND(S109>=X109,S109<=Z109)),"OK","FORA DO INTERVALO") ->  | X109: =IF($J97=$A$145,0,VLOOKUP(CONCATENATE($J97,"-",$R109),$C$2:$G$136,3,FALSE)) ->  | Y109: =IF($J97=$A$145,0,VLOOKUP(CONCATENATE($J97,"-",$R109),$C$2:$G$136,4,FALSE)) ->  | Z109: =IF($J97=$A$145,0,VLOOKUP(CONCATENATE($J97,"-",$R109),$C$2:$G$136,5,FALSE)) -> 
J110: BDI COM desoneração | R110: BDI DES | S110: =IF($J97=$A$145,0,ROUND((((1+S101+S102+S103)*(1+S104)*(1+S105)/(1-(S106+S107+S108)))-1),4)) -> 0
J112: =IF(U109<>"ok","X","") ->  | K112: =IF(U109<>"ok","Anexo: Relatório Técnico Circunstanciado justificando a adoção do percentual de cada parcela do BDI.","") -> 
J114: Os valores de BDI foram calculados com o emprego da fórmula:
M115: BDI = | N115: =IF($J97=$A$146,"(1+K1+K2)*(1+K3)","(1+AC + S + R + G)*(1 + DF)*(1+L)") -> (1+AC + S + R + G)*(1 + DF)*(1+L) | Q115: - 1
N116: (1-CP-ISS-CRPB)
J118: =CONCATENATE("Declaro para os devidos fins que, conforme legislação tributária municipal, a base de cálculo deste tipo de obra corresponde à ",$R$10*100,"%, com a respectiva alíquota de ",$R$11*100,"%.") -> Declaro para os devidos fins que, conforme legislação tributária municipal, a base de cálculo deste tipo de obra corresponde à 50%, com a respectiva alíquota de 2%.
J120: =CONCATENATE("Declaro para os devidos fins que o regime de Contribuição Previdenciária sobre a Receita Bruta adotado para elaboração do orçamento foi ",IF(DESONERACAO="Sim","COM","SEM")," Desoneração, e que esta é a alternativa mais adequada para a Administração Pública.") -> Declaro para os devidos fins que o regime de Contribuição Previdenciária sobre a Receita Bruta adotado para elaboração do orçamento foi COM Desoneração, e que esta é a alternativa mais adequada para a Administração Pública.
J122: Observações:
J125: =Import.Município -> CORONEL MARTINS | P125: =DADOS!$F$25 -> 2021-11-08
J126: Local | P126: Data
J129: Responsável Técnico
J130: Nome: | K130: =Import.RespOrçamento -> AMARILDO MARTINS RIBEIRO
J131: CREA/CAU: | K131: 156004-7
J132: ART/RRT: | K132: 8030861-0
A138: (SELECIONAR)
A139: Construção e Reforma de Edifícios
A140: Construção de Praças Urbanas, Rodovias, Ferrovias e recapeamento e pavimentação de vias urbanas
A141: Construção de Redes de Abastecimento de Água, Coleta de Esgoto
A142: Construção e Manutenção de Estações e Redes de Distribuição de Energia Elétrica
A143: Obras Portuárias, Marítimas e Fluviais
A144: Fornecimento de Materiais e Equipamentos (aquisição indireta - em conjunto com licitação de obras)
A145: Fornecimento de Materiais e Equipamentos (aquisição direta)
A146: Estudos e Projetos, Planos e Gerenciamento e outros correlatos

Sheet ORÇAMENTO
R1: PO - PLANILHA ORÇAMENTÁRIA | X1: Grau de Sigilo
D2: LOTE | E2: Meta | F2: Nível 2 | G2: Nível 3 | H2: Nível 4 | I2: Serviço | R2: =IF(TIPOORCAMENTO="licitado","Orçamento Licitado","Orçamento Base para Licitação")&" - "&import.recurso -> Orçamento Base para Licitação - OGU | X2: #PUBLICO
A4: Nmax | F4: BDI 1 | G4: BDI 2 | H4: BDI 3 | I4: 0 | O4: Nº OPERAÇÃO | Q4: Nº SICONV | R4: PROPONENTE / TOMADOR | S4: APELIDO DO EMPREENDIMENTO
A5: =MAX($C$15:$C$59) -> 2 | F5: =IF(BDI.Opcao="DESONERADO",BDI!$S$30,BDI!$S$29) -> 0.264 | G5: =IF(BDI.Opcao="DESONERADO",BDI!$S$70,BDI!$S$69) -> 0 | H5: =IF(BDI.Opcao="DESONERADO",BDI!$S$110,BDI!$S$109) -> 0 | O5: =Import.CR -> 027030/2020 | Q5: =Import.SICONV -> 908367/2020 | R5: =Import.Proponente -> PREFEITURA MUNICIPAL DE CORONEL MARTINS | S5: =Import.Apelido -> PAVIMENTAÇÃO ASFALTICA NAS RUAS GLÓRIA, DÓLIO BELATTO E RUA SÃO DOMINGOS | AE5: Arredondamento
O7: LOCALIDADE SINAPI | Q7: DATA BASE | R7: =IF(TIPOORCAMENTO="Licitado","NOME DA EMPRESA","DESCRIÇÃO DO LOTE") -> DESCRIÇÃO DO LOTE | S7: =IF(TIPOORCAMENTO="Licitado","REGIME DE EXECUÇÃO","MUNICÍPIO / UF") -> MUNICÍPIO / UF | V7: =IF(TIPOORCAMENTO="Licitado","","BDI 1") -> BDI 1 | W7: =IF(TIPOORCAMENTO="Licitado","","BDI 2") -> BDI 2 | X7: =IF(TIPOORCAMENTO="Licitado","Nº CTEF","BDI 3") -> BDI 3 | AE7: Quantidade | AF7: TRUE | AJ7: QUANTIDADES: ACOMP. POR BM | AL7: PREÇO UNITÁRIO LICITADO
F8: =IF(LEN(INFO("release"))>5,"'Referência "&Excel_BuiltIn_Database&".xls'#Banco.$a5:$a$65536","'[Referência "&Excel_BuiltIn_Database&".xls]Banco'!$a5:$a$65536") -> '[Referência 08-2021.xls]Banco'!$a5:$a$65536 | L8: FILTRO | O8: =IF(ISERROR(INDIRECT($F$9)),"(N/D: 'Referência "&Excel_BuiltIn_Database&".xls)",INDIRECT($F$9)) -> FLORIANOPOLIS | Q8: =TEXT(Import.DataBase,"mm-aa")&IF(DESONERACAO="Sim"," (DES.)"," (N DES.)") -> 08-21 (DES.) | R8: =IF(TIPOORCAMENTO="Licitado",Import.empresa,Import.DescLote) -> 0 | S8: =IF(TIPOORCAMENTO="Licitado",Import.RegimeExecução,Import.Município) -> CORONEL MARTINS | V8: =IF(TIPOORCAMENTO="Licitado","",TEXT(F5,"0,00%")) -> 26,40% | W8: =IF(TIPOORCAMENTO="Licitado","",TEXT(G5,"0,00%")) -> 0,00% | X8: =IF(TIPOORCAMENTO="Licitado",Import.CTEF,TEXT(H5,"0,00%")) -> 0,00% | Y8: RECURSO | Z8: SGL RECURSO | AE8: Custo Unitáro | AF8: TRUE
F9: =IF(LEN(INFO("release"))>5,"'Referência "&Excel_BuiltIn_Database&".xls'#Banco.$d$3","'[Referência "&Excel_BuiltIn_Database&".xls]Banco'!$d$3") -> '[Referência 08-2021.xls]Banco'!$d$3 | AE9: BDI | AF9: TRUE
AC10: ERRO GERAL | AE10: Preço Unitário | AF10: TRUE
AC11: =IF(COUNTIF($AC$15:OFFSET($AC$59,-1,0),"DESCRIÇÃO")+COUNTIF($AC$15:OFFSET($AC$59,-1,0),"UNIDADE")+COUNTIF($AC$15:OFFSET($AC$59,-1,0),"SEM VALOR")>0,"NÃO OK","OK") -> OK | AE11: Preço Total | AF11: TRUE
AA12: Valores não Arredondados | AJ12: ↓ | AL12: ↓
A13: Nível E | B13: Save Nivel | C13: Nível C | D13: Altura | E13: n1 | F13: n2 | G13: n3 | H13: n4 | I13: n5 | J13: Czero | K13: Cnível | L13: ↓ | M13: Nível | N13: Nível Corrigido | O13: Item | P13: Fonte | Q13: Código | R13: Descrição | S13: Unidade | T13: Quantidade | U13: =IF(TIPOORCAMENTO="Licitado","","Custo Unitário (sem BDI) (R$)") -> Custo Unitário (sem BDI) (R$) | V13: =IF(TIPOORCAMENTO="Licitado","","BDI (%)") -> BDI (%) | W13: Preço Unitário (com BDI) (R$) | X13: Preço Total (R$) | Y13: ↓ | Z13: ↓ | AA13: Contrapartida (R$) | AB13: Outros (R$) | AC13: Erro de Dados | AD13: Lista Crono | AE13: Concatenação Fonte-Código | AF13: BancoDesloc | AG13: Custo Unitário Referência (R$) | AH13: =IF(TIPOORCAMENTO="LICITADO","Valor BDI Edital","Valor BDI") -> Valor BDI | AJ13: Quantidade | AL13: Preço Unitário (com BDI) (R$) | AM13: Preço Total Licit. (R$) | AN13: Preço Unitário Edital (R$)
A14: =CHOOSE(1+LOG(1+2*(ORÇAMENTO.Nivel="Meta")+4*(ORÇAMENTO.Nivel="Nível 2")+8*(ORÇAMENTO.Nivel="Nível 3")+16*(ORÇAMENTO.Nivel="Nível 4")+32*(ORÇAMENTO.Nivel="Serviço"),2),0,1,2,3,4,"S") -> S | B14: =IF(OR(C14="s",C14=0),OFFSET(B14,-1,0),C14) -> Save Nivel | C14: =IF(OFFSET(C14,-1,0)="L",1,IF(OFFSET(C14,-1,0)=1,2,IF(OR(A14="s",A14=0),"S",IF(AND(OFFSET(C14,-1,0)=2,A14=4),3,IF(AND(OR(OFFSET(C14,-1,0)="s",OFFSET(C14,-1,0)=0),A14<>"s",A14>OFFSET(B14,-1,0)),OFFSET(B14,-1,0),A14))))) -> S | D14: =IF(OR(C14="S",C14=0),0,IF(ISERROR(K14),J14,SMALL(J14:K14,1))) -> 0 | E14: =IF($C14=1,OFFSET(E14,-1,0)+MAX(1,COUNTIF(QCI!$A$13:$A$15,OFFSET(ORÇAMENTO!E14,-1,0))),OFFSET(E14,-1,0)) -> n1 | F14: =IF($C14=1,0,IF($C14=2,OFFSET(F14,-1,0)+1,OFFSET(F14,-1,0))) -> n2 | G14: =IF(AND($C14<=2,$C14<>0),0,IF($C14=3,OFFSET(G14,-1,0)+1,OFFSET(G14,-1,0))) -> n3 | H14: =IF(AND($C14<=3,$C14<>0),0,IF($C14=4,OFFSET(H14,-1,0)+1,OFFSET(H14,-1,0))) -> n4 | I14: =IF(AND($C14<=4,$C14<>0),0,IF(AND($C14="S",$X14>0),OFFSET(I14,-1,0)+1,OFFSET(I14,-1,0))) -> n5 | J14: =IF(OR($C14="S",$C14=0),0,MATCH(0,OFFSET($D14,1,$C14,ROW($C$59)-ROW($C14)),0)) -> 0 | K14: =IF(OR($C14="S",$C14=0),0,MATCH(OFFSET($D14,0,$C14)+IF($C14<>1,1,COUNTIF(QCI!$A$13:$A$15,ORÇAMENTO!E14)),OFFSET($D14,1,$C14,ROW($C$59)-ROW($C14)),0)) -> 0 | L14: =IF(OR($X14>0,$C14=1,$C14=2,$C14=3,$C14=4),"F","") ->  | M14: Serviço | N14: =CHOOSE(1+LOG(1+2*(C14=1)+4*(C14=2)+8*(C14=3)+16*(C14=4)+32*(C14="S"),2),"","Meta","Nível 2","Nível 3","Nível 4","Serviço") -> Serviço | O14: =IF(OR($C14=0,$L14=""),"-",CONCATENATE(E14&".",IF(AND($A$5>=2,$C14>=2),F14&".",""),IF(AND($A$5>=3,$C14>=3),G14&".",""),IF(AND($A$5>=4,$C14>=4),H14&".",""),IF($C14="S",I14&".",""))) -> - | P14: SINAPI | R14: =IF($C14="S",REFERENCIA.Descricao,"(digite a descrição aqui)") -> (Sem Código) | S14: =REFERENCIA.Unidade -> - | T14: =OFFSET(CÁLCULO!H$15,ROW($T14)-ROW(T$15),0) -> 0 | V14: BDI 1 | W14: =IF($C14="S",ROUND(IF(TIPOORCAMENTO="Proposto",ORÇAMENTO.CustoUnitario*(1+$AH14),ORÇAMENTO.PrecoUnitarioLicitado),15-13*$AF$10),0) -> 0 | X14: =IF($C14="S",VTOTAL1,IF($C14=0,0,ROUND(SomaAgrup,15-13*$AF$11))) -> 0 | Y14: RA | Z14: =IF(AND($C14="S",$X14>0),IF(ISBLANK($Y14),"RA",LEFT($Y14,2)),"") ->  | AA14: =IF($C14="S",IF($Z14="CP",$X14,IF($Z14="RA",(($X14)*QCI!$AA$3),0)),SomaAgrup) -> 0 | AB14: =IF($C14="S",IF($Z14="OU",ROUND($X14,2),0),SomaAgrup) -> 0 | AC14: =IF($N14="","",IF(ORÇAMENTO.Descricao="","DESCRIÇÃO",IF(AND($C14="S",ORÇAMENTO.Unidade=""),"UNIDADE",IF($X14<0,"VALOR NEGATIVO",IF(OR(AND(TIPOORCAMENTO="Proposto",$AG14<>"",$AG14>0,ORÇAMENTO.CustoUnitario>$AG14),AND(TIPOORCAMENTO="LICITADO",ORÇAMENTO.PrecoUnitarioLicitado>$AN14)),"ACIMA REF.",""))))) ->  | AD14: =IF(C14<=CRONO.NivelExibicao,MAX($AD$15:OFFSET(AD14,-1,0))+IF($C14<>1,1,MAX(1,COUNTIF(QCI!$A$13:$A$15,OFFSET($E14,-1,0)))),"") ->  | AE14: =IF(AND($C14="S",ORÇAMENTO.CodBarra<>""),IF(ORÇAMENTO.Fonte="",ORÇAMENTO.CodBarra,CONCATENATE(ORÇAMENTO.Fonte," ",ORÇAMENTO.CodBarra))) -> FALSE | AF14: =IF(ISERROR(INDIRECT(ORÇAMENTO.BancoRef)),"(abra o arquivo 'Referência "&Excel_BuiltIn_Database&".xls)",IF(OR($C14<>"S",ORÇAMENTO.CodBarra=""),"(Sem Código)",IF(ISERROR(MATCH($AE14,INDIRECT(ORÇAMENTO.BancoRef),0)),"(Código não identificado nas referências)",MATCH($AE14,INDIRECT(ORÇAMENTO.BancoRef),0)))) -> (Sem Código) | AG14: =ROUND(IF(DESONERACAO="sim",REFERENCIA.Desonerado,REFERENCIA.NaoDesonerado),2) -> 0 | AH14: =ROUND(IF(ISNUMBER(ORÇAMENTO.OpcaoBDI),ORÇAMENTO.OpcaoBDI,IF(LEFT(ORÇAMENTO.OpcaoBDI,3)="BDI",HLOOKUP(ORÇAMENTO.OpcaoBDI,$F$4:$H$5,2,FALSE),0)),15-11*$AF$9) -> 0.264 | AM14: =$X14 -> 0 | AN14: =ROUND(ORÇAMENTO.CustoUnitario*(1+$AH14),2) -> 0
A15: 0 | C15: L | D15: =COUNTA(OFFSET(D15,1,0):D$59) -> 43 | E15: 0 | L15: F | M15: =IF(TIPOORCAMENTO="LICITADO","CTEF","LOTE") -> LOTE | N15: =IF(TIPOORCAMENTO="LICITADO","CTEF","LOTE") -> LOTE | O15: =Import.DescLote -> 0 | X15: =SUMIF(OFFSET($C15,1,0,ROW(X59)-ROW(X15)-1),"S",OFFSET(X15,1,0,ROW(X59)-ROW(X15)-1)) -> 629482.7 | Z15: =IF(AND($C15="S",$X15>0),LEFT($Y15,2),"") ->  | AA15: =SUMIF(OFFSET($C15,1,0,ROW(AA59)-ROW(AA15)-1),"S",OFFSET(AA15,1,0,ROW(AA59)-ROW(AA15)-1)) -> 51479.7 | AB15: =SUMIF(OFFSET($C15,1,0,ROW(AB59)-ROW(AB15)-1),"S",OFFSET(AB15,1,0,ROW(AB59)-ROW(AB15)-1)) -> 0 | AM15: 629482.7
A16: =CHOOSE(1+LOG(1+2*(ORÇAMENTO.Nivel="Meta")+4*(ORÇAMENTO.Nivel="Nível 2")+8*(ORÇAMENTO.Nivel="Nível 3")+16*(ORÇAMENTO.Nivel="Nível 4")+32*(ORÇAMENTO.Nivel="Serviço"),2),0,1,2,3,4,"S") -> 1 | B16: =IF(OR(C16="s",C16=0),OFFSET(B16,-1,0),C16) -> 1 | C16: =IF(OFFSET(C16,-1,0)="L",1,IF(OFFSET(C16,-1,0)=1,2,IF(OR(A16="s",A16=0),"S",IF(AND(OFFSET(C16,-1,0)=2,A16=4),3,IF(AND(OR(OFFSET(C16,-1,0)="s",OFFSET(C16,-1,0)=0),A16<>"s",A16>OFFSET(B16,-1,0)),OFFSET(B16,-1,0),A16))))) -> 1 | D16: =IF(OR(C16="S",C16=0),0,IF(ISERROR(K16),J16,SMALL(J16:K16,1))) -> 43 | E16: =IF($C16=1,OFFSET(E16,-1,0)+MAX(1,COUNTIF(QCI!$A$13:$A$15,OFFSET(ORÇAMENTO!E16,-1,0))),OFFSET(E16,-1,0)) -> 1 | F16: =IF($C16=1,0,IF($C16=2,OFFSET(F16,-1,0)+1,OFFSET(F16,-1,0))) -> 0 | G16: =IF(AND($C16<=2,$C16<>0),0,IF($C16=3,OFFSET(G16,-1,0)+1,OFFSET(G16,-1,0))) -> 0 | H16: =IF(AND($C16<=3,$C16<>0),0,IF($C16=4,OFFSET(H16,-1,0)+1,OFFSET(H16,-1,0))) -> 0 | I16: =IF(AND($C16<=4,$C16<>0),0,IF(AND($C16="S",$X16>0),OFFSET(I16,-1,0)+1,OFFSET(I16,-1,0))) -> 0 | J16: =IF(OR($C16="S",$C16=0),0,MATCH(0,OFFSET($D16,1,$C16,ROW($C$59)-ROW($C16)),0)) -> 43 | K16: =IF(OR($C16="S",$C16=0),0,MATCH(OFFSET($D16,0,$C16)+IF($C16<>1,1,COUNTIF(QCI!$A$13:$A$15,ORÇAMENTO!E16)),OFFSET($D16,1,$C16,ROW($C$59)-ROW($C16)),0)) ->  | L16: =IF(OR($X16>0,$C16=1,$C16=2,$C16=3,$C16=4),"F","") -> F | M16: Meta | N16: =CHOOSE(1+LOG(1+2*(C16=1)+4*(C16=2)+8*(C16=3)+16*(C16=4)+32*(C16="S"),2),"","Meta","Nível 2","Nível 3","Nível 4","Serviço") -> Meta | O16: =IF(OR($C16=0,$L16=""),"-",CONCATENATE(E16&".",IF(AND($A$5>=2,$C16>=2),F16&".",""),IF(AND($A$5>=3,$C16>=3),G16&".",""),IF(AND($A$5>=4,$C16>=4),H16&".",""),IF($C16="S",I16&".",""))) -> 1. | P16: SINAPI | R16: PAVIMENTAÇÃO ASFALTICA RUAS GLÓRIA, DÓLIO BELATTO E RUA SÃO DOMINGOS | S16: - | T16: =OFFSET(CÁLCULO!H$15,ROW($T16)-ROW(T$15),0) -> 0 | V16: BDI 1 | W16: =IF($C16="S",ROUND(IF(TIPOORCAMENTO="Proposto",ORÇAMENTO.CustoUnitario*(1+$AH16),ORÇAMENTO.PrecoUnitarioLicitado),15-13*$AF$10),0) -> 0 | X16: =IF($C16="S",VTOTAL1,IF($C16=0,0,ROUND(SomaAgrup,15-13*$AF$11))) -> 629482.7 | Y16: RA | Z16: =IF(AND($C16="S",$X16>0),IF(ISBLANK($Y16),"RA",LEFT($Y16,2)),"") ->  | AA16: =IF($C16="S",IF($Z16="CP",$X16,IF($Z16="RA",(($X16)*QCI!$AA$3),0)),SomaAgrup) -> 51479.7 | AB16: =IF($C16="S",IF($Z16="OU",ROUND($X16,2),0),SomaAgrup) -> 0 | AC16: =IF($N16="","",IF(ORÇAMENTO.Descricao="","DESCRIÇÃO",IF(AND($C16="S",ORÇAMENTO.Unidade=""),"UNIDADE",IF($X16<0,"VALOR NEGATIVO",IF(OR(AND(TIPOORCAMENTO="Proposto",$AG16<>"",$AG16>0,ORÇAMENTO.CustoUnitario>$AG16),AND(TIPOORCAMENTO="LICITADO",ORÇAMENTO.PrecoUnitarioLicitado>$AN16)),"ACIMA REF.",""))))) ->  | AD16: =IF(C16<=CRONO.NivelExibicao,MAX($AD$15:OFFSET(AD16,-1,0))+IF($C16<>1,1,MAX(1,COUNTIF(QCI!$A$13:$A$15,OFFSET($E16,-1,0)))),"") -> 1 | AE16: =IF(AND($C16="S",ORÇAMENTO.CodBarra<>""),IF(ORÇAMENTO.Fonte="",ORÇAMENTO.CodBarra,CONCATENATE(ORÇAMENTO.Fonte," ",ORÇAMENTO.CodBarra))) -> FALSE | AF16: =IF(ISERROR(INDIRECT(ORÇAMENTO.BancoRef)),"(abra o arquivo 'Referência "&Excel_BuiltIn_Database&".xls)",IF(OR($C16<>"S",ORÇAMENTO.CodBarra=""),"(Sem Código)",IF(ISERROR(MATCH($AE16,INDIRECT(ORÇAMENTO.BancoRef),0)),"(Código não identificado nas referências)",MATCH($AE16,INDIRECT(ORÇAMENTO.BancoRef),0)))) -> (Sem Código) | AG16: =ROUND(IF(DESONERACAO="sim",REFERENCIA.Desonerado,REFERENCIA.NaoDesonerado),2) -> 0 | AH16: =ROUND(IF(ISNUMBER(ORÇAMENTO.OpcaoBDI),ORÇAMENTO.OpcaoBDI,IF(LEFT(ORÇAMENTO.OpcaoBDI,3)="BDI",HLOOKUP(ORÇAMENTO.OpcaoBDI,$F$4:$H$5,2,FALSE),0)),15-11*$AF$9) -> 0.264 | AM16: 629482.7 | AN16: =ROUND(ORÇAMENTO.CustoUnitario*(1+$AH16),2) -> 0
A17: 2 | B17: 2 | C17: 2 | D17: 3 | E17: =IF($C17=1,OFFSET(E17,-1,0)+MAX(1,COUNTIF(QCI!$A$13:$A$15,OFFSET(ORÇAMENTO!E17,-1,0))),OFFSET(E17,-1,0)) -> 1 | F17: 1 | G17: 0 | H17: 0 | I17: 0 | J17: 42 | K17: =IF(OR($C17="S",$C17=0),0,MATCH(OFFSET($D17,0,$C17)+IF($C17<>1,1,COUNTIF(QCI!$A$13:$A$15,ORÇAMENTO!E17)),OFFSET($D17,1,$C17,ROW($C$59)-ROW($C17)),0)) -> 3 | L17: F | M17: Nível 2 | N17: Nível 2 | O17: 1.1. | P17: SINAPI | R17: SERVIÇOS PRELIMINARES | S17: - | T17: =OFFSET(CÁLCULO!H$15,ROW($T17)-ROW(T$15),0) -> 0 | V17: BDI 1 | W17: 0 | X17: 2117.77 | Y17: RA | AA17: =IF($C17="S",IF($Z17="CP",$X17,IF($Z17="RA",(($X17)*QCI!$AA$3),0)),SomaAgrup) -> 173.1932653 | AB17: 0 | AD17: =IF(C17<=CRONO.NivelExibicao,MAX($AD$15:OFFSET(AD17,-1,0))+IF($C17<>1,1,MAX(1,COUNTIF(QCI!$A$13:$A$15,OFFSET($E17,-1,0)))),"") -> 2 | AE17: FALSE | AF17: (Sem Código) | AG17: 0 | AH17: 0.264 | AM17: 2117.77 | AN17: 0
A18: S | B18: 2 | C18: S | D18: 0 | E18: =IF($C18=1,OFFSET(E18,-1,0)+MAX(1,COUNTIF(QCI!$A$13:$A$15,OFFSET(ORÇAMENTO!E18,-1,0))),OFFSET(E18,-1,0)) -> 1 | F18: 1 | G18: 0 | H18: 0 | I18: 1 | J18: 0 | K18: =IF(OR($C18="S",$C18=0),0,MATCH(OFFSET($D18,0,$C18)+IF($C18<>1,1,COUNTIF(QCI!$A$13:$A$15,ORÇAMENTO!E18)),OFFSET($D18,1,$C18,ROW($C$59)-ROW($C18)),0)) -> 0 | L18: F | M18: Serviço | N18: Serviço | O18: 1.1.1. | P18: Composição | Q18: COMP01 | R18: =IF($C18="S",REFERENCIA.Descricao,"(digite a descrição aqui)") -> PLACA DE OBRA EM CHAPA DE AÇO GALVANIZADO | S18: =REFERENCIA.Unidade -> M2 | T18: =OFFSET(CÁLCULO!H$15,ROW($T18)-ROW(T$15),0) -> 2.88 | U18: 272 | V18: BDI 1 | W18: 343.81 | X18: 990.17 | Y18: RA | Z18: RA | AA18: =IF($C18="S",IF($Z18="CP",$X18,IF($Z18="RA",(($X18)*QCI!$AA$3),0)),SomaAgrup) -> 80.97705393 | AB18: 0 | AD18: =IF(C18<=CRONO.NivelExibicao,MAX($AD$15:OFFSET(AD18,-1,0))+IF($C18<>1,1,MAX(1,COUNTIF(QCI!$A$13:$A$15,OFFSET($E18,-1,0)))),"") ->  | AE18: Composição COMP01 | AF18: 3 | AG18: 319.7 | AH18: 0.264 | AM18: 990.17 | AN18: 343.81
A19: =CHOOSE(1+LOG(1+2*(ORÇAMENTO.Nivel="Meta")+4*(ORÇAMENTO.Nivel="Nível 2")+8*(ORÇAMENTO.Nivel="Nível 3")+16*(ORÇAMENTO.Nivel="Nível 4")+32*(ORÇAMENTO.Nivel="Serviço"),2),0,1,2,3,4,"S") -> S | B19: =IF(OR(C19="s",C19=0),OFFSET(B19,-1,0),C19) -> 2 | C19: =IF(OFFSET(C19,-1,0)="L",1,IF(OFFSET(C19,-1,0)=1,2,IF(OR(A19="s",A19=0),"S",IF(AND(OFFSET(C19,-1,0)=2,A19=4),3,IF(AND(OR(OFFSET(C19,-1,0)="s",OFFSET(C19,-1,0)=0),A19<>"s",A19>OFFSET(B19,-1,0)),OFFSET(B19,-1,0),A19))))) -> S | D19: =IF(OR(C19="S",C19=0),0,IF(ISERROR(K19),J19,SMALL(J19:K19,1))) -> 0 | E19: =IF($C19=1,OFFSET(E19,-1,0)+MAX(1,COUNTIF(QCI!$A$13:$A$15,OFFSET(ORÇAMENTO!E19,-1,0))),OFFSET(E19,-1,0)) -> 1 | F19: =IF($C19=1,0,IF($C19=2,OFFSET(F19,-1,0)+1,OFFSET(F19,-1,0))) -> 1 | G19: =IF(AND($C19<=2,$C19<>0),0,IF($C19=3,OFFSET(G19,-1,0)+1,OFFSET(G19,-1,0))) -> 0 | H19: =IF(AND($C19<=3,$C19<>0),0,IF($C19=4,OFFSET(H19,-1,0)+1,OFFSET(H19,-1,0))) -> 0 | I19: =IF(AND($C19<=4,$C19<>0),0,IF(AND($C19="S",$X19>0),OFFSET(I19,-1,0)+1,OFFSET(I19,-1,0))) -> 2 | J19: 0 | K19: =IF(OR($C19="S",$C19=0),0,MATCH(OFFSET($D19,0,$C19)+IF($C19<>1,1,COUNTIF(QCI!$A$13:$A$15,ORÇAMENTO!E19)),OFFSET($D19,1,$C19,ROW($C$59)-ROW($C19)),0)) -> 0 | L19: =IF(OR($X19>0,$C19=1,$C19=2,$C19=3,$C19=4),"F","") -> F | M19: Serviço | N19: =CHOOSE(1+LOG(1+2*(C19=1)+4*(C19=2)+8*(C19=3)+16*(C19=4)+32*(C19="S"),2),"","Meta","Nível 2","Nível 3","Nível 4","Serviço") -> Serviço | O19: =IF(OR($C19=0,$L19=""),"-",CONCATENATE(E19&".",IF(AND($A$5>=2,$C19>=2),F19&".",""),IF(AND($A$5>=3,$C19>=3),G19&".",""),IF(AND($A$5>=4,$C19>=4),H19&".",""),IF($C19="S",I19&".",""))) -> 1.1.2. | P19: Composição | Q19: COMP02 | R19: =IF($C19="S",REFERENCIA.Descricao,"(digite a descrição aqui)") -> SERVICOS TOPOGRAFICOS PARA PAVIMENTACAO, INCLUSIVE NOTA DE SERVICOS, ACOMPANHAMENTO E GREIDE | S19: =REFERENCIA.Unidade -> M2 | T19: =OFFSET(CÁLCULO!H$15,ROW($T19)-ROW(T$15),0) -> 3316.46 | U19: =AG19 -> 0.27 | V19: BDI 1 | W19: =IF($C19="S",ROUND(IF(TIPOORCAMENTO="Proposto",ORÇAMENTO.CustoUnitario*(1+$AH19),ORÇAMENTO.PrecoUnitarioLicitado),15-13*$AF$10),0) -> 0.34 | X19: =IF($C19="S",VTOTAL1,IF($C19=0,0,ROUND(SomaAgrup,15-13*$AF$11))) -> 1127.6 | Y19: RA | Z19: =IF(AND($C19="S",$X19>0),IF(ISBLANK($Y19),"RA",LEFT($Y19,2)),"") -> RA | AA19: =IF($C19="S",IF($Z19="CP",$X19,IF($Z19="RA",(($X19)*QCI!$AA$3),0)),SomaAgrup) -> 92.21621137 | AB19: =IF($C19="S",IF($Z19="OU",ROUND($X19,2),0),SomaAgrup) -> 0 | AC19: =IF($N19="","",IF(ORÇAMENTO.Descricao="","DESCRIÇÃO",IF(AND($C19="S",ORÇAMENTO.Unidade=""),"UNIDADE",IF($X19<0,"VALOR NEGATIVO",IF(OR(AND(TIPOORCAMENTO="Proposto",$AG19<>"",$AG19>0,ORÇAMENTO.CustoUnitario>$AG19),AND(TIPOORCAMENTO="LICITADO",ORÇAMENTO.PrecoUnitarioLicitado>$AN19)),"ACIMA REF.",""))))) ->  | AD19: =IF(C19<=CRONO.NivelExibicao,MAX($AD$15:OFFSET(AD19,-1,0))+IF($C19<>1,1,MAX(1,COUNTIF(QCI!$A$13:$A$15,OFFSET($E19,-1,0)))),"") ->  | AE19: =IF(AND($C19="S",ORÇAMENTO.CodBarra<>""),IF(ORÇAMENTO.Fonte="",ORÇAMENTO.CodBarra,CONCATENATE(ORÇAMENTO.Fonte," ",ORÇAMENTO.CodBarra))) -> Composição COMP02 | AF19: =IF(ISERROR(INDIRECT(ORÇAMENTO.BancoRef)),"(abra o arquivo 'Referência "&Excel_BuiltIn_Database&".xls)",IF(OR($C19<>"S",ORÇAMENTO.CodBarra=""),"(Sem Código)",IF(ISERROR(MATCH($AE19,INDIRECT(ORÇAMENTO.BancoRef),0)),"(Código não identificado nas referências)",MATCH($AE19,INDIRECT(ORÇAMENTO.BancoRef),0)))) -> 4 | AG19: =ROUND(IF(DESONERACAO="sim",REFERENCIA.Desonerado,REFERENCIA.NaoDesonerado),2) -> 0.27 | AH19: =ROUND(IF(ISNUMBER(ORÇAMENTO.OpcaoBDI),ORÇAMENTO.OpcaoBDI,IF(LEFT(ORÇAMENTO.OpcaoBDI,3)="BDI",HLOOKUP(ORÇAMENTO.OpcaoBDI,$F$4:$H$5,2,FALSE),0)),15-11*$AF$9) -> 0.264 | AM19: 1127.6 | AN19: =ROUND(ORÇAMENTO.CustoUnitario*(1+$AH19),2) -> 0.34
A20: =CHOOSE(1+LOG(1+2*(ORÇAMENTO.Nivel="Meta")+4*(ORÇAMENTO.Nivel="Nível 2")+8*(ORÇAMENTO.Nivel="Nível 3")+16*(ORÇAMENTO.Nivel="Nível 4")+32*(ORÇAMENTO.Nivel="Serviço"),2),0,1,2,3,4,"S") -> 2 | B20: =IF(OR(C20="s",C20=0),OFFSET(B20,-1,0),C20) -> 2 | C20: =IF(OFFSET(C20,-1,0)="L",1,IF(OFFSET(C20,-1,0)=1,2,IF(OR(A20="s",A20=0),"S",IF(AND(OFFSET(C20,-1,0)=2,A20=4),3,IF(AND(OR(OFFSET(C20,-1,0)="s",OFFSET(C20,-1,0)=0),A20<>"s",A20>OFFSET(B20,-1,0)),OFFSET(B20,-1,0),A20))))) -> 2 | D20: =IF(OR(C20="S",C20=0),0,IF(ISERROR(K20),J20,SMALL(J20:K20,1))) -> 3 | E20: =IF($C20=1,OFFSET(E20,-1,0)+MAX(1,COUNTIF(QCI!$A$13:$A$15,OFFSET(ORÇAMENTO!E20,-1,0))),OFFSET(E20,-1,0)) -> 1 | F20: =IF($C20=1,0,IF($C20=2,OFFSET(F20,-1,0)+1,OFFSET(F20,-1,0))) -> 2 | G20: =IF(AND($C20<=2,$C20<>0),0,IF($C20=3,OFFSET(G20,-1,0)+1,OFFSET(G20,-1,0))) -> 0 | H20: =IF(AND($C20<=3,$C20<>0),0,IF($C20=4,OFFSET(H20,-1,0)+1,OFFSET(H20,-1,0))) -> 0 | I20: =IF(AND($C20<=4,$C20<>0),0,IF(AND($C20="S",$X20>0),OFFSET(I20,-1,0)+1,OFFSET(I20,-1,0))) -> 0 | J20: 39 | K20: =IF(OR($C20="S",$C20=0),0,MATCH(OFFSET($D20,0,$C20)+IF($C20<>1,1,COUNTIF(QCI!$A$13:$A$15,ORÇAMENTO!E20)),OFFSET($D20,1,$C20,ROW($C$59)-ROW($C20)),0)) -> 3 | L20: =IF(OR($X20>0,$C20=1,$C20=2,$C20=3,$C20=4),"F","") -> F | M20: Nível 2 | N20: =CHOOSE(1+LOG(1+2*(C20=1)+4*(C20=2)+8*(C20=3)+16*(C20=4)+32*(C20="S"),2),"","Meta","Nível 2","Nível 3","Nível 4","Serviço") -> Nível 2 | O20: =IF(OR($C20=0,$L20=""),"-",CONCATENATE(E20&".",IF(AND($A$5>=2,$C20>=2),F20&".",""),IF(AND($A$5>=3,$C20>=3),G20&".",""),IF(AND($A$5>=4,$C20>=4),H20&".",""),IF($C20="S",I20&".",""))) -> 1.2. | P20: SINAPI | R20: MOVIMENTAÇÃO DE TERRA | S20: =REFERENCIA.Unidade -> - | T20: =OFFSET(CÁLCULO!H$15,ROW($T20)-ROW(T$15),0) -> 0 | V20: BDI 1 | W20: =IF($C20="S",ROUND(IF(TIPOORCAMENTO="Proposto",ORÇAMENTO.CustoUnitario*(1+$AH20),ORÇAMENTO.PrecoUnitarioLicitado),15-13*$AF$10),0) -> 0 | X20: =IF($C20="S",VTOTAL1,IF($C20=0,0,ROUND(SomaAgrup,15-13*$AF$11))) -> 4585.71 | Y20: RA | Z20: =IF(AND($C20="S",$X20>0),IF(ISBLANK($Y20),"RA",LEFT($Y20,2)),"") ->  | AA20: =IF($C20="S",IF($Z20="CP",$X20,IF($Z20="RA",(($X20)*QCI!$AA$3),0)),SomaAgrup) -> 375.0237697 | AB20: =IF($C20="S",IF($Z20="OU",ROUND($X20,2),0),SomaAgrup) -> 0 | AC20: =IF($N20="","",IF(ORÇAMENTO.Descricao="","DESCRIÇÃO",IF(AND($C20="S",ORÇAMENTO.Unidade=""),"UNIDADE",IF($X20<0,"VALOR NEGATIVO",IF(OR(AND(TIPOORCAMENTO="Proposto",$AG20<>"",$AG20>0,ORÇAMENTO.CustoUnitario>$AG20),AND(TIPOORCAMENTO="LICITADO",ORÇAMENTO.PrecoUnitarioLicitado>$AN20)),"ACIMA REF.",""))))) ->  | AD20: =IF(C20<=CRONO.NivelExibicao,MAX($AD$15:OFFSET(AD20,-1,0))+IF($C20<>1,1,MAX(1,COUNTIF(QCI!$A$13:$A$15,OFFSET($E20,-1,0)))),"") -> 3 | AE20: =IF(AND($C20="S",ORÇAMENTO.CodBarra<>""),IF(ORÇAMENTO.Fonte="",ORÇAMENTO.CodBarra,CONCATENATE(ORÇAMENTO.Fonte," ",ORÇAMENTO.CodBarra))) -> FALSE | AF20: =IF(ISERROR(INDIRECT(ORÇAMENTO.BancoRef)),"(abra o arquivo 'Referência "&Excel_BuiltIn_Database&".xls)",IF(OR($C20<>"S",ORÇAMENTO.CodBarra=""),"(Sem Código)",IF(ISERROR(MATCH($AE20,INDIRECT(ORÇAMENTO.BancoRef),0)),"(Código não identificado nas referências)",MATCH($AE20,INDIRECT(ORÇAMENTO.BancoRef),0)))) -> (Sem Código) | AG20: =ROUND(IF(DESONERACAO="sim",REFERENCIA.Desonerado,REFERENCIA.NaoDesonerado),2) -> 0 | AH20: =ROUND(IF(ISNUMBER(ORÇAMENTO.OpcaoBDI),ORÇAMENTO.OpcaoBDI,IF(LEFT(ORÇAMENTO.OpcaoBDI,3)="BDI",HLOOKUP(ORÇAMENTO.OpcaoBDI,$F$4:$H$5,2,FALSE),0)),15-11*$AF$9) -> 0.264 | AM20: 4585.71 | AN20: =ROUND(ORÇAMENTO.CustoUnitario*(1+$AH20),2) -> 0
A21: =CHOOSE(1+LOG(1+2*(ORÇAMENTO.Nivel="Meta")+4*(ORÇAMENTO.Nivel="Nível 2")+8*(ORÇAMENTO.Nivel="Nível 3")+16*(ORÇAMENTO.Nivel="Nível 4")+32*(ORÇAMENTO.Nivel="Serviço"),2),0,1,2,3,4,"S") -> S | B21: 2 | C21: S | D21: 0 | E21: =IF($C21=1,OFFSET(E21,-1,0)+MAX(1,COUNTIF(QCI!$A$13:$A$15,OFFSET(ORÇAMENTO!E21,-1,0))),OFFSET(E21,-1,0)) -> 1 | F21: 2 | G21: 0 | H21: 0 | I21: 1 | J21: 0 | K21: =IF(OR($C21="S",$C21=0),0,MATCH(OFFSET($D21,0,$C21)+IF($C21<>1,1,COUNTIF(QCI!$A$13:$A$15,ORÇAMENTO!E21)),OFFSET($D21,1,$C21,ROW($C$59)-ROW($C21)),0)) -> 0 | L21: F | M21: Serviço | N21: Serviço | O21: 1.2.1. | P21: SINAPI | Q21: 90091 | R21: =IF($C21="S",REFERENCIA.Descricao,"(digite a descrição aqui)") -> ESCAVAÇÃO MECANIZADA DE VALA COM PROF. ATÉ 1,5 M(MÉDIA ENTRE MONTANTE E JUSANTE/UMA COMPOSIÇÃO POR TRECHO), COM ESCAVADEIRA HIDRÁULICA (0,8 M3), LARG. DE 1,5M A 2,5 M, EM SOLO DE 1A CATEGORIA, LOCAIS COM BAIXO NÍVEL DE INTERFERÊNCIA. AF_02/2021 | S21: =REFERENCIA.Unidade -> M3 | T21: =OFFSET(CÁLCULO!H$15,ROW($T21)-ROW(T$15),0) -> 631.64 | U21: =AG21 -> 4.56 | V21: BDI 1 | W21: =IF($C21="S",ROUND(IF(TIPOORCAMENTO="Proposto",ORÇAMENTO.CustoUnitario*(1+$AH21),ORÇAMENTO.PrecoUnitarioLicitado),15-13*$AF$10),0) -> 5.76 | X21: =IF($C21="S",VTOTAL1,IF($C21=0,0,ROUND(SomaAgrup,15-13*$AF$11))) -> 3638.25 | Y21: RA | Z21: RA | AA21: =IF($C21="S",IF($Z21="CP",$X21,IF($Z21="RA",(($X21)*QCI!$AA$3),0)),SomaAgrup) -> 297.5395806 | AB21: =IF($C21="S",IF($Z21="OU",ROUND($X21,2),0),SomaAgrup) -> 0 | AC21: =IF($N21="","",IF(ORÇAMENTO.Descricao="","DESCRIÇÃO",IF(AND($C21="S",ORÇAMENTO.Unidade=""),"UNIDADE",IF($X21<0,"VALOR NEGATIVO",IF(OR(AND(TIPOORCAMENTO="Proposto",$AG21<>"",$AG21>0,ORÇAMENTO.CustoUnitario>$AG21),AND(TIPOORCAMENTO="LICITADO",ORÇAMENTO.PrecoUnitarioLicitado>$AN21)),"ACIMA REF.",""))))) ->  | AD21: =IF(C21<=CRONO.NivelExibicao,MAX($AD$15:OFFSET(AD21,-1,0))+IF($C21<>1,1,MAX(1,COUNTIF(QCI!$A$13:$A$15,OFFSET($E21,-1,0)))),"") ->  | AE21: =IF(AND($C21="S",ORÇAMENTO.CodBarra<>""),IF(ORÇAMENTO.Fonte="",ORÇAMENTO.CodBarra,CONCATENATE(ORÇAMENTO.Fonte," ",ORÇAMENTO.CodBarra))) -> SINAPI 90091 | AF21: =IF(ISERROR(INDIRECT(ORÇAMENTO.BancoRef)),"(abra o arquivo 'Referência "&Excel_BuiltIn_Database&".xls)",IF(OR($C21<>"S",ORÇAMENTO.CodBarra=""),"(Sem Código)",IF(ISERROR(MATCH($AE21,INDIRECT(ORÇAMENTO.BancoRef),0)),"(Código não identificado nas referências)",MATCH($AE21,INDIRECT(ORÇAMENTO.BancoRef),0)))) -> 10314 | AG21: =ROUND(IF(DESONERACAO="sim",REFERENCIA.Desonerado,REFERENCIA.NaoDesonerado),2) -> 4.56 | AH21: =ROUND(IF(ISNUMBER(ORÇAMENTO.OpcaoBDI),ORÇAMENTO.OpcaoBDI,IF(LEFT(ORÇAMENTO.OpcaoBDI,3)="BDI",HLOOKUP(ORÇAMENTO.OpcaoBDI,$F$4:$H$5,2,FALSE),0)),15-11*$AF$9) -> 0.264 | AM21: 3638.25 | AN21: =ROUND(ORÇAMENTO.CustoUnitario*(1+$AH21),2) -> 5.76
A22: =CHOOSE(1+LOG(1+2*(ORÇAMENTO.Nivel="Meta")+4*(ORÇAMENTO.Nivel="Nível 2")+8*(ORÇAMENTO.Nivel="Nível 3")+16*(ORÇAMENTO.Nivel="Nível 4")+32*(ORÇAMENTO.Nivel="Serviço"),2),0,1,2,3,4,"S") -> S | B22: 2 | C22: S | D22: 0 | E22: =IF($C22=1,OFFSET(E22,-1,0)+MAX(1,COUNTIF(QCI!$A$13:$A$15,OFFSET(ORÇAMENTO!E22,-1,0))),OFFSET(E22,-1,0)) -> 1 | F22: 2 | G22: 0 | H22: 0 | I22: 2 | J22: 0 | K22: =IF(OR($C22="S",$C22=0),0,MATCH(OFFSET($D22,0,$C22)+IF($C22<>1,1,COUNTIF(QCI!$A$13:$A$15,ORÇAMENTO!E22)),OFFSET($D22,1,$C22,ROW($C$59)-ROW($C22)),0)) -> 0 | L22: F | M22: Serviço | N22: Serviço | O22: 1.2.2. | P22: SINAPI | Q22: 93593 | R22: =IF($C22="S",REFERENCIA.Descricao,"(digite a descrição aqui)") -> TRANSPORTE COM CAMINHÃO BASCULANTE DE 14 M³, EM VIA URBANA PAVIMENTADA, ADICIONAL PARA DMT EXCEDENTE A 30 KM (UNIDADE: M3XKM). AF_07/2020 | S22: =REFERENCIA.Unidade -> M3XKM | T22: =OFFSET(CÁLCULO!H$15,ROW($T22)-ROW(T$15),0) -> 1263.28 | U22: =AG22 -> 0.59 | V22: BDI 1 | W22: =IF($C22="S",ROUND(IF(TIPOORCAMENTO="Proposto",ORÇAMENTO.CustoUnitario*(1+$AH22),ORÇAMENTO.PrecoUnitarioLicitado),15-13*$AF$10),0) -> 0.75 | X22: =IF($C22="S",VTOTAL1,IF($C22=0,0,ROUND(SomaAgrup,15-13*$AF$11))) -> 947.46 | Y22: RA | Z22: RA | AA22: =IF($C22="S",IF($Z22="CP",$X22,IF($Z22="RA",(($X22)*QCI!$AA$3),0)),SomaAgrup) -> 77.4841891 | AB22: =IF($C22="S",IF($Z22="OU",ROUND($X22,2),0),SomaAgrup) -> 0 | AC22: =IF($N22="","",IF(ORÇAMENTO.Descricao="","DESCRIÇÃO",IF(AND($C22="S",ORÇAMENTO.Unidade=""),"UNIDADE",IF($X22<0,"VALOR NEGATIVO",IF(OR(AND(TIPOORCAMENTO="Proposto",$AG22<>"",$AG22>0,ORÇAMENTO.CustoUnitario>$AG22),AND(TIPOORCAMENTO="LICITADO",ORÇAMENTO.PrecoUnitarioLicitado>$AN22)),"ACIMA REF.",""))))) ->  | AD22: =IF(C22<=CRONO.NivelExibicao,MAX($AD$15:OFFSET(AD22,-1,0))+IF($C22<>1,1,MAX(1,COUNTIF(QCI!$A$13:$A$15,OFFSET($E22,-1,0)))),"") ->  | AE22: =IF(AND($C22="S",ORÇAMENTO.CodBarra<>""),IF(ORÇAMENTO.Fonte="",ORÇAMENTO.CodBarra,CONCATENATE(ORÇAMENTO.Fonte," ",ORÇAMENTO.CodBarra))) -> SINAPI 93593 | AF22: =IF(ISERROR(INDIRECT(ORÇAMENTO.BancoRef)),"(abra o arquivo 'Referência "&Excel_BuiltIn_Database&".xls)",IF(OR($C22<>"S",ORÇAMENTO.CodBarra=""),"(Sem Código)",IF(ISERROR(MATCH($AE22,INDIRECT(ORÇAMENTO.BancoRef),0)),"(Código não identificado nas referências)",MATCH($AE22,INDIRECT(ORÇAMENTO.BancoRef),0)))) -> 11612 | AG22: =ROUND(IF(DESONERACAO="sim",REFERENCIA.Desonerado,REFERENCIA.NaoDesonerado),2) -> 0.59 | AH22: =ROUND(IF(ISNUMBER(ORÇAMENTO.OpcaoBDI),ORÇAMENTO.OpcaoBDI,IF(LEFT(ORÇAMENTO.OpcaoBDI,3)="BDI",HLOOKUP(ORÇAMENTO.OpcaoBDI,$F$4:$H$5,2,FALSE),0)),15-11*$AF$9) -> 0.264 | AM22: 947.46 | AN22: =ROUND(ORÇAMENTO.CustoUnitario*(1+$AH22),2) -> 0.75
A23: =CHOOSE(1+LOG(1+2*(ORÇAMENTO.Nivel="Meta")+4*(ORÇAMENTO.Nivel="Nível 2")+8*(ORÇAMENTO.Nivel="Nível 3")+16*(ORÇAMENTO.Nivel="Nível 4")+32*(ORÇAMENTO.Nivel="Serviço"),2),0,1,2,3,4,"S") -> 2 | B23: =IF(OR(C23="s",C23=0),OFFSET(B23,-1,0),C23) -> 2 | C23: =IF(OFFSET(C23,-1,0)="L",1,IF(OFFSET(C23,-1,0)=1,2,IF(OR(A23="s",A23=0),"S",IF(AND(OFFSET(C23,-1,0)=2,A23=4),3,IF(AND(OR(OFFSET(C23,-1,0)="s",OFFSET(C23,-1,0)=0),A23<>"s",A23>OFFSET(B23,-1,0)),OFFSET(B23,-1,0),A23))))) -> 2 | D23: =IF(OR(C23="S",C23=0),0,IF(ISERROR(K23),J23,SMALL(J23:K23,1))) -> 11 | E23: =IF($C23=1,OFFSET(E23,-1,0)+MAX(1,COUNTIF(QCI!$A$13:$A$15,OFFSET(ORÇAMENTO!E23,-1,0))),OFFSET(E23,-1,0)) -> 1 | F23: =IF($C23=1,0,IF($C23=2,OFFSET(F23,-1,0)+1,OFFSET(F23,-1,0))) -> 3 | G23: =IF(AND($C23<=2,$C23<>0),0,IF($C23=3,OFFSET(G23,-1,0)+1,OFFSET(G23,-1,0))) -> 0 | H23: =IF(AND($C23<=3,$C23<>0),0,IF($C23=4,OFFSET(H23,-1,0)+1,OFFSET(H23,-1,0))) -> 0 | I23: =IF(AND($C23<=4,$C23<>0),0,IF(AND($C23="S",$X23>0),OFFSET(I23,-1,0)+1,OFFSET(I23,-1,0))) -> 0 | J23: 36 | K23: =IF(OR($C23="S",$C23=0),0,MATCH(OFFSET($D23,0,$C23)+IF($C23<>1,1,COUNTIF(QCI!$A$13:$A$15,ORÇAMENTO!E23)),OFFSET($D23,1,$C23,ROW($C$59)-ROW($C23)),0)) -> 11 | L23: =IF(OR($X23>0,$C23=1,$C23=2,$C23=3,$C23=4),"F","") -> F | M23: Nível 2 | N23: =CHOOSE(1+LOG(1+2*(C23=1)+4*(C23=2)+8*(C23=3)+16*(C23=4)+32*(C23="S"),2),"","Meta","Nível 2","Nível 3","Nível 4","Serviço") -> Nível 2 | O23: =IF(OR($C23=0,$L23=""),"-",CONCATENATE(E23&".",IF(AND($A$5>=2,$C23>=2),F23&".",""),IF(AND($A$5>=3,$C23>=3),G23&".",""),IF(AND($A$5>=4,$C23>=4),H23&".",""),IF($C23="S",I23&".",""))) -> 1.3. | P23: SINAPI | R23: DRENAGEM | S23: =REFERENCIA.Unidade -> - | T23: =OFFSET(CÁLCULO!H$15,ROW($T23)-ROW(T$15),0) -> 0 | V23: BDI 1 | W23: =IF($C23="S",ROUND(IF(TIPOORCAMENTO="Proposto",ORÇAMENTO.CustoUnitario*(1+$AH23),ORÇAMENTO.PrecoUnitarioLicitado),15-13*$AF$10),0) -> 0 | X23: =IF($C23="S",VTOTAL1,IF($C23=0,0,ROUND(SomaAgrup,15-13*$AF$11))) -> 127672.42 | Y23: RA | Z23: =IF(AND($C23="S",$X23>0),IF(ISBLANK($Y23),"RA",LEFT($Y23,2)),"") ->  | AA23: =IF($C23="S",IF($Z23="CP",$X23,IF($Z23="RA",(($X23)*QCI!$AA$3),0)),SomaAgrup) -> 10441.17317 | AB23: =IF($C23="S",IF($Z23="OU",ROUND($X23,2),0),SomaAgrup) -> 0 | AC23: =IF($N23="","",IF(ORÇAMENTO.Descricao="","DESCRIÇÃO",IF(AND($C23="S",ORÇAMENTO.Unidade=""),"UNIDADE",IF($X23<0,"VALOR NEGATIVO",IF(OR(AND(TIPOORCAMENTO="Proposto",$AG23<>"",$AG23>0,ORÇAMENTO.CustoUnitario>$AG23),AND(TIPOORCAMENTO="LICITADO",ORÇAMENTO.PrecoUnitarioLicitado>$AN23)),"ACIMA REF.",""))))) ->  | AD23: =IF(C23<=CRONO.NivelExibicao,MAX($AD$15:OFFSET(AD23,-1,0))+IF($C23<>1,1,MAX(1,COUNTIF(QCI!$A$13:$A$15,OFFSET($E23,-1,0)))),"") -> 4 | AE23: =IF(AND($C23="S",ORÇAMENTO.CodBarra<>""),IF(ORÇAMENTO.Fonte="",ORÇAMENTO.CodBarra,CONCATENATE(ORÇAMENTO.Fonte," ",ORÇAMENTO.CodBarra))) -> FALSE | AF23: =IF(ISERROR(INDIRECT(ORÇAMENTO.BancoRef)),"(abra o arquivo 'Referência "&Excel_BuiltIn_Database&".xls)",IF(OR($C23<>"S",ORÇAMENTO.CodBarra=""),"(Sem Código)",IF(ISERROR(MATCH($AE23,INDIRECT(ORÇAMENTO.BancoRef),0)),"(Código não identificado nas referências)",MATCH($AE23,INDIRECT(ORÇAMENTO.BancoRef),0)))) -> (Sem Código) | AG23: =ROUND(IF(DESONERACAO="sim",REFERENCIA.Desonerado,REFERENCIA.NaoDesonerado),2) -> 0 | AH23: =ROUND(IF(ISNUMBER(ORÇAMENTO.OpcaoBDI),ORÇAMENTO.OpcaoBDI,IF(LEFT(ORÇAMENTO.OpcaoBDI,3)="BDI",HLOOKUP(ORÇAMENTO.OpcaoBDI,$F$4:$H$5,2,FALSE),0)),15-11*$AF$9) -> 0.264 | AM23: 127672.42 | AN23: =ROUND(ORÇAMENTO.CustoUnitario*(1+$AH23),2) -> 0
A24: =CHOOSE(1+LOG(1+2*(ORÇAMENTO.Nivel="Meta")+4*(ORÇAMENTO.Nivel="Nível 2")+8*(ORÇAMENTO.Nivel="Nível 3")+16*(ORÇAMENTO.Nivel="Nível 4")+32*(ORÇAMENTO.Nivel="Serviço"),2),0,1,2,3,4,"S") -> S | B24: =IF(OR(C24="s",C24=0),OFFSET(B24,-1,0),C24) -> 2 | C24: =IF(OFFSET(C24,-1,0)="L",1,IF(OFFSET(C24,-1,0)=1,2,IF(OR(A24="s",A24=0),"S",IF(AND(OFFSET(C24,-1,0)=2,A24=4),3,IF(AND(OR(OFFSET(C24,-1,0)="s",OFFSET(C24,-1,0)=0),A24<>"s",A24>OFFSET(B24,-1,0)),OFFSET(B24,-1,0),A24))))) -> S | D24: =IF(OR(C24="S",C24=0),0,IF(ISERROR(K24),J24,SMALL(J24:K24,1))) -> 0 | E24: =IF($C24=1,OFFSET(E24,-1,0)+MAX(1,COUNTIF(QCI!$A$13:$A$15,OFFSET(ORÇAMENTO!E24,-1,0))),OFFSET(E24,-1,0)) -> 1 | F24: =IF($C24=1,0,IF($C24=2,OFFSET(F24,-1,0)+1,OFFSET(F24,-1,0))) -> 3 | G24: =IF(AND($C24<=2,$C24<>0),0,IF($C24=3,OFFSET(G24,-1,0)+1,OFFSET(G24,-1,0))) -> 0 | H24: =IF(AND($C24<=3,$C24<>0),0,IF($C24=4,OFFSET(H24,-1,0)+1,OFFSET(H24,-1,0))) -> 0 | I24: =IF(AND($C24<=4,$C24<>0),0,IF(AND($C24="S",$X24>0),OFFSET(I24,-1,0)+1,OFFSET(I24,-1,0))) -> 1 | J24: 0 | K24: =IF(OR($C24="S",$C24=0),0,MATCH(OFFSET($D24,0,$C24)+IF($C24<>1,1,COUNTIF(QCI!$A$13:$A$15,ORÇAMENTO!E24)),OFFSET($D24,1,$C24,ROW($C$59)-ROW($C24)),0)) -> 0 | L24: =IF(OR($X24>0,$C24=1,$C24=2,$C24=3,$C24=4),"F","") -> F | M24: Serviço | N24: =CHOOSE(1+LOG(1+2*(C24=1)+4*(C24=2)+8*(C24=3)+16*(C24=4)+32*(C24="S"),2),"","Meta","Nível 2","Nível 3","Nível 4","Serviço") -> Serviço | O24: =IF(OR($C24=0,$L24=""),"-",CONCATENATE(E24&".",IF(AND($A$5>=2,$C24>=2),F24&".",""),IF(AND($A$5>=3,$C24>=3),G24&".",""),IF(AND($A$5>=4,$C24>=4),H24&".",""),IF($C24="S",I24&".",""))) -> 1.3.1. | P24: SINAPI | Q24: 97636 | R24: =IF($C24="S",REFERENCIA.Descricao,"(digite a descrição aqui)") -> DEMOLIÇÃO PARCIAL DE PAVIMENTO ASFÁLTICO, DE FORMA MECANIZADA, SEM REAPROVEITAMENTO. AF_12/2017 | S24: =REFERENCIA.Unidade -> M2 | T24: =OFFSET(CÁLCULO!H$15,ROW($T24)-ROW(T$15),0) -> 40 | U24: =AG24 -> 14.67 | V24: BDI 1 | W24: =IF($C24="S",ROUND(IF(TIPOORCAMENTO="Proposto",ORÇAMENTO.CustoUnitario*(1+$AH24),ORÇAMENTO.PrecoUnitarioLicitado),15-13*$AF$10),0) -> 18.54 | X24: =IF($C24="S",VTOTAL1,IF($C24=0,0,ROUND(SomaAgrup,15-13*$AF$11))) -> 741.6 | Y24: RA | Z24: =IF(AND($C24="S",$X24>0),IF(ISBLANK($Y24),"RA",LEFT($Y24,2)),"") -> RA | AA24: =IF($C24="S",IF($Z24="CP",$X24,IF($Z24="RA",(($X24)*QCI!$AA$3),0)),SomaAgrup) -> 60.64876051 | AB24: =IF($C24="S",IF($Z24="OU",ROUND($X24,2),0),SomaAgrup) -> 0 | AC24: =IF($N24="","",IF(ORÇAMENTO.Descricao="","DESCRIÇÃO",IF(AND($C24="S",ORÇAMENTO.Unidade=""),"UNIDADE",IF($X24<0,"VALOR NEGATIVO",IF(OR(AND(TIPOORCAMENTO="Proposto",$AG24<>"",$AG24>0,ORÇAMENTO.CustoUnitario>$AG24),AND(TIPOORCAMENTO="LICITADO",ORÇAMENTO.PrecoUnitarioLicitado>$AN24)),"ACIMA REF.",""))))) ->  | AD24: =IF(C24<=CRONO.NivelExibicao,MAX($AD$15:OFFSET(AD24,-1,0))+IF($C24<>1,1,MAX(1,COUNTIF(QCI!$A$13:$A$15,OFFSET($E24,-1,0)))),"") ->  | AE24: =IF(AND($C24="S",ORÇAMENTO.CodBarra<>""),IF(ORÇAMENTO.Fonte="",ORÇAMENTO.CodBarra,CONCATENATE(ORÇAMENTO.Fonte," ",ORÇAMENTO.CodBarra))) -> SINAPI 97636 | AF24: =IF(ISERROR(INDIRECT(ORÇAMENTO.BancoRef)),"(abra o arquivo 'Referência "&Excel_BuiltIn_Database&".xls)",IF(OR($C24<>"S",ORÇAMENTO.CodBarra=""),"(Sem Código)",IF(ISERROR(MATCH($AE24,INDIRECT(ORÇAMENTO.BancoRef),0)),"(Código não identificado nas referências)",MATCH($AE24,INDIRECT(ORÇAMENTO.BancoRef),0)))) -> 11569 | AG24: =ROUND(IF(DESONERACAO="sim",REFERENCIA.Desonerado,REFERENCIA.NaoDesonerado),2) -> 14.67 | AH24: =ROUND(IF(ISNUMBER(ORÇAMENTO.OpcaoBDI),ORÇAMENTO.OpcaoBDI,IF(LEFT(ORÇAMENTO.OpcaoBDI,3)="BDI",HLOOKUP(ORÇAMENTO.OpcaoBDI,$F$4:$H$5,2,FALSE),0)),15-11*$AF$9) -> 0.264 | AM24: 741.6 | AN24: =ROUND(ORÇAMENTO.CustoUnitario*(1+$AH24),2) -> 18.54
A25: =CHOOSE(1+LOG(1+2*(ORÇAMENTO.Nivel="Meta")+4*(ORÇAMENTO.Nivel="Nível 2")+8*(ORÇAMENTO.Nivel="Nível 3")+16*(ORÇAMENTO.Nivel="Nível 4")+32*(ORÇAMENTO.Nivel="Serviço"),2),0,1,2,3,4,"S") -> S | B25: =IF(OR(C25="s",C25=0),OFFSET(B25,-1,0),C25) -> 2 | C25: =IF(OFFSET(C25,-1,0)="L",1,IF(OFFSET(C25,-1,0)=1,2,IF(OR(A25="s",A25=0),"S",IF(AND(OFFSET(C25,-1,0)=2,A25=4),3,IF(AND(OR(OFFSET(C25,-1,0)="s",OFFSET(C25,-1,0)=0),A25<>"s",A25>OFFSET(B25,-1,0)),OFFSET(B25,-1,0),A25))))) -> S | D25: =IF(OR(C25="S",C25=0),0,IF(ISERROR(K25),J25,SMALL(J25:K25,1))) -> 0 | E25: =IF($C25=1,OFFSET(E25,-1,0)+MAX(1,COUNTIF(QCI!$A$13:$A$15,OFFSET(ORÇAMENTO!E25,-1,0))),OFFSET(E25,-1,0)) -> 1 | F25: =IF($C25=1,0,IF($C25=2,OFFSET(F25,-1,0)+1,OFFSET(F25,-1,0))) -> 3 | G25: =IF(AND($C25<=2,$C25<>0),0,IF($C25=3,OFFSET(G25,-1,0)+1,OFFSET(G25,-1,0))) -> 0 | H25: =IF(AND($C25<=3,$C25<>0),0,IF($C25=4,OFFSET(H25,-1,0)+1,OFFSET(H25,-1,0))) -> 0 | I25: =IF(AND($C25<=4,$C25<>0),0,IF(AND($C25="S",$X25>0),OFFSET(I25,-1,0)+1,OFFSET(I25,-1,0))) -> 2 | J25: 0 | K25: =IF(OR($C25="S",$C25=0),0,MATCH(OFFSET($D25,0,$C25)+IF($C25<>1,1,COUNTIF(QCI!$A$13:$A$15,ORÇAMENTO!E25)),OFFSET($D25,1,$C25,ROW($C$59)-ROW($C25)),0)) -> 0 | L25: =IF(OR($X25>0,$C25=1,$C25=2,$C25=3,$C25=4),"F","") -> F | M25: Serviço | N25: =CHOOSE(1+LOG(1+2*(C25=1)+4*(C25=2)+8*(C25=3)+16*(C25=4)+32*(C25="S"),2),"","Meta","Nível 2","Nível 3","Nível 4","Serviço") -> Serviço | O25: =IF(OR($C25=0,$L25=""),"-",CONCATENATE(E25&".",IF(AND($A$5>=2,$C25>=2),F25&".",""),IF(AND($A$5>=3,$C25>=3),G25&".",""),IF(AND($A$5>=4,$C25>=4),H25&".",""),IF($C25="S",I25&".",""))) -> 1.3.2. | P25: SINAPI | Q25: 90101 | R25: =IF($C25="S",REFERENCIA.Descricao,"(digite a descrição aqui)") -> ESCAVAÇÃO MECANIZADA DE VALA COM PROF. MAIOR QUE 1,5 M ATÉ 3,0 M (MÉDIA ENTRE MONTANTE E JUSANTE/UMA COMPOSIÇÃO POR TRECHO), COM RETROESCAVADEIRA (0,26 M3/88 HP), LARG. MENOR QUE 0,8 M, EM SOLO DE 1A CATEGORIA, EM LOCAIS COM ALTO NÍVEL DE INTERFERÊNCIA.AF_02/2021 | S25: =REFERENCIA.Unidade -> M3 | T25: =OFFSET(CÁLCULO!H$15,ROW($T25)-ROW(T$15),0) -> 595.13 | U25: =AG25 -> 10.08 | V25: BDI 1 | W25: =IF($C25="S",ROUND(IF(TIPOORCAMENTO="Proposto",ORÇAMENTO.CustoUnitario*(1+$AH25),ORÇAMENTO.PrecoUnitarioLicitado),15-13*$AF$10),0) -> 12.74 | X25: =IF($C25="S",VTOTAL1,IF($C25=0,0,ROUND(SomaAgrup,15-13*$AF$11))) -> 7581.96 | Y25: RA | Z25: =IF(AND($C25="S",$X25>0),IF(ISBLANK($Y25),"RA",LEFT($Y25,2)),"") -> RA | AA25: =IF($C25="S",IF($Z25="CP",$X25,IF($Z25="RA",(($X25)*QCI!$AA$3),0)),SomaAgrup) -> 620.0599734 | AB25: =IF($C25="S",IF($Z25="OU",ROUND($X25,2),0),SomaAgrup) -> 0 | AC25: =IF($N25="","",IF(ORÇAMENTO.Descricao="","DESCRIÇÃO",IF(AND($C25="S",ORÇAMENTO.Unidade=""),"UNIDADE",IF($X25<0,"VALOR NEGATIVO",IF(OR(AND(TIPOORCAMENTO="Proposto",$AG25<>"",$AG25>0,ORÇAMENTO.CustoUnitario>$AG25),AND(TIPOORCAMENTO="LICITADO",ORÇAMENTO.PrecoUnitarioLicitado>$AN25)),"ACIMA REF.",""))))) ->  | AD25: =IF(C25<=CRONO.NivelExibicao,MAX($AD$15:OFFSET(AD25,-1,0))+IF($C25<>1,1,MAX(1,COUNTIF(QCI!$A$13:$A$15,OFFSET($E25,-1,0)))),"") ->  | AE25: =IF(AND($C25="S",ORÇAMENTO.CodBarra<>""),IF(ORÇAMENTO.Fonte="",ORÇAMENTO.CodBarra,CONCATENATE(ORÇAMENTO.Fonte," ",ORÇAMENTO.CodBarra))) -> SINAPI 90101 | AF25: =IF(ISERROR(INDIRECT(ORÇAMENTO.BancoRef)),"(abra o arquivo 'Referência "&Excel_BuiltIn_Database&".xls)",IF(OR($C25<>"S",ORÇAMENTO.CodBarra=""),"(Sem Código)",IF(ISERROR(MATCH($AE25,INDIRECT(ORÇAMENTO.BancoRef),0)),"(Código não identificado nas referências)",MATCH($AE25,INDIRECT(ORÇAMENTO.BancoRef),0)))) -> 10321 | AG25: =ROUND(IF(DESONERACAO="sim",REFERENCIA.Desonerado,REFERENCIA.NaoDesonerado),2) -> 10.08 | AH25: =ROUND(IF(ISNUMBER(ORÇAMENTO.OpcaoBDI),ORÇAMENTO.OpcaoBDI,IF(LEFT(ORÇAMENTO.OpcaoBDI,3)="BDI",HLOOKUP(ORÇAMENTO.OpcaoBDI,$F$4:$H$5,2,FALSE),0)),15-11*$AF$9) -> 0.264 | AM25: 7581.96 | AN25: =ROUND(ORÇAMENTO.CustoUnitario*(1+$AH25),2) -> 12.74
A26: S | B26: =IF(OR(C26="s",C26=0),OFFSET(B26,-1,0),C26) -> 2 | C26: =IF(OFFSET(C26,-1,0)="L",1,IF(OFFSET(C26,-1,0)=1,2,IF(OR(A26="s",A26=0),"S",IF(AND(OFFSET(C26,-1,0)=2,A26=4),3,IF(AND(OR(OFFSET(C26,-1,0)="s",OFFSET(C26,-1,0)=0),A26<>"s",A26>OFFSET(B26,-1,0)),OFFSET(B26,-1,0),A26))))) -> S | D26: =IF(OR(C26="S",C26=0),0,IF(ISERROR(K26),J26,SMALL(J26:K26,1))) -> 0 | E26: =IF($C26=1,OFFSET(E26,-1,0)+MAX(1,COUNTIF(QCI!$A$13:$A$15,OFFSET(ORÇAMENTO!E26,-1,0))),OFFSET(E26,-1,0)) -> 1 | F26: =IF($C26=1,0,IF($C26=2,OFFSET(F26,-1,0)+1,OFFSET(F26,-1,0))) -> 3 | G26: =IF(AND($C26<=2,$C26<>0),0,IF($C26=3,OFFSET(G26,-1,0)+1,OFFSET(G26,-1,0))) -> 0 | H26: =IF(AND($C26<=3,$C26<>0),0,IF($C26=4,OFFSET(H26,-1,0)+1,OFFSET(H26,-1,0))) -> 0 | I26: =IF(AND($C26<=4,$C26<>0),0,IF(AND($C26="S",$X26>0),OFFSET(I26,-1,0)+1,OFFSET(I26,-1,0))) -> 3 | J26: 0 | K26: =IF(OR($C26="S",$C26=0),0,MATCH(OFFSET($D26,0,$C26)+IF($C26<>1,1,COUNTIF(QCI!$A$13:$A$15,ORÇAMENTO!E26)),OFFSET($D26,1,$C26,ROW($C$59)-ROW($C26)),0)) -> 0 | L26: =IF(OR($X26>0,$C26=1,$C26=2,$C26=3,$C26=4),"F","") -> F | M26: Serviço | N26: =CHOOSE(1+LOG(1+2*(C26=1)+4*(C26=2)+8*(C26=3)+16*(C26=4)+32*(C26="S"),2),"","Meta","Nível 2","Nível 3","Nível 4","Serviço") -> Serviço | O26: =IF(OR($C26=0,$L26=""),"-",CONCATENATE(E26&".",IF(AND($A$5>=2,$C26>=2),F26&".",""),IF(AND($A$5>=3,$C26>=3),G26&".",""),IF(AND($A$5>=4,$C26>=4),H26&".",""),IF($C26="S",I26&".",""))) -> 1.3.3. | P26: SINAPI-I | Q26: 7745 | R26: =IF($C26="S",REFERENCIA.Descricao,"(digite a descrição aqui)") -> TUBO DE CONCRETO ARMADO PARA AGUAS PLUVIAIS, CLASSE PA-1, COM ENCAIXE PONTA E BOLSA, DIAMETRO NOMINAL DE 400 MM | S26: =REFERENCIA.Unidade -> M | T26: =OFFSET(CÁLCULO!H$15,ROW($T26)-ROW(T$15),0) -> 303 | U26: 72.35 | V26: BDI 1 | W26: =IF($C26="S",ROUND(IF(TIPOORCAMENTO="Proposto",ORÇAMENTO.CustoUnitario*(1+$AH26),ORÇAMENTO.PrecoUnitarioLicitado),15-13*$AF$10),0) -> 91.45 | X26: 27709.35 | Y26: RA | Z26: =IF(AND($C26="S",$X26>0),IF(ISBLANK($Y26),"RA",LEFT($Y26,2)),"") -> RA | AA26: =IF($C26="S",IF($Z26="CP",$X26,IF($Z26="RA",(($X26)*QCI!$AA$3),0)),SomaAgrup) -> 2266.097266 | AB26: 0 | AC26: =IF($N26="","",IF(ORÇAMENTO.Descricao="","DESCRIÇÃO",IF(AND($C26="S",ORÇAMENTO.Unidade=""),"UNIDADE",IF($X26<0,"VALOR NEGATIVO",IF(OR(AND(TIPOORCAMENTO="Proposto",$AG26<>"",$AG26>0,ORÇAMENTO.CustoUnitario>$AG26),AND(TIPOORCAMENTO="LICITADO",ORÇAMENTO.PrecoUnitarioLicitado>$AN26)),"ACIMA REF.",""))))) ->  | AD26: =IF(C26<=CRONO.NivelExibicao,MAX($AD$15:OFFSET(AD26,-1,0))+IF($C26<>1,1,MAX(1,COUNTIF(QCI!$A$13:$A$15,OFFSET($E26,-1,0)))),"") ->  | AE26: =IF(AND($C26="S",ORÇAMENTO.CodBarra<>""),IF(ORÇAMENTO.Fonte="",ORÇAMENTO.CodBarra,CONCATENATE(ORÇAMENTO.Fonte," ",ORÇAMENTO.CodBarra))) -> SINAPI-I 7745 | AF26: =IF(ISERROR(INDIRECT(ORÇAMENTO.BancoRef)),"(abra o arquivo 'Referência "&Excel_BuiltIn_Database&".xls)",IF(OR($C26<>"S",ORÇAMENTO.CodBarra=""),"(Sem Código)",IF(ISERROR(MATCH($AE26,INDIRECT(ORÇAMENTO.BancoRef),0)),"(Código não identificado nas referências)",MATCH($AE26,INDIRECT(ORÇAMENTO.BancoRef),0)))) -> 4831 | AG26: =ROUND(IF(DESONERACAO="sim",REFERENCIA.Desonerado,REFERENCIA.NaoDesonerado),2) -> 72.35 | AH26: 0.264 | AM26: 27709.35 | AN26: 91.45
A27: S | B27: 2 | C27: S | D27: 0 | E27: =IF($C27=1,OFFSET(E27,-1,0)+MAX(1,COUNTIF(QCI!$A$13:$A$15,OFFSET(ORÇAMENTO!E27,-1,0))),OFFSET(E27,-1,0)) -> 1 | F27: 3 | G27: 0 | H27: 0 | I27: 4 | J27: 0 | K27: =IF(OR($C27="S",$C27=0),0,MATCH(OFFSET($D27,0,$C27)+IF($C27<>1,1,COUNTIF(QCI!$A$13:$A$15,ORÇAMENTO!E27)),OFFSET($D27,1,$C27,ROW($C$59)-ROW($C27)),0)) -> 0 | L27: F | M27: Serviço | N27: Serviço | O27: 1.3.4. | P27: SINAPI | Q27: 92821 | R27: =IF($C27="S",REFERENCIA.Descricao,"(digite a descrição aqui)") -> ASSENTAMENTO DE TUBO DE CONCRETO PARA REDES COLETORAS DE ÁGUAS PLUVIAIS, DIÂMETRO DE 400 MM, JUNTA RÍGIDA, INSTALADO EM LOCAL COM ALTO NÍVEL DE INTERFERÊNCIAS (NÃO INCLUI FORNECIMENTO). AF_12/2015 | S27: =REFERENCIA.Unidade -> M | T27: =OFFSET(CÁLCULO!H$15,ROW($T27)-ROW(T$15),0) -> 303 | U27: 48.78 | V27: BDI 1 | W27: =IF($C27="S",ROUND(IF(TIPOORCAMENTO="Proposto",ORÇAMENTO.CustoUnitario*(1+$AH27),ORÇAMENTO.PrecoUnitarioLicitado),15-13*$AF$10),0) -> 61.66 | X27: 18682.98 | Y27: RA | Z27: RA | AA27: =IF($C27="S",IF($Z27="CP",$X27,IF($Z27="RA",(($X27)*QCI!$AA$3),0)),SomaAgrup) -> 1527.912055 | AB27: 0 | AC27: =IF($N27="","",IF(ORÇAMENTO.Descricao="","DESCRIÇÃO",IF(AND($C27="S",ORÇAMENTO.Unidade=""),"UNIDADE",IF($X27<0,"VALOR NEGATIVO",IF(OR(AND(TIPOORCAMENTO="Proposto",$AG27<>"",$AG27>0,ORÇAMENTO.CustoUnitario>$AG27),AND(TIPOORCAMENTO="LICITADO",ORÇAMENTO.PrecoUnitarioLicitado>$AN27)),"ACIMA REF.",""))))) ->  | AD27: =IF(C27<=CRONO.NivelExibicao,MAX($AD$15:OFFSET(AD27,-1,0))+IF($C27<>1,1,MAX(1,COUNTIF(QCI!$A$13:$A$15,OFFSET($E27,-1,0)))),"") ->  | AE27: =IF(AND($C27="S",ORÇAMENTO.CodBarra<>""),IF(ORÇAMENTO.Fonte="",ORÇAMENTO.CodBarra,CONCATENATE(ORÇAMENTO.Fonte," ",ORÇAMENTO.CodBarra))) -> SINAPI 92821 | AF27: =IF(ISERROR(INDIRECT(ORÇAMENTO.BancoRef)),"(abra o arquivo 'Referência "&Excel_BuiltIn_Database&".xls)",IF(OR($C27<>"S",ORÇAMENTO.CodBarra=""),"(Sem Código)",IF(ISERROR(MATCH($AE27,INDIRECT(ORÇAMENTO.BancoRef),0)),"(Código não identificado nas referências)",MATCH($AE27,INDIRECT(ORÇAMENTO.BancoRef),0)))) -> 5391 | AG27: =ROUND(IF(DESONERACAO="sim",REFERENCIA.Desonerado,REFERENCIA.NaoDesonerado),2) -> 48.78 | AH27: 0.264 | AM27: 18682.98 | AN27: 61.66
A28: S | B28: 2 | C28: S | D28: 0 | E28: =IF($C28=1,OFFSET(E28,-1,0)+MAX(1,COUNTIF(QCI!$A$13:$A$15,OFFSET(ORÇAMENTO!E28,-1,0))),OFFSET(E28,-1,0)) -> 1 | F28: 3 | G28: 0 | H28: 0 | I28: 5 | J28: 0 | K28: =IF(OR($C28="S",$C28=0),0,MATCH(OFFSET($D28,0,$C28)+IF($C28<>1,1,COUNTIF(QCI!$A$13:$A$15,ORÇAMENTO!E28)),OFFSET($D28,1,$C28,ROW($C$59)-ROW($C28)),0)) -> 0 | L28: F | M28: Serviço | N28: Serviço | O28: 1.3.5. | P28: SINAPI-I | Q28: 7762 | R28: =IF($C28="S",REFERENCIA.Descricao,"(digite a descrição aqui)") -> TUBO DE CONCRETO ARMADO PARA AGUAS PLUVIAIS, CLASSE PA-2, COM ENCAIXE PONTA E BOLSA, DIAMETRO NOMINAL DE 600 MM | S28: =REFERENCIA.Unidade -> M | T28: =OFFSET(CÁLCULO!H$15,ROW($T28)-ROW(T$15),0) -> 137 | U28: 121.47 | V28: BDI 1 | W28: =IF($C28="S",ROUND(IF(TIPOORCAMENTO="Proposto",ORÇAMENTO.CustoUnitario*(1+$AH28),ORÇAMENTO.PrecoUnitarioLicitado),15-13*$AF$10),0) -> 153.54 | X28: 21034.98 | Y28: RA | Z28: RA | AA28: =IF($C28="S",IF($Z28="CP",$X28,IF($Z28="RA",(($X28)*QCI!$AA$3),0)),SomaAgrup) -> 1720.260874 | AB28: 0 | AC28: =IF($N28="","",IF(ORÇAMENTO.Descricao="","DESCRIÇÃO",IF(AND($C28="S",ORÇAMENTO.Unidade=""),"UNIDADE",IF($X28<0,"VALOR NEGATIVO",IF(OR(AND(TIPOORCAMENTO="Proposto",$AG28<>"",$AG28>0,ORÇAMENTO.CustoUnitario>$AG28),AND(TIPOORCAMENTO="LICITADO",ORÇAMENTO.PrecoUnitarioLicitado>$AN28)),"ACIMA REF.",""))))) ->  | AD28: =IF(C28<=CRONO.NivelExibicao,MAX($AD$15:OFFSET(AD28,-1,0))+IF($C28<>1,1,MAX(1,COUNTIF(QCI!$A$13:$A$15,OFFSET($E28,-1,0)))),"") ->  | AE28: =IF(AND($C28="S",ORÇAMENTO.CodBarra<>""),IF(ORÇAMENTO.Fonte="",ORÇAMENTO.CodBarra,CONCATENATE(ORÇAMENTO.Fonte," ",ORÇAMENTO.CodBarra))) -> SINAPI-I 7762 | AF28: =IF(ISERROR(INDIRECT(ORÇAMENTO.BancoRef)),"(abra o arquivo 'Referência "&Excel_BuiltIn_Database&".xls)",IF(OR($C28<>"S",ORÇAMENTO.CodBarra=""),"(Sem Código)",IF(ISERROR(MATCH($AE28,INDIRECT(ORÇAMENTO.BancoRef),0)),"(Código não identificado nas referências)",MATCH($AE28,INDIRECT(ORÇAMENTO.BancoRef),0)))) -> 4844 | AG28: =ROUND(IF(DESONERACAO="sim",REFERENCIA.Desonerado,REFERENCIA.NaoDesonerado),2) -> 121.47 | AH28: 0.264 | AM28: 21034.98 | AN28: 153.54
A29: S | B29: 2 | C29: S | D29: 0 | E29: =IF($C29=1,OFFSET(E29,-1,0)+MAX(1,COUNTIF(QCI!$A$13:$A$15,OFFSET(ORÇAMENTO!E29,-1,0))),OFFSET(E29,-1,0)) -> 1 | F29: 3 | G29: 0 | H29: 0 | I29: 6 | J29: 0 | K29: =IF(OR($C29="S",$C29=0),0,MATCH(OFFSET($D29,0,$C29)+IF($C29<>1,1,COUNTIF(QCI!$A$13:$A$15,ORÇAMENTO!E29)),OFFSET($D29,1,$C29,ROW($C$59)-ROW($C29)),0)) -> 0 | L29: F | M29: Serviço | N29: Serviço | O29: 1.3.6. | P29: SINAPI | Q29: 92824 | R29: =IF($C29="S",REFERENCIA.Descricao,"(digite a descrição aqui)") -> ASSENTAMENTO DE TUBO DE CONCRETO PARA REDES COLETORAS DE ÁGUAS PLUVIAIS, DIÂMETRO DE 600 MM, JUNTA RÍGIDA, INSTALADO EM LOCAL COM ALTO NÍVEL DE INTERFERÊNCIAS (NÃO INCLUI FORNECIMENTO). AF_12/2015 | S29: =REFERENCIA.Unidade -> M | T29: =OFFSET(CÁLCULO!H$15,ROW($T29)-ROW(T$15),0) -> 137 | U29: =AG29 -> 70.85 | V29: BDI 1 | W29: =IF($C29="S",ROUND(IF(TIPOORCAMENTO="Proposto",ORÇAMENTO.CustoUnitario*(1+$AH29),ORÇAMENTO.PrecoUnitarioLicitado),15-13*$AF$10),0) -> 89.55 | X29: 12268.35 | Y29: RA | Z29: RA | AA29: =IF($C29="S",IF($Z29="CP",$X29,IF($Z29="RA",(($X29)*QCI!$AA$3),0)),SomaAgrup) -> 1003.31745 | AB29: 0 | AC29: =IF($N29="","",IF(ORÇAMENTO.Descricao="","DESCRIÇÃO",IF(AND($C29="S",ORÇAMENTO.Unidade=""),"UNIDADE",IF($X29<0,"VALOR NEGATIVO",IF(OR(AND(TIPOORCAMENTO="Proposto",$AG29<>"",$AG29>0,ORÇAMENTO.CustoUnitario>$AG29),AND(TIPOORCAMENTO="LICITADO",ORÇAMENTO.PrecoUnitarioLicitado>$AN29)),"ACIMA REF.",""))))) ->  | AD29: =IF(C29<=CRONO.NivelExibicao,MAX($AD$15:OFFSET(AD29,-1,0))+IF($C29<>1,1,MAX(1,COUNTIF(QCI!$A$13:$A$15,OFFSET($E29,-1,0)))),"") ->  | AE29: =IF(AND($C29="S",ORÇAMENTO.CodBarra<>""),IF(ORÇAMENTO.Fonte="",ORÇAMENTO.CodBarra,CONCATENATE(ORÇAMENTO.Fonte," ",ORÇAMENTO.CodBarra))) -> SINAPI 92824 | AF29: =IF(ISERROR(INDIRECT(ORÇAMENTO.BancoRef)),"(abra o arquivo 'Referência "&Excel_BuiltIn_Database&".xls)",IF(OR($C29<>"S",ORÇAMENTO.CodBarra=""),"(Sem Código)",IF(ISERROR(MATCH($AE29,INDIRECT(ORÇAMENTO.BancoRef),0)),"(Código não identificado nas referências)",MATCH($AE29,INDIRECT(ORÇAMENTO.BancoRef),0)))) -> 5393 | AG29: =ROUND(IF(DESONERACAO="sim",REFERENCIA.Desonerado,REFERENCIA.NaoDesonerado),2) -> 70.85 | AH29: 0.264 | AM29: 12268.35 | AN29: 89.55
A30: S | B30: 2 | C30: S | D30: 0 | E30: =IF($C30=1,OFFSET(E30,-1,0)+MAX(1,COUNTIF(QCI!$A$13:$A$15,OFFSET(ORÇAMENTO!E30,-1,0))),OFFSET(E30,-1,0)) -> 1 | F30: 3 | G30: 0 | H30: 0 | I30: 7 | J30: 0 | K30: =IF(OR($C30="S",$C30=0),0,MATCH(OFFSET($D30,0,$C30)+IF($C30<>1,1,COUNTIF(QCI!$A$13:$A$15,ORÇAMENTO!E30)),OFFSET($D30,1,$C30,ROW($C$59)-ROW($C30)),0)) -> 0 | L30: F | M30: Serviço | N30: Serviço | O30: 1.3.7. | P30: Composição | Q30: COMP03 | R30: =IF($C30="S",REFERENCIA.Descricao,"(digite a descrição aqui)") -> CAIXA COLETORA EM ALVENARIA DE TIJOLO MACIÇO 0,93X0,93X1,25, C/ GRELHA EM FERRO FUNDIDO E FUNDO DE CONCRETO 15MPA CONFECÇÃO, PARA TUBULAÇÃO DE DIÂMETRO DE 40CM, INCLUSO MATERIAL E MÃO DE OBRA | S30: =REFERENCIA.Unidade -> UND | T30: =OFFSET(CÁLCULO!H$15,ROW($T30)-ROW(T$15),0) -> 19 | U30: 850 | V30: BDI 1 | W30: =IF($C30="S",ROUND(IF(TIPOORCAMENTO="Proposto",ORÇAMENTO.CustoUnitario*(1+$AH30),ORÇAMENTO.PrecoUnitarioLicitado),15-13*$AF$10),0) -> 1074.4 | X30: 20413.6 | Y30: RA | Z30: RA | AA30: =IF($C30="S",IF($Z30="CP",$X30,IF($Z30="RA",(($X30)*QCI!$AA$3),0)),SomaAgrup) -> 1669.443821 | AB30: 0 | AC30: =IF($N30="","",IF(ORÇAMENTO.Descricao="","DESCRIÇÃO",IF(AND($C30="S",ORÇAMENTO.Unidade=""),"UNIDADE",IF($X30<0,"VALOR NEGATIVO",IF(OR(AND(TIPOORCAMENTO="Proposto",$AG30<>"",$AG30>0,ORÇAMENTO.CustoUnitario>$AG30),AND(TIPOORCAMENTO="LICITADO",ORÇAMENTO.PrecoUnitarioLicitado>$AN30)),"ACIMA REF.",""))))) ->  | AD30: =IF(C30<=CRONO.NivelExibicao,MAX($AD$15:OFFSET(AD30,-1,0))+IF($C30<>1,1,MAX(1,COUNTIF(QCI!$A$13:$A$15,OFFSET($E30,-1,0)))),"") ->  | AE30: =IF(AND($C30="S",ORÇAMENTO.CodBarra<>""),IF(ORÇAMENTO.Fonte="",ORÇAMENTO.CodBarra,CONCATENATE(ORÇAMENTO.Fonte," ",ORÇAMENTO.CodBarra))) -> Composição COMP03 | AF30: =IF(ISERROR(INDIRECT(ORÇAMENTO.BancoRef)),"(abra o arquivo 'Referência "&Excel_BuiltIn_Database&".xls)",IF(OR($C30<>"S",ORÇAMENTO.CodBarra=""),"(Sem Código)",IF(ISERROR(MATCH($AE30,INDIRECT(ORÇAMENTO.BancoRef),0)),"(Código não identificado nas referências)",MATCH($AE30,INDIRECT(ORÇAMENTO.BancoRef),0)))) -> 5 | AG30: =ROUND(IF(DESONERACAO="sim",REFERENCIA.Desonerado,REFERENCIA.NaoDesonerado),2) -> 1314.15 | AH30: 0.264 | AM30: 20413.6 | AN30: 1074.4
A31: S | B31: 2 | C31: S | D31: 0 | E31: =IF($C31=1,OFFSET(E31,-1,0)+MAX(1,COUNTIF(QCI!$A$13:$A$15,OFFSET(ORÇAMENTO!E31,-1,0))),OFFSET(E31,-1,0)) -> 1 | F31: 3 | G31: 0 | H31: 0 | I31: 8 | J31: 0 | K31: =IF(OR($C31="S",$C31=0),0,MATCH(OFFSET($D31,0,$C31)+IF($C31<>1,1,COUNTIF(QCI!$A$13:$A$15,ORÇAMENTO!E31)),OFFSET($D31,1,$C31,ROW($C$59)-ROW($C31)),0)) -> 0 | L31: F | M31: Serviço | N31: Serviço | O31: 1.3.8. | P31: Composição | Q31: COMP04 | R31: =IF($C31="S",REFERENCIA.Descricao,"(digite a descrição aqui)") -> CAIXA COLETORA EM ALVENARIA DE TIJOLO MACIÇO 1,13X1,13X1,45, C/ GRELHA EM FERRO FUNDIDO E FUNDO DE CONCRETO 15MPA CONFECÇÃO, PARA TUBULAÇÃO DE DIÂMETRO DE 60CM, INCLUSO MATERIAL E MÃO DE OBRA | S31: =REFERENCIA.Unidade -> UND | T31: =OFFSET(CÁLCULO!H$15,ROW($T31)-ROW(T$15),0) -> 3 | U31: 1100 | V31: BDI 1 | W31: =IF($C31="S",ROUND(IF(TIPOORCAMENTO="Proposto",ORÇAMENTO.CustoUnitario*(1+$AH31),ORÇAMENTO.PrecoUnitarioLicitado),15-13*$AF$10),0) -> 1390.4 | X31: 4171.2 | Y31: RA | Z31: RA | AA31: =IF($C31="S",IF($Z31="CP",$X31,IF($Z31="RA",(($X31)*QCI!$AA$3),0)),SomaAgrup) -> 341.1247436 | AB31: 0 | AC31: =IF($N31="","",IF(ORÇAMENTO.Descricao="","DESCRIÇÃO",IF(AND($C31="S",ORÇAMENTO.Unidade=""),"UNIDADE",IF($X31<0,"VALOR NEGATIVO",IF(OR(AND(TIPOORCAMENTO="Proposto",$AG31<>"",$AG31>0,ORÇAMENTO.CustoUnitario>$AG31),AND(TIPOORCAMENTO="LICITADO",ORÇAMENTO.PrecoUnitarioLicitado>$AN31)),"ACIMA REF.",""))))) ->  | AD31: =IF(C31<=CRONO.NivelExibicao,MAX($AD$15:OFFSET(AD31,-1,0))+IF($C31<>1,1,MAX(1,COUNTIF(QCI!$A$13:$A$15,OFFSET($E31,-1,0)))),"") ->  | AE31: =IF(AND($C31="S",ORÇAMENTO.CodBarra<>""),IF(ORÇAMENTO.Fonte="",ORÇAMENTO.CodBarra,CONCATENATE(ORÇAMENTO.Fonte," ",ORÇAMENTO.CodBarra))) -> Composição COMP04 | AF31: =IF(ISERROR(INDIRECT(ORÇAMENTO.BancoRef)),"(abra o arquivo 'Referência "&Excel_BuiltIn_Database&".xls)",IF(OR($C31<>"S",ORÇAMENTO.CodBarra=""),"(Sem Código)",IF(ISERROR(MATCH($AE31,INDIRECT(ORÇAMENTO.BancoRef),0)),"(Código não identificado nas referências)",MATCH($AE31,INDIRECT(ORÇAMENTO.BancoRef),0)))) -> 9 | AG31: =ROUND(IF(DESONERACAO="sim",REFERENCIA.Desonerado,REFERENCIA.NaoDesonerado),2) -> 1792.41 | AH31: 0.264 | AM31: 4171.2 | AN31: 1390.4
A32: =CHOOSE(1+LOG(1+2*(ORÇAMENTO.Nivel="Meta")+4*(ORÇAMENTO.Nivel="Nível 2")+8*(ORÇAMENTO.Nivel="Nível 3")+16*(ORÇAMENTO.Nivel="Nível 4")+32*(ORÇAMENTO.Nivel="Serviço"),2),0,1,2,3,4,"S") -> S | B32: =IF(OR(C32="s",C32=0),OFFSET(B32,-1,0),C32) -> 2 | C32: =IF(OFFSET(C32,-1,0)="L",1,IF(OFFSET(C32,-1,0)=1,2,IF(OR(A32="s",A32=0),"S",IF(AND(OFFSET(C32,-1,0)=2,A32=4),3,IF(AND(OR(OFFSET(C32,-1,0)="s",OFFSET(C32,-1,0)=0),A32<>"s",A32>OFFSET(B32,-1,0)),OFFSET(B32,-1,0),A32))))) -> S | D32: =IF(OR(C32="S",C32=0),0,IF(ISERROR(K32),J32,SMALL(J32:K32,1))) -> 0 | E32: =IF($C32=1,OFFSET(E32,-1,0)+MAX(1,COUNTIF(QCI!$A$13:$A$15,OFFSET(ORÇAMENTO!E32,-1,0))),OFFSET(E32,-1,0)) -> 1 | F32: =IF($C32=1,0,IF($C32=2,OFFSET(F32,-1,0)+1,OFFSET(F32,-1,0))) -> 3 | G32: =IF(AND($C32<=2,$C32<>0),0,IF($C32=3,OFFSET(G32,-1,0)+1,OFFSET(G32,-1,0))) -> 0 | H32: =IF(AND($C32<=3,$C32<>0),0,IF($C32=4,OFFSET(H32,-1,0)+1,OFFSET(H32,-1,0))) -> 0 | I32: =IF(AND($C32<=4,$C32<>0),0,IF(AND($C32="S",$X32>0),OFFSET(I32,-1,0)+1,OFFSET(I32,-1,0))) -> 9 | J32: 0 | K32: =IF(OR($C32="S",$C32=0),0,MATCH(OFFSET($D32,0,$C32)+IF($C32<>1,1,COUNTIF(QCI!$A$13:$A$15,ORÇAMENTO!E32)),OFFSET($D32,1,$C32,ROW($C$59)-ROW($C32)),0)) -> 0 | L32: =IF(OR($X32>0,$C32=1,$C32=2,$C32=3,$C32=4),"F","") -> F | M32: Serviço | N32: =CHOOSE(1+LOG(1+2*(C32=1)+4*(C32=2)+8*(C32=3)+16*(C32=4)+32*(C32="S"),2),"","Meta","Nível 2","Nível 3","Nível 4","Serviço") -> Serviço | O32: =IF(OR($C32=0,$L32=""),"-",CONCATENATE(E32&".",IF(AND($A$5>=2,$C32>=2),F32&".",""),IF(AND($A$5>=3,$C32>=3),G32&".",""),IF(AND($A$5>=4,$C32>=4),H32&".",""),IF($C32="S",I32&".",""))) -> 1.3.9. | P32: Composição | Q32: COMP05 | R32: =IF($C32="S",REFERENCIA.Descricao,"(digite a descrição aqui)") -> CAIXA DE PASSAGEM EM ALVENARIA DE 60 x 60 x 40CM, INCLUSO TAMPA DE CONCRETO, FORNECIMENTO DE MATERIAL E MÃO DE OBRA | S32: =REFERENCIA.Unidade -> UND | T32: =OFFSET(CÁLCULO!H$15,ROW($T32)-ROW(T$15),0) -> 1 | U32: 886.88 | V32: BDI 1 | W32: =IF($C32="S",ROUND(IF(TIPOORCAMENTO="Proposto",ORÇAMENTO.CustoUnitario*(1+$AH32),ORÇAMENTO.PrecoUnitarioLicitado),15-13*$AF$10),0) -> 1121.02 | X32: =IF($C32="S",VTOTAL1,IF($C32=0,0,ROUND(SomaAgrup,15-13*$AF$11))) -> 1121.02 | Y32: RA | Z32: =IF(AND($C32="S",$X32>0),IF(ISBLANK($Y32),"RA",LEFT($Y32,2)),"") -> RA | AA32: =IF($C32="S",IF($Z32="CP",$X32,IF($Z32="RA",(($X32)*QCI!$AA$3),0)),SomaAgrup) -> 91.67809265 | AB32: =IF($C32="S",IF($Z32="OU",ROUND($X32,2),0),SomaAgrup) -> 0 | AC32: =IF($N32="","",IF(ORÇAMENTO.Descricao="","DESCRIÇÃO",IF(AND($C32="S",ORÇAMENTO.Unidade=""),"UNIDADE",IF($X32<0,"VALOR NEGATIVO",IF(OR(AND(TIPOORCAMENTO="Proposto",$AG32<>"",$AG32>0,ORÇAMENTO.CustoUnitario>$AG32),AND(TIPOORCAMENTO="LICITADO",ORÇAMENTO.PrecoUnitarioLicitado>$AN32)),"ACIMA REF.",""))))) ->  | AD32: =IF(C32<=CRONO.NivelExibicao,MAX($AD$15:OFFSET(AD32,-1,0))+IF($C32<>1,1,MAX(1,COUNTIF(QCI!$A$13:$A$15,OFFSET($E32,-1,0)))),"") ->  | AE32: =IF(AND($C32="S",ORÇAMENTO.CodBarra<>""),IF(ORÇAMENTO.Fonte="",ORÇAMENTO.CodBarra,CONCATENATE(ORÇAMENTO.Fonte," ",ORÇAMENTO.CodBarra))) -> Composição COMP05 | AF32: =IF(ISERROR(INDIRECT(ORÇAMENTO.BancoRef)),"(abra o arquivo 'Referência "&Excel_BuiltIn_Database&".xls)",IF(OR($C32<>"S",ORÇAMENTO.CodBarra=""),"(Sem Código)",IF(ISERROR(MATCH($AE32,INDIRECT(ORÇAMENTO.BancoRef),0)),"(Código não identificado nas referências)",MATCH($AE32,INDIRECT(ORÇAMENTO.BancoRef),0)))) -> 11 | AG32: =ROUND(IF(DESONERACAO="sim",REFERENCIA.Desonerado,REFERENCIA.NaoDesonerado),2) -> 886.88 | AH32: =ROUND(IF(ISNUMBER(ORÇAMENTO.OpcaoBDI),ORÇAMENTO.OpcaoBDI,IF(LEFT(ORÇAMENTO.OpcaoBDI,3)="BDI",HLOOKUP(ORÇAMENTO.OpcaoBDI,$F$4:$H$5,2,FALSE),0)),15-11*$AF$9) -> 0.264 | AM32: 1121.02 | AN32: =ROUND(ORÇAMENTO.CustoUnitario*(1+$AH32),2) -> 1121.02
A33: S | B33: 2 | C33: S | D33: 0 | E33: =IF($C33=1,OFFSET(E33,-1,0)+MAX(1,COUNTIF(QCI!$A$13:$A$15,OFFSET(ORÇAMENTO!E33,-1,0))),OFFSET(E33,-1,0)) -> 1 | F33: 3 | G33: 0 | H33: 0 | I33: 10 | J33: 0 | K33: =IF(OR($C33="S",$C33=0),0,MATCH(OFFSET($D33,0,$C33)+IF($C33<>1,1,COUNTIF(QCI!$A$13:$A$15,ORÇAMENTO!E33)),OFFSET($D33,1,$C33,ROW($C$59)-ROW($C33)),0)) -> 0 | L33: F | M33: Serviço | N33: Serviço | O33: 1.3.10. | P33: SINAPI | Q33: 93382 | R33: =IF($C33="S",REFERENCIA.Descricao,"(digite a descrição aqui)") -> REATERRO MANUAL DE VALAS COM COMPACTAÇÃO MECANIZADA. AF_04/2016 | S33: =REFERENCIA.Unidade -> M3 | T33: =OFFSET(CÁLCULO!H$15,ROW($T33)-ROW(T$15),0) -> 518.49 | U33: 21.28 | V33: BDI 1 | W33: =IF($C33="S",ROUND(IF(TIPOORCAMENTO="Proposto",ORÇAMENTO.CustoUnitario*(1+$AH33),ORÇAMENTO.PrecoUnitarioLicitado),15-13*$AF$10),0) -> 26.9 | X33: 13947.38 | Y33: RA | Z33: RA | AA33: =IF($C33="S",IF($Z33="CP",$X33,IF($Z33="RA",(($X33)*QCI!$AA$3),0)),SomaAgrup) -> 1140.630137 | AB33: 0 | AC33: =IF($N33="","",IF(ORÇAMENTO.Descricao="","DESCRIÇÃO",IF(AND($C33="S",ORÇAMENTO.Unidade=""),"UNIDADE",IF($X33<0,"VALOR NEGATIVO",IF(OR(AND(TIPOORCAMENTO="Proposto",$AG33<>"",$AG33>0,ORÇAMENTO.CustoUnitario>$AG33),AND(TIPOORCAMENTO="LICITADO",ORÇAMENTO.PrecoUnitarioLicitado>$AN33)),"ACIMA REF.",""))))) ->  | AD33: =IF(C33<=CRONO.NivelExibicao,MAX($AD$15:OFFSET(AD33,-1,0))+IF($C33<>1,1,MAX(1,COUNTIF(QCI!$A$13:$A$15,OFFSET($E33,-1,0)))),"") ->  | AE33: =IF(AND($C33="S",ORÇAMENTO.CodBarra<>""),IF(ORÇAMENTO.Fonte="",ORÇAMENTO.CodBarra,CONCATENATE(ORÇAMENTO.Fonte," ",ORÇAMENTO.CodBarra))) -> SINAPI 93382 | AF33: =IF(ISERROR(INDIRECT(ORÇAMENTO.BancoRef)),"(abra o arquivo 'Referência "&Excel_BuiltIn_Database&".xls)",IF(OR($C33<>"S",ORÇAMENTO.CodBarra=""),"(Sem Código)",IF(ISERROR(MATCH($AE33,INDIRECT(ORÇAMENTO.BancoRef),0)),"(Código não identificado nas referências)",MATCH($AE33,INDIRECT(ORÇAMENTO.BancoRef),0)))) -> 10430 | AG33: =ROUND(IF(DESONERACAO="sim",REFERENCIA.Desonerado,REFERENCIA.NaoDesonerado),2) -> 25.76 | AH33: 0.264 | AM33: 13947.38 | AN33: 26.9
A34: 2 | B34: 2 | C34: 2 | D34: 11 | E34: =IF($C34=1,OFFSET(E34,-1,0)+MAX(1,COUNTIF(QCI!$A$13:$A$15,OFFSET(ORÇAMENTO!E34,-1,0))),OFFSET(E34,-1,0)) -> 1 | F34: 4 | G34: 0 | H34: 0 | I34: 0 | J34: 25 | K34: =IF(OR($C34="S",$C34=0),0,MATCH(OFFSET($D34,0,$C34)+IF($C34<>1,1,COUNTIF(QCI!$A$13:$A$15,ORÇAMENTO!E34)),OFFSET($D34,1,$C34,ROW($C$59)-ROW($C34)),0)) -> 11 | L34: F | M34: Nível 2 | N34: Nível 2 | O34: 1.4. | P34: SINAPI | R34: PAVIMENTAÇÃO ASFÁLTICA | S34: - | T34: =OFFSET(CÁLCULO!H$15,ROW($T34)-ROW(T$15),0) -> 0 | V34: BDI 1 | W34: 0 | X34: 347006.34 | Y34: RA | AA34: =IF($C34="S",IF($Z34="CP",$X34,IF($Z34="RA",(($X34)*QCI!$AA$3),0)),SomaAgrup) -> 28378.51188 | AB34: 0 | AD34: =IF(C34<=CRONO.NivelExibicao,MAX($AD$15:OFFSET(AD34,-1,0))+IF($C34<>1,1,MAX(1,COUNTIF(QCI!$A$13:$A$15,OFFSET($E34,-1,0)))),"") -> 5 | AE34: FALSE | AF34: (Sem Código) | AG34: 0 | AH34: 0.264 | AM34: 347006.34 | AN34: 0
A35: S | B35: 2 | C35: S | D35: 0 | E35: =IF($C35=1,OFFSET(E35,-1,0)+MAX(1,COUNTIF(QCI!$A$13:$A$15,OFFSET(ORÇAMENTO!E35,-1,0))),OFFSET(E35,-1,0)) -> 1 | F35: 4 | G35: 0 | H35: 0 | I35: 1 | J35: 0 | K35: =IF(OR($C35="S",$C35=0),0,MATCH(OFFSET($D35,0,$C35)+IF($C35<>1,1,COUNTIF(QCI!$A$13:$A$15,ORÇAMENTO!E35)),OFFSET($D35,1,$C35,ROW($C$59)-ROW($C35)),0)) -> 0 | L35: F | M35: Serviço | N35: Serviço | O35: 1.4.1. | P35: SINAPI | Q35: 100576 | R35: =IF($C35="S",REFERENCIA.Descricao,"(digite a descrição aqui)") -> REGULARIZAÇÃO E COMPACTAÇÃO DE SUBLEITO DE SOLO PREDOMINANTEMENTE ARGILOSO. AF_11/2019 | S35: M2 | T35: =OFFSET(CÁLCULO!H$15,ROW($T35)-ROW(T$15),0) -> 2483.58 | U35: =AG35 -> 1.67 | V35: BDI 1 | W35: 2.11 | X35: 5240.35 | Y35: RA | Z35: RA | AA35: =IF($C35="S",IF($Z35="CP",$X35,IF($Z35="RA",(($X35)*QCI!$AA$3),0)),SomaAgrup) -> 428.5608578 | AB35: 0 | AD35: =IF(C35<=CRONO.NivelExibicao,MAX($AD$15:OFFSET(AD35,-1,0))+IF($C35<>1,1,MAX(1,COUNTIF(QCI!$A$13:$A$15,OFFSET($E35,-1,0)))),"") ->  | AE35: SINAPI 100576 | AF35: 10694 | AG35: 1.67 | AH35: 0.264 | AM35: 5240.35 | AN35: 2.11
A36: S | B36: 2 | C36: S | D36: 0 | E36: =IF($C36=1,OFFSET(E36,-1,0)+MAX(1,COUNTIF(QCI!$A$13:$A$15,OFFSET(ORÇAMENTO!E36,-1,0))),OFFSET(E36,-1,0)) -> 1 | F36: 4 | G36: 0 | H36: 0 | I36: 2 | J36: 0 | K36: =IF(OR($C36="S",$C36=0),0,MATCH(OFFSET($D36,0,$C36)+IF($C36<>1,1,COUNTIF(QCI!$A$13:$A$15,ORÇAMENTO!E36)),OFFSET($D36,1,$C36,ROW($C$59)-ROW($C36)),0)) -> 0 | L36: F | M36: Serviço | N36: Serviço | O36: 1.4.2. | P36: SINAPI | Q36: 96399 | R36: =IF($C36="S",REFERENCIA.Descricao,"(digite a descrição aqui)") -> EXECUÇÃO E COMPACTAÇÃO DE BASE E OU SUB BASE PARA PAVIMENTAÇÃO DE PEDRA RACHÃO - EXCLUSIVE CARGA E TRANSPORTE. AF_11/2019 | S36: =REFERENCIA.Unidade -> M3 | T36: =OFFSET(CÁLCULO!H$15,ROW($T36)-ROW(T$15),0) -> 406.97 | U36: 68 | V36: BDI 1 | W36: 85.95 | X36: 34979.07 | Y36: RA | Z36: RA | AA36: =IF($C36="S",IF($Z36="CP",$X36,IF($Z36="RA",(($X36)*QCI!$AA$3),0)),SomaAgrup) -> 2860.621952 | AB36: 0 | AD36: =IF(C36<=CRONO.NivelExibicao,MAX($AD$15:OFFSET(AD36,-1,0))+IF($C36<>1,1,MAX(1,COUNTIF(QCI!$A$13:$A$15,OFFSET($E36,-1,0)))),"") ->  | AE36: SINAPI 96399 | AF36: 10704 | AG36: 83.31 | AH36: 0.264 | AM36: 34979.07 | AN36: 85.95
A37: S | B37: 2 | C37: S | D37: 0 | E37: =IF($C37=1,OFFSET(E37,-1,0)+MAX(1,COUNTIF(QCI!$A$13:$A$15,OFFSET(ORÇAMENTO!E37,-1,0))),OFFSET(E37,-1,0)) -> 1 | F37: 4 | G37: 0 | H37: 0 | I37: 3 | J37: 0 | K37: =IF(OR($C37="S",$C37=0),0,MATCH(OFFSET($D37,0,$C37)+IF($C37<>1,1,COUNTIF(QCI!$A$13:$A$15,ORÇAMENTO!E37)),OFFSET($D37,1,$C37,ROW($C$59)-ROW($C37)),0)) -> 0 | L37: F | M37: Serviço | N37: Serviço | O37: 1.4.3. | P37: SINAPI | Q37: 96396 | R37: =IF($C37="S",REFERENCIA.Descricao,"(digite a descrição aqui)") -> EXECUÇÃO E COMPACTAÇÃO DE BASE E OU SUB BASE PARA PAVIMENTAÇÃO DE BRITA GRADUADA SIMPLES - EXCLUSIVE CARGA E TRANSPORTE. AF_11/2019 | S37: =REFERENCIA.Unidade -> M3 | T37: =OFFSET(CÁLCULO!H$15,ROW($T37)-ROW(T$15),0) -> 215.45 | U37: 99 | V37: BDI 1 | W37: 125.14 | X37: 26961.41 | Y37: RA | Z37: RA | AA37: =IF($C37="S",IF($Z37="CP",$X37,IF($Z37="RA",(($X37)*QCI!$AA$3),0)),SomaAgrup) -> 2204.930014 | AB37: 0 | AD37: =IF(C37<=CRONO.NivelExibicao,MAX($AD$15:OFFSET(AD37,-1,0))+IF($C37<>1,1,MAX(1,COUNTIF(QCI!$A$13:$A$15,OFFSET($E37,-1,0)))),"") ->  | AE37: SINAPI 96396 | AF37: 10701 | AG37: 121.51 | AH37: 0.264 | AM37: 26961.41 | AN37: 125.14
A38: S | B38: 2 | C38: S | D38: 0 | E38: =IF($C38=1,OFFSET(E38,-1,0)+MAX(1,COUNTIF(QCI!$A$13:$A$15,OFFSET(ORÇAMENTO!E38,-1,0))),OFFSET(E38,-1,0)) -> 1 | F38: 4 | G38: 0 | H38: 0 | I38: 4 | J38: 0 | K38: =IF(OR($C38="S",$C38=0),0,MATCH(OFFSET($D38,0,$C38)+IF($C38<>1,1,COUNTIF(QCI!$A$13:$A$15,ORÇAMENTO!E38)),OFFSET($D38,1,$C38,ROW($C$59)-ROW($C38)),0)) -> 0 | L38: F | M38: Serviço | N38: Serviço | O38: 1.4.4. | P38: Composição | Q38: COMP12 | R38: =IF($C38="S",REFERENCIA.Descricao,"(digite a descrição aqui)") -> EXECUÇÃO DE IMPRIMAÇÃO COM ASFALTO DILUÍDO CM-30 | S38: =REFERENCIA.Unidade -> M2 | T38: =OFFSET(CÁLCULO!H$15,ROW($T38)-ROW(T$15),0) -> 2393.91 | U38: =AG38 -> 8.98 | V38: BDI 1 | W38: 11.35 | X38: 27170.88 | Y38: RA | Z38: RA | AA38: =IF($C38="S",IF($Z38="CP",$X38,IF($Z38="RA",(($X38)*QCI!$AA$3),0)),SomaAgrup) -> 2222.060672 | AB38: 0 | AD38: =IF(C38<=CRONO.NivelExibicao,MAX($AD$15:OFFSET(AD38,-1,0))+IF($C38<>1,1,MAX(1,COUNTIF(QCI!$A$13:$A$15,OFFSET($E38,-1,0)))),"") ->  | AE38: Composição COMP12 | AF38: 14 | AG38: 8.98 | AH38: 0.264 | AM38: 27170.88 | AN38: 11.35
A39: =CHOOSE(1+LOG(1+2*(ORÇAMENTO.Nivel="Meta")+4*(ORÇAMENTO.Nivel="Nível 2")+8*(ORÇAMENTO.Nivel="Nível 3")+16*(ORÇAMENTO.Nivel="Nível 4")+32*(ORÇAMENTO.Nivel="Serviço"),2),0,1,2,3,4,"S") -> S | B39: =IF(OR(C39="s",C39=0),OFFSET(B39,-1,0),C39) -> 2 | C39: =IF(OFFSET(C39,-1,0)="L",1,IF(OFFSET(C39,-1,0)=1,2,IF(OR(A39="s",A39=0),"S",IF(AND(OFFSET(C39,-1,0)=2,A39=4),3,IF(AND(OR(OFFSET(C39,-1,0)="s",OFFSET(C39,-1,0)=0),A39<>"s",A39>OFFSET(B39,-1,0)),OFFSET(B39,-1,0),A39))))) -> S | D39: =IF(OR(C39="S",C39=0),0,IF(ISERROR(K39),J39,SMALL(J39:K39,1))) -> 0 | E39: =IF($C39=1,OFFSET(E39,-1,0)+MAX(1,COUNTIF(QCI!$A$13:$A$15,OFFSET(ORÇAMENTO!E39,-1,0))),OFFSET(E39,-1,0)) -> 1 | F39: =IF($C39=1,0,IF($C39=2,OFFSET(F39,-1,0)+1,OFFSET(F39,-1,0))) -> 4 | G39: =IF(AND($C39<=2,$C39<>0),0,IF($C39=3,OFFSET(G39,-1,0)+1,OFFSET(G39,-1,0))) -> 0 | H39: =IF(AND($C39<=3,$C39<>0),0,IF($C39=4,OFFSET(H39,-1,0)+1,OFFSET(H39,-1,0))) -> 0 | I39: =IF(AND($C39<=4,$C39<>0),0,IF(AND($C39="S",$X39>0),OFFSET(I39,-1,0)+1,OFFSET(I39,-1,0))) -> 5 | J39: 0 | K39: =IF(OR($C39="S",$C39=0),0,MATCH(OFFSET($D39,0,$C39)+IF($C39<>1,1,COUNTIF(QCI!$A$13:$A$15,ORÇAMENTO!E39)),OFFSET($D39,1,$C39,ROW($C$59)-ROW($C39)),0)) -> 0 | L39: =IF(OR($X39>0,$C39=1,$C39=2,$C39=3,$C39=4),"F","") -> F | M39: Serviço | N39: =CHOOSE(1+LOG(1+2*(C39=1)+4*(C39=2)+8*(C39=3)+16*(C39=4)+32*(C39="S"),2),"","Meta","Nível 2","Nível 3","Nível 4","Serviço") -> Serviço | O39: =IF(OR($C39=0,$L39=""),"-",CONCATENATE(E39&".",IF(AND($A$5>=2,$C39>=2),F39&".",""),IF(AND($A$5>=3,$C39>=3),G39&".",""),IF(AND($A$5>=4,$C39>=4),H39&".",""),IF($C39="S",I39&".",""))) -> 1.4.5. | P39: Composição | Q39: COMP06 | R39: =IF($C39="S",REFERENCIA.Descricao,"(digite a descrição aqui)") -> LIMPEZA DE PAVIMENTO COM CAMINHÃO PIPA | S39: =REFERENCIA.Unidade -> M2 | T39: =OFFSET(CÁLCULO!H$15,ROW($T39)-ROW(T$15),0) -> 927.02 | U39: 3.43 | V39: BDI 1 | W39: =IF($C39="S",ROUND(IF(TIPOORCAMENTO="Proposto",ORÇAMENTO.CustoUnitario*(1+$AH39),ORÇAMENTO.PrecoUnitarioLicitado),15-13*$AF$10),0) -> 4.34 | X39: =IF($C39="S",VTOTAL1,IF($C39=0,0,ROUND(SomaAgrup,15-13*$AF$11))) -> 4023.27 | Y39: RA | Z39: =IF(AND($C39="S",$X39>0),IF(ISBLANK($Y39),"RA",LEFT($Y39,2)),"") -> RA | AA39: =IF($C39="S",IF($Z39="CP",$X39,IF($Z39="RA",(($X39)*QCI!$AA$3),0)),SomaAgrup) -> 329.0268861 | AB39: =IF($C39="S",IF($Z39="OU",ROUND($X39,2),0),SomaAgrup) -> 0 | AC39: =IF($N39="","",IF(ORÇAMENTO.Descricao="","DESCRIÇÃO",IF(AND($C39="S",ORÇAMENTO.Unidade=""),"UNIDADE",IF($X39<0,"VALOR NEGATIVO",IF(OR(AND(TIPOORCAMENTO="Proposto",$AG39<>"",$AG39>0,ORÇAMENTO.CustoUnitario>$AG39),AND(TIPOORCAMENTO="LICITADO",ORÇAMENTO.PrecoUnitarioLicitado>$AN39)),"ACIMA REF.",""))))) ->  | AD39: =IF(C39<=CRONO.NivelExibicao,MAX($AD$15:OFFSET(AD39,-1,0))+IF($C39<>1,1,MAX(1,COUNTIF(QCI!$A$13:$A$15,OFFSET($E39,-1,0)))),"") ->  | AE39: =IF(AND($C39="S",ORÇAMENTO.CodBarra<>""),IF(ORÇAMENTO.Fonte="",ORÇAMENTO.CodBarra,CONCATENATE(ORÇAMENTO.Fonte," ",ORÇAMENTO.CodBarra))) -> Composição COMP06 | AF39: =IF(ISERROR(INDIRECT(ORÇAMENTO.BancoRef)),"(abra o arquivo 'Referência "&Excel_BuiltIn_Database&".xls)",IF(OR($C39<>"S",ORÇAMENTO.CodBarra=""),"(Sem Código)",IF(ISERROR(MATCH($AE39,INDIRECT(ORÇAMENTO.BancoRef),0)),"(Código não identificado nas referências)",MATCH($AE39,INDIRECT(ORÇAMENTO.BancoRef),0)))) -> 12 | AG39: =ROUND(IF(DESONERACAO="sim",REFERENCIA.Desonerado,REFERENCIA.NaoDesonerado),2) -> 3.43 | AH39: =ROUND(IF(ISNUMBER(ORÇAMENTO.OpcaoBDI),ORÇAMENTO.OpcaoBDI,IF(LEFT(ORÇAMENTO.OpcaoBDI,3)="BDI",HLOOKUP(ORÇAMENTO.OpcaoBDI,$F$4:$H$5,2,FALSE),0)),15-11*$AF$9) -> 0.264 | AM39: 4023.27 | AN39: =ROUND(ORÇAMENTO.CustoUnitario*(1+$AH39),2) -> 4.34
A40: =CHOOSE(1+LOG(1+2*(ORÇAMENTO.Nivel="Meta")+4*(ORÇAMENTO.Nivel="Nível 2")+8*(ORÇAMENTO.Nivel="Nível 3")+16*(ORÇAMENTO.Nivel="Nível 4")+32*(ORÇAMENTO.Nivel="Serviço"),2),0,1,2,3,4,"S") -> S | B40: =IF(OR(C40="s",C40=0),OFFSET(B40,-1,0),C40) -> 2 | C40: =IF(OFFSET(C40,-1,0)="L",1,IF(OFFSET(C40,-1,0)=1,2,IF(OR(A40="s",A40=0),"S",IF(AND(OFFSET(C40,-1,0)=2,A40=4),3,IF(AND(OR(OFFSET(C40,-1,0)="s",OFFSET(C40,-1,0)=0),A40<>"s",A40>OFFSET(B40,-1,0)),OFFSET(B40,-1,0),A40))))) -> S | D40: =IF(OR(C40="S",C40=0),0,IF(ISERROR(K40),J40,SMALL(J40:K40,1))) -> 0 | E40: =IF($C40=1,OFFSET(E40,-1,0)+MAX(1,COUNTIF(QCI!$A$13:$A$15,OFFSET(ORÇAMENTO!E40,-1,0))),OFFSET(E40,-1,0)) -> 1 | F40: =IF($C40=1,0,IF($C40=2,OFFSET(F40,-1,0)+1,OFFSET(F40,-1,0))) -> 4 | G40: =IF(AND($C40<=2,$C40<>0),0,IF($C40=3,OFFSET(G40,-1,0)+1,OFFSET(G40,-1,0))) -> 0 | H40: =IF(AND($C40<=3,$C40<>0),0,IF($C40=4,OFFSET(H40,-1,0)+1,OFFSET(H40,-1,0))) -> 0 | I40: =IF(AND($C40<=4,$C40<>0),0,IF(AND($C40="S",$X40>0),OFFSET(I40,-1,0)+1,OFFSET(I40,-1,0))) -> 6 | J40: 0 | K40: =IF(OR($C40="S",$C40=0),0,MATCH(OFFSET($D40,0,$C40)+IF($C40<>1,1,COUNTIF(QCI!$A$13:$A$15,ORÇAMENTO!E40)),OFFSET($D40,1,$C40,ROW($C$59)-ROW($C40)),0)) -> 0 | L40: =IF(OR($X40>0,$C40=1,$C40=2,$C40=3,$C40=4),"F","") -> F | M40: Serviço | N40: =CHOOSE(1+LOG(1+2*(C40=1)+4*(C40=2)+8*(C40=3)+16*(C40=4)+32*(C40="S"),2),"","Meta","Nível 2","Nível 3","Nível 4","Serviço") -> Serviço | O40: =IF(OR($C40=0,$L40=""),"-",CONCATENATE(E40&".",IF(AND($A$5>=2,$C40>=2),F40&".",""),IF(AND($A$5>=3,$C40>=3),G40&".",""),IF(AND($A$5>=4,$C40>=4),H40&".",""),IF($C40="S",I40&".",""))) -> 1.4.6. | P40: SINAPI | Q40: 96402 | R40: =IF($C40="S",REFERENCIA.Descricao,"(digite a descrição aqui)") -> EXECUÇÃO DE PINTURA DE LIGAÇÃO COM EMULSÃO ASFÁLTICA RR-2C. AF_11/2019 | S40: =REFERENCIA.Unidade -> M2 | T40: =OFFSET(CÁLCULO!H$15,ROW($T40)-ROW(T$15),0) -> 3320.93 | U40: 2.25 | V40: BDI 1 | W40: =IF($C40="S",ROUND(IF(TIPOORCAMENTO="Proposto",ORÇAMENTO.CustoUnitario*(1+$AH40),ORÇAMENTO.PrecoUnitarioLicitado),15-13*$AF$10),0) -> 2.84 | X40: =IF($C40="S",VTOTAL1,IF($C40=0,0,ROUND(SomaAgrup,15-13*$AF$11))) -> 9431.44 | Y40: RA | Z40: =IF(AND($C40="S",$X40>0),IF(ISBLANK($Y40),"RA",LEFT($Y40,2)),"") -> RA | AA40: =IF($C40="S",IF($Z40="CP",$X40,IF($Z40="RA",(($X40)*QCI!$AA$3),0)),SomaAgrup) -> 771.3122247 | AB40: =IF($C40="S",IF($Z40="OU",ROUND($X40,2),0),SomaAgrup) -> 0 | AC40: =IF($N40="","",IF(ORÇAMENTO.Descricao="","DESCRIÇÃO",IF(AND($C40="S",ORÇAMENTO.Unidade=""),"UNIDADE",IF($X40<0,"VALOR NEGATIVO",IF(OR(AND(TIPOORCAMENTO="Proposto",$AG40<>"",$AG40>0,ORÇAMENTO.CustoUnitario>$AG40),AND(TIPOORCAMENTO="LICITADO",ORÇAMENTO.PrecoUnitarioLicitado>$AN40)),"ACIMA REF.",""))))) ->  | AD40: =IF(C40<=CRONO.NivelExibicao,MAX($AD$15:OFFSET(AD40,-1,0))+IF($C40<>1,1,MAX(1,COUNTIF(QCI!$A$13:$A$15,OFFSET($E40,-1,0)))),"") ->  | AE40: =IF(AND($C40="S",ORÇAMENTO.CodBarra<>""),IF(ORÇAMENTO.Fonte="",ORÇAMENTO.CodBarra,CONCATENATE(ORÇAMENTO.Fonte," ",ORÇAMENTO.CodBarra))) -> SINAPI 96402 | AF40: =IF(ISERROR(INDIRECT(ORÇAMENTO.BancoRef)),"(abra o arquivo 'Referência "&Excel_BuiltIn_Database&".xls)",IF(OR($C40<>"S",ORÇAMENTO.CodBarra=""),"(Sem Código)",IF(ISERROR(MATCH($AE40,INDIRECT(ORÇAMENTO.BancoRef),0)),"(Código não identificado nas referências)",MATCH($AE40,INDIRECT(ORÇAMENTO.BancoRef),0)))) -> 10706 | AG40: =ROUND(IF(DESONERACAO="sim",REFERENCIA.Desonerado,REFERENCIA.NaoDesonerado),2) -> 2.25 | AH40: =ROUND(IF(ISNUMBER(ORÇAMENTO.OpcaoBDI),ORÇAMENTO.OpcaoBDI,IF(LEFT(ORÇAMENTO.OpcaoBDI,3)="BDI",HLOOKUP(ORÇAMENTO.OpcaoBDI,$F$4:$H$5,2,FALSE),0)),15-11*$AF$9) -> 0.264 | AM40: 9431.44 | AN40: =ROUND(ORÇAMENTO.CustoUnitario*(1+$AH40),2) -> 2.84
A41: =CHOOSE(1+LOG(1+2*(ORÇAMENTO.Nivel="Meta")+4*(ORÇAMENTO.Nivel="Nível 2")+8*(ORÇAMENTO.Nivel="Nível 3")+16*(ORÇAMENTO.Nivel="Nível 4")+32*(ORÇAMENTO.Nivel="Serviço"),2),0,1,2,3,4,"S") -> S | B41: =IF(OR(C41="s",C41=0),OFFSET(B41,-1,0),C41) -> 2 | C41: =IF(OFFSET(C41,-1,0)="L",1,IF(OFFSET(C41,-1,0)=1,2,IF(OR(A41="s",A41=0),"S",IF(AND(OFFSET(C41,-1,0)=2,A41=4),3,IF(AND(OR(OFFSET(C41,-1,0)="s",OFFSET(C41,-1,0)=0),A41<>"s",A41>OFFSET(B41,-1,0)),OFFSET(B41,-1,0),A41))))) -> S | D41: =IF(OR(C41="S",C41=0),0,IF(ISERROR(K41),J41,SMALL(J41:K41,1))) -> 0 | E41: =IF($C41=1,OFFSET(E41,-1,0)+MAX(1,COUNTIF(QCI!$A$13:$A$15,OFFSET(ORÇAMENTO!E41,-1,0))),OFFSET(E41,-1,0)) -> 1 | F41: =IF($C41=1,0,IF($C41=2,OFFSET(F41,-1,0)+1,OFFSET(F41,-1,0))) -> 4 | G41: =IF(AND($C41<=2,$C41<>0),0,IF($C41=3,OFFSET(G41,-1,0)+1,OFFSET(G41,-1,0))) -> 0 | H41: =IF(AND($C41<=3,$C41<>0),0,IF($C41=4,OFFSET(H41,-1,0)+1,OFFSET(H41,-1,0))) -> 0 | I41: =IF(AND($C41<=4,$C41<>0),0,IF(AND($C41="S",$X41>0),OFFSET(I41,-1,0)+1,OFFSET(I41,-1,0))) -> 7 | J41: 0 | K41: =IF(OR($C41="S",$C41=0),0,MATCH(OFFSET($D41,0,$C41)+IF($C41<>1,1,COUNTIF(QCI!$A$13:$A$15,ORÇAMENTO!E41)),OFFSET($D41,1,$C41,ROW($C$59)-ROW($C41)),0)) -> 0 | L41: =IF(OR($X41>0,$C41=1,$C41=2,$C41=3,$C41=4),"F","") -> F | M41: Serviço | N41: =CHOOSE(1+LOG(1+2*(C41=1)+4*(C41=2)+8*(C41=3)+16*(C41=4)+32*(C41="S"),2),"","Meta","Nível 2","Nível 3","Nível 4","Serviço") -> Serviço | O41: =IF(OR($C41=0,$L41=""),"-",CONCATENATE(E41&".",IF(AND($A$5>=2,$C41>=2),F41&".",""),IF(AND($A$5>=3,$C41>=3),G41&".",""),IF(AND($A$5>=4,$C41>=4),H41&".",""),IF($C41="S",I41&".",""))) -> 1.4.7. | P41: SINAPI | Q41: 95996 | R41: =IF($C41="S",REFERENCIA.Descricao,"(digite a descrição aqui)") -> EXECUÇÃO DE PAVIMENTO COM APLICAÇÃO DE CONCRETO ASFÁLTICO, CAMADA DE BINDER - EXCLUSIVE CARGA E TRANSPORTE. AF_11/2019 | S41: =REFERENCIA.Unidade -> M3 | T41: =OFFSET(CÁLCULO!H$15,ROW($T41)-ROW(T$15),0) -> 27.81 | U41: 1216.41 | V41: BDI 1 | W41: =IF($C41="S",ROUND(IF(TIPOORCAMENTO="Proposto",ORÇAMENTO.CustoUnitario*(1+$AH41),ORÇAMENTO.PrecoUnitarioLicitado),15-13*$AF$10),0) -> 1537.54 | X41: =IF($C41="S",VTOTAL1,IF($C41=0,0,ROUND(SomaAgrup,15-13*$AF$11))) -> 42758.99 | Y41: RA | Z41: =IF(AND($C41="S",$X41>0),IF(ISBLANK($Y41),"RA",LEFT($Y41,2)),"") -> RA | AA41: =IF($C41="S",IF($Z41="CP",$X41,IF($Z41="RA",(($X41)*QCI!$AA$3),0)),SomaAgrup) -> 3496.871284 | AB41: =IF($C41="S",IF($Z41="OU",ROUND($X41,2),0),SomaAgrup) -> 0 | AC41: =IF($N41="","",IF(ORÇAMENTO.Descricao="","DESCRIÇÃO",IF(AND($C41="S",ORÇAMENTO.Unidade=""),"UNIDADE",IF($X41<0,"VALOR NEGATIVO",IF(OR(AND(TIPOORCAMENTO="Proposto",$AG41<>"",$AG41>0,ORÇAMENTO.CustoUnitario>$AG41),AND(TIPOORCAMENTO="LICITADO",ORÇAMENTO.PrecoUnitarioLicitado>$AN41)),"ACIMA REF.",""))))) ->  | AD41: =IF(C41<=CRONO.NivelExibicao,MAX($AD$15:OFFSET(AD41,-1,0))+IF($C41<>1,1,MAX(1,COUNTIF(QCI!$A$13:$A$15,OFFSET($E41,-1,0)))),"") ->  | AE41: =IF(AND($C41="S",ORÇAMENTO.CodBarra<>""),IF(ORÇAMENTO.Fonte="",ORÇAMENTO.CodBarra,CONCATENATE(ORÇAMENTO.Fonte," ",ORÇAMENTO.CodBarra))) -> SINAPI 95996 | AF41: =IF(ISERROR(INDIRECT(ORÇAMENTO.BancoRef)),"(abra o arquivo 'Referência "&Excel_BuiltIn_Database&".xls)",IF(OR($C41<>"S",ORÇAMENTO.CodBarra=""),"(Sem Código)",IF(ISERROR(MATCH($AE41,INDIRECT(ORÇAMENTO.BancoRef),0)),"(Código não identificado nas referências)",MATCH($AE41,INDIRECT(ORÇAMENTO.BancoRef),0)))) -> 10774 | AG41: =ROUND(IF(DESONERACAO="sim",REFERENCIA.Desonerado,REFERENCIA.NaoDesonerado),2) -> 1216.41 | AH41: =ROUND(IF(ISNUMBER(ORÇAMENTO.OpcaoBDI),ORÇAMENTO.OpcaoBDI,IF(LEFT(ORÇAMENTO.OpcaoBDI,3)="BDI",HLOOKUP(ORÇAMENTO.OpcaoBDI,$F$4:$H$5,2,FALSE),0)),15-11*$AF$9) -> 0.264 | AM41: 42758.99 | AN41: =ROUND(ORÇAMENTO.CustoUnitario*(1+$AH41),2) -> 1537.54
A42: =CHOOSE(1+LOG(1+2*(ORÇAMENTO.Nivel="Meta")+4*(ORÇAMENTO.Nivel="Nível 2")+8*(ORÇAMENTO.Nivel="Nível 3")+16*(ORÇAMENTO.Nivel="Nível 4")+32*(ORÇAMENTO.Nivel="Serviço"),2),0,1,2,3,4,"S") -> S | B42: 2 | C42: S | D42: 0 | E42: =IF($C42=1,OFFSET(E42,-1,0)+MAX(1,COUNTIF(QCI!$A$13:$A$15,OFFSET(ORÇAMENTO!E42,-1,0))),OFFSET(E42,-1,0)) -> 1 | F42: 4 | G42: 0 | H42: 0 | I42: 8 | J42: 0 | K42: =IF(OR($C42="S",$C42=0),0,MATCH(OFFSET($D42,0,$C42)+IF($C42<>1,1,COUNTIF(QCI!$A$13:$A$15,ORÇAMENTO!E42)),OFFSET($D42,1,$C42,ROW($C$59)-ROW($C42)),0)) -> 0 | L42: F | M42: Serviço | N42: Serviço | O42: 1.4.8. | P42: SINAPI | Q42: 96402 | R42: =IF($C42="S",REFERENCIA.Descricao,"(digite a descrição aqui)") -> EXECUÇÃO DE PINTURA DE LIGAÇÃO COM EMULSÃO ASFÁLTICA RR-2C. AF_11/2019 | S42: =REFERENCIA.Unidade -> M2 | T42: =OFFSET(CÁLCULO!H$15,ROW($T42)-ROW(T$15),0) -> 577.62 | U42: =AG42 -> 2.25 | V42: BDI 1 | W42: =IF($C42="S",ROUND(IF(TIPOORCAMENTO="Proposto",ORÇAMENTO.CustoUnitario*(1+$AH42),ORÇAMENTO.PrecoUnitarioLicitado),15-13*$AF$10),0) -> 2.84 | X42: =IF($C42="S",VTOTAL1,IF($C42=0,0,ROUND(SomaAgrup,15-13*$AF$11))) -> 1640.44 | Y42: RA | Z42: RA | AA42: =IF($C42="S",IF($Z42="CP",$X42,IF($Z42="RA",(($X42)*QCI!$AA$3),0)),SomaAgrup) -> 134.1567593 | AB42: =IF($C42="S",IF($Z42="OU",ROUND($X42,2),0),SomaAgrup) -> 0 | AC42: =IF($N42="","",IF(ORÇAMENTO.Descricao="","DESCRIÇÃO",IF(AND($C42="S",ORÇAMENTO.Unidade=""),"UNIDADE",IF($X42<0,"VALOR NEGATIVO",IF(OR(AND(TIPOORCAMENTO="Proposto",$AG42<>"",$AG42>0,ORÇAMENTO.CustoUnitario>$AG42),AND(TIPOORCAMENTO="LICITADO",ORÇAMENTO.PrecoUnitarioLicitado>$AN42)),"ACIMA REF.",""))))) ->  | AD42: =IF(C42<=CRONO.NivelExibicao,MAX($AD$15:OFFSET(AD42,-1,0))+IF($C42<>1,1,MAX(1,COUNTIF(QCI!$A$13:$A$15,OFFSET($E42,-1,0)))),"") ->  | AE42: =IF(AND($C42="S",ORÇAMENTO.CodBarra<>""),IF(ORÇAMENTO.Fonte="",ORÇAMENTO.CodBarra,CONCATENATE(ORÇAMENTO.Fonte," ",ORÇAMENTO.CodBarra))) -> SINAPI 96402 | AF42: =IF(ISERROR(INDIRECT(ORÇAMENTO.BancoRef)),"(abra o arquivo 'Referência "&Excel_BuiltIn_Database&".xls)",IF(OR($C42<>"S",ORÇAMENTO.CodBarra=""),"(Sem Código)",IF(ISERROR(MATCH($AE42,INDIRECT(ORÇAMENTO.BancoRef),0)),"(Código não identificado nas referências)",MATCH($AE42,INDIRECT(ORÇAMENTO.BancoRef),0)))) -> 10706 | AG42: =ROUND(IF(DESONERACAO="sim",REFERENCIA.Desonerado,REFERENCIA.NaoDesonerado),2) -> 2.25 | AH42: =ROUND(IF(ISNUMBER(ORÇAMENTO.OpcaoBDI),ORÇAMENTO.OpcaoBDI,IF(LEFT(ORÇAMENTO.OpcaoBDI,3)="BDI",HLOOKUP(ORÇAMENTO.OpcaoBDI,$F$4:$H$5,2,FALSE),0)),15-11*$AF$9) -> 0.264 | AM42: 1640.44 | AN42: =ROUND(ORÇAMENTO.CustoUnitario*(1+$AH42),2) -> 2.84
A43: S | B43: 2 | C43: S | D43: 0 | E43: =IF($C43=1,OFFSET(E43,-1,0)+MAX(1,COUNTIF(QCI!$A$13:$A$15,OFFSET(ORÇAMENTO!E43,-1,0))),OFFSET(E43,-1,0)) -> 1 | F43: 4 | G43: 0 | H43: 0 | I43: 9 | J43: 0 | K43: =IF(OR($C43="S",$C43=0),0,MATCH(OFFSET($D43,0,$C43)+IF($C43<>1,1,COUNTIF(QCI!$A$13:$A$15,ORÇAMENTO!E43)),OFFSET($D43,1,$C43,ROW($C$59)-ROW($C43)),0)) -> 0 | L43: F | M43: Serviço | N43: Serviço | O43: 1.4.9. | P43: SINAPI | Q43: 95995 | R43: =IF($C43="S",REFERENCIA.Descricao,"(digite a descrição aqui)") -> EXECUÇÃO DE PAVIMENTO COM APLICAÇÃO DE CONCRETO ASFÁLTICO, CAMADA DE ROLAMENTO - EXCLUSIVE CARGA E TRANSPORTE. AF_11/2019 | S43: =REFERENCIA.Unidade -> M3 | T43: =OFFSET(CÁLCULO!H$15,ROW($T43)-ROW(T$15),0) -> 113.11 | U43: 1278.24 | V43: BDI 1 | W43: 1615.7 | X43: 182751.83 | Y43: RA | Z43: RA | AA43: =IF($C43="S",IF($Z43="CP",$X43,IF($Z43="RA",(($X43)*QCI!$AA$3),0)),SomaAgrup) -> 14945.62024 | AB43: 0 | AD43: =IF(C43<=CRONO.NivelExibicao,MAX($AD$15:OFFSET(AD43,-1,0))+IF($C43<>1,1,MAX(1,COUNTIF(QCI!$A$13:$A$15,OFFSET($E43,-1,0)))),"") ->  | AE43: SINAPI 95995 | AF43: 10773 | AG43: 1278.24 | AH43: 0.264 | AM43: 182751.83 | AN43: 1615.7
A44: =CHOOSE(1+LOG(1+2*(ORÇAMENTO.Nivel="Meta")+4*(ORÇAMENTO.Nivel="Nível 2")+8*(ORÇAMENTO.Nivel="Nível 3")+16*(ORÇAMENTO.Nivel="Nível 4")+32*(ORÇAMENTO.Nivel="Serviço"),2),0,1,2,3,4,"S") -> S | B44: =IF(OR(C44="s",C44=0),OFFSET(B44,-1,0),C44) -> 2 | C44: =IF(OFFSET(C44,-1,0)="L",1,IF(OFFSET(C44,-1,0)=1,2,IF(OR(A44="s",A44=0),"S",IF(AND(OFFSET(C44,-1,0)=2,A44=4),3,IF(AND(OR(OFFSET(C44,-1,0)="s",OFFSET(C44,-1,0)=0),A44<>"s",A44>OFFSET(B44,-1,0)),OFFSET(B44,-1,0),A44))))) -> S | D44: =IF(OR(C44="S",C44=0),0,IF(ISERROR(K44),J44,SMALL(J44:K44,1))) -> 0 | E44: =IF($C44=1,OFFSET(E44,-1,0)+MAX(1,COUNTIF(QCI!$A$13:$A$15,OFFSET(ORÇAMENTO!E44,-1,0))),OFFSET(E44,-1,0)) -> 1 | F44: =IF($C44=1,0,IF($C44=2,OFFSET(F44,-1,0)+1,OFFSET(F44,-1,0))) -> 4 | G44: =IF(AND($C44<=2,$C44<>0),0,IF($C44=3,OFFSET(G44,-1,0)+1,OFFSET(G44,-1,0))) -> 0 | H44: =IF(AND($C44<=3,$C44<>0),0,IF($C44=4,OFFSET(H44,-1,0)+1,OFFSET(H44,-1,0))) -> 0 | I44: =IF(AND($C44<=4,$C44<>0),0,IF(AND($C44="S",$X44>0),OFFSET(I44,-1,0)+1,OFFSET(I44,-1,0))) -> 10 | J44: 0 | K44: =IF(OR($C44="S",$C44=0),0,MATCH(OFFSET($D44,0,$C44)+IF($C44<>1,1,COUNTIF(QCI!$A$13:$A$15,ORÇAMENTO!E44)),OFFSET($D44,1,$C44,ROW($C$59)-ROW($C44)),0)) -> 0 | L44: =IF(OR($X44>0,$C44=1,$C44=2,$C44=3,$C44=4),"F","") -> F | M44: Serviço | N44: =CHOOSE(1+LOG(1+2*(C44=1)+4*(C44=2)+8*(C44=3)+16*(C44=4)+32*(C44="S"),2),"","Meta","Nível 2","Nível 3","Nível 4","Serviço") -> Serviço | O44: =IF(OR($C44=0,$L44=""),"-",CONCATENATE(E44&".",IF(AND($A$5>=2,$C44>=2),F44&".",""),IF(AND($A$5>=3,$C44>=3),G44&".",""),IF(AND($A$5>=4,$C44>=4),H44&".",""),IF($C44="S",I44&".",""))) -> 1.4.10. | P44: SINAPI | Q44: 93596 | R44: =IF($C44="S",REFERENCIA.Descricao,"(digite a descrição aqui)") -> TRANSPORTE COM CAMINHÃO BASCULANTE DE 10 M³, EM VIA URBANA PAVIMENTADA, ADICIONAL PARA DMT EXCEDENTE A 30 KM (UNIDADE: TXKM). AF_07/2020 | S44: =REFERENCIA.Unidade -> TXKM | T44: =OFFSET(CÁLCULO!H$15,ROW($T44)-ROW(T$15),0) -> 21138 | U44: 0.45 | V44: BDI 1 | W44: =IF($C44="S",ROUND(IF(TIPOORCAMENTO="Proposto",ORÇAMENTO.CustoUnitario*(1+$AH44),ORÇAMENTO.PrecoUnitarioLicitado),15-13*$AF$10),0) -> 0.57 | X44: =IF($C44="S",VTOTAL1,IF($C44=0,0,ROUND(SomaAgrup,15-13*$AF$11))) -> 12048.66 | Y44: RA | Z44: =IF(AND($C44="S",$X44>0),IF(ISBLANK($Y44),"RA",LEFT($Y44,2)),"") -> RA | AA44: =IF($C44="S",IF($Z44="CP",$X44,IF($Z44="RA",(($X44)*QCI!$AA$3),0)),SomaAgrup) -> 985.3509909 | AB44: =IF($C44="S",IF($Z44="OU",ROUND($X44,2),0),SomaAgrup) -> 0 | AC44: =IF($N44="","",IF(ORÇAMENTO.Descricao="","DESCRIÇÃO",IF(AND($C44="S",ORÇAMENTO.Unidade=""),"UNIDADE",IF($X44<0,"VALOR NEGATIVO",IF(OR(AND(TIPOORCAMENTO="Proposto",$AG44<>"",$AG44>0,ORÇAMENTO.CustoUnitario>$AG44),AND(TIPOORCAMENTO="LICITADO",ORÇAMENTO.PrecoUnitarioLicitado>$AN44)),"ACIMA REF.",""))))) ->  | AD44: =IF(C44<=CRONO.NivelExibicao,MAX($AD$15:OFFSET(AD44,-1,0))+IF($C44<>1,1,MAX(1,COUNTIF(QCI!$A$13:$A$15,OFFSET($E44,-1,0)))),"") ->  | AE44: =IF(AND($C44="S",ORÇAMENTO.CodBarra<>""),IF(ORÇAMENTO.Fonte="",ORÇAMENTO.CodBarra,CONCATENATE(ORÇAMENTO.Fonte," ",ORÇAMENTO.CodBarra))) -> SINAPI 93596 | AF44: =IF(ISERROR(INDIRECT(ORÇAMENTO.BancoRef)),"(abra o arquivo 'Referência "&Excel_BuiltIn_Database&".xls)",IF(OR($C44<>"S",ORÇAMENTO.CodBarra=""),"(Sem Código)",IF(ISERROR(MATCH($AE44,INDIRECT(ORÇAMENTO.BancoRef),0)),"(Código não identificado nas referências)",MATCH($AE44,INDIRECT(ORÇAMENTO.BancoRef),0)))) -> 11615 | AG44: =ROUND(IF(DESONERACAO="sim",REFERENCIA.Desonerado,REFERENCIA.NaoDesonerado),2) -> 0.45 | AH44: =ROUND(IF(ISNUMBER(ORÇAMENTO.OpcaoBDI),ORÇAMENTO.OpcaoBDI,IF(LEFT(ORÇAMENTO.OpcaoBDI,3)="BDI",HLOOKUP(ORÇAMENTO.OpcaoBDI,$F$4:$H$5,2,FALSE),0)),15-11*$AF$9) -> 0.264 | AM44: 12048.66 | AN44: =ROUND(ORÇAMENTO.CustoUnitario*(1+$AH44),2) -> 0.57
A45: 2 | B45: =IF(OR(C45="s",C45=0),OFFSET(B45,-1,0),C45) -> 2 | C45: =IF(OFFSET(C45,-1,0)="L",1,IF(OFFSET(C45,-1,0)=1,2,IF(OR(A45="s",A45=0),"S",IF(AND(OFFSET(C45,-1,0)=2,A45=4),3,IF(AND(OR(OFFSET(C45,-1,0)="s",OFFSET(C45,-1,0)=0),A45<>"s",A45>OFFSET(B45,-1,0)),OFFSET(B45,-1,0),A45))))) -> 2 | D45: =IF(OR(C45="S",C45=0),0,IF(ISERROR(K45),J45,SMALL(J45:K45,1))) -> 2 | E45: =IF($C45=1,OFFSET(E45,-1,0)+MAX(1,COUNTIF(QCI!$A$13:$A$15,OFFSET(ORÇAMENTO!E45,-1,0))),OFFSET(E45,-1,0)) -> 1 | F45: =IF($C45=1,0,IF($C45=2,OFFSET(F45,-1,0)+1,OFFSET(F45,-1,0))) -> 5 | G45: =IF(AND($C45<=2,$C45<>0),0,IF($C45=3,OFFSET(G45,-1,0)+1,OFFSET(G45,-1,0))) -> 0 | H45: =IF(AND($C45<=3,$C45<>0),0,IF($C45=4,OFFSET(H45,-1,0)+1,OFFSET(H45,-1,0))) -> 0 | I45: =IF(AND($C45<=4,$C45<>0),0,IF(AND($C45="S",$X45>0),OFFSET(I45,-1,0)+1,OFFSET(I45,-1,0))) -> 0 | J45: 14 | K45: =IF(OR($C45="S",$C45=0),0,MATCH(OFFSET($D45,0,$C45)+IF($C45<>1,1,COUNTIF(QCI!$A$13:$A$15,ORÇAMENTO!E45)),OFFSET($D45,1,$C45,ROW($C$59)-ROW($C45)),0)) -> 2 | L45: =IF(OR($X45>0,$C45=1,$C45=2,$C45=3,$C45=4),"F","") -> F | M45: Nível 2 | N45: =CHOOSE(1+LOG(1+2*(C45=1)+4*(C45=2)+8*(C45=3)+16*(C45=4)+32*(C45="S"),2),"","Meta","Nível 2","Nível 3","Nível 4","Serviço") -> Nível 2 | O45: =IF(OR($C45=0,$L45=""),"-",CONCATENATE(E45&".",IF(AND($A$5>=2,$C45>=2),F45&".",""),IF(AND($A$5>=3,$C45>=3),G45&".",""),IF(AND($A$5>=4,$C45>=4),H45&".",""),IF($C45="S",I45&".",""))) -> 1.5. | P45: SINAPI | R45: OBRA DE ARTE CORRENTE | S45: =REFERENCIA.Unidade -> - | T45: =OFFSET(CÁLCULO!H$15,ROW($T45)-ROW(T$15),0) -> 0 | V45: BDI 1 | W45: =IF($C45="S",ROUND(IF(TIPOORCAMENTO="Proposto",ORÇAMENTO.CustoUnitario*(1+$AH45),ORÇAMENTO.PrecoUnitarioLicitado),15-13*$AF$10),0) -> 0 | X45: 33659.36 | Y45: RA | Z45: =IF(AND($C45="S",$X45>0),IF(ISBLANK($Y45),"RA",LEFT($Y45,2)),"") ->  | AA45: =IF($C45="S",IF($Z45="CP",$X45,IF($Z45="RA",(($X45)*QCI!$AA$3),0)),SomaAgrup) -> 2752.6948 | AB45: 0 | AC45: =IF($N45="","",IF(ORÇAMENTO.Descricao="","DESCRIÇÃO",IF(AND($C45="S",ORÇAMENTO.Unidade=""),"UNIDADE",IF($X45<0,"VALOR NEGATIVO",IF(OR(AND(TIPOORCAMENTO="Proposto",$AG45<>"",$AG45>0,ORÇAMENTO.CustoUnitario>$AG45),AND(TIPOORCAMENTO="LICITADO",ORÇAMENTO.PrecoUnitarioLicitado>$AN45)),"ACIMA REF.",""))))) ->  | AD45: =IF(C45<=CRONO.NivelExibicao,MAX($AD$15:OFFSET(AD45,-1,0))+IF($C45<>1,1,MAX(1,COUNTIF(QCI!$A$13:$A$15,OFFSET($E45,-1,0)))),"") -> 6 | AE45: =IF(AND($C45="S",ORÇAMENTO.CodBarra<>""),IF(ORÇAMENTO.Fonte="",ORÇAMENTO.CodBarra,CONCATENATE(ORÇAMENTO.Fonte," ",ORÇAMENTO.CodBarra))) -> FALSE | AF45: =IF(ISERROR(INDIRECT(ORÇAMENTO.BancoRef)),"(abra o arquivo 'Referência "&Excel_BuiltIn_Database&".xls)",IF(OR($C45<>"S",ORÇAMENTO.CodBarra=""),"(Sem Código)",IF(ISERROR(MATCH($AE45,INDIRECT(ORÇAMENTO.BancoRef),0)),"(Código não identificado nas referências)",MATCH($AE45,INDIRECT(ORÇAMENTO.BancoRef),0)))) -> (Sem Código) | AG45: =ROUND(IF(DESONERACAO="sim",REFERENCIA.Desonerado,REFERENCIA.NaoDesonerado),2) -> 0 | AH45: 0.264 | AM45: 33659.36 | AN45: 0
A46: S | B46: 2 | C46: S | D46: 0 | E46: =IF($C46=1,OFFSET(E46,-1,0)+MAX(1,COUNTIF(QCI!$A$13:$A$15,OFFSET(ORÇAMENTO!E46,-1,0))),OFFSET(E46,-1,0)) -> 1 | F46: 5 | G46: 0 | H46: 0 | I46: 1 | J46: 0 | K46: =IF(OR($C46="S",$C46=0),0,MATCH(OFFSET($D46,0,$C46)+IF($C46<>1,1,COUNTIF(QCI!$A$13:$A$15,ORÇAMENTO!E46)),OFFSET($D46,1,$C46,ROW($C$59)-ROW($C46)),0)) -> 0 | L46: F | M46: Serviço | N46: Serviço | O46: 1.5.1. | P46: SINAPI | Q46: 94265 | R46: =IF($C46="S",REFERENCIA.Descricao,"(digite a descrição aqui)") -> GUIA (MEIO-FIO) CONCRETO, MOLDADA IN LOCO EM TRECHO RETO COM EXTRUSORA, 15 CM BASE X 30 CM ALTURA. AF_06/2016 | S46: =REFERENCIA.Unidade -> M | T46: =OFFSET(CÁLCULO!H$15,ROW($T46)-ROW(T$15),0) -> 733 | U46: =AG46 -> 36.33 | V46: BDI 1 | W46: =IF($C46="S",ROUND(IF(TIPOORCAMENTO="Proposto",ORÇAMENTO.CustoUnitario*(1+$AH46),ORÇAMENTO.PrecoUnitarioLicitado),15-13*$AF$10),0) -> 45.92 | X46: 33659.36 | Y46: RA | Z46: RA | AA46: =IF($C46="S",IF($Z46="CP",$X46,IF($Z46="RA",(($X46)*QCI!$AA$3),0)),SomaAgrup) -> 2752.6948 | AB46: 0 | AC46: =IF($N46="","",IF(ORÇAMENTO.Descricao="","DESCRIÇÃO",IF(AND($C46="S",ORÇAMENTO.Unidade=""),"UNIDADE",IF($X46<0,"VALOR NEGATIVO",IF(OR(AND(TIPOORCAMENTO="Proposto",$AG46<>"",$AG46>0,ORÇAMENTO.CustoUnitario>$AG46),AND(TIPOORCAMENTO="LICITADO",ORÇAMENTO.PrecoUnitarioLicitado>$AN46)),"ACIMA REF.",""))))) ->  | AD46: =IF(C46<=CRONO.NivelExibicao,MAX($AD$15:OFFSET(AD46,-1,0))+IF($C46<>1,1,MAX(1,COUNTIF(QCI!$A$13:$A$15,OFFSET($E46,-1,0)))),"") ->  | AE46: =IF(AND($C46="S",ORÇAMENTO.CodBarra<>""),IF(ORÇAMENTO.Fonte="",ORÇAMENTO.CodBarra,CONCATENATE(ORÇAMENTO.Fonte," ",ORÇAMENTO.CodBarra))) -> SINAPI 94265 | AF46: =IF(ISERROR(INDIRECT(ORÇAMENTO.BancoRef)),"(abra o arquivo 'Referência "&Excel_BuiltIn_Database&".xls)",IF(OR($C46<>"S",ORÇAMENTO.CodBarra=""),"(Sem Código)",IF(ISERROR(MATCH($AE46,INDIRECT(ORÇAMENTO.BancoRef),0)),"(Código não identificado nas referências)",MATCH($AE46,INDIRECT(ORÇAMENTO.BancoRef),0)))) -> 6825 | AG46: =ROUND(IF(DESONERACAO="sim",REFERENCIA.Desonerado,REFERENCIA.NaoDesonerado),2) -> 36.33 | AH46: 0.264 | AM46: 33659.36 | AN46: 45.92
A47: =CHOOSE(1+LOG(1+2*(ORÇAMENTO.Nivel="Meta")+4*(ORÇAMENTO.Nivel="Nível 2")+8*(ORÇAMENTO.Nivel="Nível 3")+16*(ORÇAMENTO.Nivel="Nível 4")+32*(ORÇAMENTO.Nivel="Serviço"),2),0,1,2,3,4,"S") -> 2 | B47: =IF(OR(C47="s",C47=0),OFFSET(B47,-1,0),C47) -> 2 | C47: =IF(OFFSET(C47,-1,0)="L",1,IF(OFFSET(C47,-1,0)=1,2,IF(OR(A47="s",A47=0),"S",IF(AND(OFFSET(C47,-1,0)=2,A47=4),3,IF(AND(OR(OFFSET(C47,-1,0)="s",OFFSET(C47,-1,0)=0),A47<>"s",A47>OFFSET(B47,-1,0)),OFFSET(B47,-1,0),A47))))) -> 2 | D47: =IF(OR(C47="S",C47=0),0,IF(ISERROR(K47),J47,SMALL(J47:K47,1))) -> 5 | E47: =IF($C47=1,OFFSET(E47,-1,0)+MAX(1,COUNTIF(QCI!$A$13:$A$15,OFFSET(ORÇAMENTO!E47,-1,0))),OFFSET(E47,-1,0)) -> 1 | F47: =IF($C47=1,0,IF($C47=2,OFFSET(F47,-1,0)+1,OFFSET(F47,-1,0))) -> 6 | G47: =IF(AND($C47<=2,$C47<>0),0,IF($C47=3,OFFSET(G47,-1,0)+1,OFFSET(G47,-1,0))) -> 0 | H47: =IF(AND($C47<=3,$C47<>0),0,IF($C47=4,OFFSET(H47,-1,0)+1,OFFSET(H47,-1,0))) -> 0 | I47: =IF(AND($C47<=4,$C47<>0),0,IF(AND($C47="S",$X47>0),OFFSET(I47,-1,0)+1,OFFSET(I47,-1,0))) -> 0 | J47: 12 | K47: =IF(OR($C47="S",$C47=0),0,MATCH(OFFSET($D47,0,$C47)+IF($C47<>1,1,COUNTIF(QCI!$A$13:$A$15,ORÇAMENTO!E47)),OFFSET($D47,1,$C47,ROW($C$59)-ROW($C47)),0)) -> 5 | L47: =IF(OR($X47>0,$C47=1,$C47=2,$C47=3,$C47=4),"F","") -> F | M47: Nível 2 | N47: =CHOOSE(1+LOG(1+2*(C47=1)+4*(C47=2)+8*(C47=3)+16*(C47=4)+32*(C47="S"),2),"","Meta","Nível 2","Nível 3","Nível 4","Serviço") -> Nível 2 | O47: =IF(OR($C47=0,$L47=""),"-",CONCATENATE(E47&".",IF(AND($A$5>=2,$C47>=2),F47&".",""),IF(AND($A$5>=3,$C47>=3),G47&".",""),IF(AND($A$5>=4,$C47>=4),H47&".",""),IF($C47="S",I47&".",""))) -> 1.6. | P47: SINAPI | R47: SINALIZAÇÃO | S47: =REFERENCIA.Unidade -> - | T47: =OFFSET(CÁLCULO!H$15,ROW($T47)-ROW(T$15),0) -> 0 | V47: BDI 1 | W47: =IF($C47="S",ROUND(IF(TIPOORCAMENTO="Proposto",ORÇAMENTO.CustoUnitario*(1+$AH47),ORÇAMENTO.PrecoUnitarioLicitado),15-13*$AF$10),0) -> 0 | X47: =IF($C47="S",VTOTAL1,IF($C47=0,0,ROUND(SomaAgrup,15-13*$AF$11))) -> 7748.58 | Y47: RA | Z47: =IF(AND($C47="S",$X47>0),IF(ISBLANK($Y47),"RA",LEFT($Y47,2)),"") ->  | AA47: =IF($C47="S",IF($Z47="CP",$X47,IF($Z47="RA",(($X47)*QCI!$AA$3),0)),SomaAgrup) -> 633.6863171 | AB47: =IF($C47="S",IF($Z47="OU",ROUND($X47,2),0),SomaAgrup) -> 0 | AC47: =IF($N47="","",IF(ORÇAMENTO.Descricao="","DESCRIÇÃO",IF(AND($C47="S",ORÇAMENTO.Unidade=""),"UNIDADE",IF($X47<0,"VALOR NEGATIVO",IF(OR(AND(TIPOORCAMENTO="Proposto",$AG47<>"",$AG47>0,ORÇAMENTO.CustoUnitario>$AG47),AND(TIPOORCAMENTO="LICITADO",ORÇAMENTO.PrecoUnitarioLicitado>$AN47)),"ACIMA REF.",""))))) ->  | AD47: =IF(C47<=CRONO.NivelExibicao,MAX($AD$15:OFFSET(AD47,-1,0))+IF($C47<>1,1,MAX(1,COUNTIF(QCI!$A$13:$A$15,OFFSET($E47,-1,0)))),"") -> 7 | AE47: =IF(AND($C47="S",ORÇAMENTO.CodBarra<>""),IF(ORÇAMENTO.Fonte="",ORÇAMENTO.CodBarra,CONCATENATE(ORÇAMENTO.Fonte," ",ORÇAMENTO.CodBarra))) -> FALSE | AF47: =IF(ISERROR(INDIRECT(ORÇAMENTO.BancoRef)),"(abra o arquivo 'Referência "&Excel_BuiltIn_Database&".xls)",IF(OR($C47<>"S",ORÇAMENTO.CodBarra=""),"(Sem Código)",IF(ISERROR(MATCH($AE47,INDIRECT(ORÇAMENTO.BancoRef),0)),"(Código não identificado nas referências)",MATCH($AE47,INDIRECT(ORÇAMENTO.BancoRef),0)))) -> (Sem Código) | AG47: =ROUND(IF(DESONERACAO="sim",REFERENCIA.Desonerado,REFERENCIA.NaoDesonerado),2) -> 0 | AH47: =ROUND(IF(ISNUMBER(ORÇAMENTO.OpcaoBDI),ORÇAMENTO.OpcaoBDI,IF(LEFT(ORÇAMENTO.OpcaoBDI,3)="BDI",HLOOKUP(ORÇAMENTO.OpcaoBDI,$F$4:$H$5,2,FALSE),0)),15-11*$AF$9) -> 0.264 | AM47: 7748.58 | AN47: =ROUND(ORÇAMENTO.CustoUnitario*(1+$AH47),2) -> 0
A48: S | B48: 2 | C48: S | D48: 0 | E48: =IF($C48=1,OFFSET(E48,-1,0)+MAX(1,COUNTIF(QCI!$A$13:$A$15,OFFSET(ORÇAMENTO!E48,-1,0))),OFFSET(E48,-1,0)) -> 1 | F48: 6 | G48: 0 | H48: 0 | I48: 1 | J48: 0 | K48: =IF(OR($C48="S",$C48=0),0,MATCH(OFFSET($D48,0,$C48)+IF($C48<>1,1,COUNTIF(QCI!$A$13:$A$15,ORÇAMENTO!E48)),OFFSET($D48,1,$C48,ROW($C$59)-ROW($C48)),0)) -> 0 | L48: F | M48: Serviço | N48: Serviço | O48: 1.6.1. | P48: SINAPI | Q48: 102509 | R48: =IF($C48="S",REFERENCIA.Descricao,"(digite a descrição aqui)") -> PINTURA DE FAIXA DE PEDESTRE OU ZEBRADA TINTA RETRORREFLETIVA A BASE DE RESINA ACRÍLICA COM MICROESFERAS DE VIDRO, E = 30 CM, APLICAÇÃO MANUAL. AF_05/2021 | S48: =REFERENCIA.Unidade -> M2 | T48: =OFFSET(CÁLCULO!H$15,ROW($T48)-ROW(T$15),0) -> 121.36 | U48: =AG48 -> 19.21 | V48: BDI 1 | W48: 24.28 | X48: 2946.62 | Y48: RA | Z48: RA | AA48: =IF($C48="S",IF($Z48="CP",$X48,IF($Z48="RA",(($X48)*QCI!$AA$3),0)),SomaAgrup) -> 240.9774147 | AB48: 0 | AD48: =IF(C48<=CRONO.NivelExibicao,MAX($AD$15:OFFSET(AD48,-1,0))+IF($C48<>1,1,MAX(1,COUNTIF(QCI!$A$13:$A$15,OFFSET($E48,-1,0)))),"") ->  | AE48: SINAPI 102509 | AF48: 10915 | AG48: 19.21 | AH48: 0.264 | AM48: 2946.62 | AN48: 24.28
A49: S | B49: 2 | C49: S | D49: 0 | E49: =IF($C49=1,OFFSET(E49,-1,0)+MAX(1,COUNTIF(QCI!$A$13:$A$15,OFFSET(ORÇAMENTO!E49,-1,0))),OFFSET(E49,-1,0)) -> 1 | F49: 6 | G49: 0 | H49: 0 | I49: 2 | J49: 0 | K49: =IF(OR($C49="S",$C49=0),0,MATCH(OFFSET($D49,0,$C49)+IF($C49<>1,1,COUNTIF(QCI!$A$13:$A$15,ORÇAMENTO!E49)),OFFSET($D49,1,$C49,ROW($C$59)-ROW($C49)),0)) -> 0 | L49: F | M49: Serviço | N49: Serviço | O49: 1.6.2. | P49: Composição | Q49: COMP07 | R49: =IF($C49="S",REFERENCIA.Descricao,"(digite a descrição aqui)") -> PLACA ESMALTADA PARA IDENTIFICAÇÃO NR DE RUA, DIMENSÕES 45X25CM | S49: =REFERENCIA.Unidade -> UND | T49: =OFFSET(CÁLCULO!H$15,ROW($T49)-ROW(T$15),0) -> 4 | U49: 265 | V49: BDI 1 | W49: 334.96 | X49: 1339.84 | Y49: RA | Z49: RA | AA49: =IF($C49="S",IF($Z49="CP",$X49,IF($Z49="RA",(($X49)*QCI!$AA$3),0)),SomaAgrup) -> 109.5734025 | AB49: 0 | AD49: =IF(C49<=CRONO.NivelExibicao,MAX($AD$15:OFFSET(AD49,-1,0))+IF($C49<>1,1,MAX(1,COUNTIF(QCI!$A$13:$A$15,OFFSET($E49,-1,0)))),"") ->  | AE49: Composição COMP07 | AF49: 6 | AG49: 317.69 | AH49: 0.264 | AM49: 1339.84 | AN49: 334.96
A50: S | B50: 2 | C50: S | D50: 0 | E50: =IF($C50=1,OFFSET(E50,-1,0)+MAX(1,COUNTIF(QCI!$A$13:$A$15,OFFSET(ORÇAMENTO!E50,-1,0))),OFFSET(E50,-1,0)) -> 1 | F50: 6 | G50: 0 | H50: 0 | I50: 3 | J50: 0 | K50: =IF(OR($C50="S",$C50=0),0,MATCH(OFFSET($D50,0,$C50)+IF($C50<>1,1,COUNTIF(QCI!$A$13:$A$15,ORÇAMENTO!E50)),OFFSET($D50,1,$C50,ROW($C$59)-ROW($C50)),0)) -> 0 | L50: F | M50: Serviço | N50: Serviço | O50: 1.6.3. | P50: Composição | Q50: COMP08 | R50: =IF($C50="S",REFERENCIA.Descricao,"(digite a descrição aqui)") -> PLACA DE SINALIZAÇÃO VIÁRIA " VELOCIDADE MAXIMA", D= 50CM, COM SUPORTE DE AÇO GALVANIZADO (D= 50MM E H= 2,5M) | S50: =REFERENCIA.Unidade -> UND | T50: =OFFSET(CÁLCULO!H$15,ROW($T50)-ROW(T$15),0) -> 6 | U50: 287 | V50: BDI 1 | W50: 362.77 | X50: 2176.62 | Y50: RA | Z50: RA | AA50: =IF($C50="S",IF($Z50="CP",$X50,IF($Z50="RA",(($X50)*QCI!$AA$3),0)),SomaAgrup) -> 178.0060749 | AB50: 0 | AD50: =IF(C50<=CRONO.NivelExibicao,MAX($AD$15:OFFSET(AD50,-1,0))+IF($C50<>1,1,MAX(1,COUNTIF(QCI!$A$13:$A$15,OFFSET($E50,-1,0)))),"") ->  | AE50: Composição COMP08 | AF50: 7 | AG50: 344.43 | AH50: 0.264 | AM50: 2176.62 | AN50: 362.77
A51: =CHOOSE(1+LOG(1+2*(ORÇAMENTO.Nivel="Meta")+4*(ORÇAMENTO.Nivel="Nível 2")+8*(ORÇAMENTO.Nivel="Nível 3")+16*(ORÇAMENTO.Nivel="Nível 4")+32*(ORÇAMENTO.Nivel="Serviço"),2),0,1,2,3,4,"S") -> S | B51: =IF(OR(C51="s",C51=0),OFFSET(B51,-1,0),C51) -> 2 | C51: =IF(OFFSET(C51,-1,0)="L",1,IF(OFFSET(C51,-1,0)=1,2,IF(OR(A51="s",A51=0),"S",IF(AND(OFFSET(C51,-1,0)=2,A51=4),3,IF(AND(OR(OFFSET(C51,-1,0)="s",OFFSET(C51,-1,0)=0),A51<>"s",A51>OFFSET(B51,-1,0)),OFFSET(B51,-1,0),A51))))) -> S | D51: =IF(OR(C51="S",C51=0),0,IF(ISERROR(K51),J51,SMALL(J51:K51,1))) -> 0 | E51: =IF($C51=1,OFFSET(E51,-1,0)+MAX(1,COUNTIF(QCI!$A$13:$A$15,OFFSET(ORÇAMENTO!E51,-1,0))),OFFSET(E51,-1,0)) -> 1 | F51: =IF($C51=1,0,IF($C51=2,OFFSET(F51,-1,0)+1,OFFSET(F51,-1,0))) -> 6 | G51: =IF(AND($C51<=2,$C51<>0),0,IF($C51=3,OFFSET(G51,-1,0)+1,OFFSET(G51,-1,0))) -> 0 | H51: =IF(AND($C51<=3,$C51<>0),0,IF($C51=4,OFFSET(H51,-1,0)+1,OFFSET(H51,-1,0))) -> 0 | I51: =IF(AND($C51<=4,$C51<>0),0,IF(AND($C51="S",$X51>0),OFFSET(I51,-1,0)+1,OFFSET(I51,-1,0))) -> 4 | J51: 0 | K51: =IF(OR($C51="S",$C51=0),0,MATCH(OFFSET($D51,0,$C51)+IF($C51<>1,1,COUNTIF(QCI!$A$13:$A$15,ORÇAMENTO!E51)),OFFSET($D51,1,$C51,ROW($C$59)-ROW($C51)),0)) -> 0 | L51: =IF(OR($X51>0,$C51=1,$C51=2,$C51=3,$C51=4),"F","") -> F | M51: Serviço | N51: =CHOOSE(1+LOG(1+2*(C51=1)+4*(C51=2)+8*(C51=3)+16*(C51=4)+32*(C51="S"),2),"","Meta","Nível 2","Nível 3","Nível 4","Serviço") -> Serviço | O51: =IF(OR($C51=0,$L51=""),"-",CONCATENATE(E51&".",IF(AND($A$5>=2,$C51>=2),F51&".",""),IF(AND($A$5>=3,$C51>=3),G51&".",""),IF(AND($A$5>=4,$C51>=4),H51&".",""),IF($C51="S",I51&".",""))) -> 1.6.4. | P51: Composição | Q51: COMP09 | R51: =IF($C51="S",REFERENCIA.Descricao,"(digite a descrição aqui)") -> PLACA DE SINALIZAÇÃO VIÁRIA R1, "PARE", COM SUPORTE DE AÇO GALVANIZADO (L = 50CM E H = 2,5M) | S51: =REFERENCIA.Unidade -> UND | T51: =OFFSET(CÁLCULO!H$15,ROW($T51)-ROW(T$15),0) -> 3 | U51: =AG51 -> 339 | V51: BDI 1 | W51: =IF($C51="S",ROUND(IF(TIPOORCAMENTO="Proposto",ORÇAMENTO.CustoUnitario*(1+$AH51),ORÇAMENTO.PrecoUnitarioLicitado),15-13*$AF$10),0) -> 428.5 | X51: =IF($C51="S",VTOTAL1,IF($C51=0,0,ROUND(SomaAgrup,15-13*$AF$11))) -> 1285.5 | Y51: RA | Z51: =IF(AND($C51="S",$X51>0),IF(ISBLANK($Y51),"RA",LEFT($Y51,2)),"") -> RA | AA51: =IF($C51="S",IF($Z51="CP",$X51,IF($Z51="RA",(($X51)*QCI!$AA$3),0)),SomaAgrup) -> 105.1294251 | AB51: =IF($C51="S",IF($Z51="OU",ROUND($X51,2),0),SomaAgrup) -> 0 | AC51: =IF($N51="","",IF(ORÇAMENTO.Descricao="","DESCRIÇÃO",IF(AND($C51="S",ORÇAMENTO.Unidade=""),"UNIDADE",IF($X51<0,"VALOR NEGATIVO",IF(OR(AND(TIPOORCAMENTO="Proposto",$AG51<>"",$AG51>0,ORÇAMENTO.CustoUnitario>$AG51),AND(TIPOORCAMENTO="LICITADO",ORÇAMENTO.PrecoUnitarioLicitado>$AN51)),"ACIMA REF.",""))))) ->  | AD51: =IF(C51<=CRONO.NivelExibicao,MAX($AD$15:OFFSET(AD51,-1,0))+IF($C51<>1,1,MAX(1,COUNTIF(QCI!$A$13:$A$15,OFFSET($E51,-1,0)))),"") ->  | AE51: =IF(AND($C51="S",ORÇAMENTO.CodBarra<>""),IF(ORÇAMENTO.Fonte="",ORÇAMENTO.CodBarra,CONCATENATE(ORÇAMENTO.Fonte," ",ORÇAMENTO.CodBarra))) -> Composição COMP09 | AF51: =IF(ISERROR(INDIRECT(ORÇAMENTO.BancoRef)),"(abra o arquivo 'Referência "&Excel_BuiltIn_Database&".xls)",IF(OR($C51<>"S",ORÇAMENTO.CodBarra=""),"(Sem Código)",IF(ISERROR(MATCH($AE51,INDIRECT(ORÇAMENTO.BancoRef),0)),"(Código não identificado nas referências)",MATCH($AE51,INDIRECT(ORÇAMENTO.BancoRef),0)))) -> 10 | AG51: =ROUND(IF(DESONERACAO="sim",REFERENCIA.Desonerado,REFERENCIA.NaoDesonerado),2) -> 339 | AH51: =ROUND(IF(ISNUMBER(ORÇAMENTO.OpcaoBDI),ORÇAMENTO.OpcaoBDI,IF(LEFT(ORÇAMENTO.OpcaoBDI,3)="BDI",HLOOKUP(ORÇAMENTO.OpcaoBDI,$F$4:$H$5,2,FALSE),0)),15-11*$AF$9) -> 0.264 | AM51: 1285.5 | AN51: =ROUND(ORÇAMENTO.CustoUnitario*(1+$AH51),2) -> 428.5
A52: 2 | B52: =IF(OR(C52="s",C52=0),OFFSET(B52,-1,0),C52) -> 2 | C52: =IF(OFFSET(C52,-1,0)="L",1,IF(OFFSET(C52,-1,0)=1,2,IF(OR(A52="s",A52=0),"S",IF(AND(OFFSET(C52,-1,0)=2,A52=4),3,IF(AND(OR(OFFSET(C52,-1,0)="s",OFFSET(C52,-1,0)=0),A52<>"s",A52>OFFSET(B52,-1,0)),OFFSET(B52,-1,0),A52))))) -> 2 | D52: =IF(OR(C52="S",C52=0),0,IF(ISERROR(K52),J52,SMALL(J52:K52,1))) -> 5 | E52: =IF($C52=1,OFFSET(E52,-1,0)+MAX(1,COUNTIF(QCI!$A$13:$A$15,OFFSET(ORÇAMENTO!E52,-1,0))),OFFSET(E52,-1,0)) -> 1 | F52: =IF($C52=1,0,IF($C52=2,OFFSET(F52,-1,0)+1,OFFSET(F52,-1,0))) -> 7 | G52: =IF(AND($C52<=2,$C52<>0),0,IF($C52=3,OFFSET(G52,-1,0)+1,OFFSET(G52,-1,0))) -> 0 | H52: =IF(AND($C52<=3,$C52<>0),0,IF($C52=4,OFFSET(H52,-1,0)+1,OFFSET(H52,-1,0))) -> 0 | I52: =IF(AND($C52<=4,$C52<>0),0,IF(AND($C52="S",$X52>0),OFFSET(I52,-1,0)+1,OFFSET(I52,-1,0))) -> 0 | J52: 7 | K52: =IF(OR($C52="S",$C52=0),0,MATCH(OFFSET($D52,0,$C52)+IF($C52<>1,1,COUNTIF(QCI!$A$13:$A$15,ORÇAMENTO!E52)),OFFSET($D52,1,$C52,ROW($C$59)-ROW($C52)),0)) -> 5 | L52: =IF(OR($X52>0,$C52=1,$C52=2,$C52=3,$C52=4),"F","") -> F | M52: Nível 2 | N52: =CHOOSE(1+LOG(1+2*(C52=1)+4*(C52=2)+8*(C52=3)+16*(C52=4)+32*(C52="S"),2),"","Meta","Nível 2","Nível 3","Nível 4","Serviço") -> Nível 2 | O52: =IF(OR($C52=0,$L52=""),"-",CONCATENATE(E52&".",IF(AND($A$5>=2,$C52>=2),F52&".",""),IF(AND($A$5>=3,$C52>=3),G52&".",""),IF(AND($A$5>=4,$C52>=4),H52&".",""),IF($C52="S",I52&".",""))) -> 1.7. | P52: SINAPI | R52: PAVIMENTAÇÃO EM PAVER | S52: =REFERENCIA.Unidade -> - | T52: =OFFSET(CÁLCULO!H$15,ROW($T52)-ROW(T$15),0) -> 0 | V52: BDI 1 | W52: =IF($C52="S",ROUND(IF(TIPOORCAMENTO="Proposto",ORÇAMENTO.CustoUnitario*(1+$AH52),ORÇAMENTO.PrecoUnitarioLicitado),15-13*$AF$10),0) -> 0 | X52: 103481.75 | Y52: RA | Z52: =IF(AND($C52="S",$X52>0),IF(ISBLANK($Y52),"RA",LEFT($Y52,2)),"") ->  | AA52: =IF($C52="S",IF($Z52="CP",$X52,IF($Z52="RA",(($X52)*QCI!$AA$3),0)),SomaAgrup) -> 8462.836938 | AB52: 0 | AC52: =IF($N52="","",IF(ORÇAMENTO.Descricao="","DESCRIÇÃO",IF(AND($C52="S",ORÇAMENTO.Unidade=""),"UNIDADE",IF($X52<0,"VALOR NEGATIVO",IF(OR(AND(TIPOORCAMENTO="Proposto",$AG52<>"",$AG52>0,ORÇAMENTO.CustoUnitario>$AG52),AND(TIPOORCAMENTO="LICITADO",ORÇAMENTO.PrecoUnitarioLicitado>$AN52)),"ACIMA REF.",""))))) ->  | AD52: =IF(C52<=CRONO.NivelExibicao,MAX($AD$15:OFFSET(AD52,-1,0))+IF($C52<>1,1,MAX(1,COUNTIF(QCI!$A$13:$A$15,OFFSET($E52,-1,0)))),"") -> 8 | AE52: =IF(AND($C52="S",ORÇAMENTO.CodBarra<>""),IF(ORÇAMENTO.Fonte="",ORÇAMENTO.CodBarra,CONCATENATE(ORÇAMENTO.Fonte," ",ORÇAMENTO.CodBarra))) -> FALSE | AF52: =IF(ISERROR(INDIRECT(ORÇAMENTO.BancoRef)),"(abra o arquivo 'Referência "&Excel_BuiltIn_Database&".xls)",IF(OR($C52<>"S",ORÇAMENTO.CodBarra=""),"(Sem Código)",IF(ISERROR(MATCH($AE52,INDIRECT(ORÇAMENTO.BancoRef),0)),"(Código não identificado nas referências)",MATCH($AE52,INDIRECT(ORÇAMENTO.BancoRef),0)))) -> (Sem Código) | AG52: =ROUND(IF(DESONERACAO="sim",REFERENCIA.Desonerado,REFERENCIA.NaoDesonerado),2) -> 0 | AH52: 0.264 | AM52: 103481.75 | AN52: 0
A53: S | B53: 2 | C53: S | D53: 0 | E53: =IF($C53=1,OFFSET(E53,-1,0)+MAX(1,COUNTIF(QCI!$A$13:$A$15,OFFSET(ORÇAMENTO!E53,-1,0))),OFFSET(E53,-1,0)) -> 1 | F53: 7 | G53: 0 | H53: 0 | I53: 1 | J53: 0 | K53: =IF(OR($C53="S",$C53=0),0,MATCH(OFFSET($D53,0,$C53)+IF($C53<>1,1,COUNTIF(QCI!$A$13:$A$15,ORÇAMENTO!E53)),OFFSET($D53,1,$C53,ROW($C$59)-ROW($C53)),0)) -> 0 | L53: F | M53: Serviço | N53: Serviço | O53: 1.7.1. | P53: SINAPI | Q53: 100576 | R53: =IF($C53="S",REFERENCIA.Descricao,"(digite a descrição aqui)") -> REGULARIZAÇÃO E COMPACTAÇÃO DE SUBLEITO DE SOLO PREDOMINANTEMENTE ARGILOSO. AF_11/2019 | S53: =REFERENCIA.Unidade -> M2 | T53: =OFFSET(CÁLCULO!H$15,ROW($T53)-ROW(T$15),0) -> 1081.85 | U53: 1.67 | V53: BDI 1 | W53: =IF($C53="S",ROUND(IF(TIPOORCAMENTO="Proposto",ORÇAMENTO.CustoUnitario*(1+$AH53),ORÇAMENTO.PrecoUnitarioLicitado),15-13*$AF$10),0) -> 2.11 | X53: 2282.7 | Y53: RA | Z53: RA | AA53: =IF($C53="S",IF($Z53="CP",$X53,IF($Z53="RA",(($X53)*QCI!$AA$3),0)),SomaAgrup) -> 186.6813992 | AB53: 0 | AC53: =IF($N53="","",IF(ORÇAMENTO.Descricao="","DESCRIÇÃO",IF(AND($C53="S",ORÇAMENTO.Unidade=""),"UNIDADE",IF($X53<0,"VALOR NEGATIVO",IF(OR(AND(TIPOORCAMENTO="Proposto",$AG53<>"",$AG53>0,ORÇAMENTO.CustoUnitario>$AG53),AND(TIPOORCAMENTO="LICITADO",ORÇAMENTO.PrecoUnitarioLicitado>$AN53)),"ACIMA REF.",""))))) ->  | AD53: =IF(C53<=CRONO.NivelExibicao,MAX($AD$15:OFFSET(AD53,-1,0))+IF($C53<>1,1,MAX(1,COUNTIF(QCI!$A$13:$A$15,OFFSET($E53,-1,0)))),"") ->  | AE53: =IF(AND($C53="S",ORÇAMENTO.CodBarra<>""),IF(ORÇAMENTO.Fonte="",ORÇAMENTO.CodBarra,CONCATENATE(ORÇAMENTO.Fonte," ",ORÇAMENTO.CodBarra))) -> SINAPI 100576 | AF53: =IF(ISERROR(INDIRECT(ORÇAMENTO.BancoRef)),"(abra o arquivo 'Referência "&Excel_BuiltIn_Database&".xls)",IF(OR($C53<>"S",ORÇAMENTO.CodBarra=""),"(Sem Código)",IF(ISERROR(MATCH($AE53,INDIRECT(ORÇAMENTO.BancoRef),0)),"(Código não identificado nas referências)",MATCH($AE53,INDIRECT(ORÇAMENTO.BancoRef),0)))) -> 10694 | AG53: =ROUND(IF(DESONERACAO="sim",REFERENCIA.Desonerado,REFERENCIA.NaoDesonerado),2) -> 1.67 | AH53: 0.264 | AM53: 2282.7 | AN53: 2.11
A54: S | B54: 2 | C54: S | D54: 0 | E54: =IF($C54=1,OFFSET(E54,-1,0)+MAX(1,COUNTIF(QCI!$A$13:$A$15,OFFSET(ORÇAMENTO!E54,-1,0))),OFFSET(E54,-1,0)) -> 1 | F54: 7 | G54: 0 | H54: 0 | I54: 2 | J54: 0 | K54: =IF(OR($C54="S",$C54=0),0,MATCH(OFFSET($D54,0,$C54)+IF($C54<>1,1,COUNTIF(QCI!$A$13:$A$15,ORÇAMENTO!E54)),OFFSET($D54,1,$C54,ROW($C$59)-ROW($C54)),0)) -> 0 | L54: F | M54: Serviço | N54: Serviço | O54: 1.7.2. | P54: SINAPI | Q54: 92396 | R54: =IF($C54="S",REFERENCIA.Descricao,"(digite a descrição aqui)") -> EXECUÇÃO DE PASSEIO EM PISO INTERTRAVADO, COM BLOCO RETANGULAR COR NATURAL DE 20 X 10 CM, ESPESSURA 6 CM. AF_12/2015 | S54: =REFERENCIA.Unidade -> M2 | T54: =OFFSET(CÁLCULO!H$15,ROW($T54)-ROW(T$15),0) -> 953.17 | U54: 56.09 | V54: BDI 1 | W54: =IF($C54="S",ROUND(IF(TIPOORCAMENTO="Proposto",ORÇAMENTO.CustoUnitario*(1+$AH54),ORÇAMENTO.PrecoUnitarioLicitado),15-13*$AF$10),0) -> 70.9 | X54: 67579.75 | Y54: RA | Z54: RA | AA54: =IF($C54="S",IF($Z54="CP",$X54,IF($Z54="RA",(($X54)*QCI!$AA$3),0)),SomaAgrup) -> 5526.736884 | AB54: 0 | AC54: =IF($N54="","",IF(ORÇAMENTO.Descricao="","DESCRIÇÃO",IF(AND($C54="S",ORÇAMENTO.Unidade=""),"UNIDADE",IF($X54<0,"VALOR NEGATIVO",IF(OR(AND(TIPOORCAMENTO="Proposto",$AG54<>"",$AG54>0,ORÇAMENTO.CustoUnitario>$AG54),AND(TIPOORCAMENTO="LICITADO",ORÇAMENTO.PrecoUnitarioLicitado>$AN54)),"ACIMA REF.",""))))) ->  | AD54: =IF(C54<=CRONO.NivelExibicao,MAX($AD$15:OFFSET(AD54,-1,0))+IF($C54<>1,1,MAX(1,COUNTIF(QCI!$A$13:$A$15,OFFSET($E54,-1,0)))),"") ->  | AE54: =IF(AND($C54="S",ORÇAMENTO.CodBarra<>""),IF(ORÇAMENTO.Fonte="",ORÇAMENTO.CodBarra,CONCATENATE(ORÇAMENTO.Fonte," ",ORÇAMENTO.CodBarra))) -> SINAPI 92396 | AF54: =IF(ISERROR(INDIRECT(ORÇAMENTO.BancoRef)),"(abra o arquivo 'Referência "&Excel_BuiltIn_Database&".xls)",IF(OR($C54<>"S",ORÇAMENTO.CodBarra=""),"(Sem Código)",IF(ISERROR(MATCH($AE54,INDIRECT(ORÇAMENTO.BancoRef),0)),"(Código não identificado nas referências)",MATCH($AE54,INDIRECT(ORÇAMENTO.BancoRef),0)))) -> 10726 | AG54: =ROUND(IF(DESONERACAO="sim",REFERENCIA.Desonerado,REFERENCIA.NaoDesonerado),2) -> 56.09 | AH54: 0.264 | AM54: 67579.75 | AN54: 70.9
A55: S | B55: 2 | C55: S | D55: 0 | E55: =IF($C55=1,OFFSET(E55,-1,0)+MAX(1,COUNTIF(QCI!$A$13:$A$15,OFFSET(ORÇAMENTO!E55,-1,0))),OFFSET(E55,-1,0)) -> 1 | F55: 7 | G55: 0 | H55: 0 | I55: 3 | J55: 0 | K55: =IF(OR($C55="S",$C55=0),0,MATCH(OFFSET($D55,0,$C55)+IF($C55<>1,1,COUNTIF(QCI!$A$13:$A$15,ORÇAMENTO!E55)),OFFSET($D55,1,$C55,ROW($C$59)-ROW($C55)),0)) -> 0 | L55: F | M55: Serviço | N55: Serviço | O55: 1.7.3. | P55: Composição | Q55: COMP10 | R55: =IF($C55="S",REFERENCIA.Descricao,"(digite a descrição aqui)") -> PAVIMENTAÇÃO COM BLOCO INTERTRAVADO TIPO PAVER 10x20CM, T-ALERTA OU T-DIRECIONAL, ASSENTADO SOBRE COLCHÃO DE PEDRA, E = 6CM, INCLUSO REJUNTE COM AREIA FINA | S55: =REFERENCIA.Unidade -> M2 | T55: =OFFSET(CÁLCULO!H$15,ROW($T55)-ROW(T$15),0) -> 128.68 | U55: 74.44 | V55: BDI 1 | W55: =IF($C55="S",ROUND(IF(TIPOORCAMENTO="Proposto",ORÇAMENTO.CustoUnitario*(1+$AH55),ORÇAMENTO.PrecoUnitarioLicitado),15-13*$AF$10),0) -> 94.09 | X55: 12107.5 | Y55: RA | Z55: RA | AA55: =IF($C55="S",IF($Z55="CP",$X55,IF($Z55="RA",(($X55)*QCI!$AA$3),0)),SomaAgrup) -> 990.1629826 | AB55: 0 | AC55: =IF($N55="","",IF(ORÇAMENTO.Descricao="","DESCRIÇÃO",IF(AND($C55="S",ORÇAMENTO.Unidade=""),"UNIDADE",IF($X55<0,"VALOR NEGATIVO",IF(OR(AND(TIPOORCAMENTO="Proposto",$AG55<>"",$AG55>0,ORÇAMENTO.CustoUnitario>$AG55),AND(TIPOORCAMENTO="LICITADO",ORÇAMENTO.PrecoUnitarioLicitado>$AN55)),"ACIMA REF.",""))))) ->  | AD55: =IF(C55<=CRONO.NivelExibicao,MAX($AD$15:OFFSET(AD55,-1,0))+IF($C55<>1,1,MAX(1,COUNTIF(QCI!$A$13:$A$15,OFFSET($E55,-1,0)))),"") ->  | AE55: =IF(AND($C55="S",ORÇAMENTO.CodBarra<>""),IF(ORÇAMENTO.Fonte="",ORÇAMENTO.CodBarra,CONCATENATE(ORÇAMENTO.Fonte," ",ORÇAMENTO.CodBarra))) -> Composição COMP10 | AF55: =IF(ISERROR(INDIRECT(ORÇAMENTO.BancoRef)),"(abra o arquivo 'Referência "&Excel_BuiltIn_Database&".xls)",IF(OR($C55<>"S",ORÇAMENTO.CodBarra=""),"(Sem Código)",IF(ISERROR(MATCH($AE55,INDIRECT(ORÇAMENTO.BancoRef),0)),"(Código não identificado nas referências)",MATCH($AE55,INDIRECT(ORÇAMENTO.BancoRef),0)))) -> 13 | AG55: =ROUND(IF(DESONERACAO="sim",REFERENCIA.Desonerado,REFERENCIA.NaoDesonerado),2) -> 74.44 | AH55: 0.264 | AM55: 12107.5 | AN55: 94.09
A56: S | B56: =IF(OR(C56="s",C56=0),OFFSET(B56,-1,0),C56) -> 2 | C56: =IF(OFFSET(C56,-1,0)="L",1,IF(OFFSET(C56,-1,0)=1,2,IF(OR(A56="s",A56=0),"S",IF(AND(OFFSET(C56,-1,0)=2,A56=4),3,IF(AND(OR(OFFSET(C56,-1,0)="s",OFFSET(C56,-1,0)=0),A56<>"s",A56>OFFSET(B56,-1,0)),OFFSET(B56,-1,0),A56))))) -> S | D56: =IF(OR(C56="S",C56=0),0,IF(ISERROR(K56),J56,SMALL(J56:K56,1))) -> 0 | E56: =IF($C56=1,OFFSET(E56,-1,0)+MAX(1,COUNTIF(QCI!$A$13:$A$15,OFFSET(ORÇAMENTO!E56,-1,0))),OFFSET(E56,-1,0)) -> 1 | F56: =IF($C56=1,0,IF($C56=2,OFFSET(F56,-1,0)+1,OFFSET(F56,-1,0))) -> 7 | G56: =IF(AND($C56<=2,$C56<>0),0,IF($C56=3,OFFSET(G56,-1,0)+1,OFFSET(G56,-1,0))) -> 0 | H56: =IF(AND($C56<=3,$C56<>0),0,IF($C56=4,OFFSET(H56,-1,0)+1,OFFSET(H56,-1,0))) -> 0 | I56: =IF(AND($C56<=4,$C56<>0),0,IF(AND($C56="S",$X56>0),OFFSET(I56,-1,0)+1,OFFSET(I56,-1,0))) -> 4 | J56: =IF(OR($C56="S",$C56=0),0,MATCH(0,OFFSET($D56,1,$C56,ROW($C$59)-ROW($C56)),0)) -> 0 | K56: =IF(OR($C56="S",$C56=0),0,MATCH(OFFSET($D56,0,$C56)+IF($C56<>1,1,COUNTIF(QCI!$A$13:$A$15,ORÇAMENTO!E56)),OFFSET($D56,1,$C56,ROW($C$59)-ROW($C56)),0)) -> 0 | L56: =IF(OR($X56>0,$C56=1,$C56=2,$C56=3,$C56=4),"F","") -> F | M56: Serviço | N56: =CHOOSE(1+LOG(1+2*(C56=1)+4*(C56=2)+8*(C56=3)+16*(C56=4)+32*(C56="S"),2),"","Meta","Nível 2","Nível 3","Nível 4","Serviço") -> Serviço | O56: =IF(OR($C56=0,$L56=""),"-",CONCATENATE(E56&".",IF(AND($A$5>=2,$C56>=2),F56&".",""),IF(AND($A$5>=3,$C56>=3),G56&".",""),IF(AND($A$5>=4,$C56>=4),H56&".",""),IF($C56="S",I56&".",""))) -> 1.7.4. | P56: SINAPI | Q56: 94263 | R56: =IF($C56="S",REFERENCIA.Descricao,"(digite a descrição aqui)") -> GUIA (MEIO-FIO) CONCRETO, MOLDADA IN LOCO EM TRECHO RETO COM EXTRUSORA, 13 CM BASE X 22 CM ALTURA. AF_06/2016 | S56: =REFERENCIA.Unidade -> M | T56: =OFFSET(CÁLCULO!H$15,ROW($T56)-ROW(T$15),0) -> 612 | U56: 27.81 | V56: BDI 1 | W56: =IF($C56="S",ROUND(IF(TIPOORCAMENTO="Proposto",ORÇAMENTO.CustoUnitario*(1+$AH56),ORÇAMENTO.PrecoUnitarioLicitado),15-13*$AF$10),0) -> 35.15 | X56: 21511.8 | Y56: RA | Z56: =IF(AND($C56="S",$X56>0),IF(ISBLANK($Y56),"RA",LEFT($Y56,2)),"") -> RA | AA56: =IF($C56="S",IF($Z56="CP",$X56,IF($Z56="RA",(($X56)*QCI!$AA$3),0)),SomaAgrup) -> 1759.255672 | AB56: 0 | AC56: =IF($N56="","",IF(ORÇAMENTO.Descricao="","DESCRIÇÃO",IF(AND($C56="S",ORÇAMENTO.Unidade=""),"UNIDADE",IF($X56<0,"VALOR NEGATIVO",IF(OR(AND(TIPOORCAMENTO="Proposto",$AG56<>"",$AG56>0,ORÇAMENTO.CustoUnitario>$AG56),AND(TIPOORCAMENTO="LICITADO",ORÇAMENTO.PrecoUnitarioLicitado>$AN56)),"ACIMA REF.",""))))) ->  | AD56: =IF(C56<=CRONO.NivelExibicao,MAX($AD$15:OFFSET(AD56,-1,0))+IF($C56<>1,1,MAX(1,COUNTIF(QCI!$A$13:$A$15,OFFSET($E56,-1,0)))),"") ->  | AE56: =IF(AND($C56="S",ORÇAMENTO.CodBarra<>""),IF(ORÇAMENTO.Fonte="",ORÇAMENTO.CodBarra,CONCATENATE(ORÇAMENTO.Fonte," ",ORÇAMENTO.CodBarra))) -> SINAPI 94263 | AF56: =IF(ISERROR(INDIRECT(ORÇAMENTO.BancoRef)),"(abra o arquivo 'Referência "&Excel_BuiltIn_Database&".xls)",IF(OR($C56<>"S",ORÇAMENTO.CodBarra=""),"(Sem Código)",IF(ISERROR(MATCH($AE56,INDIRECT(ORÇAMENTO.BancoRef),0)),"(Código não identificado nas referências)",MATCH($AE56,INDIRECT(ORÇAMENTO.BancoRef),0)))) -> 6823 | AG56: =ROUND(IF(DESONERACAO="sim",REFERENCIA.Desonerado,REFERENCIA.NaoDesonerado),2) -> 27.81 | AH56: 0.264 | AM56: 21511.8 | AN56: 35.15
A57: =CHOOSE(1+LOG(1+2*(ORÇAMENTO.Nivel="Meta")+4*(ORÇAMENTO.Nivel="Nível 2")+8*(ORÇAMENTO.Nivel="Nível 3")+16*(ORÇAMENTO.Nivel="Nível 4")+32*(ORÇAMENTO.Nivel="Serviço"),2),0,1,2,3,4,"S") -> 2 | B57: =IF(OR(C57="s",C57=0),OFFSET(B57,-1,0),C57) -> 2 | C57: =IF(OFFSET(C57,-1,0)="L",1,IF(OFFSET(C57,-1,0)=1,2,IF(OR(A57="s",A57=0),"S",IF(AND(OFFSET(C57,-1,0)=2,A57=4),3,IF(AND(OR(OFFSET(C57,-1,0)="s",OFFSET(C57,-1,0)=0),A57<>"s",A57>OFFSET(B57,-1,0)),OFFSET(B57,-1,0),A57))))) -> 2 | D57: =IF(OR(C57="S",C57=0),0,IF(ISERROR(K57),J57,SMALL(J57:K57,1))) -> 2 | E57: =IF($C57=1,OFFSET(E57,-1,0)+MAX(1,COUNTIF(QCI!$A$13:$A$15,OFFSET(ORÇAMENTO!E57,-1,0))),OFFSET(E57,-1,0)) -> 1 | F57: =IF($C57=1,0,IF($C57=2,OFFSET(F57,-1,0)+1,OFFSET(F57,-1,0))) -> 8 | G57: =IF(AND($C57<=2,$C57<>0),0,IF($C57=3,OFFSET(G57,-1,0)+1,OFFSET(G57,-1,0))) -> 0 | H57: =IF(AND($C57<=3,$C57<>0),0,IF($C57=4,OFFSET(H57,-1,0)+1,OFFSET(H57,-1,0))) -> 0 | I57: =IF(AND($C57<=4,$C57<>0),0,IF(AND($C57="S",$X57>0),OFFSET(I57,-1,0)+1,OFFSET(I57,-1,0))) -> 0 | J57: 2 | K57: =IF(OR($C57="S",$C57=0),0,MATCH(OFFSET($D57,0,$C57)+IF($C57<>1,1,COUNTIF(QCI!$A$13:$A$15,ORÇAMENTO!E57)),OFFSET($D57,1,$C57,ROW($C$59)-ROW($C57)),0)) ->  | L57: =IF(OR($X57>0,$C57=1,$C57=2,$C57=3,$C57=4),"F","") -> F | M57: Nível 2 | N57: =CHOOSE(1+LOG(1+2*(C57=1)+4*(C57=2)+8*(C57=3)+16*(C57=4)+32*(C57="S"),2),"","Meta","Nível 2","Nível 3","Nível 4","Serviço") -> Nível 2 | O57: =IF(OR($C57=0,$L57=""),"-",CONCATENATE(E57&".",IF(AND($A$5>=2,$C57>=2),F57&".",""),IF(AND($A$5>=3,$C57>=3),G57&".",""),IF(AND($A$5>=4,$C57>=4),H57&".",""),IF($C57="S",I57&".",""))) -> 1.8. | P57: SINAPI-I | Q57: 11883 | R57: SERVIÇOS COMPLEMENTARES | S57: =REFERENCIA.Unidade -> - | T57: =OFFSET(CÁLCULO!H$15,ROW($T57)-ROW(T$15),0) -> 0 | V57: BDI 1 | W57: =IF($C57="S",ROUND(IF(TIPOORCAMENTO="Proposto",ORÇAMENTO.CustoUnitario*(1+$AH57),ORÇAMENTO.PrecoUnitarioLicitado),15-13*$AF$10),0) -> 0 | X57: =IF($C57="S",VTOTAL1,IF($C57=0,0,ROUND(SomaAgrup,15-13*$AF$11))) -> 3210.77 | Y57: RA | Z57: =IF(AND($C57="S",$X57>0),IF(ISBLANK($Y57),"RA",LEFT($Y57,2)),"") ->  | AA57: =IF($C57="S",IF($Z57="CP",$X57,IF($Z57="RA",(($X57)*QCI!$AA$3),0)),SomaAgrup) -> 262.5798554 | AB57: =IF($C57="S",IF($Z57="OU",ROUND($X57,2),0),SomaAgrup) -> 0 | AC57: =IF($N57="","",IF(ORÇAMENTO.Descricao="","DESCRIÇÃO",IF(AND($C57="S",ORÇAMENTO.Unidade=""),"UNIDADE",IF($X57<0,"VALOR NEGATIVO",IF(OR(AND(TIPOORCAMENTO="Proposto",$AG57<>"",$AG57>0,ORÇAMENTO.CustoUnitario>$AG57),AND(TIPOORCAMENTO="LICITADO",ORÇAMENTO.PrecoUnitarioLicitado>$AN57)),"ACIMA REF.",""))))) ->  | AD57: =IF(C57<=CRONO.NivelExibicao,MAX($AD$15:OFFSET(AD57,-1,0))+IF($C57<>1,1,MAX(1,COUNTIF(QCI!$A$13:$A$15,OFFSET($E57,-1,0)))),"") -> 9 | AE57: =IF(AND($C57="S",ORÇAMENTO.CodBarra<>""),IF(ORÇAMENTO.Fonte="",ORÇAMENTO.CodBarra,CONCATENATE(ORÇAMENTO.Fonte," ",ORÇAMENTO.CodBarra))) -> FALSE | AF57: =IF(ISERROR(INDIRECT(ORÇAMENTO.BancoRef)),"(abra o arquivo 'Referência "&Excel_BuiltIn_Database&".xls)",IF(OR($C57<>"S",ORÇAMENTO.CodBarra=""),"(Sem Código)",IF(ISERROR(MATCH($AE57,INDIRECT(ORÇAMENTO.BancoRef),0)),"(Código não identificado nas referências)",MATCH($AE57,INDIRECT(ORÇAMENTO.BancoRef),0)))) -> (Sem Código) | AG57: =ROUND(IF(DESONERACAO="sim",REFERENCIA.Desonerado,REFERENCIA.NaoDesonerado),2) -> 0 | AH57: =ROUND(IF(ISNUMBER(ORÇAMENTO.OpcaoBDI),ORÇAMENTO.OpcaoBDI,IF(LEFT(ORÇAMENTO.OpcaoBDI,3)="BDI",HLOOKUP(ORÇAMENTO.OpcaoBDI,$F$4:$H$5,2,FALSE),0)),15-11*$AF$9) -> 0.264 | AM57: =$X57 -> 3210.77 | AN57: =ROUND(ORÇAMENTO.CustoUnitario*(1+$AH57),2) -> 0
A58: =CHOOSE(1+LOG(1+2*(ORÇAMENTO.Nivel="Meta")+4*(ORÇAMENTO.Nivel="Nível 2")+8*(ORÇAMENTO.Nivel="Nível 3")+16*(ORÇAMENTO.Nivel="Nível 4")+32*(ORÇAMENTO.Nivel="Serviço"),2),0,1,2,3,4,"S") -> S | B58: =IF(OR(C58="s",C58=0),OFFSET(B58,-1,0),C58) -> 2 | C58: =IF(OFFSET(C58,-1,0)="L",1,IF(OFFSET(C58,-1,0)=1,2,IF(OR(A58="s",A58=0),"S",IF(AND(OFFSET(C58,-1,0)=2,A58=4),3,IF(AND(OR(OFFSET(C58,-1,0)="s",OFFSET(C58,-1,0)=0),A58<>"s",A58>OFFSET(B58,-1,0)),OFFSET(B58,-1,0),A58))))) -> S | D58: =IF(OR(C58="S",C58=0),0,IF(ISERROR(K58),J58,SMALL(J58:K58,1))) -> 0 | E58: =IF($C58=1,OFFSET(E58,-1,0)+MAX(1,COUNTIF(QCI!$A$13:$A$15,OFFSET(ORÇAMENTO!E58,-1,0))),OFFSET(E58,-1,0)) -> 1 | F58: =IF($C58=1,0,IF($C58=2,OFFSET(F58,-1,0)+1,OFFSET(F58,-1,0))) -> 8 | G58: =IF(AND($C58<=2,$C58<>0),0,IF($C58=3,OFFSET(G58,-1,0)+1,OFFSET(G58,-1,0))) -> 0 | H58: =IF(AND($C58<=3,$C58<>0),0,IF($C58=4,OFFSET(H58,-1,0)+1,OFFSET(H58,-1,0))) -> 0 | I58: =IF(AND($C58<=4,$C58<>0),0,IF(AND($C58="S",$X58>0),OFFSET(I58,-1,0)+1,OFFSET(I58,-1,0))) -> 1 | J58: 0 | K58: =IF(OR($C58="S",$C58=0),0,MATCH(OFFSET($D58,0,$C58)+IF($C58<>1,1,COUNTIF(QCI!$A$13:$A$15,ORÇAMENTO!E58)),OFFSET($D58,1,$C58,ROW($C$59)-ROW($C58)),0)) -> 0 | L58: =IF(OR($X58>0,$C58=1,$C58=2,$C58=3,$C58=4),"F","") -> F | M58: Serviço | N58: =CHOOSE(1+LOG(1+2*(C58=1)+4*(C58=2)+8*(C58=3)+16*(C58=4)+32*(C58="S"),2),"","Meta","Nível 2","Nível 3","Nível 4","Serviço") -> Serviço | O58: =IF(OR($C58=0,$L58=""),"-",CONCATENATE(E58&".",IF(AND($A$5>=2,$C58>=2),F58&".",""),IF(AND($A$5>=3,$C58>=3),G58&".",""),IF(AND($A$5>=4,$C58>=4),H58&".",""),IF($C58="S",I58&".",""))) -> 1.8.1. | P58: Composição | Q58: COMP11 | R58: =IF($C58="S",REFERENCIA.Descricao,"(digite a descrição aqui)") -> LIMPEZA FINAL DE OBRA | S58: =REFERENCIA.Unidade -> M2 | T58: =OFFSET(CÁLCULO!H$15,ROW($T58)-ROW(T$15),0) -> 4398.31 | U58: =AG58 -> 0.58 | V58: BDI 1 | W58: =IF($C58="S",ROUND(IF(TIPOORCAMENTO="Proposto",ORÇAMENTO.CustoUnitario*(1+$AH58),ORÇAMENTO.PrecoUnitarioLicitado),15-13*$AF$10),0) -> 0.73 | X58: =IF($C58="S",VTOTAL1,IF($C58=0,0,ROUND(SomaAgrup,15-13*$AF$11))) -> 3210.77 | Y58: RA | Z58: =IF(AND($C58="S",$X58>0),IF(ISBLANK($Y58),"RA",LEFT($Y58,2)),"") -> RA | AA58: =IF($C58="S",IF($Z58="CP",$X58,IF($Z58="RA",(($X58)*QCI!$AA$3),0)),SomaAgrup) -> 262.5798554 | AB58: =IF($C58="S",IF($Z58="OU",ROUND($X58,2),0),SomaAgrup) -> 0 | AC58: =IF($N58="","",IF(ORÇAMENTO.Descricao="","DESCRIÇÃO",IF(AND($C58="S",ORÇAMENTO.Unidade=""),"UNIDADE",IF($X58<0,"VALOR NEGATIVO",IF(OR(AND(TIPOORCAMENTO="Proposto",$AG58<>"",$AG58>0,ORÇAMENTO.CustoUnitario>$AG58),AND(TIPOORCAMENTO="LICITADO",ORÇAMENTO.PrecoUnitarioLicitado>$AN58)),"ACIMA REF.",""))))) ->  | AD58: =IF(C58<=CRONO.NivelExibicao,MAX($AD$15:OFFSET(AD58,-1,0))+IF($C58<>1,1,MAX(1,COUNTIF(QCI!$A$13:$A$15,OFFSET($E58,-1,0)))),"") ->  | AE58: =IF(AND($C58="S",ORÇAMENTO.CodBarra<>""),IF(ORÇAMENTO.Fonte="",ORÇAMENTO.CodBarra,CONCATENATE(ORÇAMENTO.Fonte," ",ORÇAMENTO.CodBarra))) -> Composição COMP11 | AF58: =IF(ISERROR(INDIRECT(ORÇAMENTO.BancoRef)),"(abra o arquivo 'Referência "&Excel_BuiltIn_Database&".xls)",IF(OR($C58<>"S",ORÇAMENTO.CodBarra=""),"(Sem Código)",IF(ISERROR(MATCH($AE58,INDIRECT(ORÇAMENTO.BancoRef),0)),"(Código não identificado nas referências)",MATCH($AE58,INDIRECT(ORÇAMENTO.BancoRef),0)))) -> 8 | AG58: =ROUND(IF(DESONERACAO="sim",REFERENCIA.Desonerado,REFERENCIA.NaoDesonerado),2) -> 0.58 | AH58: =ROUND(IF(ISNUMBER(ORÇAMENTO.OpcaoBDI),ORÇAMENTO.OpcaoBDI,IF(LEFT(ORÇAMENTO.OpcaoBDI,3)="BDI",HLOOKUP(ORÇAMENTO.OpcaoBDI,$F$4:$H$5,2,FALSE),0)),15-11*$AF$9) -> 0.264 | AM58: 3210.77 | AN58: =ROUND(ORÇAMENTO.CustoUnitario*(1+$AH58),2) -> 0.73
A59: -1 | C59: -1 | E59: 0 | F59: 0 | G59: 0 | H59: 0 | I59: 0 | L59: F
O62: Encargos sociais: | Q62: Para elaboração deste orçamento, foram utilizados os encargos sociais do SINAPI para a Unidade da Federação indicada.
O64: Observações:
O69: =IF(AND($AF$7=FALSE,$AF$8=FALSE,$AF$9=FALSE,$AF$10=FALSE,$AF$11=FALSE),"Não foi considerado arredondamento nos valores da planilha.",CONCATENATE("Foi considerado arredondamento de duas casas decimais para ",IF($AF$7=TRUE,"Quantidade; ",""),IF($AF$8=TRUE,"Custo Unitário; ",""),IF($AF$9=TRUE,"BDI; ",""),IF($AF$10=TRUE,"Preço Unitário; ",""),IF($AF$11=TRUE,"Preço Total.",""))) -> Foi considerado arredondamento de duas casas decimais para Quantidade; Custo Unitário; BDI; Preço Unitário; Preço Total.
O70: Siglas da Composição do Investimento: RA - Rateio proporcional entre Repasse e Contrapartida; RP - 100% Repasse; CP - 100% Contrapartida; OU - 100% Outros.
O72: =Import.Município -> CORONEL MARTINS
O73: Local | S73: Responsável Técnico
S74: Nome: | T74: =Import.RespOrçamento -> AMARILDO MARTINS RIBEIRO
O75: =DADOS!$F$25 -> 2021-11-08 | S75: CREA/CAU: | T75: 156004-7
O76: Data | S76: ART/RRT: | T76: 8030861-0

Sheet CÁLCULO
F1: =IF(ACOMPANHAMENTO="BM","MEMÓRIA DE CÁLCULO","PLQ - PLANILHA DE LEVANTAMENTO DE QUANTIDADES") -> PLQ - PLANILHA DE LEVANTAMENTO DE QUANTIDADES | Q1: Grau de Sigilo | Y1: Grau de Sigilo | AG1: Grau de Sigilo
F2: =IF(ACOMPANHAMENTO="BM","","Memória de Cálculo")&" - "&import.recurso -> Memória de Cálculo - OGU | Q2: #PUBLICO | Y2: #PUBLICO | AG2: #PUBLICO
E4: APELIDO DO EMPREENDIMENTO | G4: Nº SICONV | I4: Nº OPERAÇÃO | K4: PROPONENTE / TOMADOR | S4: Nº OPERAÇÃO | U4: PROPONENTE / TOMADOR | AA4: Nº OPERAÇÃO | AC4: PROPONENTE / TOMADOR
E5: =Import.Apelido -> PAVIMENTAÇÃO ASFALTICA NAS RUAS GLÓRIA, DÓLIO BELATTO E RUA SÃO DOMINGOS | G5: =Import.SICONV -> 908367/2020 | I5: =Import.CR -> 027030/2020 | K5: =Import.Proponente -> PREFEITURA MUNICIPAL DE CORONEL MARTINS | S5: =Import.CR -> 027030/2020 | U5: =Import.Proponente -> PREFEITURA MUNICIPAL DE CORONEL MARTINS | AA5: =Import.CR -> 027030/2020 | AC5: =Import.Proponente -> PREFEITURA MUNICIPAL DE CORONEL MARTINS
AJ6: Preços dos serviços por frente | BC6: Mês do cronograma | BV6: Número da Medição
A12: =IF(OFFSET(EVENTOS!$C$5,1,0)="Automática, conforme os agrupadores Nível 4 do Orçamento",4,IF(OFFSET(EVENTOS!$C$5,1,0)="Automática, conforme os agrupadores Nível 3 do Orçamento",3,IF(OFFSET(EVENTOS!$C$5,1,0)="Definir Manualmente","Manual",2))) -> Manual | B12: Empty | J12: . | K12: Nº AGRUPADOR DE EVENTOS | L12: . | M12: =IF(ACOMPANHAMENTO="BM",0,COUNTIF(M15:M59,0)) -> 1 | N12: FRENTES DE OBRA: | P12: . | Q12: RUA GLÓRIA | R12: RUA DOLIO BELATTO | S12: RUA SÃO DOMINGOS | AI12: . | AJ12: =OFFSET($P$12,0,AJ$13) -> RUA GLÓRIA | AK12: =OFFSET($P$12,0,AK$13) -> RUA DOLIO BELATTO | AL12: RUA SÃO DOMINGOS | AM12: 0 | AN12: 0 | AO12: 0 | AP12: 0 | AQ12: 0 | AR12: 0 | AS12: 0 | AT12: 0 | AU12: 0 | AV12: 0 | AW12: 0 | AX12: 0 | AY12: 0 | AZ12: 0 | BA12: 0 | BC12: =OFFSET($P$12,0,BC$13) -> RUA GLÓRIA | BD12: =OFFSET($P$12,0,BD$13) -> RUA DOLIO BELATTO | BE12: RUA SÃO DOMINGOS | BF12: 0 | BG12: 0 | BH12: 0 | BI12: 0 | BJ12: 0 | BK12: 0 | BL12: 0 | BM12: 0 | BN12: 0 | BO12: 0 | BP12: 0 | BQ12: 0 | BR12: 0 | BS12: 0 | BT12: 0 | BV12: =OFFSET($P$12,0,BV$13) -> RUA GLÓRIA | BW12: =OFFSET($P$12,0,BW$13) -> RUA DOLIO BELATTO | BX12: RUA SÃO DOMINGOS | BY12: 0 | BZ12: 0 | CA12: 0 | CB12: 0 | CC12: 0 | CD12: 0 | CE12: 0 | CF12: 0 | CG12: 0 | CH12: 0 | CI12: 0 | CJ12: 0 | CK12: 0 | CL12: 0 | CM12: 0
A13: AUTOEVENTO | B13: Empty | D13: Nível | E13: Item | F13: Descrição | G13: Unidade | H13: Quantidade | I13: Memória de Cálculo | K13: Nº | M13: # Evento | N13: Agrupador de Eventos | O13: =OFFSET(O13,0,-1)+1 ->  | Q13: =OFFSET(Q13,0,-1)+1 -> 1 | R13: 2 | S13: 3 | T13: 4 | U13: 5 | V13: 6 | W13: 7 | X13: 8 | Y13: 9 | Z13: 10 | AA13: 11 | AB13: 12 | AC13: 13 | AD13: 14 | AE13: 15 | AF13: 16 | AG13: 17 | AH13: 18 | AJ13: =OFFSET(AJ13,0,-1)+1 -> 1 | AK13: 2 | AL13: 3 | AM13: 4 | AN13: 5 | AO13: 6 | AP13: 7 | AQ13: 8 | AR13: 9 | AS13: 10 | AT13: 11 | AU13: 12 | AV13: 13 | AW13: 14 | AX13: 15 | AY13: 16 | AZ13: 17 | BA13: 18 | BC13: 1 | BD13: 2 | BE13: 3 | BF13: 4 | BG13: 5 | BH13: 6 | BI13: 7 | BJ13: 8 | BK13: 9 | BL13: 10 | BM13: 11 | BN13: 12 | BO13: 13 | BP13: 14 | BQ13: 15 | BR13: 16 | BS13: 17 | BT13: 18 | BV13: 1 | BW13: 2 | BX13: 3 | BY13: 4 | BZ13: 5 | CA13: 6 | CB13: 7 | CC13: 8 | CD13: 9 | CE13: 10 | CF13: 11 | CG13: 12 | CH13: 13 | CI13: 14 | CJ13: 15 | CK13: 16 | CL13: 17 | CM13: 18
A14: =IF(AUTOEVENTO="Manual",IF(K14<>"",MIN(VALUE(LEFT(K14,FIND(".",K14)-1)),COUNTA(EVENTOS.Lista)),0),IF(OR($B14>AUTOEVENTO,$B14="S",$B14=0),SUBSTITUTE(OFFSET($A14,-1,0),IF($D14="Serviço",".",""),""),ROW(A14)-ROW($A$15)&".")) -> 0 | B14: =OFFSET(ORÇAMENTO!C$15,ROW(B14)-ROW(B$15),0) -> S | C14: =OFFSET(ORÇAMENTO!L$15,ROW(C14)-ROW(C$15),0) ->  | D14: =OFFSET(ORÇAMENTO!N$15,ROW(D14)-ROW(D$15),0) -> Serviço | E14: =OFFSET(ORÇAMENTO!O$15,ROW(E14)-ROW(E$15),0) -> - | F14: =OFFSET(ORÇAMENTO!R$15,ROW(F14)-ROW(F$15),0) -> (Sem Código) | G14: =IF($D14<>"Serviço","",OFFSET(ORÇAMENTO!S$15,ROW(G14)-ROW(G$15),0)) -> - | H14: =IF($D14<>"Serviço",0,IF(ACOMPANHAMENTO="BM",ROUND(OFFSET(ORÇAMENTO!AJ$15,ROW(H14)-ROW(H$15),0),15-13*ORÇAMENTO!$AF$7),SUMPRODUCT(($Q$12:$AI$12<>"")*ROUND($Q14:$AI14,15-13*ORÇAMENTO!$AF$7)))) -> 0 | L14: . | M14: =IF($D14<>"Serviço","",IF(AUTOEVENTO="manual",$A14,IF(ISERROR(MATCH($A14,$A$15:OFFSET($A14,-1,0),0)),MAX($M$15:OFFSET(M14,-1,0))+1,INDEX($M$15:OFFSET(M14,-1,0),MATCH($A14,$A$15:OFFSET($A14,-1,0),0))))) -> 0 | N14: =IF($D14<>"Serviço","",IF(AUTOEVENTO="Manual",IF($A14=0,"<-- defina o número do agrupador",OFFSET(EVENTOS!$D$14,$A14,0)),OFFSET($F$15,$A14,0))) -> <-- defina o número do agrupador | AJ14: =IF(AND($D14="Serviço",AJ$12<>0,$H14>0,OR(AUTOEVENTO<>"manual",$M14<>1)),ROUND(OFFSET($P14,0,AJ$13),15-13*ORÇAMENTO!$AF$7)/$H14*OFFSET(ORÇAMENTO!$X$15,ROW(AJ14)-ROW(AJ$15),0),0) -> 0 | AK14: =IF(AND($D14="Serviço",AK$12<>0,$H14>0,OR(AUTOEVENTO<>"manual",$M14<>1)),ROUND(OFFSET($P14,0,AK$13),15-13*ORÇAMENTO!$AF$7)/$H14*OFFSET(ORÇAMENTO!$X$15,ROW(AK14)-ROW(AK$15),0),0) -> 0 | AL14: =IF(AND($D14="Serviço",AL$12<>0,$H14>0,OR(AUTOEVENTO<>"manual",$M14<>1)),ROUND(OFFSET($P14,0,AL$13),15-13*ORÇAMENTO!$AF$7)/$H14*OFFSET(ORÇAMENTO!$X$15,ROW(AL14)-ROW(AL$15),0),0) -> 0 | AM14: =IF(AND($D14="Serviço",AM$12<>0,$H14>0,OR(AUTOEVENTO<>"manual",$M14<>1)),ROUND(OFFSET($P14,0,AM$13),15-13*ORÇAMENTO!$AF$7)/$H14*OFFSET(ORÇAMENTO!$X$15,ROW(AM14)-ROW(AM$15),0),0) -> 0 | AN14: =IF(AND($D14="Serviço",AN$12<>0,$H14>0,OR(AUTOEVENTO<>"manual",$M14<>1)),ROUND(OFFSET($P14,0,AN$13),15-13*ORÇAMENTO!$AF$7)/$H14*OFFSET(ORÇAMENTO!$X$15,ROW(AN14)-ROW(AN$15),0),0) -> 0 | AO14: =IF(AND($D14="Serviço",AO$12<>0,$H14>0,OR(AUTOEVENTO<>"manual",$M14<>1)),ROUND(OFFSET($P14,0,AO$13),15-13*ORÇAMENTO!$AF$7)/$H14*OFFSET(ORÇAMENTO!$X$15,ROW(AO14)-ROW(AO$15),0),0) -> 0 | AP14: =IF(AND($D14="Serviço",AP$12<>0,$H14>0,OR(AUTOEVENTO<>"manual",$M14<>1)),ROUND(OFFSET($P14,0,AP$13),15-13*ORÇAMENTO!$AF$7)/$H14*OFFSET(ORÇAMENTO!$X$15,ROW(AP14)-ROW(AP$15),0),0) -> 0 | AQ14: =IF(AND($D14="Serviço",AQ$12<>0,$H14>0,OR(AUTOEVENTO<>"manual",$M14<>1)),ROUND(OFFSET($P14,0,AQ$13),15-13*ORÇAMENTO!$AF$7)/$H14*OFFSET(ORÇAMENTO!$X$15,ROW(AQ14)-ROW(AQ$15),0),0) -> 0 | AR14: =IF(AND($D14="Serviço",AR$12<>0,$H14>0,OR(AUTOEVENTO<>"manual",$M14<>1)),ROUND(OFFSET($P14,0,AR$13),15-13*ORÇAMENTO!$AF$7)/$H14*OFFSET(ORÇAMENTO!$X$15,ROW(AR14)-ROW(AR$15),0),0) -> 0 | AS14: =IF(AND($D14="Serviço",AS$12<>0,$H14>0,OR(AUTOEVENTO<>"manual",$M14<>1)),ROUND(OFFSET($P14,0,AS$13),15-13*ORÇAMENTO!$AF$7)/$H14*OFFSET(ORÇAMENTO!$X$15,ROW(AS14)-ROW(AS$15),0),0) -> 0 | AT14: =IF(AND($D14="Serviço",AT$12<>0,$H14>0,OR(AUTOEVENTO<>"manual",$M14<>1)),ROUND(OFFSET($P14,0,AT$13),15-13*ORÇAMENTO!$AF$7)/$H14*OFFSET(ORÇAMENTO!$X$15,ROW(AT14)-ROW(AT$15),0),0) -> 0 | AU14: =IF(AND($D14="Serviço",AU$12<>0,$H14>0,OR(AUTOEVENTO<>"manual",$M14<>1)),ROUND(OFFSET($P14,0,AU$13),15-13*ORÇAMENTO!$AF$7)/$H14*OFFSET(ORÇAMENTO!$X$15,ROW(AU14)-ROW(AU$15),0),0) -> 0 | AV14: =IF(AND($D14="Serviço",AV$12<>0,$H14>0,OR(AUTOEVENTO<>"manual",$M14<>1)),ROUND(OFFSET($P14,0,AV$13),15-13*ORÇAMENTO!$AF$7)/$H14*OFFSET(ORÇAMENTO!$X$15,ROW(AV14)-ROW(AV$15),0),0) -> 0 | AW14: =IF(AND($D14="Serviço",AW$12<>0,$H14>0,OR(AUTOEVENTO<>"manual",$M14<>1)),ROUND(OFFSET($P14,0,AW$13),15-13*ORÇAMENTO!$AF$7)/$H14*OFFSET(ORÇAMENTO!$X$15,ROW(AW14)-ROW(AW$15),0),0) -> 0 | AX14: =IF(AND($D14="Serviço",AX$12<>0,$H14>0,OR(AUTOEVENTO<>"manual",$M14<>1)),ROUND(OFFSET($P14,0,AX$13),15-13*ORÇAMENTO!$AF$7)/$H14*OFFSET(ORÇAMENTO!$X$15,ROW(AX14)-ROW(AX$15),0),0) -> 0 | AY14: =IF(AND($D14="Serviço",AY$12<>0,$H14>0,OR(AUTOEVENTO<>"manual",$M14<>1)),ROUND(OFFSET($P14,0,AY$13),15-13*ORÇAMENTO!$AF$7)/$H14*OFFSET(ORÇAMENTO!$X$15,ROW(AY14)-ROW(AY$15),0),0) -> 0 | AZ14: =IF(AND($D14="Serviço",AZ$12<>0,$H14>0,OR(AUTOEVENTO<>"manual",$M14<>1)),ROUND(OFFSET($P14,0,AZ$13),15-13*ORÇAMENTO!$AF$7)/$H14*OFFSET(ORÇAMENTO!$X$15,ROW(AZ14)-ROW(AZ$15),0),0) -> 0 | BA14: =IF(AND($D14="Serviço",BA$12<>0,$H14>0,OR(AUTOEVENTO<>"manual",$M14<>1)),ROUND(OFFSET($P14,0,BA$13),15-13*ORÇAMENTO!$AF$7)/$H14*OFFSET(ORÇAMENTO!$X$15,ROW(BA14)-ROW(BA$15),0),0) -> 0 | BC14: =IF($D14<>"Serviço",0,IF(AND(AUTOEVENTO="Manual",$M14=1),0,IF(OFFSET(CRONOPLE!$F$14,$M14,BC$13)="",10^12,OFFSET(CRONOPLE!$F$14,$M14,BC$13)))) -> 1000000000000 | BD14: =IF($D14<>"Serviço",0,IF(AND(AUTOEVENTO="Manual",$M14=1),0,IF(OFFSET(CRONOPLE!$F$14,$M14,BD$13)="",10^12,OFFSET(CRONOPLE!$F$14,$M14,BD$13)))) -> 1000000000000 | BE14: =IF($D14<>"Serviço",0,IF(AND(AUTOEVENTO="Manual",$M14=1),0,IF(OFFSET(CRONOPLE!$F$14,$M14,BE$13)="",10^12,OFFSET(CRONOPLE!$F$14,$M14,BE$13)))) -> 1000000000000 | BF14: =IF($D14<>"Serviço",0,IF(AND(AUTOEVENTO="Manual",$M14=1),0,IF(OFFSET(CRONOPLE!$F$14,$M14,BF$13)="",10^12,OFFSET(CRONOPLE!$F$14,$M14,BF$13)))) -> 1000000000000 | BG14: =IF($D14<>"Serviço",0,IF(AND(AUTOEVENTO="Manual",$M14=1),0,IF(OFFSET(CRONOPLE!$F$14,$M14,BG$13)="",10^12,OFFSET(CRONOPLE!$F$14,$M14,BG$13)))) -> 1000000000000 | BH14: =IF($D14<>"Serviço",0,IF(AND(AUTOEVENTO="Manual",$M14=1),0,IF(OFFSET(CRONOPLE!$F$14,$M14,BH$13)="",10^12,OFFSET(CRONOPLE!$F$14,$M14,BH$13)))) -> 1000000000000 | BI14: =IF($D14<>"Serviço",0,IF(AND(AUTOEVENTO="Manual",$M14=1),0,IF(OFFSET(CRONOPLE!$F$14,$M14,BI$13)="",10^12,OFFSET(CRONOPLE!$F$14,$M14,BI$13)))) -> 1000000000000 | BJ14: =IF($D14<>"Serviço",0,IF(AND(AUTOEVENTO="Manual",$M14=1),0,IF(OFFSET(CRONOPLE!$F$14,$M14,BJ$13)="",10^12,OFFSET(CRONOPLE!$F$14,$M14,BJ$13)))) -> 1000000000000 | BK14: =IF($D14<>"Serviço",0,IF(AND(AUTOEVENTO="Manual",$M14=1),0,IF(OFFSET(CRONOPLE!$F$14,$M14,BK$13)="",10^12,OFFSET(CRONOPLE!$F$14,$M14,BK$13)))) -> 1000000000000 | BL14: =IF($D14<>"Serviço",0,IF(AND(AUTOEVENTO="Manual",$M14=1),0,IF(OFFSET(CRONOPLE!$F$14,$M14,BL$13)="",10^12,OFFSET(CRONOPLE!$F$14,$M14,BL$13)))) -> 1000000000000 | BM14: =IF($D14<>"Serviço",0,IF(AND(AUTOEVENTO="Manual",$M14=1),0,IF(OFFSET(CRONOPLE!$F$14,$M14,BM$13)="",10^12,OFFSET(CRONOPLE!$F$14,$M14,BM$13)))) -> 1000000000000 | BN14: =IF($D14<>"Serviço",0,IF(AND(AUTOEVENTO="Manual",$M14=1),0,IF(OFFSET(CRONOPLE!$F$14,$M14,BN$13)="",10^12,OFFSET(CRONOPLE!$F$14,$M14,BN$13)))) -> 1000000000000 | BO14: =IF($D14<>"Serviço",0,IF(AND(AUTOEVENTO="Manual",$M14=1),0,IF(OFFSET(CRONOPLE!$F$14,$M14,BO$13)="",10^12,OFFSET(CRONOPLE!$F$14,$M14,BO$13)))) -> 1000000000000 | BP14: =IF($D14<>"Serviço",0,IF(AND(AUTOEVENTO="Manual",$M14=1),0,IF(OFFSET(CRONOPLE!$F$14,$M14,BP$13)="",10^12,OFFSET(CRONOPLE!$F$14,$M14,BP$13)))) -> 1000000000000 | BQ14: =IF($D14<>"Serviço",0,IF(AND(AUTOEVENTO="Manual",$M14=1),0,IF(OFFSET(CRONOPLE!$F$14,$M14,BQ$13)="",10^12,OFFSET(CRONOPLE!$F$14,$M14,BQ$13)))) -> 1000000000000 | BR14: =IF($D14<>"Serviço",0,IF(AND(AUTOEVENTO="Manual",$M14=1),0,IF(OFFSET(CRONOPLE!$F$14,$M14,BR$13)="",10^12,OFFSET(CRONOPLE!$F$14,$M14,BR$13)))) -> 1000000000000 | BS14: =IF($D14<>"Serviço",0,IF(AND(AUTOEVENTO="Manual",$M14=1),0,IF(OFFSET(CRONOPLE!$F$14,$M14,BS$13)="",10^12,OFFSET(CRONOPLE!$F$14,$M14,BS$13)))) -> 1000000000000 | BT14: =IF($D14<>"Serviço",0,IF(AND(AUTOEVENTO="Manual",$M14=1),0,IF(OFFSET(CRONOPLE!$F$14,$M14,BT$13)="",10^12,OFFSET(CRONOPLE!$F$14,$M14,BT$13)))) -> 1000000000000 | BV14: =IF($D14<>"Serviço",0,IF(OR(AND(AUTOEVENTO="Manual",$M14=1),$M14>(ROW(PLE.lastrow)-ROW(PLE.firstrow))),0,IF(OFFSET(PLE!$G$14,$M14,BV$13)="",10^12,OFFSET(PLE!$G$14,$M14,BV$13)))) -> 1000000000000 | BW14: =IF($D14<>"Serviço",0,IF(OR(AND(AUTOEVENTO="Manual",$M14=1),$M14>(ROW(PLE.lastrow)-ROW(PLE.firstrow))),0,IF(OFFSET(PLE!$G$14,$M14,BW$13)="",10^12,OFFSET(PLE!$G$14,$M14,BW$13)))) -> 1000000000000 | BX14: =IF($D14<>"Serviço",0,IF(OR(AND(AUTOEVENTO="Manual",$M14=1),$M14>(ROW(PLE.lastrow)-ROW(PLE.firstrow))),0,IF(OFFSET(PLE!$G$14,$M14,BX$13)="",10^12,OFFSET(PLE!$G$14,$M14,BX$13)))) -> 1000000000000 | BY14: =IF($D14<>"Serviço",0,IF(OR(AND(AUTOEVENTO="Manual",$M14=1),$M14>(ROW(PLE.lastrow)-ROW(PLE.firstrow))),0,IF(OFFSET(PLE!$G$14,$M14,BY$13)="",10^12,OFFSET(PLE!$G$14,$M14,BY$13)))) -> 1000000000000 | BZ14: =IF($D14<>"Serviço",0,IF(OR(AND(AUTOEVENTO="Manual",$M14=1),$M14>(ROW(PLE.lastrow)-ROW(PLE.firstrow))),0,IF(OFFSET(PLE!$G$14,$M14,BZ$13)="",10^12,OFFSET(PLE!$G$14,$M14,BZ$13)))) -> 1000000000000 | CA14: =IF($D14<>"Serviço",0,IF(OR(AND(AUTOEVENTO="Manual",$M14=1),$M14>(ROW(PLE.lastrow)-ROW(PLE.firstrow))),0,IF(OFFSET(PLE!$G$14,$M14,CA$13)="",10^12,OFFSET(PLE!$G$14,$M14,CA$13)))) -> 1000000000000 | CB14: =IF($D14<>"Serviço",0,IF(OR(AND(AUTOEVENTO="Manual",$M14=1),$M14>(ROW(PLE.lastrow)-ROW(PLE.firstrow))),0,IF(OFFSET(PLE!$G$14,$M14,CB$13)="",10^12,OFFSET(PLE!$G$14,$M14,CB$13)))) -> 1000000000000 | CC14: =IF($D14<>"Serviço",0,IF(OR(AND(AUTOEVENTO="Manual",$M14=1),$M14>(ROW(PLE.lastrow)-ROW(PLE.firstrow))),0,IF(OFFSET(PLE!$G$14,$M14,CC$13)="",10^12,OFFSET(PLE!$G$14,$M14,CC$13)))) -> 1000000000000 | CD14: =IF($D14<>"Serviço",0,IF(OR(AND(AUTOEVENTO="Manual",$M14=1),$M14>(ROW(PLE.lastrow)-ROW(PLE.firstrow))),0,IF(OFFSET(PLE!$G$14,$M14,CD$13)="",10^12,OFFSET(PLE!$G$14,$M14,CD$13)))) -> 1000000000000 | CE14: =IF($D14<>"Serviço",0,IF(OR(AND(AUTOEVENTO="Manual",$M14=1),$M14>(ROW(PLE.lastrow)-ROW(PLE.firstrow))),0,IF(OFFSET(PLE!$G$14,$M14,CE$13)="",10^12,OFFSET(PLE!$G$14,$M14,CE$13)))) -> 1000000000000 | CF14: =IF($D14<>"Serviço",0,IF(OR(AND(AUTOEVENTO="Manual",$M14=1),$M14>(ROW(PLE.lastrow)-ROW(PLE.firstrow))),0,IF(OFFSET(PLE!$G$14,$M14,CF$13)="",10^12,OFFSET(PLE!$G$14,$M14,CF$13)))) -> 1000000000000 | CG14: =IF($D14<>"Serviço",0,IF(OR(AND(AUTOEVENTO="Manual",$M14=1),$M14>(ROW(PLE.lastrow)-ROW(PLE.firstrow))),0,IF(OFFSET(PLE!$G$14,$M14,CG$13)="",10^12,OFFSET(PLE!$G$14,$M14,CG$13)))) -> 1000000000000 | CH14: =IF($D14<>"Serviço",0,IF(OR(AND(AUTOEVENTO="Manual",$M14=1),$M14>(ROW(PLE.lastrow)-ROW(PLE.firstrow))),0,IF(OFFSET(PLE!$G$14,$M14,CH$13)="",10^12,OFFSET(PLE!$G$14,$M14,CH$13)))) -> 1000000000000 | CI14: =IF($D14<>"Serviço",0,IF(OR(AND(AUTOEVENTO="Manual",$M14=1),$M14>(ROW(PLE.lastrow)-ROW(PLE.firstrow))),0,IF(OFFSET(PLE!$G$14,$M14,CI$13)="",10^12,OFFSET(PLE!$G$14,$M14,CI$13)))) -> 1000000000000 | CJ14: =IF($D14<>"Serviço",0,IF(OR(AND(AUTOEVENTO="Manual",$M14=1),$M14>(ROW(PLE.lastrow)-ROW(PLE.firstrow))),0,IF(OFFSET(PLE!$G$14,$M14,CJ$13)="",10^12,OFFSET(PLE!$G$14,$M14,CJ$13)))) -> 1000000000000 | CK14: =IF($D14<>"Serviço",0,IF(OR(AND(AUTOEVENTO="Manual",$M14=1),$M14>(ROW(PLE.lastrow)-ROW(PLE.firstrow))),0,IF(OFFSET(PLE!$G$14,$M14,CK$13)="",10^12,OFFSET(PLE!$G$14,$M14,CK$13)))) -> 1000000000000 | CL14: =IF($D14<>"Serviço",0,IF(OR(AND(AUTOEVENTO="Manual",$M14=1),$M14>(ROW(PLE.lastrow)-ROW(PLE.firstrow))),0,IF(OFFSET(PLE!$G$14,$M14,CL$13)="",10^12,OFFSET(PLE!$G$14,$M14,CL$13)))) -> 1000000000000 | CM14: =IF($D14<>"Serviço",0,IF(OR(AND(AUTOEVENTO="Manual",$M14=1),$M14>(ROW(PLE.lastrow)-ROW(PLE.firstrow))),0,IF(OFFSET(PLE!$G$14,$M14,CM$13)="",10^12,OFFSET(PLE!$G$14,$M14,CM$13)))) -> 1000000000000
B15: =OFFSET(ORÇAMENTO!C$15,ROW(B15)-ROW(B$15),0) -> L | C15: =OFFSET(ORÇAMENTO!L$15,ROW(C15)-ROW(C$15),0) -> F | D15: =IF(TIPOORCAMENTO="LICITADO","CTEF","LOTE") -> LOTE | E15: =Import.DescLote -> 0 | L15: . | M15: =IF(AUTOEVENTO="MANUAL",0,1) -> 0 | N15: TOTAL FINANC. POR FRENTE (R$): | O15: =OFFSET($AI$15,0,O$13) ->  | Q15: =OFFSET($AI$15,0,Q$13) -> 352427.2 | R15: 102313.8515 | S15: 174741.6479 | T15: 0 | U15: 0 | V15: 0 | W15: 0 | X15: 0 | Y15: 0 | Z15: 0 | AA15: =OFFSET($AI$15,0,AA$13) -> 0 | AB15: 0 | AC15: 0 | AD15: 0 | AE15: 0 | AF15: 0 | AG15: 0 | AH15: 0 | AJ15: =ROUND(SUM(OFFSET(AJ$15,1,0):AJ$59),2) -> 352427.2 | AK15: =SUM(OFFSET(AK$15,1,0):AK$59) -> 102313.8515 | AL15: =SUM(OFFSET(AL$15,1,0):AL$59) -> 174741.6479 | AM15: =SUM(OFFSET(AM$15,1,0):AM$59) -> 0 | AN15: =SUM(OFFSET(AN$15,1,0):AN$59) -> 0 | AO15: =SUM(OFFSET(AO$15,1,0):AO$59) -> 0 | AP15: =SUM(OFFSET(AP$15,1,0):AP$59) -> 0 | AQ15: =SUM(OFFSET(AQ$15,1,0):AQ$59) -> 0 | AR15: =SUM(OFFSET(AR$15,1,0):AR$59) -> 0 | AS15: =SUM(OFFSET(AS$15,1,0):AS$59) -> 0 | AT15: =SUM(OFFSET(AT$15,1,0):AT$59) -> 0 | AU15: =SUM(OFFSET(AU$15,1,0):AU$59) -> 0 | AV15: =SUM(OFFSET(AV$15,1,0):AV$59) -> 0 | AW15: =SUM(OFFSET(AW$15,1,0):AW$59) -> 0 | AX15: =SUM(OFFSET(AX$15,1,0):AX$59) -> 0 | AY15: =SUM(OFFSET(AY$15,1,0):AY$59) -> 0 | AZ15: =SUM(OFFSET(AZ$15,1,0):AZ$59) -> 0 | BA15: =SUM(OFFSET(BA$15,1,0):BA$59) -> 0 | BC15: =10^12 -> 1000000000000 | BD15: =10^12 -> 1000000000000 | BE15: 1000000000000 | BF15: 1000000000000 | BG15: 1000000000000 | BH15: 1000000000000 | BI15: 1000000000000 | BJ15: 1000000000000 | BK15: 1000000000000 | BL15: 1000000000000 | BM15: 1000000000000 | BN15: 1000000000000 | BO15: 1000000000000 | BP15: 1000000000000 | BQ15: 1000000000000 | BR15: 1000000000000 | BS15: 1000000000000 | BT15: 1000000000000 | BV15: =10^12 -> 1000000000000 | BW15: 1000000000000 | BX15: 1000000000000 | BY15: 1000000000000 | BZ15: 1000000000000 | CA15: 1000000000000 | CB15: 1000000000000 | CC15: 1000000000000 | CD15: 1000000000000 | CE15: 1000000000000 | CF15: 1000000000000 | CG15: 1000000000000 | CH15: 1000000000000 | CI15: 1000000000000 | CJ15: 1000000000000 | CK15: 1000000000000 | CL15: 1000000000000 | CM15: 1000000000000
A16: =IF(AUTOEVENTO="Manual",IF(K16<>"",MIN(VALUE(LEFT(K16,FIND(".",K16)-1)),COUNTA(EVENTOS.Lista)),0),IF(OR($B16>AUTOEVENTO,$B16="S",$B16=0),SUBSTITUTE(OFFSET($A16,-1,0),IF($D16="Serviço",".",""),""),ROW(A16)-ROW($A$15)&".")) -> 0 | B16: =OFFSET(ORÇAMENTO!C$15,ROW(B16)-ROW(B$15),0) -> 1 | C16: =OFFSET(ORÇAMENTO!L$15,ROW(C16)-ROW(C$15),0) -> F | D16: =OFFSET(ORÇAMENTO!N$15,ROW(D16)-ROW(D$15),0) -> Meta | E16: =OFFSET(ORÇAMENTO!O$15,ROW(E16)-ROW(E$15),0) -> 1. | F16: =OFFSET(ORÇAMENTO!R$15,ROW(F16)-ROW(F$15),0) -> PAVIMENTAÇÃO ASFALTICA RUAS GLÓRIA, DÓLIO BELATTO E RUA SÃO DOMINGOS | G16: =IF($D16<>"Serviço","",OFFSET(ORÇAMENTO!S$15,ROW(G16)-ROW(G$15),0)) ->  | H16: =IF($D16<>"Serviço",0,IF(ACOMPANHAMENTO="BM",ROUND(OFFSET(ORÇAMENTO!AJ$15,ROW(H16)-ROW(H$15),0),15-13*ORÇAMENTO!$AF$7),SUMPRODUCT(($Q$12:$AI$12<>"")*ROUND($Q16:$AI16,15-13*ORÇAMENTO!$AF$7)))) -> 0 | L16: . | M16: =IF($D16<>"Serviço","",IF(AUTOEVENTO="manual",$A16,IF(ISERROR(MATCH($A16,$A$15:OFFSET($A16,-1,0),0)),MAX($M$15:OFFSET(M16,-1,0))+1,INDEX($M$15:OFFSET(M16,-1,0),MATCH($A16,$A$15:OFFSET($A16,-1,0),0))))) ->  | N16: =IF($D16<>"Serviço","",IF(AUTOEVENTO="Manual",IF($A16=0,"<-- defina o número do agrupador",OFFSET(EVENTOS!$D$14,$A16,0)),OFFSET($F$15,$A16,0))) ->  | AJ16: =IF(AND($D16="Serviço",AJ$12<>0,$H16>0,OR(AUTOEVENTO<>"manual",$M16<>1)),ROUND(OFFSET($P16,0,AJ$13),15-13*ORÇAMENTO!$AF$7)/$H16*OFFSET(ORÇAMENTO!$X$15,ROW(AJ16)-ROW(AJ$15),0),0) -> 0 | AK16: =IF(AND($D16="Serviço",AK$12<>0,$H16>0,OR(AUTOEVENTO<>"manual",$M16<>1)),ROUND(OFFSET($P16,0,AK$13),15-13*ORÇAMENTO!$AF$7)/$H16*OFFSET(ORÇAMENTO!$X$15,ROW(AK16)-ROW(AK$15),0),0) -> 0 | AL16: =IF(AND($D16="Serviço",AL$12<>0,$H16>0,OR(AUTOEVENTO<>"manual",$M16<>1)),ROUND(OFFSET($P16,0,AL$13),15-13*ORÇAMENTO!$AF$7)/$H16*OFFSET(ORÇAMENTO!$X$15,ROW(AL16)-ROW(AL$15),0),0) -> 0 | AM16: =IF(AND($D16="Serviço",AM$12<>0,$H16>0,OR(AUTOEVENTO<>"manual",$M16<>1)),ROUND(OFFSET($P16,0,AM$13),15-13*ORÇAMENTO!$AF$7)/$H16*OFFSET(ORÇAMENTO!$X$15,ROW(AM16)-ROW(AM$15),0),0) -> 0 | AN16: =IF(AND($D16="Serviço",AN$12<>0,$H16>0,OR(AUTOEVENTO<>"manual",$M16<>1)),ROUND(OFFSET($P16,0,AN$13),15-13*ORÇAMENTO!$AF$7)/$H16*OFFSET(ORÇAMENTO!$X$15,ROW(AN16)-ROW(AN$15),0),0) -> 0 | AO16: =IF(AND($D16="Serviço",AO$12<>0,$H16>0,OR(AUTOEVENTO<>"manual",$M16<>1)),ROUND(OFFSET($P16,0,AO$13),15-13*ORÇAMENTO!$AF$7)/$H16*OFFSET(ORÇAMENTO!$X$15,ROW(AO16)-ROW(AO$15),0),0) -> 0 | AP16: =IF(AND($D16="Serviço",AP$12<>0,$H16>0,OR(AUTOEVENTO<>"manual",$M16<>1)),ROUND(OFFSET($P16,0,AP$13),15-13*ORÇAMENTO!$AF$7)/$H16*OFFSET(ORÇAMENTO!$X$15,ROW(AP16)-ROW(AP$15),0),0) -> 0 | AQ16: =IF(AND($D16="Serviço",AQ$12<>0,$H16>0,OR(AUTOEVENTO<>"manual",$M16<>1)),ROUND(OFFSET($P16,0,AQ$13),15-13*ORÇAMENTO!$AF$7)/$H16*OFFSET(ORÇAMENTO!$X$15,ROW(AQ16)-ROW(AQ$15),0),0) -> 0 | AR16: =IF(AND($D16="Serviço",AR$12<>0,$H16>0,OR(AUTOEVENTO<>"manual",$M16<>1)),ROUND(OFFSET($P16,0,AR$13),15-13*ORÇAMENTO!$AF$7)/$H16*OFFSET(ORÇAMENTO!$X$15,ROW(AR16)-ROW(AR$15),0),0) -> 0 | AS16: =IF(AND($D16="Serviço",AS$12<>0,$H16>0,OR(AUTOEVENTO<>"manual",$M16<>1)),ROUND(OFFSET($P16,0,AS$13),15-13*ORÇAMENTO!$AF$7)/$H16*OFFSET(ORÇAMENTO!$X$15,ROW(AS16)-ROW(AS$15),0),0) -> 0 | AT16: =IF(AND($D16="Serviço",AT$12<>0,$H16>0,OR(AUTOEVENTO<>"manual",$M16<>1)),ROUND(OFFSET($P16,0,AT$13),15-13*ORÇAMENTO!$AF$7)/$H16*OFFSET(ORÇAMENTO!$X$15,ROW(AT16)-ROW(AT$15),0),0) -> 0 | AU16: =IF(AND($D16="Serviço",AU$12<>0,$H16>0,OR(AUTOEVENTO<>"manual",$M16<>1)),ROUND(OFFSET($P16,0,AU$13),15-13*ORÇAMENTO!$AF$7)/$H16*OFFSET(ORÇAMENTO!$X$15,ROW(AU16)-ROW(AU$15),0),0) -> 0 | AV16: =IF(AND($D16="Serviço",AV$12<>0,$H16>0,OR(AUTOEVENTO<>"manual",$M16<>1)),ROUND(OFFSET($P16,0,AV$13),15-13*ORÇAMENTO!$AF$7)/$H16*OFFSET(ORÇAMENTO!$X$15,ROW(AV16)-ROW(AV$15),0),0) -> 0 | AW16: =IF(AND($D16="Serviço",AW$12<>0,$H16>0,OR(AUTOEVENTO<>"manual",$M16<>1)),ROUND(OFFSET($P16,0,AW$13),15-13*ORÇAMENTO!$AF$7)/$H16*OFFSET(ORÇAMENTO!$X$15,ROW(AW16)-ROW(AW$15),0),0) -> 0 | AX16: =IF(AND($D16="Serviço",AX$12<>0,$H16>0,OR(AUTOEVENTO<>"manual",$M16<>1)),ROUND(OFFSET($P16,0,AX$13),15-13*ORÇAMENTO!$AF$7)/$H16*OFFSET(ORÇAMENTO!$X$15,ROW(AX16)-ROW(AX$15),0),0) -> 0 | AY16: =IF(AND($D16="Serviço",AY$12<>0,$H16>0,OR(AUTOEVENTO<>"manual",$M16<>1)),ROUND(OFFSET($P16,0,AY$13),15-13*ORÇAMENTO!$AF$7)/$H16*OFFSET(ORÇAMENTO!$X$15,ROW(AY16)-ROW(AY$15),0),0) -> 0 | AZ16: =IF(AND($D16="Serviço",AZ$12<>0,$H16>0,OR(AUTOEVENTO<>"manual",$M16<>1)),ROUND(OFFSET($P16,0,AZ$13),15-13*ORÇAMENTO!$AF$7)/$H16*OFFSET(ORÇAMENTO!$X$15,ROW(AZ16)-ROW(AZ$15),0),0) -> 0 | BA16: =IF(AND($D16="Serviço",BA$12<>0,$H16>0,OR(AUTOEVENTO<>"manual",$M16<>1)),ROUND(OFFSET($P16,0,BA$13),15-13*ORÇAMENTO!$AF$7)/$H16*OFFSET(ORÇAMENTO!$X$15,ROW(BA16)-ROW(BA$15),0),0) -> 0 | BC16: =IF($D16<>"Serviço",0,IF(AND(AUTOEVENTO="Manual",$M16=1),0,IF(OFFSET(CRONOPLE!$F$14,$M16,BC$13)="",10^12,OFFSET(CRONOPLE!$F$14,$M16,BC$13)))) -> 0 | BD16: =IF($D16<>"Serviço",0,IF(AND(AUTOEVENTO="Manual",$M16=1),0,IF(OFFSET(CRONOPLE!$F$14,$M16,BD$13)="",10^12,OFFSET(CRONOPLE!$F$14,$M16,BD$13)))) -> 0 | BE16: =IF($D16<>"Serviço",0,IF(AND(AUTOEVENTO="Manual",$M16=1),0,IF(OFFSET(CRONOPLE!$F$14,$M16,BE$13)="",10^12,OFFSET(CRONOPLE!$F$14,$M16,BE$13)))) -> 0 | BF16: =IF($D16<>"Serviço",0,IF(AND(AUTOEVENTO="Manual",$M16=1),0,IF(OFFSET(CRONOPLE!$F$14,$M16,BF$13)="",10^12,OFFSET(CRONOPLE!$F$14,$M16,BF$13)))) -> 0 | BG16: =IF($D16<>"Serviço",0,IF(AND(AUTOEVENTO="Manual",$M16=1),0,IF(OFFSET(CRONOPLE!$F$14,$M16,BG$13)="",10^12,OFFSET(CRONOPLE!$F$14,$M16,BG$13)))) -> 0 | BH16: =IF($D16<>"Serviço",0,IF(AND(AUTOEVENTO="Manual",$M16=1),0,IF(OFFSET(CRONOPLE!$F$14,$M16,BH$13)="",10^12,OFFSET(CRONOPLE!$F$14,$M16,BH$13)))) -> 0 | BI16: =IF($D16<>"Serviço",0,IF(AND(AUTOEVENTO="Manual",$M16=1),0,IF(OFFSET(CRONOPLE!$F$14,$M16,BI$13)="",10^12,OFFSET(CRONOPLE!$F$14,$M16,BI$13)))) -> 0 | BJ16: =IF($D16<>"Serviço",0,IF(AND(AUTOEVENTO="Manual",$M16=1),0,IF(OFFSET(CRONOPLE!$F$14,$M16,BJ$13)="",10^12,OFFSET(CRONOPLE!$F$14,$M16,BJ$13)))) -> 0 | BK16: =IF($D16<>"Serviço",0,IF(AND(AUTOEVENTO="Manual",$M16=1),0,IF(OFFSET(CRONOPLE!$F$14,$M16,BK$13)="",10^12,OFFSET(CRONOPLE!$F$14,$M16,BK$13)))) -> 0 | BL16: =IF($D16<>"Serviço",0,IF(AND(AUTOEVENTO="Manual",$M16=1),0,IF(OFFSET(CRONOPLE!$F$14,$M16,BL$13)="",10^12,OFFSET(CRONOPLE!$F$14,$M16,BL$13)))) -> 0 | BM16: =IF($D16<>"Serviço",0,IF(AND(AUTOEVENTO="Manual",$M16=1),0,IF(OFFSET(CRONOPLE!$F$14,$M16,BM$13)="",10^12,OFFSET(CRONOPLE!$F$14,$M16,BM$13)))) -> 0 | BN16: =IF($D16<>"Serviço",0,IF(AND(AUTOEVENTO="Manual",$M16=1),0,IF(OFFSET(CRONOPLE!$F$14,$M16,BN$13)="",10^12,OFFSET(CRONOPLE!$F$14,$M16,BN$13)))) -> 0 | BO16: =IF($D16<>"Serviço",0,IF(AND(AUTOEVENTO="Manual",$M16=1),0,IF(OFFSET(CRONOPLE!$F$14,$M16,BO$13)="",10^12,OFFSET(CRONOPLE!$F$14,$M16,BO$13)))) -> 0 | BP16: =IF($D16<>"Serviço",0,IF(AND(AUTOEVENTO="Manual",$M16=1),0,IF(OFFSET(CRONOPLE!$F$14,$M16,BP$13)="",10^12,OFFSET(CRONOPLE!$F$14,$M16,BP$13)))) -> 0 | BQ16: =IF($D16<>"Serviço",0,IF(AND(AUTOEVENTO="Manual",$M16=1),0,IF(OFFSET(CRONOPLE!$F$14,$M16,BQ$13)="",10^12,OFFSET(CRONOPLE!$F$14,$M16,BQ$13)))) -> 0 | BR16: =IF($D16<>"Serviço",0,IF(AND(AUTOEVENTO="Manual",$M16=1),0,IF(OFFSET(CRONOPLE!$F$14,$M16,BR$13)="",10^12,OFFSET(CRONOPLE!$F$14,$M16,BR$13)))) -> 0 | BS16: =IF($D16<>"Serviço",0,IF(AND(AUTOEVENTO="Manual",$M16=1),0,IF(OFFSET(CRONOPLE!$F$14,$M16,BS$13)="",10^12,OFFSET(CRONOPLE!$F$14,$M16,BS$13)))) -> 0 | BT16: =IF($D16<>"Serviço",0,IF(AND(AUTOEVENTO="Manual",$M16=1),0,IF(OFFSET(CRONOPLE!$F$14,$M16,BT$13)="",10^12,OFFSET(CRONOPLE!$F$14,$M16,BT$13)))) -> 0 | BV16: =IF($D16<>"Serviço",0,IF(OR(AND(AUTOEVENTO="Manual",$M16=1),$M16>(ROW(PLE.lastrow)-ROW(PLE.firstrow))),0,IF(OFFSET(PLE!$G$14,$M16,BV$13)="",10^12,OFFSET(PLE!$G$14,$M16,BV$13)))) -> 0 | BW16: =IF($D16<>"Serviço",0,IF(OR(AND(AUTOEVENTO="Manual",$M16=1),$M16>(ROW(PLE.lastrow)-ROW(PLE.firstrow))),0,IF(OFFSET(PLE!$G$14,$M16,BW$13)="",10^12,OFFSET(PLE!$G$14,$M16,BW$13)))) -> 0 | BX16: =IF($D16<>"Serviço",0,IF(OR(AND(AUTOEVENTO="Manual",$M16=1),$M16>(ROW(PLE.lastrow)-ROW(PLE.firstrow))),0,IF(OFFSET(PLE!$G$14,$M16,BX$13)="",10^12,OFFSET(PLE!$G$14,$M16,BX$13)))) -> 0 | BY16: =IF($D16<>"Serviço",0,IF(OR(AND(AUTOEVENTO="Manual",$M16=1),$M16>(ROW(PLE.lastrow)-ROW(PLE.firstrow))),0,IF(OFFSET(PLE!$G$14,$M16,BY$13)="",10^12,OFFSET(PLE!$G$14,$M16,BY$13)))) -> 0 | BZ16: =IF($D16<>"Serviço",0,IF(OR(AND(AUTOEVENTO="Manual",$M16=1),$M16>(ROW(PLE.lastrow)-ROW(PLE.firstrow))),0,IF(OFFSET(PLE!$G$14,$M16,BZ$13)="",10^12,OFFSET(PLE!$G$14,$M16,BZ$13)))) -> 0 | CA16: =IF($D16<>"Serviço",0,IF(OR(AND(AUTOEVENTO="Manual",$M16=1),$M16>(ROW(PLE.lastrow)-ROW(PLE.firstrow))),0,IF(OFFSET(PLE!$G$14,$M16,CA$13)="",10^12,OFFSET(PLE!$G$14,$M16,CA$13)))) -> 0 | CB16: =IF($D16<>"Serviço",0,IF(OR(AND(AUTOEVENTO="Manual",$M16=1),$M16>(ROW(PLE.lastrow)-ROW(PLE.firstrow))),0,IF(OFFSET(PLE!$G$14,$M16,CB$13)="",10^12,OFFSET(PLE!$G$14,$M16,CB$13)))) -> 0 | CC16: =IF($D16<>"Serviço",0,IF(OR(AND(AUTOEVENTO="Manual",$M16=1),$M16>(ROW(PLE.lastrow)-ROW(PLE.firstrow))),0,IF(OFFSET(PLE!$G$14,$M16,CC$13)="",10^12,OFFSET(PLE!$G$14,$M16,CC$13)))) -> 0 | CD16: =IF($D16<>"Serviço",0,IF(OR(AND(AUTOEVENTO="Manual",$M16=1),$M16>(ROW(PLE.lastrow)-ROW(PLE.firstrow))),0,IF(OFFSET(PLE!$G$14,$M16,CD$13)="",10^12,OFFSET(PLE!$G$14,$M16,CD$13)))) -> 0 | CE16: =IF($D16<>"Serviço",0,IF(OR(AND(AUTOEVENTO="Manual",$M16=1),$M16>(ROW(PLE.lastrow)-ROW(PLE.firstrow))),0,IF(OFFSET(PLE!$G$14,$M16,CE$13)="",10^12,OFFSET(PLE!$G$14,$M16,CE$13)))) -> 0 | CF16: =IF($D16<>"Serviço",0,IF(OR(AND(AUTOEVENTO="Manual",$M16=1),$M16>(ROW(PLE.lastrow)-ROW(PLE.firstrow))),0,IF(OFFSET(PLE!$G$14,$M16,CF$13)="",10^12,OFFSET(PLE!$G$14,$M16,CF$13)))) -> 0 | CG16: =IF($D16<>"Serviço",0,IF(OR(AND(AUTOEVENTO="Manual",$M16=1),$M16>(ROW(PLE.lastrow)-ROW(PLE.firstrow))),0,IF(OFFSET(PLE!$G$14,$M16,CG$13)="",10^12,OFFSET(PLE!$G$14,$M16,CG$13)))) -> 0 | CH16: =IF($D16<>"Serviço",0,IF(OR(AND(AUTOEVENTO="Manual",$M16=1),$M16>(ROW(PLE.lastrow)-ROW(PLE.firstrow))),0,IF(OFFSET(PLE!$G$14,$M16,CH$13)="",10^12,OFFSET(PLE!$G$14,$M16,CH$13)))) -> 0 | CI16: =IF($D16<>"Serviço",0,IF(OR(AND(AUTOEVENTO="Manual",$M16=1),$M16>(ROW(PLE.lastrow)-ROW(PLE.firstrow))),0,IF(OFFSET(PLE!$G$14,$M16,CI$13)="",10^12,OFFSET(PLE!$G$14,$M16,CI$13)))) -> 0 | CJ16: =IF($D16<>"Serviço",0,IF(OR(AND(AUTOEVENTO="Manual",$M16=1),$M16>(ROW(PLE.lastrow)-ROW(PLE.firstrow))),0,IF(OFFSET(PLE!$G$14,$M16,CJ$13)="",10^12,OFFSET(PLE!$G$14,$M16,CJ$13)))) -> 0 | CK16: =IF($D16<>"Serviço",0,IF(OR(AND(AUTOEVENTO="Manual",$M16=1),$M16>(ROW(PLE.lastrow)-ROW(PLE.firstrow))),0,IF(OFFSET(PLE!$G$14,$M16,CK$13)="",10^12,OFFSET(PLE!$G$14,$M16,CK$13)))) -> 0 | CL16: =IF($D16<>"Serviço",0,IF(OR(AND(AUTOEVENTO="Manual",$M16=1),$M16>(ROW(PLE.lastrow)-ROW(PLE.firstrow))),0,IF(OFFSET(PLE!$G$14,$M16,CL$13)="",10^12,OFFSET(PLE!$G$14,$M16,CL$13)))) -> 0 | CM16: =IF($D16<>"Serviço",0,IF(OR(AND(AUTOEVENTO="Manual",$M16=1),$M16>(ROW(PLE.lastrow)-ROW(PLE.firstrow))),0,IF(OFFSET(PLE!$G$14,$M16,CM$13)="",10^12,OFFSET(PLE!$G$14,$M16,CM$13)))) -> 0
A17: 0 | B17: =OFFSET(ORÇAMENTO!C$15,ROW(B17)-ROW(B$15),0) -> 2 | C17: =OFFSET(ORÇAMENTO!L$15,ROW(C17)-ROW(C$15),0) -> F | D17: =OFFSET(ORÇAMENTO!N$15,ROW(D17)-ROW(D$15),0) -> Nível 2 | E17: =OFFSET(ORÇAMENTO!O$15,ROW(E17)-ROW(E$15),0) -> 1.1. | F17: =OFFSET(ORÇAMENTO!R$15,ROW(F17)-ROW(F$15),0) -> SERVIÇOS PRELIMINARES | G17: =IF($D17<>"Serviço","",OFFSET(ORÇAMENTO!S$15,ROW(G17)-ROW(G$15),0)) ->  | H17: =IF($D17<>"Serviço",0,IF(ACOMPANHAMENTO="BM",ROUND(OFFSET(ORÇAMENTO!AJ$15,ROW(H17)-ROW(H$15),0),15-13*ORÇAMENTO!$AF$7),SUMPRODUCT(($Q$12:$AI$12<>"")*ROUND($Q17:$AI17,15-13*ORÇAMENTO!$AF$7)))) -> 0 | L17: . | M17: =IF($D17<>"Serviço","",IF(AUTOEVENTO="manual",$A17,IF(ISERROR(MATCH($A17,$A$15:OFFSET($A17,-1,0),0)),MAX($M$15:OFFSET(M17,-1,0))+1,INDEX($M$15:OFFSET(M17,-1,0),MATCH($A17,$A$15:OFFSET($A17,-1,0),0))))) ->  | N17: =IF($D17<>"Serviço","",IF(AUTOEVENTO="Manual",IF($A17=0,"<-- defina o número do agrupador",OFFSET(EVENTOS!$D$14,$A17,0)),OFFSET($F$15,$A17,0))) ->  | AJ17: =IF(AND($D17="Serviço",AJ$12<>0,$H17>0,OR(AUTOEVENTO<>"manual",$M17<>1)),ROUND(OFFSET($P17,0,AJ$13),15-13*ORÇAMENTO!$AF$7)/$H17*OFFSET(ORÇAMENTO!$X$15,ROW(AJ17)-ROW(AJ$15),0),0) -> 0 | AK17: =IF(AND($D17="Serviço",AK$12<>0,$H17>0,OR(AUTOEVENTO<>"manual",$M17<>1)),ROUND(OFFSET($P17,0,AK$13),15-13*ORÇAMENTO!$AF$7)/$H17*OFFSET(ORÇAMENTO!$X$15,ROW(AK17)-ROW(AK$15),0),0) -> 0 | AL17: =IF(AND($D17="Serviço",AL$12<>0,$H17>0,OR(AUTOEVENTO<>"manual",$M17<>1)),ROUND(OFFSET($P17,0,AL$13),15-13*ORÇAMENTO!$AF$7)/$H17*OFFSET(ORÇAMENTO!$X$15,ROW(AL17)-ROW(AL$15),0),0) -> 0 | AM17: =IF(AND($D17="Serviço",AM$12<>0,$H17>0,OR(AUTOEVENTO<>"manual",$M17<>1)),ROUND(OFFSET($P17,0,AM$13),15-13*ORÇAMENTO!$AF$7)/$H17*OFFSET(ORÇAMENTO!$X$15,ROW(AM17)-ROW(AM$15),0),0) -> 0 | AN17: =IF(AND($D17="Serviço",AN$12<>0,$H17>0,OR(AUTOEVENTO<>"manual",$M17<>1)),ROUND(OFFSET($P17,0,AN$13),15-13*ORÇAMENTO!$AF$7)/$H17*OFFSET(ORÇAMENTO!$X$15,ROW(AN17)-ROW(AN$15),0),0) -> 0 | AO17: =IF(AND($D17="Serviço",AO$12<>0,$H17>0,OR(AUTOEVENTO<>"manual",$M17<>1)),ROUND(OFFSET($P17,0,AO$13),15-13*ORÇAMENTO!$AF$7)/$H17*OFFSET(ORÇAMENTO!$X$15,ROW(AO17)-ROW(AO$15),0),0) -> 0 | AP17: =IF(AND($D17="Serviço",AP$12<>0,$H17>0,OR(AUTOEVENTO<>"manual",$M17<>1)),ROUND(OFFSET($P17,0,AP$13),15-13*ORÇAMENTO!$AF$7)/$H17*OFFSET(ORÇAMENTO!$X$15,ROW(AP17)-ROW(AP$15),0),0) -> 0 | AQ17: =IF(AND($D17="Serviço",AQ$12<>0,$H17>0,OR(AUTOEVENTO<>"manual",$M17<>1)),ROUND(OFFSET($P17,0,AQ$13),15-13*ORÇAMENTO!$AF$7)/$H17*OFFSET(ORÇAMENTO!$X$15,ROW(AQ17)-ROW(AQ$15),0),0) -> 0 | AR17: =IF(AND($D17="Serviço",AR$12<>0,$H17>0,OR(AUTOEVENTO<>"manual",$M17<>1)),ROUND(OFFSET($P17,0,AR$13),15-13*ORÇAMENTO!$AF$7)/$H17*OFFSET(ORÇAMENTO!$X$15,ROW(AR17)-ROW(AR$15),0),0) -> 0 | AS17: =IF(AND($D17="Serviço",AS$12<>0,$H17>0,OR(AUTOEVENTO<>"manual",$M17<>1)),ROUND(OFFSET($P17,0,AS$13),15-13*ORÇAMENTO!$AF$7)/$H17*OFFSET(ORÇAMENTO!$X$15,ROW(AS17)-ROW(AS$15),0),0) -> 0 | AT17: =IF(AND($D17="Serviço",AT$12<>0,$H17>0,OR(AUTOEVENTO<>"manual",$M17<>1)),ROUND(OFFSET($P17,0,AT$13),15-13*ORÇAMENTO!$AF$7)/$H17*OFFSET(ORÇAMENTO!$X$15,ROW(AT17)-ROW(AT$15),0),0) -> 0 | AU17: =IF(AND($D17="Serviço",AU$12<>0,$H17>0,OR(AUTOEVENTO<>"manual",$M17<>1)),ROUND(OFFSET($P17,0,AU$13),15-13*ORÇAMENTO!$AF$7)/$H17*OFFSET(ORÇAMENTO!$X$15,ROW(AU17)-ROW(AU$15),0),0) -> 0 | AV17: =IF(AND($D17="Serviço",AV$12<>0,$H17>0,OR(AUTOEVENTO<>"manual",$M17<>1)),ROUND(OFFSET($P17,0,AV$13),15-13*ORÇAMENTO!$AF$7)/$H17*OFFSET(ORÇAMENTO!$X$15,ROW(AV17)-ROW(AV$15),0),0) -> 0 | AW17: =IF(AND($D17="Serviço",AW$12<>0,$H17>0,OR(AUTOEVENTO<>"manual",$M17<>1)),ROUND(OFFSET($P17,0,AW$13),15-13*ORÇAMENTO!$AF$7)/$H17*OFFSET(ORÇAMENTO!$X$15,ROW(AW17)-ROW(AW$15),0),0) -> 0 | AX17: =IF(AND($D17="Serviço",AX$12<>0,$H17>0,OR(AUTOEVENTO<>"manual",$M17<>1)),ROUND(OFFSET($P17,0,AX$13),15-13*ORÇAMENTO!$AF$7)/$H17*OFFSET(ORÇAMENTO!$X$15,ROW(AX17)-ROW(AX$15),0),0) -> 0 | AY17: =IF(AND($D17="Serviço",AY$12<>0,$H17>0,OR(AUTOEVENTO<>"manual",$M17<>1)),ROUND(OFFSET($P17,0,AY$13),15-13*ORÇAMENTO!$AF$7)/$H17*OFFSET(ORÇAMENTO!$X$15,ROW(AY17)-ROW(AY$15),0),0) -> 0 | AZ17: =IF(AND($D17="Serviço",AZ$12<>0,$H17>0,OR(AUTOEVENTO<>"manual",$M17<>1)),ROUND(OFFSET($P17,0,AZ$13),15-13*ORÇAMENTO!$AF$7)/$H17*OFFSET(ORÇAMENTO!$X$15,ROW(AZ17)-ROW(AZ$15),0),0) -> 0 | BA17: =IF(AND($D17="Serviço",BA$12<>0,$H17>0,OR(AUTOEVENTO<>"manual",$M17<>1)),ROUND(OFFSET($P17,0,BA$13),15-13*ORÇAMENTO!$AF$7)/$H17*OFFSET(ORÇAMENTO!$X$15,ROW(BA17)-ROW(BA$15),0),0) -> 0 | BC17: =IF($D17<>"Serviço",0,IF(AND(AUTOEVENTO="Manual",$M17=1),0,IF(OFFSET(CRONOPLE!$F$14,$M17,BC$13)="",10^12,OFFSET(CRONOPLE!$F$14,$M17,BC$13)))) -> 0 | BD17: =IF($D17<>"Serviço",0,IF(AND(AUTOEVENTO="Manual",$M17=1),0,IF(OFFSET(CRONOPLE!$F$14,$M17,BD$13)="",10^12,OFFSET(CRONOPLE!$F$14,$M17,BD$13)))) -> 0 | BE17: =IF($D17<>"Serviço",0,IF(AND(AUTOEVENTO="Manual",$M17=1),0,IF(OFFSET(CRONOPLE!$F$14,$M17,BE$13)="",10^12,OFFSET(CRONOPLE!$F$14,$M17,BE$13)))) -> 0 | BF17: =IF($D17<>"Serviço",0,IF(AND(AUTOEVENTO="Manual",$M17=1),0,IF(OFFSET(CRONOPLE!$F$14,$M17,BF$13)="",10^12,OFFSET(CRONOPLE!$F$14,$M17,BF$13)))) -> 0 | BG17: =IF($D17<>"Serviço",0,IF(AND(AUTOEVENTO="Manual",$M17=1),0,IF(OFFSET(CRONOPLE!$F$14,$M17,BG$13)="",10^12,OFFSET(CRONOPLE!$F$14,$M17,BG$13)))) -> 0 | BH17: =IF($D17<>"Serviço",0,IF(AND(AUTOEVENTO="Manual",$M17=1),0,IF(OFFSET(CRONOPLE!$F$14,$M17,BH$13)="",10^12,OFFSET(CRONOPLE!$F$14,$M17,BH$13)))) -> 0 | BI17: =IF($D17<>"Serviço",0,IF(AND(AUTOEVENTO="Manual",$M17=1),0,IF(OFFSET(CRONOPLE!$F$14,$M17,BI$13)="",10^12,OFFSET(CRONOPLE!$F$14,$M17,BI$13)))) -> 0 | BJ17: =IF($D17<>"Serviço",0,IF(AND(AUTOEVENTO="Manual",$M17=1),0,IF(OFFSET(CRONOPLE!$F$14,$M17,BJ$13)="",10^12,OFFSET(CRONOPLE!$F$14,$M17,BJ$13)))) -> 0 | BK17: =IF($D17<>"Serviço",0,IF(AND(AUTOEVENTO="Manual",$M17=1),0,IF(OFFSET(CRONOPLE!$F$14,$M17,BK$13)="",10^12,OFFSET(CRONOPLE!$F$14,$M17,BK$13)))) -> 0 | BL17: =IF($D17<>"Serviço",0,IF(AND(AUTOEVENTO="Manual",$M17=1),0,IF(OFFSET(CRONOPLE!$F$14,$M17,BL$13)="",10^12,OFFSET(CRONOPLE!$F$14,$M17,BL$13)))) -> 0 | BM17: =IF($D17<>"Serviço",0,IF(AND(AUTOEVENTO="Manual",$M17=1),0,IF(OFFSET(CRONOPLE!$F$14,$M17,BM$13)="",10^12,OFFSET(CRONOPLE!$F$14,$M17,BM$13)))) -> 0 | BN17: =IF($D17<>"Serviço",0,IF(AND(AUTOEVENTO="Manual",$M17=1),0,IF(OFFSET(CRONOPLE!$F$14,$M17,BN$13)="",10^12,OFFSET(CRONOPLE!$F$14,$M17,BN$13)))) -> 0 | BO17: =IF($D17<>"Serviço",0,IF(AND(AUTOEVENTO="Manual",$M17=1),0,IF(OFFSET(CRONOPLE!$F$14,$M17,BO$13)="",10^12,OFFSET(CRONOPLE!$F$14,$M17,BO$13)))) -> 0 | BP17: =IF($D17<>"Serviço",0,IF(AND(AUTOEVENTO="Manual",$M17=1),0,IF(OFFSET(CRONOPLE!$F$14,$M17,BP$13)="",10^12,OFFSET(CRONOPLE!$F$14,$M17,BP$13)))) -> 0 | BQ17: =IF($D17<>"Serviço",0,IF(AND(AUTOEVENTO="Manual",$M17=1),0,IF(OFFSET(CRONOPLE!$F$14,$M17,BQ$13)="",10^12,OFFSET(CRONOPLE!$F$14,$M17,BQ$13)))) -> 0 | BR17: =IF($D17<>"Serviço",0,IF(AND(AUTOEVENTO="Manual",$M17=1),0,IF(OFFSET(CRONOPLE!$F$14,$M17,BR$13)="",10^12,OFFSET(CRONOPLE!$F$14,$M17,BR$13)))) -> 0 | BS17: =IF($D17<>"Serviço",0,IF(AND(AUTOEVENTO="Manual",$M17=1),0,IF(OFFSET(CRONOPLE!$F$14,$M17,BS$13)="",10^12,OFFSET(CRONOPLE!$F$14,$M17,BS$13)))) -> 0 | BT17: =IF($D17<>"Serviço",0,IF(AND(AUTOEVENTO="Manual",$M17=1),0,IF(OFFSET(CRONOPLE!$F$14,$M17,BT$13)="",10^12,OFFSET(CRONOPLE!$F$14,$M17,BT$13)))) -> 0 | BV17: =IF($D17<>"Serviço",0,IF(OR(AND(AUTOEVENTO="Manual",$M17=1),$M17>(ROW(PLE.lastrow)-ROW(PLE.firstrow))),0,IF(OFFSET(PLE!$G$14,$M17,BV$13)="",10^12,OFFSET(PLE!$G$14,$M17,BV$13)))) -> 0 | BW17: =IF($D17<>"Serviço",0,IF(OR(AND(AUTOEVENTO="Manual",$M17=1),$M17>(ROW(PLE.lastrow)-ROW(PLE.firstrow))),0,IF(OFFSET(PLE!$G$14,$M17,BW$13)="",10^12,OFFSET(PLE!$G$14,$M17,BW$13)))) -> 0 | BX17: =IF($D17<>"Serviço",0,IF(OR(AND(AUTOEVENTO="Manual",$M17=1),$M17>(ROW(PLE.lastrow)-ROW(PLE.firstrow))),0,IF(OFFSET(PLE!$G$14,$M17,BX$13)="",10^12,OFFSET(PLE!$G$14,$M17,BX$13)))) -> 0 | BY17: =IF($D17<>"Serviço",0,IF(OR(AND(AUTOEVENTO="Manual",$M17=1),$M17>(ROW(PLE.lastrow)-ROW(PLE.firstrow))),0,IF(OFFSET(PLE!$G$14,$M17,BY$13)="",10^12,OFFSET(PLE!$G$14,$M17,BY$13)))) -> 0 | BZ17: =IF($D17<>"Serviço",0,IF(OR(AND(AUTOEVENTO="Manual",$M17=1),$M17>(ROW(PLE.lastrow)-ROW(PLE.firstrow))),0,IF(OFFSET(PLE!$G$14,$M17,BZ$13)="",10^12,OFFSET(PLE!$G$14,$M17,BZ$13)))) -> 0 | CA17: =IF($D17<>"Serviço",0,IF(OR(AND(AUTOEVENTO="Manual",$M17=1),$M17>(ROW(PLE.lastrow)-ROW(PLE.firstrow))),0,IF(OFFSET(PLE!$G$14,$M17,CA$13)="",10^12,OFFSET(PLE!$G$14,$M17,CA$13)))) -> 0 | CB17: =IF($D17<>"Serviço",0,IF(OR(AND(AUTOEVENTO="Manual",$M17=1),$M17>(ROW(PLE.lastrow)-ROW(PLE.firstrow))),0,IF(OFFSET(PLE!$G$14,$M17,CB$13)="",10^12,OFFSET(PLE!$G$14,$M17,CB$13)))) -> 0 | CC17: =IF($D17<>"Serviço",0,IF(OR(AND(AUTOEVENTO="Manual",$M17=1),$M17>(ROW(PLE.lastrow)-ROW(PLE.firstrow))),0,IF(OFFSET(PLE!$G$14,$M17,CC$13)="",10^12,OFFSET(PLE!$G$14,$M17,CC$13)))) -> 0 | CD17: =IF($D17<>"Serviço",0,IF(OR(AND(AUTOEVENTO="Manual",$M17=1),$M17>(ROW(PLE.lastrow)-ROW(PLE.firstrow))),0,IF(OFFSET(PLE!$G$14,$M17,CD$13)="",10^12,OFFSET(PLE!$G$14,$M17,CD$13)))) -> 0 | CE17: =IF($D17<>"Serviço",0,IF(OR(AND(AUTOEVENTO="Manual",$M17=1),$M17>(ROW(PLE.lastrow)-ROW(PLE.firstrow))),0,IF(OFFSET(PLE!$G$14,$M17,CE$13)="",10^12,OFFSET(PLE!$G$14,$M17,CE$13)))) -> 0 | CF17: =IF($D17<>"Serviço",0,IF(OR(AND(AUTOEVENTO="Manual",$M17=1),$M17>(ROW(PLE.lastrow)-ROW(PLE.firstrow))),0,IF(OFFSET(PLE!$G$14,$M17,CF$13)="",10^12,OFFSET(PLE!$G$14,$M17,CF$13)))) -> 0 | CG17: =IF($D17<>"Serviço",0,IF(OR(AND(AUTOEVENTO="Manual",$M17=1),$M17>(ROW(PLE.lastrow)-ROW(PLE.firstrow))),0,IF(OFFSET(PLE!$G$14,$M17,CG$13)="",10^12,OFFSET(PLE!$G$14,$M17,CG$13)))) -> 0 | CH17: =IF($D17<>"Serviço",0,IF(OR(AND(AUTOEVENTO="Manual",$M17=1),$M17>(ROW(PLE.lastrow)-ROW(PLE.firstrow))),0,IF(OFFSET(PLE!$G$14,$M17,CH$13)="",10^12,OFFSET(PLE!$G$14,$M17,CH$13)))) -> 0 | CI17: =IF($D17<>"Serviço",0,IF(OR(AND(AUTOEVENTO="Manual",$M17=1),$M17>(ROW(PLE.lastrow)-ROW(PLE.firstrow))),0,IF(OFFSET(PLE!$G$14,$M17,CI$13)="",10^12,OFFSET(PLE!$G$14,$M17,CI$13)))) -> 0 | CJ17: =IF($D17<>"Serviço",0,IF(OR(AND(AUTOEVENTO="Manual",$M17=1),$M17>(ROW(PLE.lastrow)-ROW(PLE.firstrow))),0,IF(OFFSET(PLE!$G$14,$M17,CJ$13)="",10^12,OFFSET(PLE!$G$14,$M17,CJ$13)))) -> 0 | CK17: =IF($D17<>"Serviço",0,IF(OR(AND(AUTOEVENTO="Manual",$M17=1),$M17>(ROW(PLE.lastrow)-ROW(PLE.firstrow))),0,IF(OFFSET(PLE!$G$14,$M17,CK$13)="",10^12,OFFSET(PLE!$G$14,$M17,CK$13)))) -> 0 | CL17: =IF($D17<>"Serviço",0,IF(OR(AND(AUTOEVENTO="Manual",$M17=1),$M17>(ROW(PLE.lastrow)-ROW(PLE.firstrow))),0,IF(OFFSET(PLE!$G$14,$M17,CL$13)="",10^12,OFFSET(PLE!$G$14,$M17,CL$13)))) -> 0 | CM17: =IF($D17<>"Serviço",0,IF(OR(AND(AUTOEVENTO="Manual",$M17=1),$M17>(ROW(PLE.lastrow)-ROW(PLE.firstrow))),0,IF(OFFSET(PLE!$G$14,$M17,CM$13)="",10^12,OFFSET(PLE!$G$14,$M17,CM$13)))) -> 0
A18: 2 | B18: =OFFSET(ORÇAMENTO!C$15,ROW(B18)-ROW(B$15),0) -> S | C18: =OFFSET(ORÇAMENTO!L$15,ROW(C18)-ROW(C$15),0) -> F | D18: =OFFSET(ORÇAMENTO!N$15,ROW(D18)-ROW(D$15),0) -> Serviço | E18: =OFFSET(ORÇAMENTO!O$15,ROW(E18)-ROW(E$15),0) -> 1.1.1. | F18: =OFFSET(ORÇAMENTO!R$15,ROW(F18)-ROW(F$15),0) -> PLACA DE OBRA EM CHAPA DE AÇO GALVANIZADO | G18: =IF($D18<>"Serviço","",OFFSET(ORÇAMENTO!S$15,ROW(G18)-ROW(G$15),0)) -> M2 | H18: =IF($D18<>"Serviço",0,IF(ACOMPANHAMENTO="BM",ROUND(OFFSET(ORÇAMENTO!AJ$15,ROW(H18)-ROW(H$15),0),15-13*ORÇAMENTO!$AF$7),SUMPRODUCT(($Q$12:$AI$12<>"")*ROUND($Q18:$AI18,15-13*ORÇAMENTO!$AF$7)))) -> 2.88 | I18: 2,88m² | K18: 2.SERVIÇOS PRELIMINARES | L18: . | M18: =IF($D18<>"Serviço","",IF(AUTOEVENTO="manual",$A18,IF(ISERROR(MATCH($A18,$A$15:OFFSET($A18,-1,0),0)),MAX($M$15:OFFSET(M18,-1,0))+1,INDEX($M$15:OFFSET(M18,-1,0),MATCH($A18,$A$15:OFFSET($A18,-1,0),0))))) -> 2 | N18: =IF($D18<>"Serviço","",IF(AUTOEVENTO="Manual",IF($A18=0,"<-- defina o número do agrupador",OFFSET(EVENTOS!$D$14,$A18,0)),OFFSET($F$15,$A18,0))) -> SERVIÇOS PRELIMINARES | Q18: 2.88 | AJ18: =IF(AND($D18="Serviço",AJ$12<>0,$H18>0,OR(AUTOEVENTO<>"manual",$M18<>1)),ROUND(OFFSET($P18,0,AJ$13),15-13*ORÇAMENTO!$AF$7)/$H18*OFFSET(ORÇAMENTO!$X$15,ROW(AJ18)-ROW(AJ$15),0),0) -> 990.17 | AK18: =IF(AND($D18="Serviço",AK$12<>0,$H18>0,OR(AUTOEVENTO<>"manual",$M18<>1)),ROUND(OFFSET($P18,0,AK$13),15-13*ORÇAMENTO!$AF$7)/$H18*OFFSET(ORÇAMENTO!$X$15,ROW(AK18)-ROW(AK$15),0),0) -> 0 | AL18: =IF(AND($D18="Serviço",AL$12<>0,$H18>0,OR(AUTOEVENTO<>"manual",$M18<>1)),ROUND(OFFSET($P18,0,AL$13),15-13*ORÇAMENTO!$AF$7)/$H18*OFFSET(ORÇAMENTO!$X$15,ROW(AL18)-ROW(AL$15),0),0) -> 0 | AM18: =IF(AND($D18="Serviço",AM$12<>0,$H18>0,OR(AUTOEVENTO<>"manual",$M18<>1)),ROUND(OFFSET($P18,0,AM$13),15-13*ORÇAMENTO!$AF$7)/$H18*OFFSET(ORÇAMENTO!$X$15,ROW(AM18)-ROW(AM$15),0),0) -> 0 | AN18: =IF(AND($D18="Serviço",AN$12<>0,$H18>0,OR(AUTOEVENTO<>"manual",$M18<>1)),ROUND(OFFSET($P18,0,AN$13),15-13*ORÇAMENTO!$AF$7)/$H18*OFFSET(ORÇAMENTO!$X$15,ROW(AN18)-ROW(AN$15),0),0) -> 0 | AO18: =IF(AND($D18="Serviço",AO$12<>0,$H18>0,OR(AUTOEVENTO<>"manual",$M18<>1)),ROUND(OFFSET($P18,0,AO$13),15-13*ORÇAMENTO!$AF$7)/$H18*OFFSET(ORÇAMENTO!$X$15,ROW(AO18)-ROW(AO$15),0),0) -> 0 | AP18: =IF(AND($D18="Serviço",AP$12<>0,$H18>0,OR(AUTOEVENTO<>"manual",$M18<>1)),ROUND(OFFSET($P18,0,AP$13),15-13*ORÇAMENTO!$AF$7)/$H18*OFFSET(ORÇAMENTO!$X$15,ROW(AP18)-ROW(AP$15),0),0) -> 0 | AQ18: =IF(AND($D18="Serviço",AQ$12<>0,$H18>0,OR(AUTOEVENTO<>"manual",$M18<>1)),ROUND(OFFSET($P18,0,AQ$13),15-13*ORÇAMENTO!$AF$7)/$H18*OFFSET(ORÇAMENTO!$X$15,ROW(AQ18)-ROW(AQ$15),0),0) -> 0 | AR18: =IF(AND($D18="Serviço",AR$12<>0,$H18>0,OR(AUTOEVENTO<>"manual",$M18<>1)),ROUND(OFFSET($P18,0,AR$13),15-13*ORÇAMENTO!$AF$7)/$H18*OFFSET(ORÇAMENTO!$X$15,ROW(AR18)-ROW(AR$15),0),0) -> 0 | AS18: =IF(AND($D18="Serviço",AS$12<>0,$H18>0,OR(AUTOEVENTO<>"manual",$M18<>1)),ROUND(OFFSET($P18,0,AS$13),15-13*ORÇAMENTO!$AF$7)/$H18*OFFSET(ORÇAMENTO!$X$15,ROW(AS18)-ROW(AS$15),0),0) -> 0 | AT18: =IF(AND($D18="Serviço",AT$12<>0,$H18>0,OR(AUTOEVENTO<>"manual",$M18<>1)),ROUND(OFFSET($P18,0,AT$13),15-13*ORÇAMENTO!$AF$7)/$H18*OFFSET(ORÇAMENTO!$X$15,ROW(AT18)-ROW(AT$15),0),0) -> 0 | AU18: =IF(AND($D18="Serviço",AU$12<>0,$H18>0,OR(AUTOEVENTO<>"manual",$M18<>1)),ROUND(OFFSET($P18,0,AU$13),15-13*ORÇAMENTO!$AF$7)/$H18*OFFSET(ORÇAMENTO!$X$15,ROW(AU18)-ROW(AU$15),0),0) -> 0 | AV18: =IF(AND($D18="Serviço",AV$12<>0,$H18>0,OR(AUTOEVENTO<>"manual",$M18<>1)),ROUND(OFFSET($P18,0,AV$13),15-13*ORÇAMENTO!$AF$7)/$H18*OFFSET(ORÇAMENTO!$X$15,ROW(AV18)-ROW(AV$15),0),0) -> 0 | AW18: =IF(AND($D18="Serviço",AW$12<>0,$H18>0,OR(AUTOEVENTO<>"manual",$M18<>1)),ROUND(OFFSET($P18,0,AW$13),15-13*ORÇAMENTO!$AF$7)/$H18*OFFSET(ORÇAMENTO!$X$15,ROW(AW18)-ROW(AW$15),0),0) -> 0 | AX18: =IF(AND($D18="Serviço",AX$12<>0,$H18>0,OR(AUTOEVENTO<>"manual",$M18<>1)),ROUND(OFFSET($P18,0,AX$13),15-13*ORÇAMENTO!$AF$7)/$H18*OFFSET(ORÇAMENTO!$X$15,ROW(AX18)-ROW(AX$15),0),0) -> 0 | AY18: =IF(AND($D18="Serviço",AY$12<>0,$H18>0,OR(AUTOEVENTO<>"manual",$M18<>1)),ROUND(OFFSET($P18,0,AY$13),15-13*ORÇAMENTO!$AF$7)/$H18*OFFSET(ORÇAMENTO!$X$15,ROW(AY18)-ROW(AY$15),0),0) -> 0 | AZ18: =IF(AND($D18="Serviço",AZ$12<>0,$H18>0,OR(AUTOEVENTO<>"manual",$M18<>1)),ROUND(OFFSET($P18,0,AZ$13),15-13*ORÇAMENTO!$AF$7)/$H18*OFFSET(ORÇAMENTO!$X$15,ROW(AZ18)-ROW(AZ$15),0),0) -> 0 | BA18: =IF(AND($D18="Serviço",BA$12<>0,$H18>0,OR(AUTOEVENTO<>"manual",$M18<>1)),ROUND(OFFSET($P18,0,BA$13),15-13*ORÇAMENTO!$AF$7)/$H18*OFFSET(ORÇAMENTO!$X$15,ROW(BA18)-ROW(BA$15),0),0) -> 0 | BC18: =IF($D18<>"Serviço",0,IF(AND(AUTOEVENTO="Manual",$M18=1),0,IF(OFFSET(CRONOPLE!$F$14,$M18,BC$13)="",10^12,OFFSET(CRONOPLE!$F$14,$M18,BC$13)))) -> 1 | BD18: =IF($D18<>"Serviço",0,IF(AND(AUTOEVENTO="Manual",$M18=1),0,IF(OFFSET(CRONOPLE!$F$14,$M18,BD$13)="",10^12,OFFSET(CRONOPLE!$F$14,$M18,BD$13)))) -> 1 | BE18: =IF($D18<>"Serviço",0,IF(AND(AUTOEVENTO="Manual",$M18=1),0,IF(OFFSET(CRONOPLE!$F$14,$M18,BE$13)="",10^12,OFFSET(CRONOPLE!$F$14,$M18,BE$13)))) -> 1 | BF18: =IF($D18<>"Serviço",0,IF(AND(AUTOEVENTO="Manual",$M18=1),0,IF(OFFSET(CRONOPLE!$F$14,$M18,BF$13)="",10^12,OFFSET(CRONOPLE!$F$14,$M18,BF$13)))) -> 1000000000000 | BG18: =IF($D18<>"Serviço",0,IF(AND(AUTOEVENTO="Manual",$M18=1),0,IF(OFFSET(CRONOPLE!$F$14,$M18,BG$13)="",10^12,OFFSET(CRONOPLE!$F$14,$M18,BG$13)))) -> 1000000000000 | BH18: =IF($D18<>"Serviço",0,IF(AND(AUTOEVENTO="Manual",$M18=1),0,IF(OFFSET(CRONOPLE!$F$14,$M18,BH$13)="",10^12,OFFSET(CRONOPLE!$F$14,$M18,BH$13)))) -> 1000000000000 | BI18: =IF($D18<>"Serviço",0,IF(AND(AUTOEVENTO="Manual",$M18=1),0,IF(OFFSET(CRONOPLE!$F$14,$M18,BI$13)="",10^12,OFFSET(CRONOPLE!$F$14,$M18,BI$13)))) -> 1000000000000 | BJ18: =IF($D18<>"Serviço",0,IF(AND(AUTOEVENTO="Manual",$M18=1),0,IF(OFFSET(CRONOPLE!$F$14,$M18,BJ$13)="",10^12,OFFSET(CRONOPLE!$F$14,$M18,BJ$13)))) -> 1000000000000 | BK18: =IF($D18<>"Serviço",0,IF(AND(AUTOEVENTO="Manual",$M18=1),0,IF(OFFSET(CRONOPLE!$F$14,$M18,BK$13)="",10^12,OFFSET(CRONOPLE!$F$14,$M18,BK$13)))) -> 1000000000000 | BL18: =IF($D18<>"Serviço",0,IF(AND(AUTOEVENTO="Manual",$M18=1),0,IF(OFFSET(CRONOPLE!$F$14,$M18,BL$13)="",10^12,OFFSET(CRONOPLE!$F$14,$M18,BL$13)))) -> 1000000000000 | BM18: =IF($D18<>"Serviço",0,IF(AND(AUTOEVENTO="Manual",$M18=1),0,IF(OFFSET(CRONOPLE!$F$14,$M18,BM$13)="",10^12,OFFSET(CRONOPLE!$F$14,$M18,BM$13)))) -> 1000000000000 | BN18: =IF($D18<>"Serviço",0,IF(AND(AUTOEVENTO="Manual",$M18=1),0,IF(OFFSET(CRONOPLE!$F$14,$M18,BN$13)="",10^12,OFFSET(CRONOPLE!$F$14,$M18,BN$13)))) -> 1000000000000 | BO18: =IF($D18<>"Serviço",0,IF(AND(AUTOEVENTO="Manual",$M18=1),0,IF(OFFSET(CRONOPLE!$F$14,$M18,BO$13)="",10^12,OFFSET(CRONOPLE!$F$14,$M18,BO$13)))) -> 1000000000000 | BP18: =IF($D18<>"Serviço",0,IF(AND(AUTOEVENTO="Manual",$M18=1),0,IF(OFFSET(CRONOPLE!$F$14,$M18,BP$13)="",10^12,OFFSET(CRONOPLE!$F$14,$M18,BP$13)))) -> 1000000000000 | BQ18: =IF($D18<>"Serviço",0,IF(AND(AUTOEVENTO="Manual",$M18=1),0,IF(OFFSET(CRONOPLE!$F$14,$M18,BQ$13)="",10^12,OFFSET(CRONOPLE!$F$14,$M18,BQ$13)))) -> 1000000000000 | BR18: =IF($D18<>"Serviço",0,IF(AND(AUTOEVENTO="Manual",$M18=1),0,IF(OFFSET(CRONOPLE!$F$14,$M18,BR$13)="",10^12,OFFSET(CRONOPLE!$F$14,$M18,BR$13)))) -> 1000000000000 | BS18: =IF($D18<>"Serviço",0,IF(AND(AUTOEVENTO="Manual",$M18=1),0,IF(OFFSET(CRONOPLE!$F$14,$M18,BS$13)="",10^12,OFFSET(CRONOPLE!$F$14,$M18,BS$13)))) -> 1000000000000 | BT18: =IF($D18<>"Serviço",0,IF(AND(AUTOEVENTO="Manual",$M18=1),0,IF(OFFSET(CRONOPLE!$F$14,$M18,BT$13)="",10^12,OFFSET(CRONOPLE!$F$14,$M18,BT$13)))) -> 1000000000000 | BV18: =IF($D18<>"Serviço",0,IF(OR(AND(AUTOEVENTO="Manual",$M18=1),$M18>(ROW(PLE.lastrow)-ROW(PLE.firstrow))),0,IF(OFFSET(PLE!$G$14,$M18,BV$13)="",10^12,OFFSET(PLE!$G$14,$M18,BV$13)))) -> 1000000000000 | BW18: =IF($D18<>"Serviço",0,IF(OR(AND(AUTOEVENTO="Manual",$M18=1),$M18>(ROW(PLE.lastrow)-ROW(PLE.firstrow))),0,IF(OFFSET(PLE!$G$14,$M18,BW$13)="",10^12,OFFSET(PLE!$G$14,$M18,BW$13)))) -> 1000000000000 | BX18: =IF($D18<>"Serviço",0,IF(OR(AND(AUTOEVENTO="Manual",$M18=1),$M18>(ROW(PLE.lastrow)-ROW(PLE.firstrow))),0,IF(OFFSET(PLE!$G$14,$M18,BX$13)="",10^12,OFFSET(PLE!$G$14,$M18,BX$13)))) -> 1000000000000 | BY18: =IF($D18<>"Serviço",0,IF(OR(AND(AUTOEVENTO="Manual",$M18=1),$M18>(ROW(PLE.lastrow)-ROW(PLE.firstrow))),0,IF(OFFSET(PLE!$G$14,$M18,BY$13)="",10^12,OFFSET(PLE!$G$14,$M18,BY$13)))) -> 1000000000000 | BZ18: =IF($D18<>"Serviço",0,IF(OR(AND(AUTOEVENTO="Manual",$M18=1),$M18>(ROW(PLE.lastrow)-ROW(PLE.firstrow))),0,IF(OFFSET(PLE!$G$14,$M18,BZ$13)="",10^12,OFFSET(PLE!$G$14,$M18,BZ$13)))) -> 1000000000000 | CA18: =IF($D18<>"Serviço",0,IF(OR(AND(AUTOEVENTO="Manual",$M18=1),$M18>(ROW(PLE.lastrow)-ROW(PLE.firstrow))),0,IF(OFFSET(PLE!$G$14,$M18,CA$13)="",10^12,OFFSET(PLE!$G$14,$M18,CA$13)))) -> 1000000000000 | CB18: =IF($D18<>"Serviço",0,IF(OR(AND(AUTOEVENTO="Manual",$M18=1),$M18>(ROW(PLE.lastrow)-ROW(PLE.firstrow))),0,IF(OFFSET(PLE!$G$14,$M18,CB$13)="",10^12,OFFSET(PLE!$G$14,$M18,CB$13)))) -> 1000000000000 | CC18: =IF($D18<>"Serviço",0,IF(OR(AND(AUTOEVENTO="Manual",$M18=1),$M18>(ROW(PLE.lastrow)-ROW(PLE.firstrow))),0,IF(OFFSET(PLE!$G$14,$M18,CC$13)="",10^12,OFFSET(PLE!$G$14,$M18,CC$13)))) -> 1000000000000 | CD18: =IF($D18<>"Serviço",0,IF(OR(AND(AUTOEVENTO="Manual",$M18=1),$M18>(ROW(PLE.lastrow)-ROW(PLE.firstrow))),0,IF(OFFSET(PLE!$G$14,$M18,CD$13)="",10^12,OFFSET(PLE!$G$14,$M18,CD$13)))) -> 1000000000000 | CE18: =IF($D18<>"Serviço",0,IF(OR(AND(AUTOEVENTO="Manual",$M18=1),$M18>(ROW(PLE.lastrow)-ROW(PLE.firstrow))),0,IF(OFFSET(PLE!$G$14,$M18,CE$13)="",10^12,OFFSET(PLE!$G$14,$M18,CE$13)))) -> 1000000000000 | CF18: =IF($D18<>"Serviço",0,IF(OR(AND(AUTOEVENTO="Manual",$M18=1),$M18>(ROW(PLE.lastrow)-ROW(PLE.firstrow))),0,IF(OFFSET(PLE!$G$14,$M18,CF$13)="",10^12,OFFSET(PLE!$G$14,$M18,CF$13)))) -> 1000000000000 | CG18: =IF($D18<>"Serviço",0,IF(OR(AND(AUTOEVENTO="Manual",$M18=1),$M18>(ROW(PLE.lastrow)-ROW(PLE.firstrow))),0,IF(OFFSET(PLE!$G$14,$M18,CG$13)="",10^12,OFFSET(PLE!$G$14,$M18,CG$13)))) -> 1000000000000 | CH18: =IF($D18<>"Serviço",0,IF(OR(AND(AUTOEVENTO="Manual",$M18=1),$M18>(ROW(PLE.lastrow)-ROW(PLE.firstrow))),0,IF(OFFSET(PLE!$G$14,$M18,CH$13)="",10^12,OFFSET(PLE!$G$14,$M18,CH$13)))) -> 1000000000000 | CI18: =IF($D18<>"Serviço",0,IF(OR(AND(AUTOEVENTO="Manual",$M18=1),$M18>(ROW(PLE.lastrow)-ROW(PLE.firstrow))),0,IF(OFFSET(PLE!$G$14,$M18,CI$13)="",10^12,OFFSET(PLE!$G$14,$M18,CI$13)))) -> 1000000000000 | CJ18: =IF($D18<>"Serviço",0,IF(OR(AND(AUTOEVENTO="Manual",$M18=1),$M18>(ROW(PLE.lastrow)-ROW(PLE.firstrow))),0,IF(OFFSET(PLE!$G$14,$M18,CJ$13)="",10^12,OFFSET(PLE!$G$14,$M18,CJ$13)))) -> 1000000000000 | CK18: =IF($D18<>"Serviço",0,IF(OR(AND(AUTOEVENTO="Manual",$M18=1),$M18>(ROW(PLE.lastrow)-ROW(PLE.firstrow))),0,IF(OFFSET(PLE!$G$14,$M18,CK$13)="",10^12,OFFSET(PLE!$G$14,$M18,CK$13)))) -> 1000000000000 | CL18: =IF($D18<>"Serviço",0,IF(OR(AND(AUTOEVENTO="Manual",$M18=1),$M18>(ROW(PLE.lastrow)-ROW(PLE.firstrow))),0,IF(OFFSET(PLE!$G$14,$M18,CL$13)="",10^12,OFFSET(PLE!$G$14,$M18,CL$13)))) -> 1000000000000 | CM18: =IF($D18<>"Serviço",0,IF(OR(AND(AUTOEVENTO="Manual",$M18=1),$M18>(ROW(PLE.lastrow)-ROW(PLE.firstrow))),0,IF(OFFSET(PLE!$G$14,$M18,CM$13)="",10^12,OFFSET(PLE!$G$14,$M18,CM$13)))) -> 1000000000000
A19: =IF(AUTOEVENTO="Manual",IF(K19<>"",MIN(VALUE(LEFT(K19,FIND(".",K19)-1)),COUNTA(EVENTOS.Lista)),0),IF(OR($B19>AUTOEVENTO,$B19="S",$B19=0),SUBSTITUTE(OFFSET($A19,-1,0),IF($D19="Serviço",".",""),""),ROW(A19)-ROW($A$15)&".")) -> 2 | B19: =OFFSET(ORÇAMENTO!C$15,ROW(B19)-ROW(B$15),0) -> S | C19: =OFFSET(ORÇAMENTO!L$15,ROW(C19)-ROW(C$15),0) -> F | D19: =OFFSET(ORÇAMENTO!N$15,ROW(D19)-ROW(D$15),0) -> Serviço | E19: =OFFSET(ORÇAMENTO!O$15,ROW(E19)-ROW(E$15),0) -> 1.1.2. | F19: =OFFSET(ORÇAMENTO!R$15,ROW(F19)-ROW(F$15),0) -> SERVICOS TOPOGRAFICOS PARA PAVIMENTACAO, INCLUSIVE NOTA DE SERVICOS, ACOMPANHAMENTO E GREIDE | G19: =IF($D19<>"Serviço","",OFFSET(ORÇAMENTO!S$15,ROW(G19)-ROW(G$15),0)) -> M2 | H19: =IF($D19<>"Serviço",0,IF(ACOMPANHAMENTO="BM",ROUND(OFFSET(ORÇAMENTO!AJ$15,ROW(H19)-ROW(H$15),0),15-13*ORÇAMENTO!$AF$7),SUMPRODUCT(($Q$12:$AI$12<>"")*ROUND($Q19:$AI19,15-13*ORÇAMENTO!$AF$7)))) -> 3316.46 | I19: (1.551,80m² + 927,02m² + 837,64m²) = 3.316,46m² | K19: 2.SERVIÇOS PRELIMINARES | L19: . | M19: =IF($D19<>"Serviço","",IF(AUTOEVENTO="manual",$A19,IF(ISERROR(MATCH($A19,$A$15:OFFSET($A19,-1,0),0)),MAX($M$15:OFFSET(M19,-1,0))+1,INDEX($M$15:OFFSET(M19,-1,0),MATCH($A19,$A$15:OFFSET($A19,-1,0),0))))) -> 2 | N19: =IF($D19<>"Serviço","",IF(AUTOEVENTO="Manual",IF($A19=0,"<-- defina o número do agrupador",OFFSET(EVENTOS!$D$14,$A19,0)),OFFSET($F$15,$A19,0))) -> SERVIÇOS PRELIMINARES | Q19: 1551.8 | R19: 927.02 | S19: 837.64 | AJ19: =IF(AND($D19="Serviço",AJ$12<>0,$H19>0,OR(AUTOEVENTO<>"manual",$M19<>1)),ROUND(OFFSET($P19,0,AJ$13),15-13*ORÇAMENTO!$AF$7)/$H19*OFFSET(ORÇAMENTO!$X$15,ROW(AJ19)-ROW(AJ$15),0),0) -> 527.6136845 | AK19: =IF(AND($D19="Serviço",AK$12<>0,$H19>0,OR(AUTOEVENTO<>"manual",$M19<>1)),ROUND(OFFSET($P19,0,AK$13),15-13*ORÇAMENTO!$AF$7)/$H19*OFFSET(ORÇAMENTO!$X$15,ROW(AK19)-ROW(AK$15),0),0) -> 315.1878063 | AL19: =IF(AND($D19="Serviço",AL$12<>0,$H19>0,OR(AUTOEVENTO<>"manual",$M19<>1)),ROUND(OFFSET($P19,0,AL$13),15-13*ORÇAMENTO!$AF$7)/$H19*OFFSET(ORÇAMENTO!$X$15,ROW(AL19)-ROW(AL$15),0),0) -> 284.7985093 | AM19: =IF(AND($D19="Serviço",AM$12<>0,$H19>0,OR(AUTOEVENTO<>"manual",$M19<>1)),ROUND(OFFSET($P19,0,AM$13),15-13*ORÇAMENTO!$AF$7)/$H19*OFFSET(ORÇAMENTO!$X$15,ROW(AM19)-ROW(AM$15),0),0) -> 0 | AN19: =IF(AND($D19="Serviço",AN$12<>0,$H19>0,OR(AUTOEVENTO<>"manual",$M19<>1)),ROUND(OFFSET($P19,0,AN$13),15-13*ORÇAMENTO!$AF$7)/$H19*OFFSET(ORÇAMENTO!$X$15,ROW(AN19)-ROW(AN$15),0),0) -> 0 | AO19: =IF(AND($D19="Serviço",AO$12<>0,$H19>0,OR(AUTOEVENTO<>"manual",$M19<>1)),ROUND(OFFSET($P19,0,AO$13),15-13*ORÇAMENTO!$AF$7)/$H19*OFFSET(ORÇAMENTO!$X$15,ROW(AO19)-ROW(AO$15),0),0) -> 0 | AP19: =IF(AND($D19="Serviço",AP$12<>0,$H19>0,OR(AUTOEVENTO<>"manual",$M19<>1)),ROUND(OFFSET($P19,0,AP$13),15-13*ORÇAMENTO!$AF$7)/$H19*OFFSET(ORÇAMENTO!$X$15,ROW(AP19)-ROW(AP$15),0),0) -> 0 | AQ19: =IF(AND($D19="Serviço",AQ$12<>0,$H19>0,OR(AUTOEVENTO<>"manual",$M19<>1)),ROUND(OFFSET($P19,0,AQ$13),15-13*ORÇAMENTO!$AF$7)/$H19*OFFSET(ORÇAMENTO!$X$15,ROW(AQ19)-ROW(AQ$15),0),0) -> 0 | AR19: =IF(AND($D19="Serviço",AR$12<>0,$H19>0,OR(AUTOEVENTO<>"manual",$M19<>1)),ROUND(OFFSET($P19,0,AR$13),15-13*ORÇAMENTO!$AF$7)/$H19*OFFSET(ORÇAMENTO!$X$15,ROW(AR19)-ROW(AR$15),0),0) -> 0 | AS19: =IF(AND($D19="Serviço",AS$12<>0,$H19>0,OR(AUTOEVENTO<>"manual",$M19<>1)),ROUND(OFFSET($P19,0,AS$13),15-13*ORÇAMENTO!$AF$7)/$H19*OFFSET(ORÇAMENTO!$X$15,ROW(AS19)-ROW(AS$15),0),0) -> 0 | AT19: =IF(AND($D19="Serviço",AT$12<>0,$H19>0,OR(AUTOEVENTO<>"manual",$M19<>1)),ROUND(OFFSET($P19,0,AT$13),15-13*ORÇAMENTO!$AF$7)/$H19*OFFSET(ORÇAMENTO!$X$15,ROW(AT19)-ROW(AT$15),0),0) -> 0 | AU19: =IF(AND($D19="Serviço",AU$12<>0,$H19>0,OR(AUTOEVENTO<>"manual",$M19<>1)),ROUND(OFFSET($P19,0,AU$13),15-13*ORÇAMENTO!$AF$7)/$H19*OFFSET(ORÇAMENTO!$X$15,ROW(AU19)-ROW(AU$15),0),0) -> 0 | AV19: =IF(AND($D19="Serviço",AV$12<>0,$H19>0,OR(AUTOEVENTO<>"manual",$M19<>1)),ROUND(OFFSET($P19,0,AV$13),15-13*ORÇAMENTO!$AF$7)/$H19*OFFSET(ORÇAMENTO!$X$15,ROW(AV19)-ROW(AV$15),0),0) -> 0 | AW19: =IF(AND($D19="Serviço",AW$12<>0,$H19>0,OR(AUTOEVENTO<>"manual",$M19<>1)),ROUND(OFFSET($P19,0,AW$13),15-13*ORÇAMENTO!$AF$7)/$H19*OFFSET(ORÇAMENTO!$X$15,ROW(AW19)-ROW(AW$15),0),0) -> 0 | AX19: =IF(AND($D19="Serviço",AX$12<>0,$H19>0,OR(AUTOEVENTO<>"manual",$M19<>1)),ROUND(OFFSET($P19,0,AX$13),15-13*ORÇAMENTO!$AF$7)/$H19*OFFSET(ORÇAMENTO!$X$15,ROW(AX19)-ROW(AX$15),0),0) -> 0 | AY19: =IF(AND($D19="Serviço",AY$12<>0,$H19>0,OR(AUTOEVENTO<>"manual",$M19<>1)),ROUND(OFFSET($P19,0,AY$13),15-13*ORÇAMENTO!$AF$7)/$H19*OFFSET(ORÇAMENTO!$X$15,ROW(AY19)-ROW(AY$15),0),0) -> 0 | AZ19: =IF(AND($D19="Serviço",AZ$12<>0,$H19>0,OR(AUTOEVENTO<>"manual",$M19<>1)),ROUND(OFFSET($P19,0,AZ$13),15-13*ORÇAMENTO!$AF$7)/$H19*OFFSET(ORÇAMENTO!$X$15,ROW(AZ19)-ROW(AZ$15),0),0) -> 0 | BA19: =IF(AND($D19="Serviço",BA$12<>0,$H19>0,OR(AUTOEVENTO<>"manual",$M19<>1)),ROUND(OFFSET($P19,0,BA$13),15-13*ORÇAMENTO!$AF$7)/$H19*OFFSET(ORÇAMENTO!$X$15,ROW(BA19)-ROW(BA$15),0),0) -> 0 | BC19: =IF($D19<>"Serviço",0,IF(AND(AUTOEVENTO="Manual",$M19=1),0,IF(OFFSET(CRONOPLE!$F$14,$M19,BC$13)="",10^12,OFFSET(CRONOPLE!$F$14,$M19,BC$13)))) -> 1 | BD19: =IF($D19<>"Serviço",0,IF(AND(AUTOEVENTO="Manual",$M19=1),0,IF(OFFSET(CRONOPLE!$F$14,$M19,BD$13)="",10^12,OFFSET(CRONOPLE!$F$14,$M19,BD$13)))) -> 1 | BE19: =IF($D19<>"Serviço",0,IF(AND(AUTOEVENTO="Manual",$M19=1),0,IF(OFFSET(CRONOPLE!$F$14,$M19,BE$13)="",10^12,OFFSET(CRONOPLE!$F$14,$M19,BE$13)))) -> 1 | BF19: =IF($D19<>"Serviço",0,IF(AND(AUTOEVENTO="Manual",$M19=1),0,IF(OFFSET(CRONOPLE!$F$14,$M19,BF$13)="",10^12,OFFSET(CRONOPLE!$F$14,$M19,BF$13)))) -> 1000000000000 | BG19: =IF($D19<>"Serviço",0,IF(AND(AUTOEVENTO="Manual",$M19=1),0,IF(OFFSET(CRONOPLE!$F$14,$M19,BG$13)="",10^12,OFFSET(CRONOPLE!$F$14,$M19,BG$13)))) -> 1000000000000 | BH19: =IF($D19<>"Serviço",0,IF(AND(AUTOEVENTO="Manual",$M19=1),0,IF(OFFSET(CRONOPLE!$F$14,$M19,BH$13)="",10^12,OFFSET(CRONOPLE!$F$14,$M19,BH$13)))) -> 1000000000000 | BI19: =IF($D19<>"Serviço",0,IF(AND(AUTOEVENTO="Manual",$M19=1),0,IF(OFFSET(CRONOPLE!$F$14,$M19,BI$13)="",10^12,OFFSET(CRONOPLE!$F$14,$M19,BI$13)))) -> 1000000000000 | BJ19: =IF($D19<>"Serviço",0,IF(AND(AUTOEVENTO="Manual",$M19=1),0,IF(OFFSET(CRONOPLE!$F$14,$M19,BJ$13)="",10^12,OFFSET(CRONOPLE!$F$14,$M19,BJ$13)))) -> 1000000000000 | BK19: =IF($D19<>"Serviço",0,IF(AND(AUTOEVENTO="Manual",$M19=1),0,IF(OFFSET(CRONOPLE!$F$14,$M19,BK$13)="",10^12,OFFSET(CRONOPLE!$F$14,$M19,BK$13)))) -> 1000000000000 | BL19: =IF($D19<>"Serviço",0,IF(AND(AUTOEVENTO="Manual",$M19=1),0,IF(OFFSET(CRONOPLE!$F$14,$M19,BL$13)="",10^12,OFFSET(CRONOPLE!$F$14,$M19,BL$13)))) -> 1000000000000 | BM19: =IF($D19<>"Serviço",0,IF(AND(AUTOEVENTO="Manual",$M19=1),0,IF(OFFSET(CRONOPLE!$F$14,$M19,BM$13)="",10^12,OFFSET(CRONOPLE!$F$14,$M19,BM$13)))) -> 1000000000000 | BN19: =IF($D19<>"Serviço",0,IF(AND(AUTOEVENTO="Manual",$M19=1),0,IF(OFFSET(CRONOPLE!$F$14,$M19,BN$13)="",10^12,OFFSET(CRONOPLE!$F$14,$M19,BN$13)))) -> 1000000000000 | BO19: =IF($D19<>"Serviço",0,IF(AND(AUTOEVENTO="Manual",$M19=1),0,IF(OFFSET(CRONOPLE!$F$14,$M19,BO$13)="",10^12,OFFSET(CRONOPLE!$F$14,$M19,BO$13)))) -> 1000000000000 | BP19: =IF($D19<>"Serviço",0,IF(AND(AUTOEVENTO="Manual",$M19=1),0,IF(OFFSET(CRONOPLE!$F$14,$M19,BP$13)="",10^12,OFFSET(CRONOPLE!$F$14,$M19,BP$13)))) -> 1000000000000 | BQ19: =IF($D19<>"Serviço",0,IF(AND(AUTOEVENTO="Manual",$M19=1),0,IF(OFFSET(CRONOPLE!$F$14,$M19,BQ$13)="",10^12,OFFSET(CRONOPLE!$F$14,$M19,BQ$13)))) -> 1000000000000 | BR19: =IF($D19<>"Serviço",0,IF(AND(AUTOEVENTO="Manual",$M19=1),0,IF(OFFSET(CRONOPLE!$F$14,$M19,BR$13)="",10^12,OFFSET(CRONOPLE!$F$14,$M19,BR$13)))) -> 1000000000000 | BS19: =IF($D19<>"Serviço",0,IF(AND(AUTOEVENTO="Manual",$M19=1),0,IF(OFFSET(CRONOPLE!$F$14,$M19,BS$13)="",10^12,OFFSET(CRONOPLE!$F$14,$M19,BS$13)))) -> 1000000000000 | BT19: =IF($D19<>"Serviço",0,IF(AND(AUTOEVENTO="Manual",$M19=1),0,IF(OFFSET(CRONOPLE!$F$14,$M19,BT$13)="",10^12,OFFSET(CRONOPLE!$F$14,$M19,BT$13)))) -> 1000000000000 | BV19: =IF($D19<>"Serviço",0,IF(OR(AND(AUTOEVENTO="Manual",$M19=1),$M19>(ROW(PLE.lastrow)-ROW(PLE.firstrow))),0,IF(OFFSET(PLE!$G$14,$M19,BV$13)="",10^12,OFFSET(PLE!$G$14,$M19,BV$13)))) -> 1000000000000 | BW19: =IF($D19<>"Serviço",0,IF(OR(AND(AUTOEVENTO="Manual",$M19=1),$M19>(ROW(PLE.lastrow)-ROW(PLE.firstrow))),0,IF(OFFSET(PLE!$G$14,$M19,BW$13)="",10^12,OFFSET(PLE!$G$14,$M19,BW$13)))) -> 1000000000000 | BX19: =IF($D19<>"Serviço",0,IF(OR(AND(AUTOEVENTO="Manual",$M19=1),$M19>(ROW(PLE.lastrow)-ROW(PLE.firstrow))),0,IF(OFFSET(PLE!$G$14,$M19,BX$13)="",10^12,OFFSET(PLE!$G$14,$M19,BX$13)))) -> 1000000000000 | BY19: =IF($D19<>"Serviço",0,IF(OR(AND(AUTOEVENTO="Manual",$M19=1),$M19>(ROW(PLE.lastrow)-ROW(PLE.firstrow))),0,IF(OFFSET(PLE!$G$14,$M19,BY$13)="",10^12,OFFSET(PLE!$G$14,$M19,BY$13)))) -> 1000000000000 | BZ19: =IF($D19<>"Serviço",0,IF(OR(AND(AUTOEVENTO="Manual",$M19=1),$M19>(ROW(PLE.lastrow)-ROW(PLE.firstrow))),0,IF(OFFSET(PLE!$G$14,$M19,BZ$13)="",10^12,OFFSET(PLE!$G$14,$M19,BZ$13)))) -> 1000000000000 | CA19: =IF($D19<>"Serviço",0,IF(OR(AND(AUTOEVENTO="Manual",$M19=1),$M19>(ROW(PLE.lastrow)-ROW(PLE.firstrow))),0,IF(OFFSET(PLE!$G$14,$M19,CA$13)="",10^12,OFFSET(PLE!$G$14,$M19,CA$13)))) -> 1000000000000 | CB19: =IF($D19<>"Serviço",0,IF(OR(AND(AUTOEVENTO="Manual",$M19=1),$M19>(ROW(PLE.lastrow)-ROW(PLE.firstrow))),0,IF(OFFSET(PLE!$G$14,$M19,CB$13)="",10^12,OFFSET(PLE!$G$14,$M19,CB$13)))) -> 1000000000000 | CC19: =IF($D19<>"Serviço",0,IF(OR(AND(AUTOEVENTO="Manual",$M19=1),$M19>(ROW(PLE.lastrow)-ROW(PLE.firstrow))),0,IF(OFFSET(PLE!$G$14,$M19,CC$13)="",10^12,OFFSET(PLE!$G$14,$M19,CC$13)))) -> 1000000000000 | CD19: =IF($D19<>"Serviço",0,IF(OR(AND(AUTOEVENTO="Manual",$M19=1),$M19>(ROW(PLE.lastrow)-ROW(PLE.firstrow))),0,IF(OFFSET(PLE!$G$14,$M19,CD$13)="",10^12,OFFSET(PLE!$G$14,$M19,CD$13)))) -> 1000000000000 | CE19: =IF($D19<>"Serviço",0,IF(OR(AND(AUTOEVENTO="Manual",$M19=1),$M19>(ROW(PLE.lastrow)-ROW(PLE.firstrow))),0,IF(OFFSET(PLE!$G$14,$M19,CE$13)="",10^12,OFFSET(PLE!$G$14,$M19,CE$13)))) -> 1000000000000 | CF19: =IF($D19<>"Serviço",0,IF(OR(AND(AUTOEVENTO="Manual",$M19=1),$M19>(ROW(PLE.lastrow)-ROW(PLE.firstrow))),0,IF(OFFSET(PLE!$G$14,$M19,CF$13)="",10^12,OFFSET(PLE!$G$14,$M19,CF$13)))) -> 1000000000000 | CG19: =IF($D19<>"Serviço",0,IF(OR(AND(AUTOEVENTO="Manual",$M19=1),$M19>(ROW(PLE.lastrow)-ROW(PLE.firstrow))),0,IF(OFFSET(PLE!$G$14,$M19,CG$13)="",10^12,OFFSET(PLE!$G$14,$M19,CG$13)))) -> 1000000000000 | CH19: =IF($D19<>"Serviço",0,IF(OR(AND(AUTOEVENTO="Manual",$M19=1),$M19>(ROW(PLE.lastrow)-ROW(PLE.firstrow))),0,IF(OFFSET(PLE!$G$14,$M19,CH$13)="",10^12,OFFSET(PLE!$G$14,$M19,CH$13)))) -> 1000000000000 | CI19: =IF($D19<>"Serviço",0,IF(OR(AND(AUTOEVENTO="Manual",$M19=1),$M19>(ROW(PLE.lastrow)-ROW(PLE.firstrow))),0,IF(OFFSET(PLE!$G$14,$M19,CI$13)="",10^12,OFFSET(PLE!$G$14,$M19,CI$13)))) -> 1000000000000 | CJ19: =IF($D19<>"Serviço",0,IF(OR(AND(AUTOEVENTO="Manual",$M19=1),$M19>(ROW(PLE.lastrow)-ROW(PLE.firstrow))),0,IF(OFFSET(PLE!$G$14,$M19,CJ$13)="",10^12,OFFSET(PLE!$G$14,$M19,CJ$13)))) -> 1000000000000 | CK19: =IF($D19<>"Serviço",0,IF(OR(AND(AUTOEVENTO="Manual",$M19=1),$M19>(ROW(PLE.lastrow)-ROW(PLE.firstrow))),0,IF(OFFSET(PLE!$G$14,$M19,CK$13)="",10^12,OFFSET(PLE!$G$14,$M19,CK$13)))) -> 1000000000000 | CL19: =IF($D19<>"Serviço",0,IF(OR(AND(AUTOEVENTO="Manual",$M19=1),$M19>(ROW(PLE.lastrow)-ROW(PLE.firstrow))),0,IF(OFFSET(PLE!$G$14,$M19,CL$13)="",10^12,OFFSET(PLE!$G$14,$M19,CL$13)))) -> 1000000000000 | CM19: =IF($D19<>"Serviço",0,IF(OR(AND(AUTOEVENTO="Manual",$M19=1),$M19>(ROW(PLE.lastrow)-ROW(PLE.firstrow))),0,IF(OFFSET(PLE!$G$14,$M19,CM$13)="",10^12,OFFSET(PLE!$G$14,$M19,CM$13)))) -> 1000000000000
A20: =IF(AUTOEVENTO="Manual",IF(K20<>"",MIN(VALUE(LEFT(K20,FIND(".",K20)-1)),COUNTA(EVENTOS.Lista)),0),IF(OR($B20>AUTOEVENTO,$B20="S",$B20=0),SUBSTITUTE(OFFSET($A20,-1,0),IF($D20="Serviço",".",""),""),ROW(A20)-ROW($A$15)&".")) -> 0 | B20: =OFFSET(ORÇAMENTO!C$15,ROW(B20)-ROW(B$15),0) -> 2 | C20: =OFFSET(ORÇAMENTO!L$15,ROW(C20)-ROW(C$15),0) -> F | D20: =OFFSET(ORÇAMENTO!N$15,ROW(D20)-ROW(D$15),0) -> Nível 2 | E20: =OFFSET(ORÇAMENTO!O$15,ROW(E20)-ROW(E$15),0) -> 1.2. | F20: =OFFSET(ORÇAMENTO!R$15,ROW(F20)-ROW(F$15),0) -> MOVIMENTAÇÃO DE TERRA | G20: =IF($D20<>"Serviço","",OFFSET(ORÇAMENTO!S$15,ROW(G20)-ROW(G$15),0)) ->  | H20: =IF($D20<>"Serviço",0,IF(ACOMPANHAMENTO="BM",ROUND(OFFSET(ORÇAMENTO!AJ$15,ROW(H20)-ROW(H$15),0),15-13*ORÇAMENTO!$AF$7),SUMPRODUCT(($Q$12:$AI$12<>"")*ROUND($Q20:$AI20,15-13*ORÇAMENTO!$AF$7)))) -> 0 | L20: . | M20: =IF($D20<>"Serviço","",IF(AUTOEVENTO="manual",$A20,IF(ISERROR(MATCH($A20,$A$15:OFFSET($A20,-1,0),0)),MAX($M$15:OFFSET(M20,-1,0))+1,INDEX($M$15:OFFSET(M20,-1,0),MATCH($A20,$A$15:OFFSET($A20,-1,0),0))))) ->  | N20: =IF($D20<>"Serviço","",IF(AUTOEVENTO="Manual",IF($A20=0,"<-- defina o número do agrupador",OFFSET(EVENTOS!$D$14,$A20,0)),OFFSET($F$15,$A20,0))) ->  | AJ20: =IF(AND($D20="Serviço",AJ$12<>0,$H20>0,OR(AUTOEVENTO<>"manual",$M20<>1)),ROUND(OFFSET($P20,0,AJ$13),15-13*ORÇAMENTO!$AF$7)/$H20*OFFSET(ORÇAMENTO!$X$15,ROW(AJ20)-ROW(AJ$15),0),0) -> 0 | AK20: =IF(AND($D20="Serviço",AK$12<>0,$H20>0,OR(AUTOEVENTO<>"manual",$M20<>1)),ROUND(OFFSET($P20,0,AK$13),15-13*ORÇAMENTO!$AF$7)/$H20*OFFSET(ORÇAMENTO!$X$15,ROW(AK20)-ROW(AK$15),0),0) -> 0 | AL20: =IF(AND($D20="Serviço",AL$12<>0,$H20>0,OR(AUTOEVENTO<>"manual",$M20<>1)),ROUND(OFFSET($P20,0,AL$13),15-13*ORÇAMENTO!$AF$7)/$H20*OFFSET(ORÇAMENTO!$X$15,ROW(AL20)-ROW(AL$15),0),0) -> 0 | AM20: =IF(AND($D20="Serviço",AM$12<>0,$H20>0,OR(AUTOEVENTO<>"manual",$M20<>1)),ROUND(OFFSET($P20,0,AM$13),15-13*ORÇAMENTO!$AF$7)/$H20*OFFSET(ORÇAMENTO!$X$15,ROW(AM20)-ROW(AM$15),0),0) -> 0 | AN20: =IF(AND($D20="Serviço",AN$12<>0,$H20>0,OR(AUTOEVENTO<>"manual",$M20<>1)),ROUND(OFFSET($P20,0,AN$13),15-13*ORÇAMENTO!$AF$7)/$H20*OFFSET(ORÇAMENTO!$X$15,ROW(AN20)-ROW(AN$15),0),0) -> 0 | AO20: =IF(AND($D20="Serviço",AO$12<>0,$H20>0,OR(AUTOEVENTO<>"manual",$M20<>1)),ROUND(OFFSET($P20,0,AO$13),15-13*ORÇAMENTO!$AF$7)/$H20*OFFSET(ORÇAMENTO!$X$15,ROW(AO20)-ROW(AO$15),0),0) -> 0 | AP20: =IF(AND($D20="Serviço",AP$12<>0,$H20>0,OR(AUTOEVENTO<>"manual",$M20<>1)),ROUND(OFFSET($P20,0,AP$13),15-13*ORÇAMENTO!$AF$7)/$H20*OFFSET(ORÇAMENTO!$X$15,ROW(AP20)-ROW(AP$15),0),0) -> 0 | AQ20: =IF(AND($D20="Serviço",AQ$12<>0,$H20>0,OR(AUTOEVENTO<>"manual",$M20<>1)),ROUND(OFFSET($P20,0,AQ$13),15-13*ORÇAMENTO!$AF$7)/$H20*OFFSET(ORÇAMENTO!$X$15,ROW(AQ20)-ROW(AQ$15),0),0) -> 0 | AR20: =IF(AND($D20="Serviço",AR$12<>0,$H20>0,OR(AUTOEVENTO<>"manual",$M20<>1)),ROUND(OFFSET($P20,0,AR$13),15-13*ORÇAMENTO!$AF$7)/$H20*OFFSET(ORÇAMENTO!$X$15,ROW(AR20)-ROW(AR$15),0),0) -> 0 | AS20: =IF(AND($D20="Serviço",AS$12<>0,$H20>0,OR(AUTOEVENTO<>"manual",$M20<>1)),ROUND(OFFSET($P20,0,AS$13),15-13*ORÇAMENTO!$AF$7)/$H20*OFFSET(ORÇAMENTO!$X$15,ROW(AS20)-ROW(AS$15),0),0) -> 0 | AT20: =IF(AND($D20="Serviço",AT$12<>0,$H20>0,OR(AUTOEVENTO<>"manual",$M20<>1)),ROUND(OFFSET($P20,0,AT$13),15-13*ORÇAMENTO!$AF$7)/$H20*OFFSET(ORÇAMENTO!$X$15,ROW(AT20)-ROW(AT$15),0),0) -> 0 | AU20: =IF(AND($D20="Serviço",AU$12<>0,$H20>0,OR(AUTOEVENTO<>"manual",$M20<>1)),ROUND(OFFSET($P20,0,AU$13),15-13*ORÇAMENTO!$AF$7)/$H20*OFFSET(ORÇAMENTO!$X$15,ROW(AU20)-ROW(AU$15),0),0) -> 0 | AV20: =IF(AND($D20="Serviço",AV$12<>0,$H20>0,OR(AUTOEVENTO<>"manual",$M20<>1)),ROUND(OFFSET($P20,0,AV$13),15-13*ORÇAMENTO!$AF$7)/$H20*OFFSET(ORÇAMENTO!$X$15,ROW(AV20)-ROW(AV$15),0),0) -> 0 | AW20: =IF(AND($D20="Serviço",AW$12<>0,$H20>0,OR(AUTOEVENTO<>"manual",$M20<>1)),ROUND(OFFSET($P20,0,AW$13),15-13*ORÇAMENTO!$AF$7)/$H20*OFFSET(ORÇAMENTO!$X$15,ROW(AW20)-ROW(AW$15),0),0) -> 0 | AX20: =IF(AND($D20="Serviço",AX$12<>0,$H20>0,OR(AUTOEVENTO<>"manual",$M20<>1)),ROUND(OFFSET($P20,0,AX$13),15-13*ORÇAMENTO!$AF$7)/$H20*OFFSET(ORÇAMENTO!$X$15,ROW(AX20)-ROW(AX$15),0),0) -> 0 | AY20: =IF(AND($D20="Serviço",AY$12<>0,$H20>0,OR(AUTOEVENTO<>"manual",$M20<>1)),ROUND(OFFSET($P20,0,AY$13),15-13*ORÇAMENTO!$AF$7)/$H20*OFFSET(ORÇAMENTO!$X$15,ROW(AY20)-ROW(AY$15),0),0) -> 0 | AZ20: =IF(AND($D20="Serviço",AZ$12<>0,$H20>0,OR(AUTOEVENTO<>"manual",$M20<>1)),ROUND(OFFSET($P20,0,AZ$13),15-13*ORÇAMENTO!$AF$7)/$H20*OFFSET(ORÇAMENTO!$X$15,ROW(AZ20)-ROW(AZ$15),0),0) -> 0 | BA20: =IF(AND($D20="Serviço",BA$12<>0,$H20>0,OR(AUTOEVENTO<>"manual",$M20<>1)),ROUND(OFFSET($P20,0,BA$13),15-13*ORÇAMENTO!$AF$7)/$H20*OFFSET(ORÇAMENTO!$X$15,ROW(BA20)-ROW(BA$15),0),0) -> 0 | BC20: =IF($D20<>"Serviço",0,IF(AND(AUTOEVENTO="Manual",$M20=1),0,IF(OFFSET(CRONOPLE!$F$14,$M20,BC$13)="",10^12,OFFSET(CRONOPLE!$F$14,$M20,BC$13)))) -> 0 | BD20: =IF($D20<>"Serviço",0,IF(AND(AUTOEVENTO="Manual",$M20=1),0,IF(OFFSET(CRONOPLE!$F$14,$M20,BD$13)="",10^12,OFFSET(CRONOPLE!$F$14,$M20,BD$13)))) -> 0 | BE20: =IF($D20<>"Serviço",0,IF(AND(AUTOEVENTO="Manual",$M20=1),0,IF(OFFSET(CRONOPLE!$F$14,$M20,BE$13)="",10^12,OFFSET(CRONOPLE!$F$14,$M20,BE$13)))) -> 0 | BF20: =IF($D20<>"Serviço",0,IF(AND(AUTOEVENTO="Manual",$M20=1),0,IF(OFFSET(CRONOPLE!$F$14,$M20,BF$13)="",10^12,OFFSET(CRONOPLE!$F$14,$M20,BF$13)))) -> 0 | BG20: =IF($D20<>"Serviço",0,IF(AND(AUTOEVENTO="Manual",$M20=1),0,IF(OFFSET(CRONOPLE!$F$14,$M20,BG$13)="",10^12,OFFSET(CRONOPLE!$F$14,$M20,BG$13)))) -> 0 | BH20: =IF($D20<>"Serviço",0,IF(AND(AUTOEVENTO="Manual",$M20=1),0,IF(OFFSET(CRONOPLE!$F$14,$M20,BH$13)="",10^12,OFFSET(CRONOPLE!$F$14,$M20,BH$13)))) -> 0 | BI20: =IF($D20<>"Serviço",0,IF(AND(AUTOEVENTO="Manual",$M20=1),0,IF(OFFSET(CRONOPLE!$F$14,$M20,BI$13)="",10^12,OFFSET(CRONOPLE!$F$14,$M20,BI$13)))) -> 0 | BJ20: =IF($D20<>"Serviço",0,IF(AND(AUTOEVENTO="Manual",$M20=1),0,IF(OFFSET(CRONOPLE!$F$14,$M20,BJ$13)="",10^12,OFFSET(CRONOPLE!$F$14,$M20,BJ$13)))) -> 0 | BK20: =IF($D20<>"Serviço",0,IF(AND(AUTOEVENTO="Manual",$M20=1),0,IF(OFFSET(CRONOPLE!$F$14,$M20,BK$13)="",10^12,OFFSET(CRONOPLE!$F$14,$M20,BK$13)))) -> 0 | BL20: =IF($D20<>"Serviço",0,IF(AND(AUTOEVENTO="Manual",$M20=1),0,IF(OFFSET(CRONOPLE!$F$14,$M20,BL$13)="",10^12,OFFSET(CRONOPLE!$F$14,$M20,BL$13)))) -> 0 | BM20: =IF($D20<>"Serviço",0,IF(AND(AUTOEVENTO="Manual",$M20=1),0,IF(OFFSET(CRONOPLE!$F$14,$M20,BM$13)="",10^12,OFFSET(CRONOPLE!$F$14,$M20,BM$13)))) -> 0 | BN20: =IF($D20<>"Serviço",0,IF(AND(AUTOEVENTO="Manual",$M20=1),0,IF(OFFSET(CRONOPLE!$F$14,$M20,BN$13)="",10^12,OFFSET(CRONOPLE!$F$14,$M20,BN$13)))) -> 0 | BO20: =IF($D20<>"Serviço",0,IF(AND(AUTOEVENTO="Manual",$M20=1),0,IF(OFFSET(CRONOPLE!$F$14,$M20,BO$13)="",10^12,OFFSET(CRONOPLE!$F$14,$M20,BO$13)))) -> 0 | BP20: =IF($D20<>"Serviço",0,IF(AND(AUTOEVENTO="Manual",$M20=1),0,IF(OFFSET(CRONOPLE!$F$14,$M20,BP$13)="",10^12,OFFSET(CRONOPLE!$F$14,$M20,BP$13)))) -> 0 | BQ20: =IF($D20<>"Serviço",0,IF(AND(AUTOEVENTO="Manual",$M20=1),0,IF(OFFSET(CRONOPLE!$F$14,$M20,BQ$13)="",10^12,OFFSET(CRONOPLE!$F$14,$M20,BQ$13)))) -> 0 | BR20: =IF($D20<>"Serviço",0,IF(AND(AUTOEVENTO="Manual",$M20=1),0,IF(OFFSET(CRONOPLE!$F$14,$M20,BR$13)="",10^12,OFFSET(CRONOPLE!$F$14,$M20,BR$13)))) -> 0 | BS20: =IF($D20<>"Serviço",0,IF(AND(AUTOEVENTO="Manual",$M20=1),0,IF(OFFSET(CRONOPLE!$F$14,$M20,BS$13)="",10^12,OFFSET(CRONOPLE!$F$14,$M20,BS$13)))) -> 0 | BT20: =IF($D20<>"Serviço",0,IF(AND(AUTOEVENTO="Manual",$M20=1),0,IF(OFFSET(CRONOPLE!$F$14,$M20,BT$13)="",10^12,OFFSET(CRONOPLE!$F$14,$M20,BT$13)))) -> 0 | BV20: =IF($D20<>"Serviço",0,IF(OR(AND(AUTOEVENTO="Manual",$M20=1),$M20>(ROW(PLE.lastrow)-ROW(PLE.firstrow))),0,IF(OFFSET(PLE!$G$14,$M20,BV$13)="",10^12,OFFSET(PLE!$G$14,$M20,BV$13)))) -> 0 | BW20: =IF($D20<>"Serviço",0,IF(OR(AND(AUTOEVENTO="Manual",$M20=1),$M20>(ROW(PLE.lastrow)-ROW(PLE.firstrow))),0,IF(OFFSET(PLE!$G$14,$M20,BW$13)="",10^12,OFFSET(PLE!$G$14,$M20,BW$13)))) -> 0 | BX20: =IF($D20<>"Serviço",0,IF(OR(AND(AUTOEVENTO="Manual",$M20=1),$M20>(ROW(PLE.lastrow)-ROW(PLE.firstrow))),0,IF(OFFSET(PLE!$G$14,$M20,BX$13)="",10^12,OFFSET(PLE!$G$14,$M20,BX$13)))) -> 0 | BY20: =IF($D20<>"Serviço",0,IF(OR(AND(AUTOEVENTO="Manual",$M20=1),$M20>(ROW(PLE.lastrow)-ROW(PLE.firstrow))),0,IF(OFFSET(PLE!$G$14,$M20,BY$13)="",10^12,OFFSET(PLE!$G$14,$M20,BY$13)))) -> 0 | BZ20: =IF($D20<>"Serviço",0,IF(OR(AND(AUTOEVENTO="Manual",$M20=1),$M20>(ROW(PLE.lastrow)-ROW(PLE.firstrow))),0,IF(OFFSET(PLE!$G$14,$M20,BZ$13)="",10^12,OFFSET(PLE!$G$14,$M20,BZ$13)))) -> 0 | CA20: =IF($D20<>"Serviço",0,IF(OR(AND(AUTOEVENTO="Manual",$M20=1),$M20>(ROW(PLE.lastrow)-ROW(PLE.firstrow))),0,IF(OFFSET(PLE!$G$14,$M20,CA$13)="",10^12,OFFSET(PLE!$G$14,$M20,CA$13)))) -> 0 | CB20: =IF($D20<>"Serviço",0,IF(OR(AND(AUTOEVENTO="Manual",$M20=1),$M20>(ROW(PLE.lastrow)-ROW(PLE.firstrow))),0,IF(OFFSET(PLE!$G$14,$M20,CB$13)="",10^12,OFFSET(PLE!$G$14,$M20,CB$13)))) -> 0 | CC20: =IF($D20<>"Serviço",0,IF(OR(AND(AUTOEVENTO="Manual",$M20=1),$M20>(ROW(PLE.lastrow)-ROW(PLE.firstrow))),0,IF(OFFSET(PLE!$G$14,$M20,CC$13)="",10^12,OFFSET(PLE!$G$14,$M20,CC$13)))) -> 0 | CD20: =IF($D20<>"Serviço",0,IF(OR(AND(AUTOEVENTO="Manual",$M20=1),$M20>(ROW(PLE.lastrow)-ROW(PLE.firstrow))),0,IF(OFFSET(PLE!$G$14,$M20,CD$13)="",10^12,OFFSET(PLE!$G$14,$M20,CD$13)))) -> 0 | CE20: =IF($D20<>"Serviço",0,IF(OR(AND(AUTOEVENTO="Manual",$M20=1),$M20>(ROW(PLE.lastrow)-ROW(PLE.firstrow))),0,IF(OFFSET(PLE!$G$14,$M20,CE$13)="",10^12,OFFSET(PLE!$G$14,$M20,CE$13)))) -> 0 | CF20: =IF($D20<>"Serviço",0,IF(OR(AND(AUTOEVENTO="Manual",$M20=1),$M20>(ROW(PLE.lastrow)-ROW(PLE.firstrow))),0,IF(OFFSET(PLE!$G$14,$M20,CF$13)="",10^12,OFFSET(PLE!$G$14,$M20,CF$13)))) -> 0 | CG20: =IF($D20<>"Serviço",0,IF(OR(AND(AUTOEVENTO="Manual",$M20=1),$M20>(ROW(PLE.lastrow)-ROW(PLE.firstrow))),0,IF(OFFSET(PLE!$G$14,$M20,CG$13)="",10^12,OFFSET(PLE!$G$14,$M20,CG$13)))) -> 0 | CH20: =IF($D20<>"Serviço",0,IF(OR(AND(AUTOEVENTO="Manual",$M20=1),$M20>(ROW(PLE.lastrow)-ROW(PLE.firstrow))),0,IF(OFFSET(PLE!$G$14,$M20,CH$13)="",10^12,OFFSET(PLE!$G$14,$M20,CH$13)))) -> 0 | CI20: =IF($D20<>"Serviço",0,IF(OR(AND(AUTOEVENTO="Manual",$M20=1),$M20>(ROW(PLE.lastrow)-ROW(PLE.firstrow))),0,IF(OFFSET(PLE!$G$14,$M20,CI$13)="",10^12,OFFSET(PLE!$G$14,$M20,CI$13)))) -> 0 | CJ20: =IF($D20<>"Serviço",0,IF(OR(AND(AUTOEVENTO="Manual",$M20=1),$M20>(ROW(PLE.lastrow)-ROW(PLE.firstrow))),0,IF(OFFSET(PLE!$G$14,$M20,CJ$13)="",10^12,OFFSET(PLE!$G$14,$M20,CJ$13)))) -> 0 | CK20: =IF($D20<>"Serviço",0,IF(OR(AND(AUTOEVENTO="Manual",$M20=1),$M20>(ROW(PLE.lastrow)-ROW(PLE.firstrow))),0,IF(OFFSET(PLE!$G$14,$M20,CK$13)="",10^12,OFFSET(PLE!$G$14,$M20,CK$13)))) -> 0 | CL20: =IF($D20<>"Serviço",0,IF(OR(AND(AUTOEVENTO="Manual",$M20=1),$M20>(ROW(PLE.lastrow)-ROW(PLE.firstrow))),0,IF(OFFSET(PLE!$G$14,$M20,CL$13)="",10^12,OFFSET(PLE!$G$14,$M20,CL$13)))) -> 0 | CM20: =IF($D20<>"Serviço",0,IF(OR(AND(AUTOEVENTO="Manual",$M20=1),$M20>(ROW(PLE.lastrow)-ROW(PLE.firstrow))),0,IF(OFFSET(PLE!$G$14,$M20,CM$13)="",10^12,OFFSET(PLE!$G$14,$M20,CM$13)))) -> 0
A21: =IF(AUTOEVENTO="Manual",IF(K21<>"",MIN(VALUE(LEFT(K21,FIND(".",K21)-1)),COUNTA(EVENTOS.Lista)),0),IF(OR($B21>AUTOEVENTO,$B21="S",$B21=0),SUBSTITUTE(OFFSET($A21,-1,0),IF($D21="Serviço",".",""),""),ROW(A21)-ROW($A$15)&".")) -> 3 | B21: =OFFSET(ORÇAMENTO!C$15,ROW(B21)-ROW(B$15),0) -> S | C21: =OFFSET(ORÇAMENTO!L$15,ROW(C21)-ROW(C$15),0) -> F | D21: =OFFSET(ORÇAMENTO!N$15,ROW(D21)-ROW(D$15),0) -> Serviço | E21: =OFFSET(ORÇAMENTO!O$15,ROW(E21)-ROW(E$15),0) -> 1.2.1. | F21: =OFFSET(ORÇAMENTO!R$15,ROW(F21)-ROW(F$15),0) -> ESCAVAÇÃO MECANIZADA DE VALA COM PROF. ATÉ 1,5 M(MÉDIA ENTRE MONTANTE E JUSANTE/UMA COMPOSIÇÃO POR TRECHO), COM ESCAVADEIRA HIDRÁULICA (0,8 M3), LARG. DE 1,5M A 2,5 M, EM SOLO DE 1A CATEGORIA, LOCAIS COM BAIXO NÍVEL DE INTERFERÊNCIA. AF_02/2021 | G21: =IF($D21<>"Serviço","",OFFSET(ORÇAMENTO!S$15,ROW(G21)-ROW(G$15),0)) -> M3 | H21: =IF($D21<>"Serviço",0,IF(ACOMPANHAMENTO="BM",ROUND(OFFSET(ORÇAMENTO!AJ$15,ROW(H21)-ROW(H$15),0),15-13*ORÇAMENTO!$AF$7),SUMPRODUCT(($Q$12:$AI$12<>"")*ROUND($Q21:$AI21,15-13*ORÇAMENTO!$AF$7)))) -> 631.64 | I21: (1.503,90m² x 0,3m) = 451,17m³ X 1,4(FATOR IMPOLAMENTO)= 631,64 | K21: 3.MOVIMENTAÇÃO DE TERRA | L21: . | M21: =IF($D21<>"Serviço","",IF(AUTOEVENTO="manual",$A21,IF(ISERROR(MATCH($A21,$A$15:OFFSET($A21,-1,0),0)),MAX($M$15:OFFSET(M21,-1,0))+1,INDEX($M$15:OFFSET(M21,-1,0),MATCH($A21,$A$15:OFFSET($A21,-1,0),0))))) -> 3 | N21: =IF($D21<>"Serviço","",IF(AUTOEVENTO="Manual",IF($A21=0,"<-- defina o número do agrupador",OFFSET(EVENTOS!$D$14,$A21,0)),OFFSET($F$15,$A21,0))) -> MOVIMENTAÇÃO DE TERRA | Q21: 631.64 | AJ21: =IF(AND($D21="Serviço",AJ$12<>0,$H21>0,OR(AUTOEVENTO<>"manual",$M21<>1)),ROUND(OFFSET($P21,0,AJ$13),15-13*ORÇAMENTO!$AF$7)/$H21*OFFSET(ORÇAMENTO!$X$15,ROW(AJ21)-ROW(AJ$15),0),0) -> 3638.25 | AK21: =IF(AND($D21="Serviço",AK$12<>0,$H21>0,OR(AUTOEVENTO<>"manual",$M21<>1)),ROUND(OFFSET($P21,0,AK$13),15-13*ORÇAMENTO!$AF$7)/$H21*OFFSET(ORÇAMENTO!$X$15,ROW(AK21)-ROW(AK$15),0),0) -> 0 | AL21: =IF(AND($D21="Serviço",AL$12<>0,$H21>0,OR(AUTOEVENTO<>"manual",$M21<>1)),ROUND(OFFSET($P21,0,AL$13),15-13*ORÇAMENTO!$AF$7)/$H21*OFFSET(ORÇAMENTO!$X$15,ROW(AL21)-ROW(AL$15),0),0) -> 0 | AM21: =IF(AND($D21="Serviço",AM$12<>0,$H21>0,OR(AUTOEVENTO<>"manual",$M21<>1)),ROUND(OFFSET($P21,0,AM$13),15-13*ORÇAMENTO!$AF$7)/$H21*OFFSET(ORÇAMENTO!$X$15,ROW(AM21)-ROW(AM$15),0),0) -> 0 | AN21: =IF(AND($D21="Serviço",AN$12<>0,$H21>0,OR(AUTOEVENTO<>"manual",$M21<>1)),ROUND(OFFSET($P21,0,AN$13),15-13*ORÇAMENTO!$AF$7)/$H21*OFFSET(ORÇAMENTO!$X$15,ROW(AN21)-ROW(AN$15),0),0) -> 0 | AO21: =IF(AND($D21="Serviço",AO$12<>0,$H21>0,OR(AUTOEVENTO<>"manual",$M21<>1)),ROUND(OFFSET($P21,0,AO$13),15-13*ORÇAMENTO!$AF$7)/$H21*OFFSET(ORÇAMENTO!$X$15,ROW(AO21)-ROW(AO$15),0),0) -> 0 | AP21: =IF(AND($D21="Serviço",AP$12<>0,$H21>0,OR(AUTOEVENTO<>"manual",$M21<>1)),ROUND(OFFSET($P21,0,AP$13),15-13*ORÇAMENTO!$AF$7)/$H21*OFFSET(ORÇAMENTO!$X$15,ROW(AP21)-ROW(AP$15),0),0) -> 0 | AQ21: =IF(AND($D21="Serviço",AQ$12<>0,$H21>0,OR(AUTOEVENTO<>"manual",$M21<>1)),ROUND(OFFSET($P21,0,AQ$13),15-13*ORÇAMENTO!$AF$7)/$H21*OFFSET(ORÇAMENTO!$X$15,ROW(AQ21)-ROW(AQ$15),0),0) -> 0 | AR21: =IF(AND($D21="Serviço",AR$12<>0,$H21>0,OR(AUTOEVENTO<>"manual",$M21<>1)),ROUND(OFFSET($P21,0,AR$13),15-13*ORÇAMENTO!$AF$7)/$H21*OFFSET(ORÇAMENTO!$X$15,ROW(AR21)-ROW(AR$15),0),0) -> 0 | AS21: =IF(AND($D21="Serviço",AS$12<>0,$H21>0,OR(AUTOEVENTO<>"manual",$M21<>1)),ROUND(OFFSET($P21,0,AS$13),15-13*ORÇAMENTO!$AF$7)/$H21*OFFSET(ORÇAMENTO!$X$15,ROW(AS21)-ROW(AS$15),0),0) -> 0 | AT21: =IF(AND($D21="Serviço",AT$12<>0,$H21>0,OR(AUTOEVENTO<>"manual",$M21<>1)),ROUND(OFFSET($P21,0,AT$13),15-13*ORÇAMENTO!$AF$7)/$H21*OFFSET(ORÇAMENTO!$X$15,ROW(AT21)-ROW(AT$15),0),0) -> 0 | AU21: =IF(AND($D21="Serviço",AU$12<>0,$H21>0,OR(AUTOEVENTO<>"manual",$M21<>1)),ROUND(OFFSET($P21,0,AU$13),15-13*ORÇAMENTO!$AF$7)/$H21*OFFSET(ORÇAMENTO!$X$15,ROW(AU21)-ROW(AU$15),0),0) -> 0 | AV21: =IF(AND($D21="Serviço",AV$12<>0,$H21>0,OR(AUTOEVENTO<>"manual",$M21<>1)),ROUND(OFFSET($P21,0,AV$13),15-13*ORÇAMENTO!$AF$7)/$H21*OFFSET(ORÇAMENTO!$X$15,ROW(AV21)-ROW(AV$15),0),0) -> 0 | AW21: =IF(AND($D21="Serviço",AW$12<>0,$H21>0,OR(AUTOEVENTO<>"manual",$M21<>1)),ROUND(OFFSET($P21,0,AW$13),15-13*ORÇAMENTO!$AF$7)/$H21*OFFSET(ORÇAMENTO!$X$15,ROW(AW21)-ROW(AW$15),0),0) -> 0 | AX21: =IF(AND($D21="Serviço",AX$12<>0,$H21>0,OR(AUTOEVENTO<>"manual",$M21<>1)),ROUND(OFFSET($P21,0,AX$13),15-13*ORÇAMENTO!$AF$7)/$H21*OFFSET(ORÇAMENTO!$X$15,ROW(AX21)-ROW(AX$15),0),0) -> 0 | AY21: =IF(AND($D21="Serviço",AY$12<>0,$H21>0,OR(AUTOEVENTO<>"manual",$M21<>1)),ROUND(OFFSET($P21,0,AY$13),15-13*ORÇAMENTO!$AF$7)/$H21*OFFSET(ORÇAMENTO!$X$15,ROW(AY21)-ROW(AY$15),0),0) -> 0 | AZ21: =IF(AND($D21="Serviço",AZ$12<>0,$H21>0,OR(AUTOEVENTO<>"manual",$M21<>1)),ROUND(OFFSET($P21,0,AZ$13),15-13*ORÇAMENTO!$AF$7)/$H21*OFFSET(ORÇAMENTO!$X$15,ROW(AZ21)-ROW(AZ$15),0),0) -> 0 | BA21: =IF(AND($D21="Serviço",BA$12<>0,$H21>0,OR(AUTOEVENTO<>"manual",$M21<>1)),ROUND(OFFSET($P21,0,BA$13),15-13*ORÇAMENTO!$AF$7)/$H21*OFFSET(ORÇAMENTO!$X$15,ROW(BA21)-ROW(BA$15),0),0) -> 0 | BC21: =IF($D21<>"Serviço",0,IF(AND(AUTOEVENTO="Manual",$M21=1),0,IF(OFFSET(CRONOPLE!$F$14,$M21,BC$13)="",10^12,OFFSET(CRONOPLE!$F$14,$M21,BC$13)))) -> 2 | BD21: =IF($D21<>"Serviço",0,IF(AND(AUTOEVENTO="Manual",$M21=1),0,IF(OFFSET(CRONOPLE!$F$14,$M21,BD$13)="",10^12,OFFSET(CRONOPLE!$F$14,$M21,BD$13)))) -> 2 | BE21: =IF($D21<>"Serviço",0,IF(AND(AUTOEVENTO="Manual",$M21=1),0,IF(OFFSET(CRONOPLE!$F$14,$M21,BE$13)="",10^12,OFFSET(CRONOPLE!$F$14,$M21,BE$13)))) -> 1000000000000 | BF21: =IF($D21<>"Serviço",0,IF(AND(AUTOEVENTO="Manual",$M21=1),0,IF(OFFSET(CRONOPLE!$F$14,$M21,BF$13)="",10^12,OFFSET(CRONOPLE!$F$14,$M21,BF$13)))) -> 1000000000000 | BG21: =IF($D21<>"Serviço",0,IF(AND(AUTOEVENTO="Manual",$M21=1),0,IF(OFFSET(CRONOPLE!$F$14,$M21,BG$13)="",10^12,OFFSET(CRONOPLE!$F$14,$M21,BG$13)))) -> 1000000000000 | BH21: =IF($D21<>"Serviço",0,IF(AND(AUTOEVENTO="Manual",$M21=1),0,IF(OFFSET(CRONOPLE!$F$14,$M21,BH$13)="",10^12,OFFSET(CRONOPLE!$F$14,$M21,BH$13)))) -> 1000000000000 | BI21: =IF($D21<>"Serviço",0,IF(AND(AUTOEVENTO="Manual",$M21=1),0,IF(OFFSET(CRONOPLE!$F$14,$M21,BI$13)="",10^12,OFFSET(CRONOPLE!$F$14,$M21,BI$13)))) -> 1000000000000 | BJ21: =IF($D21<>"Serviço",0,IF(AND(AUTOEVENTO="Manual",$M21=1),0,IF(OFFSET(CRONOPLE!$F$14,$M21,BJ$13)="",10^12,OFFSET(CRONOPLE!$F$14,$M21,BJ$13)))) -> 1000000000000 | BK21: =IF($D21<>"Serviço",0,IF(AND(AUTOEVENTO="Manual",$M21=1),0,IF(OFFSET(CRONOPLE!$F$14,$M21,BK$13)="",10^12,OFFSET(CRONOPLE!$F$14,$M21,BK$13)))) -> 1000000000000 | BL21: =IF($D21<>"Serviço",0,IF(AND(AUTOEVENTO="Manual",$M21=1),0,IF(OFFSET(CRONOPLE!$F$14,$M21,BL$13)="",10^12,OFFSET(CRONOPLE!$F$14,$M21,BL$13)))) -> 1000000000000 | BM21: =IF($D21<>"Serviço",0,IF(AND(AUTOEVENTO="Manual",$M21=1),0,IF(OFFSET(CRONOPLE!$F$14,$M21,BM$13)="",10^12,OFFSET(CRONOPLE!$F$14,$M21,BM$13)))) -> 1000000000000 | BN21: =IF($D21<>"Serviço",0,IF(AND(AUTOEVENTO="Manual",$M21=1),0,IF(OFFSET(CRONOPLE!$F$14,$M21,BN$13)="",10^12,OFFSET(CRONOPLE!$F$14,$M21,BN$13)))) -> 1000000000000 | BO21: =IF($D21<>"Serviço",0,IF(AND(AUTOEVENTO="Manual",$M21=1),0,IF(OFFSET(CRONOPLE!$F$14,$M21,BO$13)="",10^12,OFFSET(CRONOPLE!$F$14,$M21,BO$13)))) -> 1000000000000 | BP21: =IF($D21<>"Serviço",0,IF(AND(AUTOEVENTO="Manual",$M21=1),0,IF(OFFSET(CRONOPLE!$F$14,$M21,BP$13)="",10^12,OFFSET(CRONOPLE!$F$14,$M21,BP$13)))) -> 1000000000000 | BQ21: =IF($D21<>"Serviço",0,IF(AND(AUTOEVENTO="Manual",$M21=1),0,IF(OFFSET(CRONOPLE!$F$14,$M21,BQ$13)="",10^12,OFFSET(CRONOPLE!$F$14,$M21,BQ$13)))) -> 1000000000000 | BR21: =IF($D21<>"Serviço",0,IF(AND(AUTOEVENTO="Manual",$M21=1),0,IF(OFFSET(CRONOPLE!$F$14,$M21,BR$13)="",10^12,OFFSET(CRONOPLE!$F$14,$M21,BR$13)))) -> 1000000000000 | BS21: =IF($D21<>"Serviço",0,IF(AND(AUTOEVENTO="Manual",$M21=1),0,IF(OFFSET(CRONOPLE!$F$14,$M21,BS$13)="",10^12,OFFSET(CRONOPLE!$F$14,$M21,BS$13)))) -> 1000000000000 | BT21: =IF($D21<>"Serviço",0,IF(AND(AUTOEVENTO="Manual",$M21=1),0,IF(OFFSET(CRONOPLE!$F$14,$M21,BT$13)="",10^12,OFFSET(CRONOPLE!$F$14,$M21,BT$13)))) -> 1000000000000 | BV21: =IF($D21<>"Serviço",0,IF(OR(AND(AUTOEVENTO="Manual",$M21=1),$M21>(ROW(PLE.lastrow)-ROW(PLE.firstrow))),0,IF(OFFSET(PLE!$G$14,$M21,BV$13)="",10^12,OFFSET(PLE!$G$14,$M21,BV$13)))) -> 1000000000000 | BW21: =IF($D21<>"Serviço",0,IF(OR(AND(AUTOEVENTO="Manual",$M21=1),$M21>(ROW(PLE.lastrow)-ROW(PLE.firstrow))),0,IF(OFFSET(PLE!$G$14,$M21,BW$13)="",10^12,OFFSET(PLE!$G$14,$M21,BW$13)))) -> 1000000000000 | BX21: =IF($D21<>"Serviço",0,IF(OR(AND(AUTOEVENTO="Manual",$M21=1),$M21>(ROW(PLE.lastrow)-ROW(PLE.firstrow))),0,IF(OFFSET(PLE!$G$14,$M21,BX$13)="",10^12,OFFSET(PLE!$G$14,$M21,BX$13)))) -> 1000000000000 | BY21: =IF($D21<>"Serviço",0,IF(OR(AND(AUTOEVENTO="Manual",$M21=1),$M21>(ROW(PLE.lastrow)-ROW(PLE.firstrow))),0,IF(OFFSET(PLE!$G$14,$M21,BY$13)="",10^12,OFFSET(PLE!$G$14,$M21,BY$13)))) -> 1000000000000 | BZ21: =IF($D21<>"Serviço",0,IF(OR(AND(AUTOEVENTO="Manual",$M21=1),$M21>(ROW(PLE.lastrow)-ROW(PLE.firstrow))),0,IF(OFFSET(PLE!$G$14,$M21,BZ$13)="",10^12,OFFSET(PLE!$G$14,$M21,BZ$13)))) -> 1000000000000 | CA21: =IF($D21<>"Serviço",0,IF(OR(AND(AUTOEVENTO="Manual",$M21=1),$M21>(ROW(PLE.lastrow)-ROW(PLE.firstrow))),0,IF(OFFSET(PLE!$G$14,$M21,CA$13)="",10^12,OFFSET(PLE!$G$14,$M21,CA$13)))) -> 1000000000000 | CB21: =IF($D21<>"Serviço",0,IF(OR(AND(AUTOEVENTO="Manual",$M21=1),$M21>(ROW(PLE.lastrow)-ROW(PLE.firstrow))),0,IF(OFFSET(PLE!$G$14,$M21,CB$13)="",10^12,OFFSET(PLE!$G$14,$M21,CB$13)))) -> 1000000000000 | CC21: =IF($D21<>"Serviço",0,IF(OR(AND(AUTOEVENTO="Manual",$M21=1),$M21>(ROW(PLE.lastrow)-ROW(PLE.firstrow))),0,IF(OFFSET(PLE!$G$14,$M21,CC$13)="",10^12,OFFSET(PLE!$G$14,$M21,CC$13)))) -> 1000000000000 | CD21: =IF($D21<>"Serviço",0,IF(OR(AND(AUTOEVENTO="Manual",$M21=1),$M21>(ROW(PLE.lastrow)-ROW(PLE.firstrow))),0,IF(OFFSET(PLE!$G$14,$M21,CD$13)="",10^12,OFFSET(PLE!$G$14,$M21,CD$13)))) -> 1000000000000 | CE21: =IF($D21<>"Serviço",0,IF(OR(AND(AUTOEVENTO="Manual",$M21=1),$M21>(ROW(PLE.lastrow)-ROW(PLE.firstrow))),0,IF(OFFSET(PLE!$G$14,$M21,CE$13)="",10^12,OFFSET(PLE!$G$14,$M21,CE$13)))) -> 1000000000000 | CF21: =IF($D21<>"Serviço",0,IF(OR(AND(AUTOEVENTO="Manual",$M21=1),$M21>(ROW(PLE.lastrow)-ROW(PLE.firstrow))),0,IF(OFFSET(PLE!$G$14,$M21,CF$13)="",10^12,OFFSET(PLE!$G$14,$M21,CF$13)))) -> 1000000000000 | CG21: =IF($D21<>"Serviço",0,IF(OR(AND(AUTOEVENTO="Manual",$M21=1),$M21>(ROW(PLE.lastrow)-ROW(PLE.firstrow))),0,IF(OFFSET(PLE!$G$14,$M21,CG$13)="",10^12,OFFSET(PLE!$G$14,$M21,CG$13)))) -> 1000000000000 | CH21: =IF($D21<>"Serviço",0,IF(OR(AND(AUTOEVENTO="Manual",$M21=1),$M21>(ROW(PLE.lastrow)-ROW(PLE.firstrow))),0,IF(OFFSET(PLE!$G$14,$M21,CH$13)="",10^12,OFFSET(PLE!$G$14,$M21,CH$13)))) -> 1000000000000 | CI21: =IF($D21<>"Serviço",0,IF(OR(AND(AUTOEVENTO="Manual",$M21=1),$M21>(ROW(PLE.lastrow)-ROW(PLE.firstrow))),0,IF(OFFSET(PLE!$G$14,$M21,CI$13)="",10^12,OFFSET(PLE!$G$14,$M21,CI$13)))) -> 1000000000000 | CJ21: =IF($D21<>"Serviço",0,IF(OR(AND(AUTOEVENTO="Manual",$M21=1),$M21>(ROW(PLE.lastrow)-ROW(PLE.firstrow))),0,IF(OFFSET(PLE!$G$14,$M21,CJ$13)="",10^12,OFFSET(PLE!$G$14,$M21,CJ$13)))) -> 1000000000000 | CK21: =IF($D21<>"Serviço",0,IF(OR(AND(AUTOEVENTO="Manual",$M21=1),$M21>(ROW(PLE.lastrow)-ROW(PLE.firstrow))),0,IF(OFFSET(PLE!$G$14,$M21,CK$13)="",10^12,OFFSET(PLE!$G$14,$M21,CK$13)))) -> 1000000000000 | CL21: =IF($D21<>"Serviço",0,IF(OR(AND(AUTOEVENTO="Manual",$M21=1),$M21>(ROW(PLE.lastrow)-ROW(PLE.firstrow))),0,IF(OFFSET(PLE!$G$14,$M21,CL$13)="",10^12,OFFSET(PLE!$G$14,$M21,CL$13)))) -> 1000000000000 | CM21: =IF($D21<>"Serviço",0,IF(OR(AND(AUTOEVENTO="Manual",$M21=1),$M21>(ROW(PLE.lastrow)-ROW(PLE.firstrow))),0,IF(OFFSET(PLE!$G$14,$M21,CM$13)="",10^12,OFFSET(PLE!$G$14,$M21,CM$13)))) -> 1000000000000
A22: =IF(AUTOEVENTO="Manual",IF(K22<>"",MIN(VALUE(LEFT(K22,FIND(".",K22)-1)),COUNTA(EVENTOS.Lista)),0),IF(OR($B22>AUTOEVENTO,$B22="S",$B22=0),SUBSTITUTE(OFFSET($A22,-1,0),IF($D22="Serviço",".",""),""),ROW(A22)-ROW($A$15)&".")) -> 3 | B22: =OFFSET(ORÇAMENTO!C$15,ROW(B22)-ROW(B$15),0) -> S | C22: =OFFSET(ORÇAMENTO!L$15,ROW(C22)-ROW(C$15),0) -> F | D22: =OFFSET(ORÇAMENTO!N$15,ROW(D22)-ROW(D$15),0) -> Serviço | E22: =OFFSET(ORÇAMENTO!O$15,ROW(E22)-ROW(E$15),0) -> 1.2.2. | F22: =OFFSET(ORÇAMENTO!R$15,ROW(F22)-ROW(F$15),0) -> TRANSPORTE COM CAMINHÃO BASCULANTE DE 14 M³, EM VIA URBANA PAVIMENTADA, ADICIONAL PARA DMT EXCEDENTE A 30 KM (UNIDADE: M3XKM). AF_07/2020 | G22: =IF($D22<>"Serviço","",OFFSET(ORÇAMENTO!S$15,ROW(G22)-ROW(G$15),0)) -> M3XKM | H22: =IF($D22<>"Serviço",0,IF(ACOMPANHAMENTO="BM",ROUND(OFFSET(ORÇAMENTO!AJ$15,ROW(H22)-ROW(H$15),0),15-13*ORÇAMENTO!$AF$7),SUMPRODUCT(($Q$12:$AI$12<>"")*ROUND($Q22:$AI22,15-13*ORÇAMENTO!$AF$7)))) -> 1263.28 | I22: (451,17m³ x 2km) = 902,34m³xkm x 1,4(fator impolamento)= 1.263,28m³xkm | K22: 3.MOVIMENTAÇÃO DE TERRA | L22: . | M22: =IF($D22<>"Serviço","",IF(AUTOEVENTO="manual",$A22,IF(ISERROR(MATCH($A22,$A$15:OFFSET($A22,-1,0),0)),MAX($M$15:OFFSET(M22,-1,0))+1,INDEX($M$15:OFFSET(M22,-1,0),MATCH($A22,$A$15:OFFSET($A22,-1,0),0))))) -> 3 | N22: =IF($D22<>"Serviço","",IF(AUTOEVENTO="Manual",IF($A22=0,"<-- defina o número do agrupador",OFFSET(EVENTOS!$D$14,$A22,0)),OFFSET($F$15,$A22,0))) -> MOVIMENTAÇÃO DE TERRA | Q22: 1263.28 | AJ22: =IF(AND($D22="Serviço",AJ$12<>0,$H22>0,OR(AUTOEVENTO<>"manual",$M22<>1)),ROUND(OFFSET($P22,0,AJ$13),15-13*ORÇAMENTO!$AF$7)/$H22*OFFSET(ORÇAMENTO!$X$15,ROW(AJ22)-ROW(AJ$15),0),0) -> 947.46 | AK22: =IF(AND($D22="Serviço",AK$12<>0,$H22>0,OR(AUTOEVENTO<>"manual",$M22<>1)),ROUND(OFFSET($P22,0,AK$13),15-13*ORÇAMENTO!$AF$7)/$H22*OFFSET(ORÇAMENTO!$X$15,ROW(AK22)-ROW(AK$15),0),0) -> 0 | AL22: =IF(AND($D22="Serviço",AL$12<>0,$H22>0,OR(AUTOEVENTO<>"manual",$M22<>1)),ROUND(OFFSET($P22,0,AL$13),15-13*ORÇAMENTO!$AF$7)/$H22*OFFSET(ORÇAMENTO!$X$15,ROW(AL22)-ROW(AL$15),0),0) -> 0 | AM22: =IF(AND($D22="Serviço",AM$12<>0,$H22>0,OR(AUTOEVENTO<>"manual",$M22<>1)),ROUND(OFFSET($P22,0,AM$13),15-13*ORÇAMENTO!$AF$7)/$H22*OFFSET(ORÇAMENTO!$X$15,ROW(AM22)-ROW(AM$15),0),0) -> 0 | AN22: =IF(AND($D22="Serviço",AN$12<>0,$H22>0,OR(AUTOEVENTO<>"manual",$M22<>1)),ROUND(OFFSET($P22,0,AN$13),15-13*ORÇAMENTO!$AF$7)/$H22*OFFSET(ORÇAMENTO!$X$15,ROW(AN22)-ROW(AN$15),0),0) -> 0 | AO22: =IF(AND($D22="Serviço",AO$12<>0,$H22>0,OR(AUTOEVENTO<>"manual",$M22<>1)),ROUND(OFFSET($P22,0,AO$13),15-13*ORÇAMENTO!$AF$7)/$H22*OFFSET(ORÇAMENTO!$X$15,ROW(AO22)-ROW(AO$15),0),0) -> 0 | AP22: =IF(AND($D22="Serviço",AP$12<>0,$H22>0,OR(AUTOEVENTO<>"manual",$M22<>1)),ROUND(OFFSET($P22,0,AP$13),15-13*ORÇAMENTO!$AF$7)/$H22*OFFSET(ORÇAMENTO!$X$15,ROW(AP22)-ROW(AP$15),0),0) -> 0 | AQ22: =IF(AND($D22="Serviço",AQ$12<>0,$H22>0,OR(AUTOEVENTO<>"manual",$M22<>1)),ROUND(OFFSET($P22,0,AQ$13),15-13*ORÇAMENTO!$AF$7)/$H22*OFFSET(ORÇAMENTO!$X$15,ROW(AQ22)-ROW(AQ$15),0),0) -> 0 | AR22: =IF(AND($D22="Serviço",AR$12<>0,$H22>0,OR(AUTOEVENTO<>"manual",$M22<>1)),ROUND(OFFSET($P22,0,AR$13),15-13*ORÇAMENTO!$AF$7)/$H22*OFFSET(ORÇAMENTO!$X$15,ROW(AR22)-ROW(AR$15),0),0) -> 0 | AS22: =IF(AND($D22="Serviço",AS$12<>0,$H22>0,OR(AUTOEVENTO<>"manual",$M22<>1)),ROUND(OFFSET($P22,0,AS$13),15-13*ORÇAMENTO!$AF$7)/$H22*OFFSET(ORÇAMENTO!$X$15,ROW(AS22)-ROW(AS$15),0),0) -> 0 | AT22: =IF(AND($D22="Serviço",AT$12<>0,$H22>0,OR(AUTOEVENTO<>"manual",$M22<>1)),ROUND(OFFSET($P22,0,AT$13),15-13*ORÇAMENTO!$AF$7)/$H22*OFFSET(ORÇAMENTO!$X$15,ROW(AT22)-ROW(AT$15),0),0) -> 0 | AU22: =IF(AND($D22="Serviço",AU$12<>0,$H22>0,OR(AUTOEVENTO<>"manual",$M22<>1)),ROUND(OFFSET($P22,0,AU$13),15-13*ORÇAMENTO!$AF$7)/$H22*OFFSET(ORÇAMENTO!$X$15,ROW(AU22)-ROW(AU$15),0),0) -> 0 | AV22: =IF(AND($D22="Serviço",AV$12<>0,$H22>0,OR(AUTOEVENTO<>"manual",$M22<>1)),ROUND(OFFSET($P22,0,AV$13),15-13*ORÇAMENTO!$AF$7)/$H22*OFFSET(ORÇAMENTO!$X$15,ROW(AV22)-ROW(AV$15),0),0) -> 0 | AW22: =IF(AND($D22="Serviço",AW$12<>0,$H22>0,OR(AUTOEVENTO<>"manual",$M22<>1)),ROUND(OFFSET($P22,0,AW$13),15-13*ORÇAMENTO!$AF$7)/$H22*OFFSET(ORÇAMENTO!$X$15,ROW(AW22)-ROW(AW$15),0),0) -> 0 | AX22: =IF(AND($D22="Serviço",AX$12<>0,$H22>0,OR(AUTOEVENTO<>"manual",$M22<>1)),ROUND(OFFSET($P22,0,AX$13),15-13*ORÇAMENTO!$AF$7)/$H22*OFFSET(ORÇAMENTO!$X$15,ROW(AX22)-ROW(AX$15),0),0) -> 0 | AY22: =IF(AND($D22="Serviço",AY$12<>0,$H22>0,OR(AUTOEVENTO<>"manual",$M22<>1)),ROUND(OFFSET($P22,0,AY$13),15-13*ORÇAMENTO!$AF$7)/$H22*OFFSET(ORÇAMENTO!$X$15,ROW(AY22)-ROW(AY$15),0),0) -> 0 | AZ22: =IF(AND($D22="Serviço",AZ$12<>0,$H22>0,OR(AUTOEVENTO<>"manual",$M22<>1)),ROUND(OFFSET($P22,0,AZ$13),15-13*ORÇAMENTO!$AF$7)/$H22*OFFSET(ORÇAMENTO!$X$15,ROW(AZ22)-ROW(AZ$15),0),0) -> 0 | BA22: =IF(AND($D22="Serviço",BA$12<>0,$H22>0,OR(AUTOEVENTO<>"manual",$M22<>1)),ROUND(OFFSET($P22,0,BA$13),15-13*ORÇAMENTO!$AF$7)/$H22*OFFSET(ORÇAMENTO!$X$15,ROW(BA22)-ROW(BA$15),0),0) -> 0 | BC22: =IF($D22<>"Serviço",0,IF(AND(AUTOEVENTO="Manual",$M22=1),0,IF(OFFSET(CRONOPLE!$F$14,$M22,BC$13)="",10^12,OFFSET(CRONOPLE!$F$14,$M22,BC$13)))) -> 2 | BD22: =IF($D22<>"Serviço",0,IF(AND(AUTOEVENTO="Manual",$M22=1),0,IF(OFFSET(CRONOPLE!$F$14,$M22,BD$13)="",10^12,OFFSET(CRONOPLE!$F$14,$M22,BD$13)))) -> 2 | BE22: =IF($D22<>"Serviço",0,IF(AND(AUTOEVENTO="Manual",$M22=1),0,IF(OFFSET(CRONOPLE!$F$14,$M22,BE$13)="",10^12,OFFSET(CRONOPLE!$F$14,$M22,BE$13)))) -> 1000000000000 | BF22: =IF($D22<>"Serviço",0,IF(AND(AUTOEVENTO="Manual",$M22=1),0,IF(OFFSET(CRONOPLE!$F$14,$M22,BF$13)="",10^12,OFFSET(CRONOPLE!$F$14,$M22,BF$13)))) -> 1000000000000 | BG22: =IF($D22<>"Serviço",0,IF(AND(AUTOEVENTO="Manual",$M22=1),0,IF(OFFSET(CRONOPLE!$F$14,$M22,BG$13)="",10^12,OFFSET(CRONOPLE!$F$14,$M22,BG$13)))) -> 1000000000000 | BH22: =IF($D22<>"Serviço",0,IF(AND(AUTOEVENTO="Manual",$M22=1),0,IF(OFFSET(CRONOPLE!$F$14,$M22,BH$13)="",10^12,OFFSET(CRONOPLE!$F$14,$M22,BH$13)))) -> 1000000000000 | BI22: =IF($D22<>"Serviço",0,IF(AND(AUTOEVENTO="Manual",$M22=1),0,IF(OFFSET(CRONOPLE!$F$14,$M22,BI$13)="",10^12,OFFSET(CRONOPLE!$F$14,$M22,BI$13)))) -> 1000000000000 | BJ22: =IF($D22<>"Serviço",0,IF(AND(AUTOEVENTO="Manual",$M22=1),0,IF(OFFSET(CRONOPLE!$F$14,$M22,BJ$13)="",10^12,OFFSET(CRONOPLE!$F$14,$M22,BJ$13)))) -> 1000000000000 | BK22: =IF($D22<>"Serviço",0,IF(AND(AUTOEVENTO="Manual",$M22=1),0,IF(OFFSET(CRONOPLE!$F$14,$M22,BK$13)="",10^12,OFFSET(CRONOPLE!$F$14,$M22,BK$13)))) -> 1000000000000 | BL22: =IF($D22<>"Serviço",0,IF(AND(AUTOEVENTO="Manual",$M22=1),0,IF(OFFSET(CRONOPLE!$F$14,$M22,BL$13)="",10^12,OFFSET(CRONOPLE!$F$14,$M22,BL$13)))) -> 1000000000000 | BM22: =IF($D22<>"Serviço",0,IF(AND(AUTOEVENTO="Manual",$M22=1),0,IF(OFFSET(CRONOPLE!$F$14,$M22,BM$13)="",10^12,OFFSET(CRONOPLE!$F$14,$M22,BM$13)))) -> 1000000000000 | BN22: =IF($D22<>"Serviço",0,IF(AND(AUTOEVENTO="Manual",$M22=1),0,IF(OFFSET(CRONOPLE!$F$14,$M22,BN$13)="",10^12,OFFSET(CRONOPLE!$F$14,$M22,BN$13)))) -> 1000000000000 | BO22: =IF($D22<>"Serviço",0,IF(AND(AUTOEVENTO="Manual",$M22=1),0,IF(OFFSET(CRONOPLE!$F$14,$M22,BO$13)="",10^12,OFFSET(CRONOPLE!$F$14,$M22,BO$13)))) -> 1000000000000 | BP22: =IF($D22<>"Serviço",0,IF(AND(AUTOEVENTO="Manual",$M22=1),0,IF(OFFSET(CRONOPLE!$F$14,$M22,BP$13)="",10^12,OFFSET(CRONOPLE!$F$14,$M22,BP$13)))) -> 1000000000000 | BQ22: =IF($D22<>"Serviço",0,IF(AND(AUTOEVENTO="Manual",$M22=1),0,IF(OFFSET(CRONOPLE!$F$14,$M22,BQ$13)="",10^12,OFFSET(CRONOPLE!$F$14,$M22,BQ$13)))) -> 1000000000000 | BR22: =IF($D22<>"Serviço",0,IF(AND(AUTOEVENTO="Manual",$M22=1),0,IF(OFFSET(CRONOPLE!$F$14,$M22,BR$13)="",10^12,OFFSET(CRONOPLE!$F$14,$M22,BR$13)))) -> 1000000000000 | BS22: =IF($D22<>"Serviço",0,IF(AND(AUTOEVENTO="Manual",$M22=1),0,IF(OFFSET(CRONOPLE!$F$14,$M22,BS$13)="",10^12,OFFSET(CRONOPLE!$F$14,$M22,BS$13)))) -> 1000000000000 | BT22: =IF($D22<>"Serviço",0,IF(AND(AUTOEVENTO="Manual",$M22=1),0,IF(OFFSET(CRONOPLE!$F$14,$M22,BT$13)="",10^12,OFFSET(CRONOPLE!$F$14,$M22,BT$13)))) -> 1000000000000 | BV22: =IF($D22<>"Serviço",0,IF(OR(AND(AUTOEVENTO="Manual",$M22=1),$M22>(ROW(PLE.lastrow)-ROW(PLE.firstrow))),0,IF(OFFSET(PLE!$G$14,$M22,BV$13)="",10^12,OFFSET(PLE!$G$14,$M22,BV$13)))) -> 1000000000000 | BW22: =IF($D22<>"Serviço",0,IF(OR(AND(AUTOEVENTO="Manual",$M22=1),$M22>(ROW(PLE.lastrow)-ROW(PLE.firstrow))),0,IF(OFFSET(PLE!$G$14,$M22,BW$13)="",10^12,OFFSET(PLE!$G$14,$M22,BW$13)))) -> 1000000000000 | BX22: =IF($D22<>"Serviço",0,IF(OR(AND(AUTOEVENTO="Manual",$M22=1),$M22>(ROW(PLE.lastrow)-ROW(PLE.firstrow))),0,IF(OFFSET(PLE!$G$14,$M22,BX$13)="",10^12,OFFSET(PLE!$G$14,$M22,BX$13)))) -> 1000000000000 | BY22: =IF($D22<>"Serviço",0,IF(OR(AND(AUTOEVENTO="Manual",$M22=1),$M22>(ROW(PLE.lastrow)-ROW(PLE.firstrow))),0,IF(OFFSET(PLE!$G$14,$M22,BY$13)="",10^12,OFFSET(PLE!$G$14,$M22,BY$13)))) -> 1000000000000 | BZ22: =IF($D22<>"Serviço",0,IF(OR(AND(AUTOEVENTO="Manual",$M22=1),$M22>(ROW(PLE.lastrow)-ROW(PLE.firstrow))),0,IF(OFFSET(PLE!$G$14,$M22,BZ$13)="",10^12,OFFSET(PLE!$G$14,$M22,BZ$13)))) -> 1000000000000 | CA22: =IF($D22<>"Serviço",0,IF(OR(AND(AUTOEVENTO="Manual",$M22=1),$M22>(ROW(PLE.lastrow)-ROW(PLE.firstrow))),0,IF(OFFSET(PLE!$G$14,$M22,CA$13)="",10^12,OFFSET(PLE!$G$14,$M22,CA$13)))) -> 1000000000000 | CB22: =IF($D22<>"Serviço",0,IF(OR(AND(AUTOEVENTO="Manual",$M22=1),$M22>(ROW(PLE.lastrow)-ROW(PLE.firstrow))),0,IF(OFFSET(PLE!$G$14,$M22,CB$13)="",10^12,OFFSET(PLE!$G$14,$M22,CB$13)))) -> 1000000000000 | CC22: =IF($D22<>"Serviço",0,IF(OR(AND(AUTOEVENTO="Manual",$M22=1),$M22>(ROW(PLE.lastrow)-ROW(PLE.firstrow))),0,IF(OFFSET(PLE!$G$14,$M22,CC$13)="",10^12,OFFSET(PLE!$G$14,$M22,CC$13)))) -> 1000000000000 | CD22: =IF($D22<>"Serviço",0,IF(OR(AND(AUTOEVENTO="Manual",$M22=1),$M22>(ROW(PLE.lastrow)-ROW(PLE.firstrow))),0,IF(OFFSET(PLE!$G$14,$M22,CD$13)="",10^12,OFFSET(PLE!$G$14,$M22,CD$13)))) -> 1000000000000 | CE22: =IF($D22<>"Serviço",0,IF(OR(AND(AUTOEVENTO="Manual",$M22=1),$M22>(ROW(PLE.lastrow)-ROW(PLE.firstrow))),0,IF(OFFSET(PLE!$G$14,$M22,CE$13)="",10^12,OFFSET(PLE!$G$14,$M22,CE$13)))) -> 1000000000000 | CF22: =IF($D22<>"Serviço",0,IF(OR(AND(AUTOEVENTO="Manual",$M22=1),$M22>(ROW(PLE.lastrow)-ROW(PLE.firstrow))),0,IF(OFFSET(PLE!$G$14,$M22,CF$13)="",10^12,OFFSET(PLE!$G$14,$M22,CF$13)))) -> 1000000000000 | CG22: =IF($D22<>"Serviço",0,IF(OR(AND(AUTOEVENTO="Manual",$M22=1),$M22>(ROW(PLE.lastrow)-ROW(PLE.firstrow))),0,IF(OFFSET(PLE!$G$14,$M22,CG$13)="",10^12,OFFSET(PLE!$G$14,$M22,CG$13)))) -> 1000000000000 | CH22: =IF($D22<>"Serviço",0,IF(OR(AND(AUTOEVENTO="Manual",$M22=1),$M22>(ROW(PLE.lastrow)-ROW(PLE.firstrow))),0,IF(OFFSET(PLE!$G$14,$M22,CH$13)="",10^12,OFFSET(PLE!$G$14,$M22,CH$13)))) -> 1000000000000 | CI22: =IF($D22<>"Serviço",0,IF(OR(AND(AUTOEVENTO="Manual",$M22=1),$M22>(ROW(PLE.lastrow)-ROW(PLE.firstrow))),0,IF(OFFSET(PLE!$G$14,$M22,CI$13)="",10^12,OFFSET(PLE!$G$14,$M22,CI$13)))) -> 1000000000000 | CJ22: =IF($D22<>"Serviço",0,IF(OR(AND(AUTOEVENTO="Manual",$M22=1),$M22>(ROW(PLE.lastrow)-ROW(PLE.firstrow))),0,IF(OFFSET(PLE!$G$14,$M22,CJ$13)="",10^12,OFFSET(PLE!$G$14,$M22,CJ$13)))) -> 1000000000000 | CK22: =IF($D22<>"Serviço",0,IF(OR(AND(AUTOEVENTO="Manual",$M22=1),$M22>(ROW(PLE.lastrow)-ROW(PLE.firstrow))),0,IF(OFFSET(PLE!$G$14,$M22,CK$13)="",10^12,OFFSET(PLE!$G$14,$M22,CK$13)))) -> 1000000000000 | CL22: =IF($D22<>"Serviço",0,IF(OR(AND(AUTOEVENTO="Manual",$M22=1),$M22>(ROW(PLE.lastrow)-ROW(PLE.firstrow))),0,IF(OFFSET(PLE!$G$14,$M22,CL$13)="",10^12,OFFSET(PLE!$G$14,$M22,CL$13)))) -> 1000000000000 | CM22: =IF($D22<>"Serviço",0,IF(OR(AND(AUTOEVENTO="Manual",$M22=1),$M22>(ROW(PLE.lastrow)-ROW(PLE.firstrow))),0,IF(OFFSET(PLE!$G$14,$M22,CM$13)="",10^12,OFFSET(PLE!$G$14,$M22,CM$13)))) -> 1000000000000
A23: =IF(AUTOEVENTO="Manual",IF(K23<>"",MIN(VALUE(LEFT(K23,FIND(".",K23)-1)),COUNTA(EVENTOS.Lista)),0),IF(OR($B23>AUTOEVENTO,$B23="S",$B23=0),SUBSTITUTE(OFFSET($A23,-1,0),IF($D23="Serviço",".",""),""),ROW(A23)-ROW($A$15)&".")) -> 0 | B23: =OFFSET(ORÇAMENTO!C$15,ROW(B23)-ROW(B$15),0) -> 2 | C23: =OFFSET(ORÇAMENTO!L$15,ROW(C23)-ROW(C$15),0) -> F | D23: =OFFSET(ORÇAMENTO!N$15,ROW(D23)-ROW(D$15),0) -> Nível 2 | E23: =OFFSET(ORÇAMENTO!O$15,ROW(E23)-ROW(E$15),0) -> 1.3. | F23: =OFFSET(ORÇAMENTO!R$15,ROW(F23)-ROW(F$15),0) -> DRENAGEM | G23: =IF($D23<>"Serviço","",OFFSET(ORÇAMENTO!S$15,ROW(G23)-ROW(G$15),0)) ->  | H23: =IF($D23<>"Serviço",0,IF(ACOMPANHAMENTO="BM",ROUND(OFFSET(ORÇAMENTO!AJ$15,ROW(H23)-ROW(H$15),0),15-13*ORÇAMENTO!$AF$7),SUMPRODUCT(($Q$12:$AI$12<>"")*ROUND($Q23:$AI23,15-13*ORÇAMENTO!$AF$7)))) -> 0 | L23: . | M23: =IF($D23<>"Serviço","",IF(AUTOEVENTO="manual",$A23,IF(ISERROR(MATCH($A23,$A$15:OFFSET($A23,-1,0),0)),MAX($M$15:OFFSET(M23,-1,0))+1,INDEX($M$15:OFFSET(M23,-1,0),MATCH($A23,$A$15:OFFSET($A23,-1,0),0))))) ->  | N23: =IF($D23<>"Serviço","",IF(AUTOEVENTO="Manual",IF($A23=0,"<-- defina o número do agrupador",OFFSET(EVENTOS!$D$14,$A23,0)),OFFSET($F$15,$A23,0))) ->  | AJ23: =IF(AND($D23="Serviço",AJ$12<>0,$H23>0,OR(AUTOEVENTO<>"manual",$M23<>1)),ROUND(OFFSET($P23,0,AJ$13),15-13*ORÇAMENTO!$AF$7)/$H23*OFFSET(ORÇAMENTO!$X$15,ROW(AJ23)-ROW(AJ$15),0),0) -> 0 | AK23: =IF(AND($D23="Serviço",AK$12<>0,$H23>0,OR(AUTOEVENTO<>"manual",$M23<>1)),ROUND(OFFSET($P23,0,AK$13),15-13*ORÇAMENTO!$AF$7)/$H23*OFFSET(ORÇAMENTO!$X$15,ROW(AK23)-ROW(AK$15),0),0) -> 0 | AL23: =IF(AND($D23="Serviço",AL$12<>0,$H23>0,OR(AUTOEVENTO<>"manual",$M23<>1)),ROUND(OFFSET($P23,0,AL$13),15-13*ORÇAMENTO!$AF$7)/$H23*OFFSET(ORÇAMENTO!$X$15,ROW(AL23)-ROW(AL$15),0),0) -> 0 | AM23: =IF(AND($D23="Serviço",AM$12<>0,$H23>0,OR(AUTOEVENTO<>"manual",$M23<>1)),ROUND(OFFSET($P23,0,AM$13),15-13*ORÇAMENTO!$AF$7)/$H23*OFFSET(ORÇAMENTO!$X$15,ROW(AM23)-ROW(AM$15),0),0) -> 0 | AN23: =IF(AND($D23="Serviço",AN$12<>0,$H23>0,OR(AUTOEVENTO<>"manual",$M23<>1)),ROUND(OFFSET($P23,0,AN$13),15-13*ORÇAMENTO!$AF$7)/$H23*OFFSET(ORÇAMENTO!$X$15,ROW(AN23)-ROW(AN$15),0),0) -> 0 | AO23: =IF(AND($D23="Serviço",AO$12<>0,$H23>0,OR(AUTOEVENTO<>"manual",$M23<>1)),ROUND(OFFSET($P23,0,AO$13),15-13*ORÇAMENTO!$AF$7)/$H23*OFFSET(ORÇAMENTO!$X$15,ROW(AO23)-ROW(AO$15),0),0) -> 0 | AP23: =IF(AND($D23="Serviço",AP$12<>0,$H23>0,OR(AUTOEVENTO<>"manual",$M23<>1)),ROUND(OFFSET($P23,0,AP$13),15-13*ORÇAMENTO!$AF$7)/$H23*OFFSET(ORÇAMENTO!$X$15,ROW(AP23)-ROW(AP$15),0),0) -> 0 | AQ23: =IF(AND($D23="Serviço",AQ$12<>0,$H23>0,OR(AUTOEVENTO<>"manual",$M23<>1)),ROUND(OFFSET($P23,0,AQ$13),15-13*ORÇAMENTO!$AF$7)/$H23*OFFSET(ORÇAMENTO!$X$15,ROW(AQ23)-ROW(AQ$15),0),0) -> 0 | AR23: =IF(AND($D23="Serviço",AR$12<>0,$H23>0,OR(AUTOEVENTO<>"manual",$M23<>1)),ROUND(OFFSET($P23,0,AR$13),15-13*ORÇAMENTO!$AF$7)/$H23*OFFSET(ORÇAMENTO!$X$15,ROW(AR23)-ROW(AR$15),0),0) -> 0 | AS23: =IF(AND($D23="Serviço",AS$12<>0,$H23>0,OR(AUTOEVENTO<>"manual",$M23<>1)),ROUND(OFFSET($P23,0,AS$13),15-13*ORÇAMENTO!$AF$7)/$H23*OFFSET(ORÇAMENTO!$X$15,ROW(AS23)-ROW(AS$15),0),0) -> 0 | AT23: =IF(AND($D23="Serviço",AT$12<>0,$H23>0,OR(AUTOEVENTO<>"manual",$M23<>1)),ROUND(OFFSET($P23,0,AT$13),15-13*ORÇAMENTO!$AF$7)/$H23*OFFSET(ORÇAMENTO!$X$15,ROW(AT23)-ROW(AT$15),0),0) -> 0 | AU23: =IF(AND($D23="Serviço",AU$12<>0,$H23>0,OR(AUTOEVENTO<>"manual",$M23<>1)),ROUND(OFFSET($P23,0,AU$13),15-13*ORÇAMENTO!$AF$7)/$H23*OFFSET(ORÇAMENTO!$X$15,ROW(AU23)-ROW(AU$15),0),0) -> 0 | AV23: =IF(AND($D23="Serviço",AV$12<>0,$H23>0,OR(AUTOEVENTO<>"manual",$M23<>1)),ROUND(OFFSET($P23,0,AV$13),15-13*ORÇAMENTO!$AF$7)/$H23*OFFSET(ORÇAMENTO!$X$15,ROW(AV23)-ROW(AV$15),0),0) -> 0 | AW23: =IF(AND($D23="Serviço",AW$12<>0,$H23>0,OR(AUTOEVENTO<>"manual",$M23<>1)),ROUND(OFFSET($P23,0,AW$13),15-13*ORÇAMENTO!$AF$7)/$H23*OFFSET(ORÇAMENTO!$X$15,ROW(AW23)-ROW(AW$15),0),0) -> 0 | AX23: =IF(AND($D23="Serviço",AX$12<>0,$H23>0,OR(AUTOEVENTO<>"manual",$M23<>1)),ROUND(OFFSET($P23,0,AX$13),15-13*ORÇAMENTO!$AF$7)/$H23*OFFSET(ORÇAMENTO!$X$15,ROW(AX23)-ROW(AX$15),0),0) -> 0 | AY23: =IF(AND($D23="Serviço",AY$12<>0,$H23>0,OR(AUTOEVENTO<>"manual",$M23<>1)),ROUND(OFFSET($P23,0,AY$13),15-13*ORÇAMENTO!$AF$7)/$H23*OFFSET(ORÇAMENTO!$X$15,ROW(AY23)-ROW(AY$15),0),0) -> 0 | AZ23: =IF(AND($D23="Serviço",AZ$12<>0,$H23>0,OR(AUTOEVENTO<>"manual",$M23<>1)),ROUND(OFFSET($P23,0,AZ$13),15-13*ORÇAMENTO!$AF$7)/$H23*OFFSET(ORÇAMENTO!$X$15,ROW(AZ23)-ROW(AZ$15),0),0) -> 0 | BA23: =IF(AND($D23="Serviço",BA$12<>0,$H23>0,OR(AUTOEVENTO<>"manual",$M23<>1)),ROUND(OFFSET($P23,0,BA$13),15-13*ORÇAMENTO!$AF$7)/$H23*OFFSET(ORÇAMENTO!$X$15,ROW(BA23)-ROW(BA$15),0),0) -> 0 | BC23: =IF($D23<>"Serviço",0,IF(AND(AUTOEVENTO="Manual",$M23=1),0,IF(OFFSET(CRONOPLE!$F$14,$M23,BC$13)="",10^12,OFFSET(CRONOPLE!$F$14,$M23,BC$13)))) -> 0 | BD23: =IF($D23<>"Serviço",0,IF(AND(AUTOEVENTO="Manual",$M23=1),0,IF(OFFSET(CRONOPLE!$F$14,$M23,BD$13)="",10^12,OFFSET(CRONOPLE!$F$14,$M23,BD$13)))) -> 0 | BE23: =IF($D23<>"Serviço",0,IF(AND(AUTOEVENTO="Manual",$M23=1),0,IF(OFFSET(CRONOPLE!$F$14,$M23,BE$13)="",10^12,OFFSET(CRONOPLE!$F$14,$M23,BE$13)))) -> 0 | BF23: =IF($D23<>"Serviço",0,IF(AND(AUTOEVENTO="Manual",$M23=1),0,IF(OFFSET(CRONOPLE!$F$14,$M23,BF$13)="",10^12,OFFSET(CRONOPLE!$F$14,$M23,BF$13)))) -> 0 | BG23: =IF($D23<>"Serviço",0,IF(AND(AUTOEVENTO="Manual",$M23=1),0,IF(OFFSET(CRONOPLE!$F$14,$M23,BG$13)="",10^12,OFFSET(CRONOPLE!$F$14,$M23,BG$13)))) -> 0 | BH23: =IF($D23<>"Serviço",0,IF(AND(AUTOEVENTO="Manual",$M23=1),0,IF(OFFSET(CRONOPLE!$F$14,$M23,BH$13)="",10^12,OFFSET(CRONOPLE!$F$14,$M23,BH$13)))) -> 0 | BI23: =IF($D23<>"Serviço",0,IF(AND(AUTOEVENTO="Manual",$M23=1),0,IF(OFFSET(CRONOPLE!$F$14,$M23,BI$13)="",10^12,OFFSET(CRONOPLE!$F$14,$M23,BI$13)))) -> 0 | BJ23: =IF($D23<>"Serviço",0,IF(AND(AUTOEVENTO="Manual",$M23=1),0,IF(OFFSET(CRONOPLE!$F$14,$M23,BJ$13)="",10^12,OFFSET(CRONOPLE!$F$14,$M23,BJ$13)))) -> 0 | BK23: =IF($D23<>"Serviço",0,IF(AND(AUTOEVENTO="Manual",$M23=1),0,IF(OFFSET(CRONOPLE!$F$14,$M23,BK$13)="",10^12,OFFSET(CRONOPLE!$F$14,$M23,BK$13)))) -> 0 | BL23: =IF($D23<>"Serviço",0,IF(AND(AUTOEVENTO="Manual",$M23=1),0,IF(OFFSET(CRONOPLE!$F$14,$M23,BL$13)="",10^12,OFFSET(CRONOPLE!$F$14,$M23,BL$13)))) -> 0 | BM23: =IF($D23<>"Serviço",0,IF(AND(AUTOEVENTO="Manual",$M23=1),0,IF(OFFSET(CRONOPLE!$F$14,$M23,BM$13)="",10^12,OFFSET(CRONOPLE!$F$14,$M23,BM$13)))) -> 0 | BN23: =IF($D23<>"Serviço",0,IF(AND(AUTOEVENTO="Manual",$M23=1),0,IF(OFFSET(CRONOPLE!$F$14,$M23,BN$13)="",10^12,OFFSET(CRONOPLE!$F$14,$M23,BN$13)))) -> 0 | BO23: =IF($D23<>"Serviço",0,IF(AND(AUTOEVENTO="Manual",$M23=1),0,IF(OFFSET(CRONOPLE!$F$14,$M23,BO$13)="",10^12,OFFSET(CRONOPLE!$F$14,$M23,BO$13)))) -> 0 | BP23: =IF($D23<>"Serviço",0,IF(AND(AUTOEVENTO="Manual",$M23=1),0,IF(OFFSET(CRONOPLE!$F$14,$M23,BP$13)="",10^12,OFFSET(CRONOPLE!$F$14,$M23,BP$13)))) -> 0 | BQ23: =IF($D23<>"Serviço",0,IF(AND(AUTOEVENTO="Manual",$M23=1),0,IF(OFFSET(CRONOPLE!$F$14,$M23,BQ$13)="",10^12,OFFSET(CRONOPLE!$F$14,$M23,BQ$13)))) -> 0 | BR23: =IF($D23<>"Serviço",0,IF(AND(AUTOEVENTO="Manual",$M23=1),0,IF(OFFSET(CRONOPLE!$F$14,$M23,BR$13)="",10^12,OFFSET(CRONOPLE!$F$14,$M23,BR$13)))) -> 0 | BS23: =IF($D23<>"Serviço",0,IF(AND(AUTOEVENTO="Manual",$M23=1),0,IF(OFFSET(CRONOPLE!$F$14,$M23,BS$13)="",10^12,OFFSET(CRONOPLE!$F$14,$M23,BS$13)))) -> 0 | BT23: =IF($D23<>"Serviço",0,IF(AND(AUTOEVENTO="Manual",$M23=1),0,IF(OFFSET(CRONOPLE!$F$14,$M23,BT$13)="",10^12,OFFSET(CRONOPLE!$F$14,$M23,BT$13)))) -> 0 | BV23: =IF($D23<>"Serviço",0,IF(OR(AND(AUTOEVENTO="Manual",$M23=1),$M23>(ROW(PLE.lastrow)-ROW(PLE.firstrow))),0,IF(OFFSET(PLE!$G$14,$M23,BV$13)="",10^12,OFFSET(PLE!$G$14,$M23,BV$13)))) -> 0 | BW23: =IF($D23<>"Serviço",0,IF(OR(AND(AUTOEVENTO="Manual",$M23=1),$M23>(ROW(PLE.lastrow)-ROW(PLE.firstrow))),0,IF(OFFSET(PLE!$G$14,$M23,BW$13)="",10^12,OFFSET(PLE!$G$14,$M23,BW$13)))) -> 0 | BX23: =IF($D23<>"Serviço",0,IF(OR(AND(AUTOEVENTO="Manual",$M23=1),$M23>(ROW(PLE.lastrow)-ROW(PLE.firstrow))),0,IF(OFFSET(PLE!$G$14,$M23,BX$13)="",10^12,OFFSET(PLE!$G$14,$M23,BX$13)))) -> 0 | BY23: =IF($D23<>"Serviço",0,IF(OR(AND(AUTOEVENTO="Manual",$M23=1),$M23>(ROW(PLE.lastrow)-ROW(PLE.firstrow))),0,IF(OFFSET(PLE!$G$14,$M23,BY$13)="",10^12,OFFSET(PLE!$G$14,$M23,BY$13)))) -> 0 | BZ23: =IF($D23<>"Serviço",0,IF(OR(AND(AUTOEVENTO="Manual",$M23=1),$M23>(ROW(PLE.lastrow)-ROW(PLE.firstrow))),0,IF(OFFSET(PLE!$G$14,$M23,BZ$13)="",10^12,OFFSET(PLE!$G$14,$M23,BZ$13)))) -> 0 | CA23: =IF($D23<>"Serviço",0,IF(OR(AND(AUTOEVENTO="Manual",$M23=1),$M23>(ROW(PLE.lastrow)-ROW(PLE.firstrow))),0,IF(OFFSET(PLE!$G$14,$M23,CA$13)="",10^12,OFFSET(PLE!$G$14,$M23,CA$13)))) -> 0 | CB23: =IF($D23<>"Serviço",0,IF(OR(AND(AUTOEVENTO="Manual",$M23=1),$M23>(ROW(PLE.lastrow)-ROW(PLE.firstrow))),0,IF(OFFSET(PLE!$G$14,$M23,CB$13)="",10^12,OFFSET(PLE!$G$14,$M23,CB$13)))) -> 0 | CC23: =IF($D23<>"Serviço",0,IF(OR(AND(AUTOEVENTO="Manual",$M23=1),$M23>(ROW(PLE.lastrow)-ROW(PLE.firstrow))),0,IF(OFFSET(PLE!$G$14,$M23,CC$13)="",10^12,OFFSET(PLE!$G$14,$M23,CC$13)))) -> 0 | CD23: =IF($D23<>"Serviço",0,IF(OR(AND(AUTOEVENTO="Manual",$M23=1),$M23>(ROW(PLE.lastrow)-ROW(PLE.firstrow))),0,IF(OFFSET(PLE!$G$14,$M23,CD$13)="",10^12,OFFSET(PLE!$G$14,$M23,CD$13)))) -> 0 | CE23: =IF($D23<>"Serviço",0,IF(OR(AND(AUTOEVENTO="Manual",$M23=1),$M23>(ROW(PLE.lastrow)-ROW(PLE.firstrow))),0,IF(OFFSET(PLE!$G$14,$M23,CE$13)="",10^12,OFFSET(PLE!$G$14,$M23,CE$13)))) -> 0 | CF23: =IF($D23<>"Serviço",0,IF(OR(AND(AUTOEVENTO="Manual",$M23=1),$M23>(ROW(PLE.lastrow)-ROW(PLE.firstrow))),0,IF(OFFSET(PLE!$G$14,$M23,CF$13)="",10^12,OFFSET(PLE!$G$14,$M23,CF$13)))) -> 0 | CG23: =IF($D23<>"Serviço",0,IF(OR(AND(AUTOEVENTO="Manual",$M23=1),$M23>(ROW(PLE.lastrow)-ROW(PLE.firstrow))),0,IF(OFFSET(PLE!$G$14,$M23,CG$13)="",10^12,OFFSET(PLE!$G$14,$M23,CG$13)))) -> 0 | CH23: =IF($D23<>"Serviço",0,IF(OR(AND(AUTOEVENTO="Manual",$M23=1),$M23>(ROW(PLE.lastrow)-ROW(PLE.firstrow))),0,IF(OFFSET(PLE!$G$14,$M23,CH$13)="",10^12,OFFSET(PLE!$G$14,$M23,CH$13)))) -> 0 | CI23: =IF($D23<>"Serviço",0,IF(OR(AND(AUTOEVENTO="Manual",$M23=1),$M23>(ROW(PLE.lastrow)-ROW(PLE.firstrow))),0,IF(OFFSET(PLE!$G$14,$M23,CI$13)="",10^12,OFFSET(PLE!$G$14,$M23,CI$13)))) -> 0 | CJ23: =IF($D23<>"Serviço",0,IF(OR(AND(AUTOEVENTO="Manual",$M23=1),$M23>(ROW(PLE.lastrow)-ROW(PLE.firstrow))),0,IF(OFFSET(PLE!$G$14,$M23,CJ$13)="",10^12,OFFSET(PLE!$G$14,$M23,CJ$13)))) -> 0 | CK23: =IF($D23<>"Serviço",0,IF(OR(AND(AUTOEVENTO="Manual",$M23=1),$M23>(ROW(PLE.lastrow)-ROW(PLE.firstrow))),0,IF(OFFSET(PLE!$G$14,$M23,CK$13)="",10^12,OFFSET(PLE!$G$14,$M23,CK$13)))) -> 0 | CL23: =IF($D23<>"Serviço",0,IF(OR(AND(AUTOEVENTO="Manual",$M23=1),$M23>(ROW(PLE.lastrow)-ROW(PLE.firstrow))),0,IF(OFFSET(PLE!$G$14,$M23,CL$13)="",10^12,OFFSET(PLE!$G$14,$M23,CL$13)))) -> 0 | CM23: =IF($D23<>"Serviço",0,IF(OR(AND(AUTOEVENTO="Manual",$M23=1),$M23>(ROW(PLE.lastrow)-ROW(PLE.firstrow))),0,IF(OFFSET(PLE!$G$14,$M23,CM$13)="",10^12,OFFSET(PLE!$G$14,$M23,CM$13)))) -> 0
A24: =IF(AUTOEVENTO="Manual",IF(K24<>"",MIN(VALUE(LEFT(K24,FIND(".",K24)-1)),COUNTA(EVENTOS.Lista)),0),IF(OR($B24>AUTOEVENTO,$B24="S",$B24=0),SUBSTITUTE(OFFSET($A24,-1,0),IF($D24="Serviço",".",""),""),ROW(A24)-ROW($A$15)&".")) -> 4 | B24: =OFFSET(ORÇAMENTO!C$15,ROW(B24)-ROW(B$15),0) -> S | C24: =OFFSET(ORÇAMENTO!L$15,ROW(C24)-ROW(C$15),0) -> F | D24: =OFFSET(ORÇAMENTO!N$15,ROW(D24)-ROW(D$15),0) -> Serviço | E24: =OFFSET(ORÇAMENTO!O$15,ROW(E24)-ROW(E$15),0) -> 1.3.1. | F24: =OFFSET(ORÇAMENTO!R$15,ROW(F24)-ROW(F$15),0) -> DEMOLIÇÃO PARCIAL DE PAVIMENTO ASFÁLTICO, DE FORMA MECANIZADA, SEM REAPROVEITAMENTO. AF_12/2017 | G24: =IF($D24<>"Serviço","",OFFSET(ORÇAMENTO!S$15,ROW(G24)-ROW(G$15),0)) -> M2 | H24: =IF($D24<>"Serviço",0,IF(ACOMPANHAMENTO="BM",ROUND(OFFSET(ORÇAMENTO!AJ$15,ROW(H24)-ROW(H$15),0),15-13*ORÇAMENTO!$AF$7),SUMPRODUCT(($Q$12:$AI$12<>"")*ROUND($Q24:$AI24,15-13*ORÇAMENTO!$AF$7)))) -> 40 | I24: (20m x 2m) = 40m² | K24: 4.DRENAGEM | L24: . | M24: =IF($D24<>"Serviço","",IF(AUTOEVENTO="manual",$A24,IF(ISERROR(MATCH($A24,$A$15:OFFSET($A24,-1,0),0)),MAX($M$15:OFFSET(M24,-1,0))+1,INDEX($M$15:OFFSET(M24,-1,0),MATCH($A24,$A$15:OFFSET($A24,-1,0),0))))) -> 4 | N24: =IF($D24<>"Serviço","",IF(AUTOEVENTO="Manual",IF($A24=0,"<-- defina o número do agrupador",OFFSET(EVENTOS!$D$14,$A24,0)),OFFSET($F$15,$A24,0))) -> DRENAGEM | Q24: 40 | AJ24: =IF(AND($D24="Serviço",AJ$12<>0,$H24>0,OR(AUTOEVENTO<>"manual",$M24<>1)),ROUND(OFFSET($P24,0,AJ$13),15-13*ORÇAMENTO!$AF$7)/$H24*OFFSET(ORÇAMENTO!$X$15,ROW(AJ24)-ROW(AJ$15),0),0) -> 741.6 | AK24: =IF(AND($D24="Serviço",AK$12<>0,$H24>0,OR(AUTOEVENTO<>"manual",$M24<>1)),ROUND(OFFSET($P24,0,AK$13),15-13*ORÇAMENTO!$AF$7)/$H24*OFFSET(ORÇAMENTO!$X$15,ROW(AK24)-ROW(AK$15),0),0) -> 0 | AL24: =IF(AND($D24="Serviço",AL$12<>0,$H24>0,OR(AUTOEVENTO<>"manual",$M24<>1)),ROUND(OFFSET($P24,0,AL$13),15-13*ORÇAMENTO!$AF$7)/$H24*OFFSET(ORÇAMENTO!$X$15,ROW(AL24)-ROW(AL$15),0),0) -> 0 | AM24: =IF(AND($D24="Serviço",AM$12<>0,$H24>0,OR(AUTOEVENTO<>"manual",$M24<>1)),ROUND(OFFSET($P24,0,AM$13),15-13*ORÇAMENTO!$AF$7)/$H24*OFFSET(ORÇAMENTO!$X$15,ROW(AM24)-ROW(AM$15),0),0) -> 0 | AN24: =IF(AND($D24="Serviço",AN$12<>0,$H24>0,OR(AUTOEVENTO<>"manual",$M24<>1)),ROUND(OFFSET($P24,0,AN$13),15-13*ORÇAMENTO!$AF$7)/$H24*OFFSET(ORÇAMENTO!$X$15,ROW(AN24)-ROW(AN$15),0),0) -> 0 | AO24: =IF(AND($D24="Serviço",AO$12<>0,$H24>0,OR(AUTOEVENTO<>"manual",$M24<>1)),ROUND(OFFSET($P24,0,AO$13),15-13*ORÇAMENTO!$AF$7)/$H24*OFFSET(ORÇAMENTO!$X$15,ROW(AO24)-ROW(AO$15),0),0) -> 0 | AP24: =IF(AND($D24="Serviço",AP$12<>0,$H24>0,OR(AUTOEVENTO<>"manual",$M24<>1)),ROUND(OFFSET($P24,0,AP$13),15-13*ORÇAMENTO!$AF$7)/$H24*OFFSET(ORÇAMENTO!$X$15,ROW(AP24)-ROW(AP$15),0),0) -> 0 | AQ24: =IF(AND($D24="Serviço",AQ$12<>0,$H24>0,OR(AUTOEVENTO<>"manual",$M24<>1)),ROUND(OFFSET($P24,0,AQ$13),15-13*ORÇAMENTO!$AF$7)/$H24*OFFSET(ORÇAMENTO!$X$15,ROW(AQ24)-ROW(AQ$15),0),0) -> 0 | AR24: =IF(AND($D24="Serviço",AR$12<>0,$H24>0,OR(AUTOEVENTO<>"manual",$M24<>1)),ROUND(OFFSET($P24,0,AR$13),15-13*ORÇAMENTO!$AF$7)/$H24*OFFSET(ORÇAMENTO!$X$15,ROW(AR24)-ROW(AR$15),0),0) -> 0 | AS24: =IF(AND($D24="Serviço",AS$12<>0,$H24>0,OR(AUTOEVENTO<>"manual",$M24<>1)),ROUND(OFFSET($P24,0,AS$13),15-13*ORÇAMENTO!$AF$7)/$H24*OFFSET(ORÇAMENTO!$X$15,ROW(AS24)-ROW(AS$15),0),0) -> 0 | AT24: =IF(AND($D24="Serviço",AT$12<>0,$H24>0,OR(AUTOEVENTO<>"manual",$M24<>1)),ROUND(OFFSET($P24,0,AT$13),15-13*ORÇAMENTO!$AF$7)/$H24*OFFSET(ORÇAMENTO!$X$15,ROW(AT24)-ROW(AT$15),0),0) -> 0 | AU24: =IF(AND($D24="Serviço",AU$12<>0,$H24>0,OR(AUTOEVENTO<>"manual",$M24<>1)),ROUND(OFFSET($P24,0,AU$13),15-13*ORÇAMENTO!$AF$7)/$H24*OFFSET(ORÇAMENTO!$X$15,ROW(AU24)-ROW(AU$15),0),0) -> 0 | AV24: =IF(AND($D24="Serviço",AV$12<>0,$H24>0,OR(AUTOEVENTO<>"manual",$M24<>1)),ROUND(OFFSET($P24,0,AV$13),15-13*ORÇAMENTO!$AF$7)/$H24*OFFSET(ORÇAMENTO!$X$15,ROW(AV24)-ROW(AV$15),0),0) -> 0 | AW24: =IF(AND($D24="Serviço",AW$12<>0,$H24>0,OR(AUTOEVENTO<>"manual",$M24<>1)),ROUND(OFFSET($P24,0,AW$13),15-13*ORÇAMENTO!$AF$7)/$H24*OFFSET(ORÇAMENTO!$X$15,ROW(AW24)-ROW(AW$15),0),0) -> 0 | AX24: =IF(AND($D24="Serviço",AX$12<>0,$H24>0,OR(AUTOEVENTO<>"manual",$M24<>1)),ROUND(OFFSET($P24,0,AX$13),15-13*ORÇAMENTO!$AF$7)/$H24*OFFSET(ORÇAMENTO!$X$15,ROW(AX24)-ROW(AX$15),0),0) -> 0 | AY24: =IF(AND($D24="Serviço",AY$12<>0,$H24>0,OR(AUTOEVENTO<>"manual",$M24<>1)),ROUND(OFFSET($P24,0,AY$13),15-13*ORÇAMENTO!$AF$7)/$H24*OFFSET(ORÇAMENTO!$X$15,ROW(AY24)-ROW(AY$15),0),0) -> 0 | AZ24: =IF(AND($D24="Serviço",AZ$12<>0,$H24>0,OR(AUTOEVENTO<>"manual",$M24<>1)),ROUND(OFFSET($P24,0,AZ$13),15-13*ORÇAMENTO!$AF$7)/$H24*OFFSET(ORÇAMENTO!$X$15,ROW(AZ24)-ROW(AZ$15),0),0) -> 0 | BA24: =IF(AND($D24="Serviço",BA$12<>0,$H24>0,OR(AUTOEVENTO<>"manual",$M24<>1)),ROUND(OFFSET($P24,0,BA$13),15-13*ORÇAMENTO!$AF$7)/$H24*OFFSET(ORÇAMENTO!$X$15,ROW(BA24)-ROW(BA$15),0),0) -> 0 | BC24: =IF($D24<>"Serviço",0,IF(AND(AUTOEVENTO="Manual",$M24=1),0,IF(OFFSET(CRONOPLE!$F$14,$M24,BC$13)="",10^12,OFFSET(CRONOPLE!$F$14,$M24,BC$13)))) -> 2 | BD24: =IF($D24<>"Serviço",0,IF(AND(AUTOEVENTO="Manual",$M24=1),0,IF(OFFSET(CRONOPLE!$F$14,$M24,BD$13)="",10^12,OFFSET(CRONOPLE!$F$14,$M24,BD$13)))) -> 2 | BE24: =IF($D24<>"Serviço",0,IF(AND(AUTOEVENTO="Manual",$M24=1),0,IF(OFFSET(CRONOPLE!$F$14,$M24,BE$13)="",10^12,OFFSET(CRONOPLE!$F$14,$M24,BE$13)))) -> 2 | BF24: =IF($D24<>"Serviço",0,IF(AND(AUTOEVENTO="Manual",$M24=1),0,IF(OFFSET(CRONOPLE!$F$14,$M24,BF$13)="",10^12,OFFSET(CRONOPLE!$F$14,$M24,BF$13)))) -> 1000000000000 | BG24: =IF($D24<>"Serviço",0,IF(AND(AUTOEVENTO="Manual",$M24=1),0,IF(OFFSET(CRONOPLE!$F$14,$M24,BG$13)="",10^12,OFFSET(CRONOPLE!$F$14,$M24,BG$13)))) -> 1000000000000 | BH24: =IF($D24<>"Serviço",0,IF(AND(AUTOEVENTO="Manual",$M24=1),0,IF(OFFSET(CRONOPLE!$F$14,$M24,BH$13)="",10^12,OFFSET(CRONOPLE!$F$14,$M24,BH$13)))) -> 1000000000000 | BI24: =IF($D24<>"Serviço",0,IF(AND(AUTOEVENTO="Manual",$M24=1),0,IF(OFFSET(CRONOPLE!$F$14,$M24,BI$13)="",10^12,OFFSET(CRONOPLE!$F$14,$M24,BI$13)))) -> 1000000000000 | BJ24: =IF($D24<>"Serviço",0,IF(AND(AUTOEVENTO="Manual",$M24=1),0,IF(OFFSET(CRONOPLE!$F$14,$M24,BJ$13)="",10^12,OFFSET(CRONOPLE!$F$14,$M24,BJ$13)))) -> 1000000000000 | BK24: =IF($D24<>"Serviço",0,IF(AND(AUTOEVENTO="Manual",$M24=1),0,IF(OFFSET(CRONOPLE!$F$14,$M24,BK$13)="",10^12,OFFSET(CRONOPLE!$F$14,$M24,BK$13)))) -> 1000000000000 | BL24: =IF($D24<>"Serviço",0,IF(AND(AUTOEVENTO="Manual",$M24=1),0,IF(OFFSET(CRONOPLE!$F$14,$M24,BL$13)="",10^12,OFFSET(CRONOPLE!$F$14,$M24,BL$13)))) -> 1000000000000 | BM24: =IF($D24<>"Serviço",0,IF(AND(AUTOEVENTO="Manual",$M24=1),0,IF(OFFSET(CRONOPLE!$F$14,$M24,BM$13)="",10^12,OFFSET(CRONOPLE!$F$14,$M24,BM$13)))) -> 1000000000000 | BN24: =IF($D24<>"Serviço",0,IF(AND(AUTOEVENTO="Manual",$M24=1),0,IF(OFFSET(CRONOPLE!$F$14,$M24,BN$13)="",10^12,OFFSET(CRONOPLE!$F$14,$M24,BN$13)))) -> 1000000000000 | BO24: =IF($D24<>"Serviço",0,IF(AND(AUTOEVENTO="Manual",$M24=1),0,IF(OFFSET(CRONOPLE!$F$14,$M24,BO$13)="",10^12,OFFSET(CRONOPLE!$F$14,$M24,BO$13)))) -> 1000000000000 | BP24: =IF($D24<>"Serviço",0,IF(AND(AUTOEVENTO="Manual",$M24=1),0,IF(OFFSET(CRONOPLE!$F$14,$M24,BP$13)="",10^12,OFFSET(CRONOPLE!$F$14,$M24,BP$13)))) -> 1000000000000 | BQ24: =IF($D24<>"Serviço",0,IF(AND(AUTOEVENTO="Manual",$M24=1),0,IF(OFFSET(CRONOPLE!$F$14,$M24,BQ$13)="",10^12,OFFSET(CRONOPLE!$F$14,$M24,BQ$13)))) -> 1000000000000 | BR24: =IF($D24<>"Serviço",0,IF(AND(AUTOEVENTO="Manual",$M24=1),0,IF(OFFSET(CRONOPLE!$F$14,$M24,BR$13)="",10^12,OFFSET(CRONOPLE!$F$14,$M24,BR$13)))) -> 1000000000000 | BS24: =IF($D24<>"Serviço",0,IF(AND(AUTOEVENTO="Manual",$M24=1),0,IF(OFFSET(CRONOPLE!$F$14,$M24,BS$13)="",10^12,OFFSET(CRONOPLE!$F$14,$M24,BS$13)))) -> 1000000000000 | BT24: =IF($D24<>"Serviço",0,IF(AND(AUTOEVENTO="Manual",$M24=1),0,IF(OFFSET(CRONOPLE!$F$14,$M24,BT$13)="",10^12,OFFSET(CRONOPLE!$F$14,$M24,BT$13)))) -> 1000000000000 | BV24: =IF($D24<>"Serviço",0,IF(OR(AND(AUTOEVENTO="Manual",$M24=1),$M24>(ROW(PLE.lastrow)-ROW(PLE.firstrow))),0,IF(OFFSET(PLE!$G$14,$M24,BV$13)="",10^12,OFFSET(PLE!$G$14,$M24,BV$13)))) -> 1000000000000 | BW24: =IF($D24<>"Serviço",0,IF(OR(AND(AUTOEVENTO="Manual",$M24=1),$M24>(ROW(PLE.lastrow)-ROW(PLE.firstrow))),0,IF(OFFSET(PLE!$G$14,$M24,BW$13)="",10^12,OFFSET(PLE!$G$14,$M24,BW$13)))) -> 1000000000000 | BX24: =IF($D24<>"Serviço",0,IF(OR(AND(AUTOEVENTO="Manual",$M24=1),$M24>(ROW(PLE.lastrow)-ROW(PLE.firstrow))),0,IF(OFFSET(PLE!$G$14,$M24,BX$13)="",10^12,OFFSET(PLE!$G$14,$M24,BX$13)))) -> 1000000000000 | BY24: =IF($D24<>"Serviço",0,IF(OR(AND(AUTOEVENTO="Manual",$M24=1),$M24>(ROW(PLE.lastrow)-ROW(PLE.firstrow))),0,IF(OFFSET(PLE!$G$14,$M24,BY$13)="",10^12,OFFSET(PLE!$G$14,$M24,BY$13)))) -> 1000000000000 | BZ24: =IF($D24<>"Serviço",0,IF(OR(AND(AUTOEVENTO="Manual",$M24=1),$M24>(ROW(PLE.lastrow)-ROW(PLE.firstrow))),0,IF(OFFSET(PLE!$G$14,$M24,BZ$13)="",10^12,OFFSET(PLE!$G$14,$M24,BZ$13)))) -> 1000000000000 | CA24: =IF($D24<>"Serviço",0,IF(OR(AND(AUTOEVENTO="Manual",$M24=1),$M24>(ROW(PLE.lastrow)-ROW(PLE.firstrow))),0,IF(OFFSET(PLE!$G$14,$M24,CA$13)="",10^12,OFFSET(PLE!$G$14,$M24,CA$13)))) -> 1000000000000 | CB24: =IF($D24<>"Serviço",0,IF(OR(AND(AUTOEVENTO="Manual",$M24=1),$M24>(ROW(PLE.lastrow)-ROW(PLE.firstrow))),0,IF(OFFSET(PLE!$G$14,$M24,CB$13)="",10^12,OFFSET(PLE!$G$14,$M24,CB$13)))) -> 1000000000000 | CC24: =IF($D24<>"Serviço",0,IF(OR(AND(AUTOEVENTO="Manual",$M24=1),$M24>(ROW(PLE.lastrow)-ROW(PLE.firstrow))),0,IF(OFFSET(PLE!$G$14,$M24,CC$13)="",10^12,OFFSET(PLE!$G$14,$M24,CC$13)))) -> 1000000000000 | CD24: =IF($D24<>"Serviço",0,IF(OR(AND(AUTOEVENTO="Manual",$M24=1),$M24>(ROW(PLE.lastrow)-ROW(PLE.firstrow))),0,IF(OFFSET(PLE!$G$14,$M24,CD$13)="",10^12,OFFSET(PLE!$G$14,$M24,CD$13)))) -> 1000000000000 | CE24: =IF($D24<>"Serviço",0,IF(OR(AND(AUTOEVENTO="Manual",$M24=1),$M24>(ROW(PLE.lastrow)-ROW(PLE.firstrow))),0,IF(OFFSET(PLE!$G$14,$M24,CE$13)="",10^12,OFFSET(PLE!$G$14,$M24,CE$13)))) -> 1000000000000 | CF24: =IF($D24<>"Serviço",0,IF(OR(AND(AUTOEVENTO="Manual",$M24=1),$M24>(ROW(PLE.lastrow)-ROW(PLE.firstrow))),0,IF(OFFSET(PLE!$G$14,$M24,CF$13)="",10^12,OFFSET(PLE!$G$14,$M24,CF$13)))) -> 1000000000000 | CG24: =IF($D24<>"Serviço",0,IF(OR(AND(AUTOEVENTO="Manual",$M24=1),$M24>(ROW(PLE.lastrow)-ROW(PLE.firstrow))),0,IF(OFFSET(PLE!$G$14,$M24,CG$13)="",10^12,OFFSET(PLE!$G$14,$M24,CG$13)))) -> 1000000000000 | CH24: =IF($D24<>"Serviço",0,IF(OR(AND(AUTOEVENTO="Manual",$M24=1),$M24>(ROW(PLE.lastrow)-ROW(PLE.firstrow))),0,IF(OFFSET(PLE!$G$14,$M24,CH$13)="",10^12,OFFSET(PLE!$G$14,$M24,CH$13)))) -> 1000000000000 | CI24: =IF($D24<>"Serviço",0,IF(OR(AND(AUTOEVENTO="Manual",$M24=1),$M24>(ROW(PLE.lastrow)-ROW(PLE.firstrow))),0,IF(OFFSET(PLE!$G$14,$M24,CI$13)="",10^12,OFFSET(PLE!$G$14,$M24,CI$13)))) -> 1000000000000 | CJ24: =IF($D24<>"Serviço",0,IF(OR(AND(AUTOEVENTO="Manual",$M24=1),$M24>(ROW(PLE.lastrow)-ROW(PLE.firstrow))),0,IF(OFFSET(PLE!$G$14,$M24,CJ$13)="",10^12,OFFSET(PLE!$G$14,$M24,CJ$13)))) -> 1000000000000 | CK24: =IF($D24<>"Serviço",0,IF(OR(AND(AUTOEVENTO="Manual",$M24=1),$M24>(ROW(PLE.lastrow)-ROW(PLE.firstrow))),0,IF(OFFSET(PLE!$G$14,$M24,CK$13)="",10^12,OFFSET(PLE!$G$14,$M24,CK$13)))) -> 1000000000000 | CL24: =IF($D24<>"Serviço",0,IF(OR(AND(AUTOEVENTO="Manual",$M24=1),$M24>(ROW(PLE.lastrow)-ROW(PLE.firstrow))),0,IF(OFFSET(PLE!$G$14,$M24,CL$13)="",10^12,OFFSET(PLE!$G$14,$M24,CL$13)))) -> 1000000000000 | CM24: =IF($D24<>"Serviço",0,IF(OR(AND(AUTOEVENTO="Manual",$M24=1),$M24>(ROW(PLE.lastrow)-ROW(PLE.firstrow))),0,IF(OFFSET(PLE!$G$14,$M24,CM$13)="",10^12,OFFSET(PLE!$G$14,$M24,CM$13)))) -> 1000000000000
A25: =IF(AUTOEVENTO="Manual",IF(K25<>"",MIN(VALUE(LEFT(K25,FIND(".",K25)-1)),COUNTA(EVENTOS.Lista)),0),IF(OR($B25>AUTOEVENTO,$B25="S",$B25=0),SUBSTITUTE(OFFSET($A25,-1,0),IF($D25="Serviço",".",""),""),ROW(A25)-ROW($A$15)&".")) -> 4 | B25: =OFFSET(ORÇAMENTO!C$15,ROW(B25)-ROW(B$15),0) -> S | C25: =OFFSET(ORÇAMENTO!L$15,ROW(C25)-ROW(C$15),0) -> F | D25: =OFFSET(ORÇAMENTO!N$15,ROW(D25)-ROW(D$15),0) -> Serviço | E25: =OFFSET(ORÇAMENTO!O$15,ROW(E25)-ROW(E$15),0) -> 1.3.2. | F25: =OFFSET(ORÇAMENTO!R$15,ROW(F25)-ROW(F$15),0) -> ESCAVAÇÃO MECANIZADA DE VALA COM PROF. MAIOR QUE 1,5 M ATÉ 3,0 M (MÉDIA ENTRE MONTANTE E JUSANTE/UMA COMPOSIÇÃO POR TRECHO), COM RETROESCAVADEIRA (0,26 M3/88 HP), LARG. MENOR QUE 0,8 M, EM SOLO DE 1A CATEGORIA, EM LOCAIS COM ALTO NÍVEL DE INTERFERÊNCIA.AF_02/2021 | G25: =IF($D25<>"Serviço","",OFFSET(ORÇAMENTO!S$15,ROW(G25)-ROW(G$15),0)) -> M3 | H25: =IF($D25<>"Serviço",0,IF(ACOMPANHAMENTO="BM",ROUND(OFFSET(ORÇAMENTO!AJ$15,ROW(H25)-ROW(H$15),0),15-13*ORÇAMENTO!$AF$7),SUMPRODUCT(($Q$12:$AI$12<>"")*ROUND($Q25:$AI25,15-13*ORÇAMENTO!$AF$7)))) -> 595.13 | I25: (Rua Glória(429,53m³) + (Rua Dólio(37,20m³) + (Rua São Domingos(128,40m³)) = 595,13m³ | K25: 4.DRENAGEM | L25: . | M25: =IF($D25<>"Serviço","",IF(AUTOEVENTO="manual",$A25,IF(ISERROR(MATCH($A25,$A$15:OFFSET($A25,-1,0),0)),MAX($M$15:OFFSET(M25,-1,0))+1,INDEX($M$15:OFFSET(M25,-1,0),MATCH($A25,$A$15:OFFSET($A25,-1,0),0))))) -> 4 | N25: =IF($D25<>"Serviço","",IF(AUTOEVENTO="Manual",IF($A25=0,"<-- defina o número do agrupador",OFFSET(EVENTOS!$D$14,$A25,0)),OFFSET($F$15,$A25,0))) -> DRENAGEM | Q25: 429.53 | R25: 37.2 | S25: 128.4 | AJ25: =IF(AND($D25="Serviço",AJ$12<>0,$H25>0,OR(AUTOEVENTO<>"manual",$M25<>1)),ROUND(OFFSET($P25,0,AJ$13),15-13*ORÇAMENTO!$AF$7)/$H25*OFFSET(ORÇAMENTO!$X$15,ROW(AJ25)-ROW(AJ$15),0),0) -> 5472.214943 | AK25: =IF(AND($D25="Serviço",AK$12<>0,$H25>0,OR(AUTOEVENTO<>"manual",$M25<>1)),ROUND(OFFSET($P25,0,AK$13),15-13*ORÇAMENTO!$AF$7)/$H25*OFFSET(ORÇAMENTO!$X$15,ROW(AK25)-ROW(AK$15),0),0) -> 473.9282375 | AL25: =IF(AND($D25="Serviço",AL$12<>0,$H25>0,OR(AUTOEVENTO<>"manual",$M25<>1)),ROUND(OFFSET($P25,0,AL$13),15-13*ORÇAMENTO!$AF$7)/$H25*OFFSET(ORÇAMENTO!$X$15,ROW(AL25)-ROW(AL$15),0),0) -> 1635.81682 | AM25: =IF(AND($D25="Serviço",AM$12<>0,$H25>0,OR(AUTOEVENTO<>"manual",$M25<>1)),ROUND(OFFSET($P25,0,AM$13),15-13*ORÇAMENTO!$AF$7)/$H25*OFFSET(ORÇAMENTO!$X$15,ROW(AM25)-ROW(AM$15),0),0) -> 0 | AN25: =IF(AND($D25="Serviço",AN$12<>0,$H25>0,OR(AUTOEVENTO<>"manual",$M25<>1)),ROUND(OFFSET($P25,0,AN$13),15-13*ORÇAMENTO!$AF$7)/$H25*OFFSET(ORÇAMENTO!$X$15,ROW(AN25)-ROW(AN$15),0),0) -> 0 | AO25: =IF(AND($D25="Serviço",AO$12<>0,$H25>0,OR(AUTOEVENTO<>"manual",$M25<>1)),ROUND(OFFSET($P25,0,AO$13),15-13*ORÇAMENTO!$AF$7)/$H25*OFFSET(ORÇAMENTO!$X$15,ROW(AO25)-ROW(AO$15),0),0) -> 0 | AP25: =IF(AND($D25="Serviço",AP$12<>0,$H25>0,OR(AUTOEVENTO<>"manual",$M25<>1)),ROUND(OFFSET($P25,0,AP$13),15-13*ORÇAMENTO!$AF$7)/$H25*OFFSET(ORÇAMENTO!$X$15,ROW(AP25)-ROW(AP$15),0),0) -> 0 | AQ25: =IF(AND($D25="Serviço",AQ$12<>0,$H25>0,OR(AUTOEVENTO<>"manual",$M25<>1)),ROUND(OFFSET($P25,0,AQ$13),15-13*ORÇAMENTO!$AF$7)/$H25*OFFSET(ORÇAMENTO!$X$15,ROW(AQ25)-ROW(AQ$15),0),0) -> 0 | AR25: =IF(AND($D25="Serviço",AR$12<>0,$H25>0,OR(AUTOEVENTO<>"manual",$M25<>1)),ROUND(OFFSET($P25,0,AR$13),15-13*ORÇAMENTO!$AF$7)/$H25*OFFSET(ORÇAMENTO!$X$15,ROW(AR25)-ROW(AR$15),0),0) -> 0 | AS25: =IF(AND($D25="Serviço",AS$12<>0,$H25>0,OR(AUTOEVENTO<>"manual",$M25<>1)),ROUND(OFFSET($P25,0,AS$13),15-13*ORÇAMENTO!$AF$7)/$H25*OFFSET(ORÇAMENTO!$X$15,ROW(AS25)-ROW(AS$15),0),0) -> 0 | AT25: =IF(AND($D25="Serviço",AT$12<>0,$H25>0,OR(AUTOEVENTO<>"manual",$M25<>1)),ROUND(OFFSET($P25,0,AT$13),15-13*ORÇAMENTO!$AF$7)/$H25*OFFSET(ORÇAMENTO!$X$15,ROW(AT25)-ROW(AT$15),0),0) -> 0 | AU25: =IF(AND($D25="Serviço",AU$12<>0,$H25>0,OR(AUTOEVENTO<>"manual",$M25<>1)),ROUND(OFFSET($P25,0,AU$13),15-13*ORÇAMENTO!$AF$7)/$H25*OFFSET(ORÇAMENTO!$X$15,ROW(AU25)-ROW(AU$15),0),0) -> 0 | AV25: =IF(AND($D25="Serviço",AV$12<>0,$H25>0,OR(AUTOEVENTO<>"manual",$M25<>1)),ROUND(OFFSET($P25,0,AV$13),15-13*ORÇAMENTO!$AF$7)/$H25*OFFSET(ORÇAMENTO!$X$15,ROW(AV25)-ROW(AV$15),0),0) -> 0 | AW25: =IF(AND($D25="Serviço",AW$12<>0,$H25>0,OR(AUTOEVENTO<>"manual",$M25<>1)),ROUND(OFFSET($P25,0,AW$13),15-13*ORÇAMENTO!$AF$7)/$H25*OFFSET(ORÇAMENTO!$X$15,ROW(AW25)-ROW(AW$15),0),0) -> 0 | AX25: =IF(AND($D25="Serviço",AX$12<>0,$H25>0,OR(AUTOEVENTO<>"manual",$M25<>1)),ROUND(OFFSET($P25,0,AX$13),15-13*ORÇAMENTO!$AF$7)/$H25*OFFSET(ORÇAMENTO!$X$15,ROW(AX25)-ROW(AX$15),0),0) -> 0 | AY25: =IF(AND($D25="Serviço",AY$12<>0,$H25>0,OR(AUTOEVENTO<>"manual",$M25<>1)),ROUND(OFFSET($P25,0,AY$13),15-13*ORÇAMENTO!$AF$7)/$H25*OFFSET(ORÇAMENTO!$X$15,ROW(AY25)-ROW(AY$15),0),0) -> 0 | AZ25: =IF(AND($D25="Serviço",AZ$12<>0,$H25>0,OR(AUTOEVENTO<>"manual",$M25<>1)),ROUND(OFFSET($P25,0,AZ$13),15-13*ORÇAMENTO!$AF$7)/$H25*OFFSET(ORÇAMENTO!$X$15,ROW(AZ25)-ROW(AZ$15),0),0) -> 0 | BA25: =IF(AND($D25="Serviço",BA$12<>0,$H25>0,OR(AUTOEVENTO<>"manual",$M25<>1)),ROUND(OFFSET($P25,0,BA$13),15-13*ORÇAMENTO!$AF$7)/$H25*OFFSET(ORÇAMENTO!$X$15,ROW(BA25)-ROW(BA$15),0),0) -> 0 | BC25: =IF($D25<>"Serviço",0,IF(AND(AUTOEVENTO="Manual",$M25=1),0,IF(OFFSET(CRONOPLE!$F$14,$M25,BC$13)="",10^12,OFFSET(CRONOPLE!$F$14,$M25,BC$13)))) -> 2 | BD25: =IF($D25<>"Serviço",0,IF(AND(AUTOEVENTO="Manual",$M25=1),0,IF(OFFSET(CRONOPLE!$F$14,$M25,BD$13)="",10^12,OFFSET(CRONOPLE!$F$14,$M25,BD$13)))) -> 2 | BE25: =IF($D25<>"Serviço",0,IF(AND(AUTOEVENTO="Manual",$M25=1),0,IF(OFFSET(CRONOPLE!$F$14,$M25,BE$13)="",10^12,OFFSET(CRONOPLE!$F$14,$M25,BE$13)))) -> 2 | BF25: =IF($D25<>"Serviço",0,IF(AND(AUTOEVENTO="Manual",$M25=1),0,IF(OFFSET(CRONOPLE!$F$14,$M25,BF$13)="",10^12,OFFSET(CRONOPLE!$F$14,$M25,BF$13)))) -> 1000000000000 | BG25: =IF($D25<>"Serviço",0,IF(AND(AUTOEVENTO="Manual",$M25=1),0,IF(OFFSET(CRONOPLE!$F$14,$M25,BG$13)="",10^12,OFFSET(CRONOPLE!$F$14,$M25,BG$13)))) -> 1000000000000 | BH25: =IF($D25<>"Serviço",0,IF(AND(AUTOEVENTO="Manual",$M25=1),0,IF(OFFSET(CRONOPLE!$F$14,$M25,BH$13)="",10^12,OFFSET(CRONOPLE!$F$14,$M25,BH$13)))) -> 1000000000000 | BI25: =IF($D25<>"Serviço",0,IF(AND(AUTOEVENTO="Manual",$M25=1),0,IF(OFFSET(CRONOPLE!$F$14,$M25,BI$13)="",10^12,OFFSET(CRONOPLE!$F$14,$M25,BI$13)))) -> 1000000000000 | BJ25: =IF($D25<>"Serviço",0,IF(AND(AUTOEVENTO="Manual",$M25=1),0,IF(OFFSET(CRONOPLE!$F$14,$M25,BJ$13)="",10^12,OFFSET(CRONOPLE!$F$14,$M25,BJ$13)))) -> 1000000000000 | BK25: =IF($D25<>"Serviço",0,IF(AND(AUTOEVENTO="Manual",$M25=1),0,IF(OFFSET(CRONOPLE!$F$14,$M25,BK$13)="",10^12,OFFSET(CRONOPLE!$F$14,$M25,BK$13)))) -> 1000000000000 | BL25: =IF($D25<>"Serviço",0,IF(AND(AUTOEVENTO="Manual",$M25=1),0,IF(OFFSET(CRONOPLE!$F$14,$M25,BL$13)="",10^12,OFFSET(CRONOPLE!$F$14,$M25,BL$13)))) -> 1000000000000 | BM25: =IF($D25<>"Serviço",0,IF(AND(AUTOEVENTO="Manual",$M25=1),0,IF(OFFSET(CRONOPLE!$F$14,$M25,BM$13)="",10^12,OFFSET(CRONOPLE!$F$14,$M25,BM$13)))) -> 1000000000000 | BN25: =IF($D25<>"Serviço",0,IF(AND(AUTOEVENTO="Manual",$M25=1),0,IF(OFFSET(CRONOPLE!$F$14,$M25,BN$13)="",10^12,OFFSET(CRONOPLE!$F$14,$M25,BN$13)))) -> 1000000000000 | BO25: =IF($D25<>"Serviço",0,IF(AND(AUTOEVENTO="Manual",$M25=1),0,IF(OFFSET(CRONOPLE!$F$14,$M25,BO$13)="",10^12,OFFSET(CRONOPLE!$F$14,$M25,BO$13)))) -> 1000000000000 | BP25: =IF($D25<>"Serviço",0,IF(AND(AUTOEVENTO="Manual",$M25=1),0,IF(OFFSET(CRONOPLE!$F$14,$M25,BP$13)="",10^12,OFFSET(CRONOPLE!$F$14,$M25,BP$13)))) -> 1000000000000 | BQ25: =IF($D25<>"Serviço",0,IF(AND(AUTOEVENTO="Manual",$M25=1),0,IF(OFFSET(CRONOPLE!$F$14,$M25,BQ$13)="",10^12,OFFSET(CRONOPLE!$F$14,$M25,BQ$13)))) -> 1000000000000 | BR25: =IF($D25<>"Serviço",0,IF(AND(AUTOEVENTO="Manual",$M25=1),0,IF(OFFSET(CRONOPLE!$F$14,$M25,BR$13)="",10^12,OFFSET(CRONOPLE!$F$14,$M25,BR$13)))) -> 1000000000000 | BS25: =IF($D25<>"Serviço",0,IF(AND(AUTOEVENTO="Manual",$M25=1),0,IF(OFFSET(CRONOPLE!$F$14,$M25,BS$13)="",10^12,OFFSET(CRONOPLE!$F$14,$M25,BS$13)))) -> 1000000000000 | BT25: =IF($D25<>"Serviço",0,IF(AND(AUTOEVENTO="Manual",$M25=1),0,IF(OFFSET(CRONOPLE!$F$14,$M25,BT$13)="",10^12,OFFSET(CRONOPLE!$F$14,$M25,BT$13)))) -> 1000000000000 | BV25: =IF($D25<>"Serviço",0,IF(OR(AND(AUTOEVENTO="Manual",$M25=1),$M25>(ROW(PLE.lastrow)-ROW(PLE.firstrow))),0,IF(OFFSET(PLE!$G$14,$M25,BV$13)="",10^12,OFFSET(PLE!$G$14,$M25,BV$13)))) -> 1000000000000 | BW25: =IF($D25<>"Serviço",0,IF(OR(AND(AUTOEVENTO="Manual",$M25=1),$M25>(ROW(PLE.lastrow)-ROW(PLE.firstrow))),0,IF(OFFSET(PLE!$G$14,$M25,BW$13)="",10^12,OFFSET(PLE!$G$14,$M25,BW$13)))) -> 1000000000000 | BX25: =IF($D25<>"Serviço",0,IF(OR(AND(AUTOEVENTO="Manual",$M25=1),$M25>(ROW(PLE.lastrow)-ROW(PLE.firstrow))),0,IF(OFFSET(PLE!$G$14,$M25,BX$13)="",10^12,OFFSET(PLE!$G$14,$M25,BX$13)))) -> 1000000000000 | BY25: =IF($D25<>"Serviço",0,IF(OR(AND(AUTOEVENTO="Manual",$M25=1),$M25>(ROW(PLE.lastrow)-ROW(PLE.firstrow))),0,IF(OFFSET(PLE!$G$14,$M25,BY$13)="",10^12,OFFSET(PLE!$G$14,$M25,BY$13)))) -> 1000000000000 | BZ25: =IF($D25<>"Serviço",0,IF(OR(AND(AUTOEVENTO="Manual",$M25=1),$M25>(ROW(PLE.lastrow)-ROW(PLE.firstrow))),0,IF(OFFSET(PLE!$G$14,$M25,BZ$13)="",10^12,OFFSET(PLE!$G$14,$M25,BZ$13)))) -> 1000000000000 | CA25: =IF($D25<>"Serviço",0,IF(OR(AND(AUTOEVENTO="Manual",$M25=1),$M25>(ROW(PLE.lastrow)-ROW(PLE.firstrow))),0,IF(OFFSET(PLE!$G$14,$M25,CA$13)="",10^12,OFFSET(PLE!$G$14,$M25,CA$13)))) -> 1000000000000 | CB25: =IF($D25<>"Serviço",0,IF(OR(AND(AUTOEVENTO="Manual",$M25=1),$M25>(ROW(PLE.lastrow)-ROW(PLE.firstrow))),0,IF(OFFSET(PLE!$G$14,$M25,CB$13)="",10^12,OFFSET(PLE!$G$14,$M25,CB$13)))) -> 1000000000000 | CC25: =IF($D25<>"Serviço",0,IF(OR(AND(AUTOEVENTO="Manual",$M25=1),$M25>(ROW(PLE.lastrow)-ROW(PLE.firstrow))),0,IF(OFFSET(PLE!$G$14,$M25,CC$13)="",10^12,OFFSET(PLE!$G$14,$M25,CC$13)))) -> 1000000000000 | CD25: =IF($D25<>"Serviço",0,IF(OR(AND(AUTOEVENTO="Manual",$M25=1),$M25>(ROW(PLE.lastrow)-ROW(PLE.firstrow))),0,IF(OFFSET(PLE!$G$14,$M25,CD$13)="",10^12,OFFSET(PLE!$G$14,$M25,CD$13)))) -> 1000000000000 | CE25: =IF($D25<>"Serviço",0,IF(OR(AND(AUTOEVENTO="Manual",$M25=1),$M25>(ROW(PLE.lastrow)-ROW(PLE.firstrow))),0,IF(OFFSET(PLE!$G$14,$M25,CE$13)="",10^12,OFFSET(PLE!$G$14,$M25,CE$13)))) -> 1000000000000 | CF25: =IF($D25<>"Serviço",0,IF(OR(AND(AUTOEVENTO="Manual",$M25=1),$M25>(ROW(PLE.lastrow)-ROW(PLE.firstrow))),0,IF(OFFSET(PLE!$G$14,$M25,CF$13)="",10^12,OFFSET(PLE!$G$14,$M25,CF$13)))) -> 1000000000000 | CG25: =IF($D25<>"Serviço",0,IF(OR(AND(AUTOEVENTO="Manual",$M25=1),$M25>(ROW(PLE.lastrow)-ROW(PLE.firstrow))),0,IF(OFFSET(PLE!$G$14,$M25,CG$13)="",10^12,OFFSET(PLE!$G$14,$M25,CG$13)))) -> 1000000000000 | CH25: =IF($D25<>"Serviço",0,IF(OR(AND(AUTOEVENTO="Manual",$M25=1),$M25>(ROW(PLE.lastrow)-ROW(PLE.firstrow))),0,IF(OFFSET(PLE!$G$14,$M25,CH$13)="",10^12,OFFSET(PLE!$G$14,$M25,CH$13)))) -> 1000000000000 | CI25: =IF($D25<>"Serviço",0,IF(OR(AND(AUTOEVENTO="Manual",$M25=1),$M25>(ROW(PLE.lastrow)-ROW(PLE.firstrow))),0,IF(OFFSET(PLE!$G$14,$M25,CI$13)="",10^12,OFFSET(PLE!$G$14,$M25,CI$13)))) -> 1000000000000 | CJ25: =IF($D25<>"Serviço",0,IF(OR(AND(AUTOEVENTO="Manual",$M25=1),$M25>(ROW(PLE.lastrow)-ROW(PLE.firstrow))),0,IF(OFFSET(PLE!$G$14,$M25,CJ$13)="",10^12,OFFSET(PLE!$G$14,$M25,CJ$13)))) -> 1000000000000 | CK25: =IF($D25<>"Serviço",0,IF(OR(AND(AUTOEVENTO="Manual",$M25=1),$M25>(ROW(PLE.lastrow)-ROW(PLE.firstrow))),0,IF(OFFSET(PLE!$G$14,$M25,CK$13)="",10^12,OFFSET(PLE!$G$14,$M25,CK$13)))) -> 1000000000000 | CL25: =IF($D25<>"Serviço",0,IF(OR(AND(AUTOEVENTO="Manual",$M25=1),$M25>(ROW(PLE.lastrow)-ROW(PLE.firstrow))),0,IF(OFFSET(PLE!$G$14,$M25,CL$13)="",10^12,OFFSET(PLE!$G$14,$M25,CL$13)))) -> 1000000000000 | CM25: =IF($D25<>"Serviço",0,IF(OR(AND(AUTOEVENTO="Manual",$M25=1),$M25>(ROW(PLE.lastrow)-ROW(PLE.firstrow))),0,IF(OFFSET(PLE!$G$14,$M25,CM$13)="",10^12,OFFSET(PLE!$G$14,$M25,CM$13)))) -> 1000000000000
A26: 4 | B26: =OFFSET(ORÇAMENTO!C$15,ROW(B26)-ROW(B$15),0) -> S | C26: =OFFSET(ORÇAMENTO!L$15,ROW(C26)-ROW(C$15),0) -> F | D26: =OFFSET(ORÇAMENTO!N$15,ROW(D26)-ROW(D$15),0) -> Serviço | E26: =OFFSET(ORÇAMENTO!O$15,ROW(E26)-ROW(E$15),0) -> 1.3.3. | F26: =OFFSET(ORÇAMENTO!R$15,ROW(F26)-ROW(F$15),0) -> TUBO DE CONCRETO ARMADO PARA AGUAS PLUVIAIS, CLASSE PA-1, COM ENCAIXE PONTA E BOLSA, DIAMETRO NOMINAL DE 400 MM | G26: =IF($D26<>"Serviço","",OFFSET(ORÇAMENTO!S$15,ROW(G26)-ROW(G$15),0)) -> M | H26: =IF($D26<>"Serviço",0,IF(ACOMPANHAMENTO="BM",ROUND(OFFSET(ORÇAMENTO!AJ$15,ROW(H26)-ROW(H$15),0),15-13*ORÇAMENTO!$AF$7),SUMPRODUCT(($Q$12:$AI$12<>"")*ROUND($Q26:$AI26,15-13*ORÇAMENTO!$AF$7)))) -> 303 | I26: (Rua Glória(165m) + (Rua Dólio(31m) + (Rua São Domingos(107m)) = 303m | K26: 4.DRENAGEM | L26: . | M26: =IF($D26<>"Serviço","",IF(AUTOEVENTO="manual",$A26,IF(ISERROR(MATCH($A26,$A$15:OFFSET($A26,-1,0),0)),MAX($M$15:OFFSET(M26,-1,0))+1,INDEX($M$15:OFFSET(M26,-1,0),MATCH($A26,$A$15:OFFSET($A26,-1,0),0))))) -> 4 | N26: =IF($D26<>"Serviço","",IF(AUTOEVENTO="Manual",IF($A26=0,"<-- defina o número do agrupador",OFFSET(EVENTOS!$D$14,$A26,0)),OFFSET($F$15,$A26,0))) -> DRENAGEM | Q26: 165 | R26: 31 | S26: 107 | AJ26: =IF(AND($D26="Serviço",AJ$12<>0,$H26>0,OR(AUTOEVENTO<>"manual",$M26<>1)),ROUND(OFFSET($P26,0,AJ$13),15-13*ORÇAMENTO!$AF$7)/$H26*OFFSET(ORÇAMENTO!$X$15,ROW(AJ26)-ROW(AJ$15),0),0) -> 15089.25 | AK26: =IF(AND($D26="Serviço",AK$12<>0,$H26>0,OR(AUTOEVENTO<>"manual",$M26<>1)),ROUND(OFFSET($P26,0,AK$13),15-13*ORÇAMENTO!$AF$7)/$H26*OFFSET(ORÇAMENTO!$X$15,ROW(AK26)-ROW(AK$15),0),0) -> 2834.95 | AL26: =IF(AND($D26="Serviço",AL$12<>0,$H26>0,OR(AUTOEVENTO<>"manual",$M26<>1)),ROUND(OFFSET($P26,0,AL$13),15-13*ORÇAMENTO!$AF$7)/$H26*OFFSET(ORÇAMENTO!$X$15,ROW(AL26)-ROW(AL$15),0),0) -> 9785.15 | AM26: =IF(AND($D26="Serviço",AM$12<>0,$H26>0,OR(AUTOEVENTO<>"manual",$M26<>1)),ROUND(OFFSET($P26,0,AM$13),15-13*ORÇAMENTO!$AF$7)/$H26*OFFSET(ORÇAMENTO!$X$15,ROW(AM26)-ROW(AM$15),0),0) -> 0 | AN26: =IF(AND($D26="Serviço",AN$12<>0,$H26>0,OR(AUTOEVENTO<>"manual",$M26<>1)),ROUND(OFFSET($P26,0,AN$13),15-13*ORÇAMENTO!$AF$7)/$H26*OFFSET(ORÇAMENTO!$X$15,ROW(AN26)-ROW(AN$15),0),0) -> 0 | AO26: =IF(AND($D26="Serviço",AO$12<>0,$H26>0,OR(AUTOEVENTO<>"manual",$M26<>1)),ROUND(OFFSET($P26,0,AO$13),15-13*ORÇAMENTO!$AF$7)/$H26*OFFSET(ORÇAMENTO!$X$15,ROW(AO26)-ROW(AO$15),0),0) -> 0 | AP26: =IF(AND($D26="Serviço",AP$12<>0,$H26>0,OR(AUTOEVENTO<>"manual",$M26<>1)),ROUND(OFFSET($P26,0,AP$13),15-13*ORÇAMENTO!$AF$7)/$H26*OFFSET(ORÇAMENTO!$X$15,ROW(AP26)-ROW(AP$15),0),0) -> 0 | AQ26: =IF(AND($D26="Serviço",AQ$12<>0,$H26>0,OR(AUTOEVENTO<>"manual",$M26<>1)),ROUND(OFFSET($P26,0,AQ$13),15-13*ORÇAMENTO!$AF$7)/$H26*OFFSET(ORÇAMENTO!$X$15,ROW(AQ26)-ROW(AQ$15),0),0) -> 0 | AR26: =IF(AND($D26="Serviço",AR$12<>0,$H26>0,OR(AUTOEVENTO<>"manual",$M26<>1)),ROUND(OFFSET($P26,0,AR$13),15-13*ORÇAMENTO!$AF$7)/$H26*OFFSET(ORÇAMENTO!$X$15,ROW(AR26)-ROW(AR$15),0),0) -> 0 | AS26: =IF(AND($D26="Serviço",AS$12<>0,$H26>0,OR(AUTOEVENTO<>"manual",$M26<>1)),ROUND(OFFSET($P26,0,AS$13),15-13*ORÇAMENTO!$AF$7)/$H26*OFFSET(ORÇAMENTO!$X$15,ROW(AS26)-ROW(AS$15),0),0) -> 0 | AT26: =IF(AND($D26="Serviço",AT$12<>0,$H26>0,OR(AUTOEVENTO<>"manual",$M26<>1)),ROUND(OFFSET($P26,0,AT$13),15-13*ORÇAMENTO!$AF$7)/$H26*OFFSET(ORÇAMENTO!$X$15,ROW(AT26)-ROW(AT$15),0),0) -> 0 | AU26: =IF(AND($D26="Serviço",AU$12<>0,$H26>0,OR(AUTOEVENTO<>"manual",$M26<>1)),ROUND(OFFSET($P26,0,AU$13),15-13*ORÇAMENTO!$AF$7)/$H26*OFFSET(ORÇAMENTO!$X$15,ROW(AU26)-ROW(AU$15),0),0) -> 0 | AV26: =IF(AND($D26="Serviço",AV$12<>0,$H26>0,OR(AUTOEVENTO<>"manual",$M26<>1)),ROUND(OFFSET($P26,0,AV$13),15-13*ORÇAMENTO!$AF$7)/$H26*OFFSET(ORÇAMENTO!$X$15,ROW(AV26)-ROW(AV$15),0),0) -> 0 | AW26: =IF(AND($D26="Serviço",AW$12<>0,$H26>0,OR(AUTOEVENTO<>"manual",$M26<>1)),ROUND(OFFSET($P26,0,AW$13),15-13*ORÇAMENTO!$AF$7)/$H26*OFFSET(ORÇAMENTO!$X$15,ROW(AW26)-ROW(AW$15),0),0) -> 0 | AX26: =IF(AND($D26="Serviço",AX$12<>0,$H26>0,OR(AUTOEVENTO<>"manual",$M26<>1)),ROUND(OFFSET($P26,0,AX$13),15-13*ORÇAMENTO!$AF$7)/$H26*OFFSET(ORÇAMENTO!$X$15,ROW(AX26)-ROW(AX$15),0),0) -> 0 | AY26: =IF(AND($D26="Serviço",AY$12<>0,$H26>0,OR(AUTOEVENTO<>"manual",$M26<>1)),ROUND(OFFSET($P26,0,AY$13),15-13*ORÇAMENTO!$AF$7)/$H26*OFFSET(ORÇAMENTO!$X$15,ROW(AY26)-ROW(AY$15),0),0) -> 0 | AZ26: =IF(AND($D26="Serviço",AZ$12<>0,$H26>0,OR(AUTOEVENTO<>"manual",$M26<>1)),ROUND(OFFSET($P26,0,AZ$13),15-13*ORÇAMENTO!$AF$7)/$H26*OFFSET(ORÇAMENTO!$X$15,ROW(AZ26)-ROW(AZ$15),0),0) -> 0 | BA26: =IF(AND($D26="Serviço",BA$12<>0,$H26>0,OR(AUTOEVENTO<>"manual",$M26<>1)),ROUND(OFFSET($P26,0,BA$13),15-13*ORÇAMENTO!$AF$7)/$H26*OFFSET(ORÇAMENTO!$X$15,ROW(BA26)-ROW(BA$15),0),0) -> 0 | BC26: =IF($D26<>"Serviço",0,IF(AND(AUTOEVENTO="Manual",$M26=1),0,IF(OFFSET(CRONOPLE!$F$14,$M26,BC$13)="",10^12,OFFSET(CRONOPLE!$F$14,$M26,BC$13)))) -> 2 | BD26: =IF($D26<>"Serviço",0,IF(AND(AUTOEVENTO="Manual",$M26=1),0,IF(OFFSET(CRONOPLE!$F$14,$M26,BD$13)="",10^12,OFFSET(CRONOPLE!$F$14,$M26,BD$13)))) -> 2 | BE26: =IF($D26<>"Serviço",0,IF(AND(AUTOEVENTO="Manual",$M26=1),0,IF(OFFSET(CRONOPLE!$F$14,$M26,BE$13)="",10^12,OFFSET(CRONOPLE!$F$14,$M26,BE$13)))) -> 2 | BF26: =IF($D26<>"Serviço",0,IF(AND(AUTOEVENTO="Manual",$M26=1),0,IF(OFFSET(CRONOPLE!$F$14,$M26,BF$13)="",10^12,OFFSET(CRONOPLE!$F$14,$M26,BF$13)))) -> 1000000000000 | BG26: =IF($D26<>"Serviço",0,IF(AND(AUTOEVENTO="Manual",$M26=1),0,IF(OFFSET(CRONOPLE!$F$14,$M26,BG$13)="",10^12,OFFSET(CRONOPLE!$F$14,$M26,BG$13)))) -> 1000000000000 | BH26: =IF($D26<>"Serviço",0,IF(AND(AUTOEVENTO="Manual",$M26=1),0,IF(OFFSET(CRONOPLE!$F$14,$M26,BH$13)="",10^12,OFFSET(CRONOPLE!$F$14,$M26,BH$13)))) -> 1000000000000 | BI26: =IF($D26<>"Serviço",0,IF(AND(AUTOEVENTO="Manual",$M26=1),0,IF(OFFSET(CRONOPLE!$F$14,$M26,BI$13)="",10^12,OFFSET(CRONOPLE!$F$14,$M26,BI$13)))) -> 1000000000000 | BJ26: =IF($D26<>"Serviço",0,IF(AND(AUTOEVENTO="Manual",$M26=1),0,IF(OFFSET(CRONOPLE!$F$14,$M26,BJ$13)="",10^12,OFFSET(CRONOPLE!$F$14,$M26,BJ$13)))) -> 1000000000000 | BK26: =IF($D26<>"Serviço",0,IF(AND(AUTOEVENTO="Manual",$M26=1),0,IF(OFFSET(CRONOPLE!$F$14,$M26,BK$13)="",10^12,OFFSET(CRONOPLE!$F$14,$M26,BK$13)))) -> 1000000000000 | BL26: =IF($D26<>"Serviço",0,IF(AND(AUTOEVENTO="Manual",$M26=1),0,IF(OFFSET(CRONOPLE!$F$14,$M26,BL$13)="",10^12,OFFSET(CRONOPLE!$F$14,$M26,BL$13)))) -> 1000000000000 | BM26: =IF($D26<>"Serviço",0,IF(AND(AUTOEVENTO="Manual",$M26=1),0,IF(OFFSET(CRONOPLE!$F$14,$M26,BM$13)="",10^12,OFFSET(CRONOPLE!$F$14,$M26,BM$13)))) -> 1000000000000 | BN26: =IF($D26<>"Serviço",0,IF(AND(AUTOEVENTO="Manual",$M26=1),0,IF(OFFSET(CRONOPLE!$F$14,$M26,BN$13)="",10^12,OFFSET(CRONOPLE!$F$14,$M26,BN$13)))) -> 1000000000000 | BO26: =IF($D26<>"Serviço",0,IF(AND(AUTOEVENTO="Manual",$M26=1),0,IF(OFFSET(CRONOPLE!$F$14,$M26,BO$13)="",10^12,OFFSET(CRONOPLE!$F$14,$M26,BO$13)))) -> 1000000000000 | BP26: =IF($D26<>"Serviço",0,IF(AND(AUTOEVENTO="Manual",$M26=1),0,IF(OFFSET(CRONOPLE!$F$14,$M26,BP$13)="",10^12,OFFSET(CRONOPLE!$F$14,$M26,BP$13)))) -> 1000000000000 | BQ26: =IF($D26<>"Serviço",0,IF(AND(AUTOEVENTO="Manual",$M26=1),0,IF(OFFSET(CRONOPLE!$F$14,$M26,BQ$13)="",10^12,OFFSET(CRONOPLE!$F$14,$M26,BQ$13)))) -> 1000000000000 | BR26: =IF($D26<>"Serviço",0,IF(AND(AUTOEVENTO="Manual",$M26=1),0,IF(OFFSET(CRONOPLE!$F$14,$M26,BR$13)="",10^12,OFFSET(CRONOPLE!$F$14,$M26,BR$13)))) -> 1000000000000 | BS26: =IF($D26<>"Serviço",0,IF(AND(AUTOEVENTO="Manual",$M26=1),0,IF(OFFSET(CRONOPLE!$F$14,$M26,BS$13)="",10^12,OFFSET(CRONOPLE!$F$14,$M26,BS$13)))) -> 1000000000000 | BT26: =IF($D26<>"Serviço",0,IF(AND(AUTOEVENTO="Manual",$M26=1),0,IF(OFFSET(CRONOPLE!$F$14,$M26,BT$13)="",10^12,OFFSET(CRONOPLE!$F$14,$M26,BT$13)))) -> 1000000000000 | BV26: =IF($D26<>"Serviço",0,IF(OR(AND(AUTOEVENTO="Manual",$M26=1),$M26>(ROW(PLE.lastrow)-ROW(PLE.firstrow))),0,IF(OFFSET(PLE!$G$14,$M26,BV$13)="",10^12,OFFSET(PLE!$G$14,$M26,BV$13)))) -> 1000000000000 | BW26: =IF($D26<>"Serviço",0,IF(OR(AND(AUTOEVENTO="Manual",$M26=1),$M26>(ROW(PLE.lastrow)-ROW(PLE.firstrow))),0,IF(OFFSET(PLE!$G$14,$M26,BW$13)="",10^12,OFFSET(PLE!$G$14,$M26,BW$13)))) -> 1000000000000 | BX26: =IF($D26<>"Serviço",0,IF(OR(AND(AUTOEVENTO="Manual",$M26=1),$M26>(ROW(PLE.lastrow)-ROW(PLE.firstrow))),0,IF(OFFSET(PLE!$G$14,$M26,BX$13)="",10^12,OFFSET(PLE!$G$14,$M26,BX$13)))) -> 1000000000000 | BY26: =IF($D26<>"Serviço",0,IF(OR(AND(AUTOEVENTO="Manual",$M26=1),$M26>(ROW(PLE.lastrow)-ROW(PLE.firstrow))),0,IF(OFFSET(PLE!$G$14,$M26,BY$13)="",10^12,OFFSET(PLE!$G$14,$M26,BY$13)))) -> 1000000000000 | BZ26: =IF($D26<>"Serviço",0,IF(OR(AND(AUTOEVENTO="Manual",$M26=1),$M26>(ROW(PLE.lastrow)-ROW(PLE.firstrow))),0,IF(OFFSET(PLE!$G$14,$M26,BZ$13)="",10^12,OFFSET(PLE!$G$14,$M26,BZ$13)))) -> 1000000000000 | CA26: =IF($D26<>"Serviço",0,IF(OR(AND(AUTOEVENTO="Manual",$M26=1),$M26>(ROW(PLE.lastrow)-ROW(PLE.firstrow))),0,IF(OFFSET(PLE!$G$14,$M26,CA$13)="",10^12,OFFSET(PLE!$G$14,$M26,CA$13)))) -> 1000000000000 | CB26: =IF($D26<>"Serviço",0,IF(OR(AND(AUTOEVENTO="Manual",$M26=1),$M26>(ROW(PLE.lastrow)-ROW(PLE.firstrow))),0,IF(OFFSET(PLE!$G$14,$M26,CB$13)="",10^12,OFFSET(PLE!$G$14,$M26,CB$13)))) -> 1000000000000 | CC26: =IF($D26<>"Serviço",0,IF(OR(AND(AUTOEVENTO="Manual",$M26=1),$M26>(ROW(PLE.lastrow)-ROW(PLE.firstrow))),0,IF(OFFSET(PLE!$G$14,$M26,CC$13)="",10^12,OFFSET(PLE!$G$14,$M26,CC$13)))) -> 1000000000000 | CD26: =IF($D26<>"Serviço",0,IF(OR(AND(AUTOEVENTO="Manual",$M26=1),$M26>(ROW(PLE.lastrow)-ROW(PLE.firstrow))),0,IF(OFFSET(PLE!$G$14,$M26,CD$13)="",10^12,OFFSET(PLE!$G$14,$M26,CD$13)))) -> 1000000000000 | CE26: =IF($D26<>"Serviço",0,IF(OR(AND(AUTOEVENTO="Manual",$M26=1),$M26>(ROW(PLE.lastrow)-ROW(PLE.firstrow))),0,IF(OFFSET(PLE!$G$14,$M26,CE$13)="",10^12,OFFSET(PLE!$G$14,$M26,CE$13)))) -> 1000000000000 | CF26: =IF($D26<>"Serviço",0,IF(OR(AND(AUTOEVENTO="Manual",$M26=1),$M26>(ROW(PLE.lastrow)-ROW(PLE.firstrow))),0,IF(OFFSET(PLE!$G$14,$M26,CF$13)="",10^12,OFFSET(PLE!$G$14,$M26,CF$13)))) -> 1000000000000 | CG26: =IF($D26<>"Serviço",0,IF(OR(AND(AUTOEVENTO="Manual",$M26=1),$M26>(ROW(PLE.lastrow)-ROW(PLE.firstrow))),0,IF(OFFSET(PLE!$G$14,$M26,CG$13)="",10^12,OFFSET(PLE!$G$14,$M26,CG$13)))) -> 1000000000000 | CH26: =IF($D26<>"Serviço",0,IF(OR(AND(AUTOEVENTO="Manual",$M26=1),$M26>(ROW(PLE.lastrow)-ROW(PLE.firstrow))),0,IF(OFFSET(PLE!$G$14,$M26,CH$13)="",10^12,OFFSET(PLE!$G$14,$M26,CH$13)))) -> 1000000000000 | CI26: =IF($D26<>"Serviço",0,IF(OR(AND(AUTOEVENTO="Manual",$M26=1),$M26>(ROW(PLE.lastrow)-ROW(PLE.firstrow))),0,IF(OFFSET(PLE!$G$14,$M26,CI$13)="",10^12,OFFSET(PLE!$G$14,$M26,CI$13)))) -> 1000000000000 | CJ26: =IF($D26<>"Serviço",0,IF(OR(AND(AUTOEVENTO="Manual",$M26=1),$M26>(ROW(PLE.lastrow)-ROW(PLE.firstrow))),0,IF(OFFSET(PLE!$G$14,$M26,CJ$13)="",10^12,OFFSET(PLE!$G$14,$M26,CJ$13)))) -> 1000000000000 | CK26: =IF($D26<>"Serviço",0,IF(OR(AND(AUTOEVENTO="Manual",$M26=1),$M26>(ROW(PLE.lastrow)-ROW(PLE.firstrow))),0,IF(OFFSET(PLE!$G$14,$M26,CK$13)="",10^12,OFFSET(PLE!$G$14,$M26,CK$13)))) -> 1000000000000 | CL26: =IF($D26<>"Serviço",0,IF(OR(AND(AUTOEVENTO="Manual",$M26=1),$M26>(ROW(PLE.lastrow)-ROW(PLE.firstrow))),0,IF(OFFSET(PLE!$G$14,$M26,CL$13)="",10^12,OFFSET(PLE!$G$14,$M26,CL$13)))) -> 1000000000000 | CM26: =IF($D26<>"Serviço",0,IF(OR(AND(AUTOEVENTO="Manual",$M26=1),$M26>(ROW(PLE.lastrow)-ROW(PLE.firstrow))),0,IF(OFFSET(PLE!$G$14,$M26,CM$13)="",10^12,OFFSET(PLE!$G$14,$M26,CM$13)))) -> 1000000000000
